Workbook

Sheet Introduction
X1: 0
X2: 0
B16: Welcome to The Cost Guide. This tool uses a combination of data sources and analysis methods to examine the U.S. manufacturing industry and its supply chains. It provides industry level economic data, estimates, and analysis results that provide insight into the activities and resources that go into manufactured products. It answer questions such as: What do manufacturers spend on energy to produce a particular commodity? How much do manufacturers spend on machinery maintenance? What would an establishment of my size expect to lose from cybercrime? Rather than having to research each of these questions, the Cost Guide provides a central source of information.
B30: For more information on this tool:
B31: https://www.nist.gov/services-resources/software/manufacturing-cost-guide

Sheet Start
A1: What do you want to Examine?
A3: The first step is to choose what you want to analyze. Below are a series of options: | E3: Option Summary
B5: Industry Analysis: The industry analysis presents data collected from establishments categorized as being in the manufacturing industry. An establishment is a physical location where business or operations are performed. They are categorized by industry using the North American Industry Classification System (NAICS). | E5: Activity at the factory/Industry
B7: Supply Chain Analysis - Detail Oriented: The detailed supply chain analysis uses economic input-output analysis to estimate the contribution that each industry makes to produce a selection of manufactured commodities. It uses data collected from US establishments categorized using the North American Industry Classification System (NAICS). This analysis is referred to as "detailed" because it provides a detailed breakdown of cost categories. The method is further used to estimate a number of other cost categories for producing goods, including: Environmental Impact Energy Consumption by End Use Labor Cost by Occupation Purchases from Other Industries Assets or Capital (e.g., machinery and buildings) | C7: 1 | E7: Activity at the factory/industry and its supply chain
C8: FALSE
B9: Supply Chain Analysis - Imports Oriented: The imports oriented supply chain analysis uses economic input-output analysis to examine the imports needed for producing commodities in the United States. It provides an estimate of imports by industry by country brought into the U.S. manufacturing supply chain. Industries in this analysis are categorized by the Standard Industrial Classification (SIC) system. | E9: Activity at the factory/industry and its supply chain
B11: Estimate Establishment Level Costs/Losses: The establishment level analysis provides costs and losses based on the value of shipments at an establishment. Costs and losses are scaled to that value of shipments. | E11: Checked indicates factory while unchecked indicates industry
A17: For more information on this tool:
A18: https://www.nist.gov/services-resources/software/manufacturing-cost-guide

Sheet Establishment Data (hidden)
A1: Establishment Shipments | J1: 1
B8: Estimated Annual Value of Shipments
B9: $ | C9: 0 | J9: =ISNUMBER(C9) -> TRUE

Sheet User Input - Sup Chn Analysis (hidden)
A1: Select the output or metrics Select the output or metrics to be used for the examination.
A3: For Supply Chain Analysis
B4: Value Added: Value added is considered the primary measure of economic activity. This data provides the value added required to produce commodities for intermediate use (i.e., supplies to other industries) and final demand | C4: FALSE
B5: Environmental Impact: This analysis provides an estimate of the environmental impact associated with producing intermediate use (i.e., supplies to other industries) and final demand | C5: FALSE
B6: Identify Industries with High Value Added + Environmental Impact: This analysis combines the value added analysis and the environmental impact analysis to identify those industries in the supply chain that have a disproportionally high level in both areas | C6: FALSE
B7: Analysis of Energy use: This analysis estimates the value of energy used throughout the supply chain to produce intermediate use (i.e., supplies to other industries) and final demand. It further details how the energy was used. | C7: FALSE
B8: Analysis of Labor Compensation by Occupation: This analysis provides the different types of labor needed from different industries to produce commodities for intermediate use (i.e., supplies to other industries) and final demand | C8: FALSE
B9: Purchases by Industries: This table provides the use of commodities by industries. It is the Use table of an input-output model | C9: FALSE
B10: Assets (i.e., capital) Used: This table estimates the value of capital needed to produce intermediate use (i.e., supplies to other industries) and final demand | C10: FALSE
A19: For more information on this tool:
A20: https://www.nist.gov/services-resources/software/manufacturing-cost-guide

Sheet User Input - Industry Analysis (hidden)
A1: Select the output or metrics Select the output or metrics to be used for the examination.
A3: For Industry Analysis | D3: =SUM(D4:D15) -> 0
B4: Value Added: Value added is considered the primary measure of economics activity. This data provides the value added of each manufacturing industry. Value added by industry does not reveal information about the costs or purchases of items in other industries needed for production. | C4: FALSE | D4: =IF(C4=TRUE,1,0) -> 0
B5: Labor by Occupation: This data provides an estimate of compensation of employees by occupation, giving insight into how labor is used in each industry. | C5: FALSE | D5: =IF(C5=TRUE,1,0) -> 0
B6: Energy: This data provides an estimate of the cost of energy by end use (e.g., machine drive). | C6: FALSE | D6: 0
B7: Assets: This data provides an estimate of the purchase cost of assets (i.e., capital) needed for production. | C7: FALSE | D7: 0
A8: Topical Industry Research | C8: FALSE | D8: 0
B9: Additive Manufacturing: This section provides estimates of the revenue received for parts and components produced using additive manufacturing technologies. | C9: FALSE | D9: 0
B10: Inadequate Design Data: This section presents the costs that result from making or needing clarifications in design data. | C10: FALSE | D10: 0
B11: Inadequate Interoperability: This section presents the costs that result from interoperability between software platforms (e.g., re-entering data) in discrete high-tech manufacturing (i.e., NAICS 333-336) | C11: FALSE | D11: 0
B12: Maintenance Costs/Losses | C12: FALSE | D12: 0
B13: Machinery Maintenance Costs: This section provides estimates of maintenance costs and losses due to inadequate maintenance for discrete manufacturing. | C13: FALSE | D13: 0
B14: Losses due to Inadequate Maintenance: This section provides estimates of losses due to maintenance issues, including defects, downtime, lost sales, and injuries | C14: FALSE | D14: 0
B15: Observed Losses due to Reactive Maintenance: This section compares establishments that primarily use reactive maintenance to those that use preventive/predictive maintenance. | C15: FALSE | D15: 0
B16: Comparison of Maintenance Strategies: This section compares establishments that rely more heavily on each of three different maintenance strategies: reactive, preventive, and predictive.
B17: Defects and Downtime: This section provides estimates on the defect rate and unplanned downtime in manufacturing facilities
B18: Digital Economy and Cybercrime Losses: This section presents the value of the digital economy and losses due to cybercrime
A26: For more information on this tool:
A27: https://www.nist.gov/services-resources/software/manufacturing-cost-guide

Sheet User Input - Select Commodities (hidden)
A1: Select the commodities to be examined.
A3: Select commodities by Group | E3: =E4+E5 -> 0 | G3: In this tab, the user needs to the select the commodities of interest. Commodities are the products produced. For instance, an automobile is a commodity. The results will describe the costs, assets, and impacts that are associated with the commodities selected here in this tab. The user can select a group of commodities (see the list of five groups at the top) or the user can select individual industries (see the longer list below). If the user selects multiple commodities, the results will represent the aggregate of each commodity.
E4: =SUM(E17:E250) -> 0
B5: Select/Deselect all (this selection takes a moment) | E5: =SUM(E6:E9) -> 0
B6: Food, Beverage, and Tabacco Products (NAICS 311-312) | D6: FALSE | E6: =IF(D6=TRUE,1,0) -> 0
B7: Discrete Products (NAICS 313-323, 327-332, 337-339) | D7: FALSE | E7: =IF(D7=TRUE,1,0) -> 0
B8: Discrete Tech Products (NAICS 333-336) | D8: FALSE | E8: 0
B9: Process Products (NAICS 324-326) | D9: FALSE | E9: 0
A14: Select commodities individually
... 17 more rows

Sheet User Input - Select Occupations (hidden)
A1: Select the Occupations to be examined.
I3: In this tab, the user needs to the select the Occupations of interest. Occupations are categorized by the Standard Occupation Classification (SOC) system. It is a two to six-digit hierarchical code. The results will show the compensation for each SOC code for each industry. For the industry analysis, it will show the total compensation of all employees in the selected SOC codes. For the supply chain analysis, it provides an estimate of the compensation of employees in a selected SOC code by industry needed to produce the commodities selected by the user. For instance, one could examine the compensation of management occupations from the steel industry needed to produce automobiles.
A14: Select Occupations individually
B15: Select/Deselect all (this selection takes a moment)
... 18 more rows

Sheet Results (hidden)
A1: Results
A6: The results are shown in the tabs to the right of this tab. You can navigate back to this tab to go back to the start screen. Each tab has a description of the results.

Sheet User Input - Select Industries (hidden)
A1: Select the Industries to be examined.
K7: In this tab, the user needs to select the U.S. industries to be examined. The results will show the value added from industries in other countries along with value added in the U.S. needed for production in the industries selected here.
B13: Select/Deselect all
B15: Code | C15: Description | I15: =SUM(I16:I33) -> 0
B16: C10-C12 | C16: Manufacture of food products, beverages and tobacco products | H16: FALSE | I16: =IF(H16=TRUE,1,0) -> 0
B17: C13-C15 | C17: Manufacture of textiles, wearing apparel and leather products | H17: FALSE | I17: =IF(H17=TRUE,1,0) -> 0
B18: C16 | C18: Manufacture of wood and of products of wood and cork, except furniture; manufacture of articles of straw and plaiting materials | H18: FALSE | I18: 0
B19: C17 | C19: Manufacture of paper and paper products | H19: FALSE | I19: 0
B20: C18 | C20: Printing and reproduction of recorded media | H20: FALSE | I20: 0
B21: C19 | C21: Manufacture of coke and refined petroleum products | H21: FALSE | I21: 0
B22: C20 | C22: Manufacture of chemicals and chemical products | H22: FALSE | I22: 0
B23: C21 | C23: Manufacture of basic pharmaceutical products and pharmaceutical preparations | H23: FALSE | I23: 0
B24: C22 | C24: Manufacture of rubber and plastic products | H24: FALSE | I24: 0
B25: C23 | C25: Manufacture of other non-metallic mineral products | H25: FALSE | I25: 0
B26: C24 | C26: Manufacture of basic metals | H26: FALSE | I26: 0
B27: C25 | C27: Manufacture of fabricated metal products, except machinery and equipment | H27: FALSE | I27: 0
B28: C26 | C28: Manufacture of computer, electronic and optical products | H28: FALSE | I28: 0
B29: C27 | C29: Manufacture of electrical equipment | H29: FALSE | I29: 0
B30: C28 | C30: Manufacture of machinery and equipment n.e.c. | H30: FALSE | I30: 0
B31: C29 | C31: Manufacture of motor vehicles, trailers and semi-trailers | H31: FALSE | I31: 0
B32: C30 | C32: Manufacture of other transport equipment | H32: FALSE | I32: 0
B33: C31_C32 | C33: Manufacture of furniture; other manufacturing | H33: FALSE | I33: 0

Sheet User Input - Weighting (hidden)
H3: The table shown here is a list of environmental metrics used to measure the impact of producing commodities selected by the user. Beside the metrics is a list of weights given to each metric.
C4: Items to be measured | D4: Units | E4: Weights
C5: Global Warming | D5: kg CO2 eq | E5: 0.03092783505
C6: Acidification | D6: H+ moles eq | E6: 0.0618556701
C7: HH Criteria Air | D7: kg PM10 eq | E7: 0.07216494845
C8: Eutrophication | D8: kg N eq | E8: 0.2989690722
C9: Ozone Depletion Air | D9: kg CFC-11 eq | E9: 0.05154639175
C10: Smog Air | D10: kg O3 eq | E10: 0.09278350515
C11: ecotox | D11: CTUe | E11: 0.0824742268
C12: HH_can | D12: CTUHcan | E12: 0.0206185567
C13: HH_noncan | D13: CTUHnoncan | E13: 0.0412371134
C14: Primary Energy Consumption | D14: thousand BTU | E14: 0.1030927835
C15: Land Use | D15: acre | E15: 0.0618556701
C16: Water Consumption | D16: kg | E16: 0.0824742268
E17: =ROUND(SUM(E5:E16),4) -> 1

Sheet Examined - Hidden (hidden)
A1: Commodities | C1: Code | D1: Industry Description
A2: =IF('User Input - Select Commodities'!D17=TRUE, 1,0) -> 0 | C2: 321100 | D2: Sawmills and wood preservation
A3: =IF('User Input - Select Commodities'!D18=TRUE, 1,0) -> 0 | C3: 321200 | D3: Veneer, plywood, and engineered wood product manufacturing
A4: =IF('User Input - Select Commodities'!D19=TRUE, 1,0) -> 0 | C4: 321910 | D4: Millwork
A5: =IF('User Input - Select Commodities'!D20=TRUE, 1,0) -> 0 | C5: 3219A0 | D5: All other wood product manufacturing
A6: =IF('User Input - Select Commodities'!D21=TRUE, 1,0) -> 0 | C6: 327100 | D6: Clay product and refractory manufacturing
A7: =IF('User Input - Select Commodities'!D22=TRUE, 1,0) -> 0 | C7: 327200 | D7: Glass and glass product manufacturing
A8: =IF('User Input - Select Commodities'!D23=TRUE, 1,0) -> 0 | C8: 327310 | D8: Cement manufacturing
A9: =IF('User Input - Select Commodities'!D24=TRUE, 1,0) -> 0 | C9: 327320 | D9: Ready-mix concrete manufacturing
A10: =IF('User Input - Select Commodities'!D25=TRUE, 1,0) -> 0 | C10: 327330 | D10: Concrete pipe, brick, and block manufacturing
A11: =IF('User Input - Select Commodities'!D26=TRUE, 1,0) -> 0 | C11: 327390 | D11: Other concrete product manufacturing
A12: =IF('User Input - Select Commodities'!D27=TRUE, 1,0) -> 0 | C12: 327400 | D12: Lime and gypsum product manufacturing
A13: =IF('User Input - Select Commodities'!D28=TRUE, 1,0) -> 0 | C13: 327910 | D13: Abrasive product manufacturing
A14: =IF('User Input - Select Commodities'!D29=TRUE, 1,0) -> 0 | C14: 327991 | D14: Cut stone and stone product manufacturing
A15: =IF('User Input - Select Commodities'!D30=TRUE, 1,0) -> 0 | C15: 327992 | D15: Ground or treated mineral and earth manufacturing
... 18 more rows

Sheet 2007 - Hidden (hidden)
A1: Industry / Commodity | C1: Oilseed farming | D1: Grain farming | E1: Vegetable and melon farming | F1: Fruit and tree nut farming | G1: Greenhouse, nursery, and floriculture production | H1: Other crop farming | I1: Dairy cattle and milk production | J1: Beef cattle ranching and farming, including feedlots and dual-purpose ranching and farming | K1: Poultry and egg production | L1: Animal production, except cattle and poultry and eggs | M1: Forestry and logging | N1: Fishing, hunting and trapping | O1: Support activities for agriculture and forestry | P1: Oil and gas extraction | Q1: Coal mining | R1: Copper, nickel, lead, and zinc mining | S1: Iron, gold, silver, and other metal ore mining | T1: Stone mining and quarrying | U1: Other nonmetallic mineral mining and quarrying | V1: Drilling oil and gas wells | W1: Other support activities for mining | X1: Electric power generation, transmission, and distribution | Y1: Natural gas distribution | Z1: Water, sewage and other systems | AA1: Health care structures | AB1: Educational and vocational structures | AC1: Nonresidential maintenance and repair | AD1: Residential maintenance and repair | AE1: Office and commercial structures | AF1: Multifamily residential structures | AG1: Other residential structures | AH1: Manufacturing structures | AI1: Other nonresidential structures | AJ1: Power and communication structures | AK1: Single-family residential structures | AL1: Transportation structures and highways and streets | AM1: Sawmills and wood preservation | AN1: Veneer, plywood, and engineered wood product manufacturing | AO1: Millwork | AP1: All other wood product manufacturing | AQ1: Clay product and refractory manufacturing | AR1: Glass and glass product manufacturing | AS1: Cement manufacturing | AT1: Ready-mix concrete manufacturing | AU1: Concrete pipe, brick, and block manufacturing | AV1: Other concrete product manufacturing | AW1: Lime and gypsum product manufacturing | AX1: Abrasive product manufacturing | AY1: Cut stone and stone product manufacturing | AZ1: Ground or treated mineral and earth manufacturing | BA1: Mineral wool manufacturing | BB1: Miscellaneous nonmetallic mineral products | BC1: Iron and steel mills and ferroalloy manufacturing | BD1: Steel product manufacturing from purchased steel | BE1: Alumina refining and primary aluminum production | BF1: Aluminum product manufacturing from purchased aluminum | BG1: Nonferrous Metal (except Aluminum) Smelting and Refining | BH1: Copper rolling, drawing, extruding and alloying | BI1: Nonferrous metal (except copper and aluminum) rolling, drawing, extruding and alloying | BJ1: Ferrous metal foundries | BK1: Nonferrous metal foundries | BL1: Custom roll forming | BM1: All other forging, stamping, and sintering | BN1: Metal crown, closure, and other metal stamping (except automotive) | BO1: Cutlery and handtool manufacturing | BP1: Plate work and fabricated structural product manufacturing | BQ1: Ornamental and architectural metal products manufacturing | BR1: Power boiler and heat exchanger manufacturing | BS1: Metal tank (heavy gauge) manufacturing | BT1: Metal can, box, and other metal container (light gauge) manufacturing | BU1: Hardware manufacturing | BV1: Spring and wire product manufacturing | BW1: Machine shops | BX1: Turned product and screw, nut, and bolt manufacturing | BY1: Coating, engraving, heat treating and allied activities | BZ1: Plumbing fixture fitting and trim manufacturing | CA1: Valve and fittings other than plumbing | CB1: Ball and roller bearing manufacturing | CC1: Fabricated pipe and pipe fitting manufacturing | CD1: Ammunition, arms, ordnance, and accessories manufacturing | CE1: Other fabricated metal manufacturing | CF1: Farm machinery and equipment manufacturing | CG1: Lawn and garden equipment manufacturing | CH1: Construction machinery manufacturing | CI1: Mining and oil and gas field machinery manufacturing | CJ1: Semiconductor machinery manufacturing | CK1: Other industrial machinery manufacturing | CL1: Optical instrument and lens manufacturing | CM1: Photographic and photocopying equipment manufacturing | CN1: Other commercial and service industry machinery manufacturing | CO1: Heating equipment (except warm air furnaces) manufacturing | CP1: Air conditioning, refrigeration, and warm air heating equipment manufacturing | CQ1: Industrial and commercial fan and blower and air purification equipment manufacturing | CR1: Industrial mold manufacturing | CS1: Special tool, die, jig, and fixture manufacturing | CT1: Machine tool manufacturing | CU1: Cutting and machine tool accessory, rolling mill, and other metalworking machinery manufacturing | CV1: Turbine and turbine generator set units manufacturing | CW1: Speed changer, industrial high-speed drive, and gear manufacturing | CX1: Mechanical power transmission equipment manufacturing | CY1: Other engine equipment manufacturing | CZ1: Air and gas compressor manufacturing | DA1: Pump and pumping equipment manufacturing | DB1: Material handling equipment manufacturing | DC1: Power-driven handtool manufacturing | DD1: Packaging machinery manufacturing | DE1: Industrial process furnace and oven manufacturing | DF1: Other general purpose machinery manufacturing | DG1: Fluid power process machinery | DH1: Electronic computer manufacturing | DI1: Computer storage device manufacturing | DJ1: Computer terminals and other computer peripheral equipment manufacturing | DK1: Telephone apparatus manufacturing | DL1: Broadcast and wireless communications equipment | DM1: Other communications equipment manufacturing | DN1: Semiconductor and related device manufacturing | DO1: Printed circuit assembly (electronic assembly) manufacturing | DP1: Other electronic component manufacturing | DQ1: Electromedical and electrotherapeutic apparatus manufacturing | DR1: Search, detection, and navigation instruments manufacturing | DS1: Automatic environmental control manufacturing | DT1: Industrial process variable instruments manufacturing | DU1: Totalizing fluid meter and counting device manufacturing | DV1: Electricity and signal testing instruments manufacturing | DW1: Analytical laboratory instrument manufacturing | DX1: Irradiation apparatus manufacturing | DY1: Watch, clock, and other measuring and controlling device manufacturing | DZ1: Audio and video equipment manufacturing | EA1: Manufacturing and reproducing magnetic and optical media | EB1: Electric lamp bulb and part manufacturing | EC1: Lighting fixture manufacturing | ED1: Small electrical appliance manufacturing | EE1: Household cooking appliance manufacturing | EF1: Household refrigerator and home freezer manufacturing | EG1: Household laundry equipment manufacturing | EH1: Other major household appliance manufacturing | EI1: Power, distribution, and specialty transformer manufacturing | EJ1: Motor and generator manufacturing | EK1: Switchgear and switchboard apparatus manufacturing | EL1: Relay and industrial control manufacturing | EM1: Storage battery manufacturing | EN1: Primary battery manufacturing | EO1: Communication and energy wire and cable manufacturing | EP1: Wiring device manufacturing | EQ1: Carbon and graphite product manufacturing | ER1: All other miscellaneous electrical equipment and component manufacturing | ES1: Automobile manufacturing | ET1: Light truck and utility vehicle manufacturing | EU1: Heavy duty truck manufacturing | EV1: Motor vehicle body manufacturing | EW1: Truck trailer manufacturing | EX1: Motor home manufacturing | EY1: Travel trailer and camper manufacturing | EZ1: Motor vehicle gasoline engine and engine parts manufacturing | FA1: Motor vehicle electrical and electronic equipment manufacturing | FB1: Motor vehicle transmission and power train parts manufacturing | FC1: Motor vehicle seating and interior trim manufacturing | FD1: Motor vehicle metal stamping | FE1: Other Motor Vehicle Parts Manufacturing | FF1: Motor vehicle steering, suspension component (except spring), and brake systems manufacturing | FG1: Aircraft manufacturing | FH1: Aircraft engine and engine parts manufacturing | FI1: Other aircraft parts and auxiliary equipment manufacturing | FJ1: Guided missile and space vehicle manufacturing | FK1: Propulsion units and parts for space vehicles and guided missiles | FL1: Railroad rolling stock manufacturing | FM1: Ship building and repairing | FN1: Boat building | FO1: Motorcycle, bicycle, and parts manufacturing | FP1: Military armored vehicle, tank, and tank component manufacturing | FQ1: All other transportation equipment manufacturing | FR1: Wood kitchen cabinet and countertop manufacturing | FS1: Upholstered household furniture manufacturing | FT1: Nonupholstered wood household furniture manufacturing | FU1: Institutional furniture manufacturing | FV1: Other household nonupholstered furniture | FW1: Showcase, partition, shelving, and locker manufacturing | FX1: Office furniture and custom architectural woodwork and millwork manufacturing | FY1: Other furniture related product manufacturing | FZ1: Surgical and medical instrument manufacturing | GA1: Surgical appliance and supplies manufacturing | GB1: Dental equipment and supplies manufacturing | GC1: Ophthalmic goods manufacturing | GD1: Dental laboratories | GE1: Jewelry and silverware manufacturing | GF1: Sporting and athletic goods manufacturing | GG1: Doll, toy, and game manufacturing | GH1: Office supplies (except paper) manufacturing | GI1: Sign manufacturing | GJ1: All other miscellaneous manufacturing | GK1: Dog and cat food manufacturing | GL1: Other animal food manufacturing | GM1: Flour milling and malt manufacturing | GN1: Wet corn milling | GO1: Fats and oils refining and blending | GP1: Soybean and other oilseed processing | GQ1: Breakfast cereal manufacturing | GR1: Sugar and confectionery product manufacturing | GS1: Frozen food manufacturing | GT1: Fruit and vegetable canning, pickling, and drying | GU1: Cheese manufacturing | GV1: Dry, condensed, and evaporated dairy product manufacturing | GW1: Fluid milk and butter manufacturing | GX1: Ice cream and frozen dessert manufacturing | GY1: Poultry processing | GZ1: Animal (except poultry) slaughtering, rendering, and processing | HA1: Seafood product preparation and packaging | HB1: Bread and bakery product manufacturing | HC1: Cookie, cracker, pasta, and tortilla manufacturing | HD1: Snack food manufacturing | HE1: Coffee and tea manufacturing | HF1: Flavoring syrup and concentrate manufacturing | HG1: Seasoning and dressing manufacturing | HH1: All other food manufacturing | HI1: Soft drink and ice manufacturing | HJ1: Breweries | HK1: Wineries | HL1: Distilleries | HM1: Tobacco product manufacturing | HN1: Fiber, yarn, and thread mills | HO1: Fabric mills | HP1: Textile and fabric finishing and fabric coating mills | HQ1: Carpet and rug mills | HR1: Curtain and linen mills | HS1: Other textile product mills | HT1: Apparel manufacturing | HU1: Leather and allied product manufacturing | HV1: Pulp mills | HW1: Paper mills | HX1: Paperboard mills | HY1: Paperboard container manufacturing | HZ1: Paper Bag and Coated and Treated Paper Manufacturing | IA1: Stationery product manufacturing | IB1: Sanitary paper product manufacturing | IC1: All other converted paper product manufacturing | ID1: Printing | IE1: Support activities for printing | IF1: Petroleum refineries | IG1: Asphalt paving mixture and block manufacturing | IH1: Asphalt shingle and coating materials manufacturing | II1: Other petroleum and coal products manufacturing | IJ1: Petrochemical manufacturing | IK1: Industrial gas manufacturing | IL1: Synthetic dye and pigment manufacturing | IM1: Other Basic Inorganic Chemical Manufacturing | IN1: Other basic organic chemical manufacturing | IO1: Plastics material and resin manufacturing | IP1: Synthetic rubber and artificial and synthetic fibers and filaments manufacturing | IQ1: Medicinal and botanical manufacturing | IR1: Pharmaceutical preparation manufacturing | IS1: In-vitro diagnostic substance manufacturing | IT1: Biological product (except diagnostic) manufacturing | IU1: Fertilizer manufacturing | IV1: Pesticide and other agricultural chemical manufacturing | IW1: Paint and coating manufacturing | IX1: Adhesive manufacturing | IY1: Soap and cleaning compound manufacturing | IZ1: Toilet preparation manufacturing | JA1: Printing ink manufacturing | JB1: All other chemical product and preparation manufacturing | JC1: Plastics packaging materials and unlaminated film and sheet manufacturing | JD1: Plastics pipe, pipe fitting, and unlaminated profile shape manufacturing | JE1: Laminated plastics plate, sheet (except packaging), and shape manufacturing | JF1: Polystyrene foam product manufacturing | JG1: Urethane and other foam product (except polystyrene) manufacturing | JH1: Plastics bottle manufacturing | JI1: Other plastics product manufacturing | JJ1: Tire manufacturing | JK1: Rubber and plastics hoses and belting manufacturing | JL1: Other rubber product manufacturing | JM1: Motor vehicle and motor vehicle parts and supplies | JN1: Professional and commercial equipment and supplies | JO1: Household appliances and electrical and electronic goods | JP1: Machinery, equipment, and supplies | JQ1: Other durable goods merchant wholesalers | JR1: Drugs and druggists’ sundries | JS1: Grocery and related product wholesalers | JT1: Petroleum and petroleum products | JU1: Other nondurable goods merchant wholesalers | JV1: Wholesale electronic markets and agents and brokers | JW1: Customs duties | JX1: Motor vehicle and parts dealers | JY1: Food and beverage stores | JZ1: General merchandise stores | KA1: Building material and garden equipment and supplies dealers | KB1: Health and personal care stores | KC1: Gasoline stations | KD1: Clothing and clothing accessories stores | KE1: Nonstore retailers | KF1: All other retail | KG1: Air transportation | KH1: Rail transportation | KI1: Water transportation | KJ1: Truck transportation | KK1: Transit and ground passenger transportation | KL1: Pipeline transportation | KM1: Scenic and sightseeing transportation and support activities for transportation | KN1: Couriers and messengers | KO1: Warehousing and storage | KP1: Newspaper publishers | KQ1: Periodical Publishers | KR1: Book publishers | KS1: Directory, mailing list, and other publishers | KT1: Software publishers | KU1: Motion picture and video industries | KV1: Sound recording industries | KW1: Radio and television broadcasting | KX1: Cable and other subscription programming | KY1: Wired telecommunications carriers | KZ1: Wireless telecommunications carriers (except satellite) | LA1: Satellite, telecommunications resellers, and all other telecommunications | LB1: Data processing, hosting, and related services | LC1: Internet publishing and broadcasting and Web search portals | LD1: News syndicates, libraries, archives and all other information services | LE1: Nondepository credit intermediation and related activities | LF1: Monetary authorities and depository credit intermediation | LG1: Other financial investment activities | LH1: Securities and commodity contracts intermediation and brokerage | LI1: Direct life insurance carriers | LJ1: Insurance carriers, except direct life | LK1: Insurance agencies, brokerages, and related activities | LL1: Funds, trusts, and other financial vehicles | LM1: Owner-occupied housing | LN1: Tenant-occupied housing | LO1: Other real estate | LP1: Automotive equipment rental and leasing | LQ1: Commercial and industrial machinery and equipment rental and leasing | LR1: General and consumer goods rental | LS1: Lessors of nonfinancial intangible assets | LT1: Legal services | LU1: Custom computer programming services | LV1: Computer systems design services | LW1: Other computer related services, including facilities management | LX1: Accounting, tax preparation, bookkeeping, and payroll services | LY1: Architectural, engineering, and related services | LZ1: Management consulting services | MA1: Environmental and other technical consulting services | MB1: Scientific research and development services | MC1: Advertising, public relations, and related services | MD1: Specialized design services | ME1: Photographic services | MF1: Veterinary services | MG1: All other miscellaneous professional, scientific, and technical services | MH1: Management of companies and enterprises | MI1: Employment services | MJ1: Services to buildings and dwellings | MK1: Office administrative services | ML1: Facilities support services | MM1: Business support services | MN1: Travel arrangement and reservation services | MO1: Investigation and security services | MP1: Other support services | MQ1: Waste management and remediation services | MR1: Elementary and secondary schools | MS1: Junior colleges, colleges, universities, and professional schools | MT1: Other educational services | MU1: Offices of physicians | MV1: Offices of dentists | MW1: Offices of other health practitioners | MX1: Outpatient care centers | MY1: Medical and diagnostic laboratories | MZ1: Home health care services | NA1: Other ambulatory health care services | NB1: Hospitals | NC1: Nursing and community care facilities | ND1: Residential mental health, substance abuse, and other residential care facilities | NE1: Individual and family services | NF1: Child day care services | NG1: Community food, housing, and other relief services, including rehabilitation services | NH1: Performing arts companies | NI1: Spectator sports | NJ1: Independent artists, writers, and performers | NK1: Promoters of performing arts and sports and agents for public figures | NL1: Museums, historical sites, zoos, and parks | NM1: Amusement parks and arcades | NN1: Gambling industries (except casino hotels) | NO1: Other amusement and recreation industries | NP1: Accommodation | NQ1: Full-service restaurants | NR1: Limited-service restaurants | NS1: All other food and drinking places | NT1: Automotive repair and maintenance | NU1: Electronic and precision equipment repair and maintenance | NV1: Commercial and industrial machinery and equipment repair and maintenance | NW1: Personal and household goods repair and maintenance | NX1: Personal care services | NY1: Death care services | NZ1: Dry-cleaning and laundry services | OA1: Other personal services | OB1: Religious organizations | OC1: Grantmaking, giving, and social advocacy organizations | OD1: Civic, social, professional, and similar organizations | OE1: Private households | OF1: Federal general government (defense) | OG1: Federal general government (nondefense) | OH1: Postal service | OI1: Other federal government enterprises | OJ1: State and local government educational services | OK1: State and local government hospitals and health services | OL1: State and local government other services | OM1: Other state and local government enterprises | ON1: Scrap | OO1: Used and secondhand goods | OP1: Noncomparable imports | OQ1: Rest of the world adjustment
A2: Code | B2: Industry Description | C2: 1111A0 | D2: 1111B0 | E2: 111200 | F2: 111300 | G2: 111400 | H2: 111900 | I2: 112120 | J2: 1121A0 | K2: 112300 | L2: 112A00 | M2: 113000 | N2: 114000 | O2: 115000 | P2: 211000 | Q2: 212100 | R2: 212230 | S2: 2122A0 | T2: 212310 | U2: 2123A0 | V2: 213111 | W2: 21311A | X2: 221100 | Y2: 221200 | Z2: 221300 | AA2: 233210 | AB2: 233262 | AC2: 230301 | AD2: 230302 | AE2: 2332A0 | AF2: 233412 | AG2: 2334A0 | AH2: 233230 | AI2: 2332D0 | AJ2: 233240 | AK2: 233411 | AL2: 2332C0 | AM2: 321100 | AN2: 321200 | AO2: 321910 | AP2: 3219A0 | AQ2: 327100 | AR2: 327200 | AS2: 327310 | AT2: 327320 | AU2: 327330 | AV2: 327390 | AW2: 327400 | AX2: 327910 | AY2: 327991 | AZ2: 327992 | BA2: 327993 | BB2: 327999 | BC2: 331110 | BD2: 331200 | BE2: 331313 | BF2: 33131B | BG2: 331410 | BH2: 331420 | BI2: 331490 | BJ2: 331510 | BK2: 331520 | BL2: 332114 | BM2: 33211A | BN2: 332119 | BO2: 332200 | BP2: 332310 | BQ2: 332320 | BR2: 332410 | BS2: 332420 | BT2: 332430 | BU2: 332500 | BV2: 332600 | BW2: 332710 | BX2: 332720 | BY2: 332800 | BZ2: 332913 | CA2: 33291A | CB2: 332991 | CC2: 332996 | CD2: 33299A | CE2: 332999 | CF2: 333111 | CG2: 333112 | CH2: 333120 | CI2: 333130 | CJ2: 333242 | CK2: 33329A | CL2: 333314 | CM2: 333316 | CN2: 333318 | CO2: 333414 | CP2: 333415 | CQ2: 333413 | CR2: 333511 | CS2: 333514 | CT2: 333517 | CU2: 33351B | CV2: 333611 | CW2: 333612 | CX2: 333613 | CY2: 333618 | CZ2: 333912 | DA2: 33391A | DB2: 333920 | DC2: 333991 | DD2: 333993 | DE2: 333994 | DF2: 33399A | DG2: 33399B | DH2: 334111 | DI2: 334112 | DJ2: 334118 | DK2: 334210 | DL2: 334220 | DM2: 334290 | DN2: 334413 | DO2: 334418 | DP2: 33441A | DQ2: 334510 | DR2: 334511 | DS2: 334512 | DT2: 334513 | DU2: 334514 | DV2: 334515 | DW2: 334516 | DX2: 334517 | DY2: 33451A | DZ2: 334300 | EA2: 334610 | EB2: 335110 | EC2: 335120 | ED2: 335210 | EE2: 335221 | EF2: 335222 | EG2: 335224 | EH2: 335228 | EI2: 335311 | EJ2: 335312 | EK2: 335313 | EL2: 335314 | EM2: 335911 | EN2: 335912 | EO2: 335920 | EP2: 335930 | EQ2: 335991 | ER2: 335999 | ES2: 336111 | ET2: 336112 | EU2: 336120 | EV2: 336211 | EW2: 336212 | EX2: 336213 | EY2: 336214 | EZ2: 336310 | FA2: 336320 | FB2: 336350 | FC2: 336360 | FD2: 336370 | FE2: 336390 | FF2: 3363A0 | FG2: 336411 | FH2: 336412 | FI2: 336413 | FJ2: 336414 | FK2: 33641A | FL2: 336500 | FM2: 336611 | FN2: 336612 | FO2: 336991 | FP2: 336992 | FQ2: 336999 | FR2: 337110 | FS2: 337121 | FT2: 337122 | FU2: 337127 | FV2: 33712N | FW2: 337215 | FX2: 33721A | FY2: 337900 | FZ2: 339112 | GA2: 339113 | GB2: 339114 | GC2: 339115 | GD2: 339116 | GE2: 339910 | GF2: 339920 | GG2: 339930 | GH2: 339940 | GI2: 339950 | GJ2: 339990 | GK2: 311111 | GL2: 311119 | GM2: 311210 | GN2: 311221 | GO2: 311225 | GP2: 311224 | GQ2: 311230 | GR2: 311300 | GS2: 311410 | GT2: 311420 | GU2: 311513 | GV2: 311514 | GW2: 31151A | GX2: 311520 | GY2: 311615 | GZ2: 31161A | HA2: 311700 | HB2: 311810 | HC2: 3118A0 | HD2: 311910 | HE2: 311920 | HF2: 311930 | HG2: 311940 | HH2: 311990 | HI2: 312110 | HJ2: 312120 | HK2: 312130 | HL2: 312140 | HM2: 312200 | HN2: 313100 | HO2: 313200 | HP2: 313300 | HQ2: 314110 | HR2: 314120 | HS2: 314900 | HT2: 315000 | HU2: 316000 | HV2: 322110 | HW2: 322120 | HX2: 322130 | HY2: 322210 | HZ2: 322220 | IA2: 322230 | IB2: 322291 | IC2: 322299 | ID2: 323110 | IE2: 323120 | IF2: 324110 | IG2: 324121 | IH2: 324122 | II2: 324190 | IJ2: 325110 | IK2: 325120 | IL2: 325130 | IM2: 325180 | IN2: 325190 | IO2: 325211 | IP2: 3252A0 | IQ2: 325411 | IR2: 325412 | IS2: 325413 | IT2: 325414 | IU2: 325310 | IV2: 325320 | IW2: 325510 | IX2: 325520 | IY2: 325610 | IZ2: 325620 | JA2: 325910 | JB2: 3259A0 | JC2: 326110 | JD2: 326120 | JE2: 326130 | JF2: 326140 | JG2: 326150 | JH2: 326160 | JI2: 326190 | JJ2: 326210 | JK2: 326220 | JL2: 326290 | JM2: 423100 | JN2: 423400 | JO2: 423600 | JP2: 423800 | JQ2: 423A00 | JR2: 424200 | JS2: 424400 | JT2: 424700 | JU2: 424A00 | JV2: 425000 | JW2: 4200ID | JX2: 441000 | JY2: 445000 | JZ2: 452000 | KA2: 444000 | KB2: 446000 | KC2: 447000 | KD2: 448000 | KE2: 454000 | KF2: 4B0000 | KG2: 481000 | KH2: 482000 | KI2: 483000 | KJ2: 484000 | KK2: 485000 | KL2: 486000 | KM2: 48A000 | KN2: 492000 | KO2: 493000 | KP2: 511110 | KQ2: 511120 | KR2: 511130 | KS2: 5111A0 | KT2: 511200 | KU2: 512100 | KV2: 512200 | KW2: 515100 | KX2: 515200 | KY2: 517110 | KZ2: 517210 | LA2: 517A00 | LB2: 518200 | LC2: 519130 | LD2: 5191A0 | LE2: 522A00 | LF2: 52A000 | LG2: 523900 | LH2: 523A00 | LI2: 524113 | LJ2: 5241XX | LK2: 524200 | LL2: 525000 | LM2: 531HSO | LN2: 531HST | LO2: 531ORE | LP2: 532100 | LQ2: 532400 | LR2: 532A00 | LS2: 533000 | LT2: 541100 | LU2: 541511 | LV2: 541512 | LW2: 54151A | LX2: 541200 | LY2: 541300 | LZ2: 541610 | MA2: 5416A0 | MB2: 541700 | MC2: 541800 | MD2: 541400 | ME2: 541920 | MF2: 541940 | MG2: 5419A0 | MH2: 550000 | MI2: 561300 | MJ2: 561700 | MK2: 561100 | ML2: 561200 | MM2: 561400 | MN2: 561500 | MO2: 561600 | MP2: 561900 | MQ2: 562000 | MR2: 611100 | MS2: 611A00 | MT2: 611B00 | MU2: 621100 | MV2: 621200 | MW2: 621300 | MX2: 621400 | MY2: 621500 | MZ2: 621600 | NA2: 621900 | NB2: 622000 | NC2: 623A00 | ND2: 623B00 | NE2: 624100 | NF2: 624400 | NG2: 624A00 | NH2: 711100 | NI2: 711200 | NJ2: 711500 | NK2: 711A00 | NL2: 712000 | NM2: 713100 | NN2: 713200 | NO2: 713900 | NP2: 721000 | NQ2: 722110 | NR2: 722211 | NS2: 722A00 | NT2: 811100 | NU2: 811200 | NV2: 811300 | NW2: 811400 | NX2: 812100 | NY2: 812200 | NZ2: 812300 | OA2: 812900 | OB2: 813100 | OC2: 813A00 | OD2: 813B00 | OE2: 814000 | OF2: S00500 | OG2: S00600 | OH2: 491000 | OI2: S00102 | OJ2: GSLGE | OK2: GSLGH | OL2: GSLGO | OM2: S00203 | ON2: S00401 | OO2: S00402 | OP2: S00300 | OQ2: S00900 | OR2: Final Use | OS2: Final Use' | OT2: Calculated | OU2: Calculated-total | OV2: From Make Matrix | OW2: Adjusted to 2012 | OX2: value added | OY2: Estimated VA | OZ2: rank
A3: 1111A0 | B3: Oilseed farming | C3: 1.11086 | D3: 0.0055446 | E3: 0.0019176 | F3: 0.001872 | G3: 0.0008543 | H3: 0.0017291 | I3: 0.0302751 | J3: 0.0135042 | K3: 0.0698287 | L3: 0.0103598 | M3: 0.0033146 | N3: 0.0003753 | O3: 0.014051 | P3: 6.74e-05 | Q3: 0.0001887 | R3: 0.0002564 | S3: 0.0003636 | T3: 0.0001733 | U3: 0.0002504 | V3: 0.000122 | W3: 0.0001856 | X3: 7.43e-05 | Y3: 7.16e-05 | Z3: 0.0001138 | AA3: 0.0001737 | AB3: 0.0001786 | AC3: 0.0002176 | AD3: 0.000202 | AE3: 0.0001315 | AF3: 0.0001652 | AG3: 0.0002402 | AH3: 9.05e-05 | AI3: 0.0001332 | AJ3: 9.56e-05 | AK3: 0.0001756 | AL3: 0.0001694 | AM3: 0.0013634 | AN3: 0.0009529 | AO3: 0.0006535 | AP3: 0.0011099 | AQ3: 0.0001928 | AR3: 0.0002399 | AS3: 0.0001662 | AT3: 0.0007521 | AU3: 0.0003358 | AV3: 0.0003223 | AW3: 0.0008455 | AX3: 0.0001977 | AY3: 0.0004401 | AZ3: 0.0001582 | BA3: 0.0004359 | BB3: 0.0002109 | BC3: 0.0002469 | BD3: 0.0002433 | BE3: 0.0002843 | BF3: 0.0002531 | BG3: 0.0001713 | BH3: 0.0002113 | BI3: 0.0002007 | BJ3: 0.0001362 | BK3: 0.0001821 | BL3: 0.0001961 | BM3: 0.0001597 | BN3: 0.0002555 | BO3: 0.0002027 | BP3: 0.000266 | BQ3: 0.0004208 | BR3: 0.0002195 | BS3: 0.0002507 | BT3: 0.000299 | BU3: 0.000237 | BV3: 0.0002599 | BW3: 0.0001983 | BX3: 0.0001293 | BY3: 0.0006666 | BZ3: 0.0002332 | CA3: 0.0001436 | CB3: 7.09e-05 | CC3: 0.0001467 | CD3: 0.0001981 | CE3: 0.0002652 | CF3: 0.0002244 | CG3: 0.000345 | CH3: 0.0002228 | CI3: 0.0002072 | CJ3: 0.0001639 | CK3: 0.0001889 | CL3: 0.0002444 | CM3: 0.0005721 | CN3: 0.0002362 | CO3: 0.0004903 | CP3: 0.0002418 | CQ3: 0.0002669 | CR3: 0.0002639 | CS3: 0.0001571 | CT3: 0.0002397 | CU3: 0.0001368 | CV3: 0.0001287 | CW3: 0.0001016 | CX3: 0.0001315 | CY3: 0.000266 | CZ3: 0.0002516 | DA3: 0.000196 | DB3: 0.0002256 | DC3: 0.0001928 | DD3: 0.0001493 | DE3: 9.84e-05 | DF3: 0.0003938 | DG3: 0.0001993 | DH3: 0.0001049 | DI3: 0.0001086 | DJ3: 0.0001566 | DK3: 0.0001413 | DL3: 7.44e-05 | DM3: 0.0001429 | DN3: 0.0001604 | DO3: 0.0002024 | DP3: 0.0002203 | DQ3: 0.0003928 | DR3: 0.000129 | DS3: 0.0001841 | DT3: 0.0001557 | DU3: 0.0002258 | DV3: 0.0001135 | DW3: 0.000232 | DX3: 0.0010256 | DY3: 0.0001425 | DZ3: 0.0002149 | EA3: 0.0006377 | EB3: 0.0002056 | EC3: 0.0003142 | ED3: 0.0005868 | EE3: 0.0003912 | EF3: 0.0005259 | EG3: 0.0005281 | EH3: 0.0003832 | EI3: 0.0003469 | EJ3: 0.0002054 | EK3: 0.0002062 | EL3: 0.0001557 | EM3: 0.0001505 | EN3: 0.0001877 | EO3: 0.0003448 | EP3: 0.0004181 | EQ3: 0.0007942 | ER3: 0.0001608 | ES3: 0.0002881 | ET3: 0.0003265 | EU3: 0.0003302 | EV3: 0.0002635 | EW3: 0.000316 | EX3: 0.0004333 | EY3: 0.0004994 | EZ3: 0.0002173 | FA3: 0.0002859 | FB3: 0.0002009 | FC3: 0.000767 | FD3: 0.0002432 | FE3: 0.0003427 | FF3: 0.0002696 | FG3: 9.53e-05 | FH3: 6e-05 | FI3: 0.0001307 | FJ3: 0.0001242 | FK3: 0.0002046 | FL3: 0.0001984 | FM3: 0.0001899 | FN3: 0.0004364 | FO3: 0.0001481 | FP3: 0.0003131 | FQ3: 0.0004887 | FR3: 0.0005725 | FS3: 0.0005275 | FT3: 0.0006717 | FU3: 0.0005871 | FV3: 0.0005282 | FW3: 0.0004385 | FX3: 0.0003955 | FY3: 0.0004277 | FZ3: 0.0003813 | GA3: 0.0003857 | GB3: 0.0004906 | GC3: 0.0002675 | GD3: 0.0001385 | GE3: 0.0001206 | GF3: 0.0005937 | GG3: 0.0007208 | GH3: 0.0008703 | GI3: 0.0005623 | GJ3: 0.000673 | GK3: 0.0256575 | GL3: 0.148618 | GM3: 0.0178068 | GN3: 0.0214937 | GO3: 0.41953 | GP3: 0.678576 | GQ3: 0.073623 | GR3: 0.0195192 | GS3: 0.0135683 | GT3: 0.0064019 | GU3: 0.0197554 | GV3: 0.0200409 | GW3: 0.0185121 | GX3: 0.0114276 | GY3: 0.0349277 | GZ3: 0.0098896 | HA3: 0.0027563 | HB3: 0.0165374 | HC3: 0.0213885 | HD3: 0.047393 | HE3: 0.0010587 | HF3: 0.0048418 | HG3: 0.0426196 | HH3: 0.0197491 | HI3: 0.0028893 | HJ3: 0.0011383 | HK3: 0.0003328 | HL3: 0.0015584 | HM3: 0.0002317 | HN3: 0.0018293 | HO3: 0.0012748 | HP3: 0.0009061 | HQ3: 0.0014441 | HR3: 0.0008985 | HS3: 0.0009505 | HT3: 0.0004648 | HU3: 0.0013497 | HV3: 0.0010632 | HW3: 0.0014098 | HX3: 0.0009638 | HY3: 0.0007066 | HZ3: 0.0009469 | IA3: 0.0007285 | IB3: 0.001199 | IC3: 0.0006466 | ID3: 0.0007099 | IE3: 0.0003359 | IF3: 0.0001108 | IG3: 0.0010487 | IH3: 0.0001168 | II3: 0.0025424 | IJ3: 0.0028506 | IK3: 0.0015881 | IL3: 0.0011869 | IM3: 0.0010534 | IN3: 0.0108772 | IO3: 0.0041506 | IP3: 0.0033864 | IQ3: 0.0127685 | IR3: 0.0025352 | IS3: 0.0013356 | IT3: 0.0005903 | IU3: 0.0005031 | IV3: 0.0029193 | IW3: 0.0060641 | IX3: 0.0018045 | IY3: 0.00355 | IZ3: 0.0077375 | JA3: 0.0015062 | JB3: 0.0050498 | JC3: 0.002015 | JD3: 0.0019096 | JE3: 0.0012836 | JF3: 0.0017139 | JG3: 0.0015098 | JH3: 0.0023914 | JI3: 0.001362 | JJ3: 0.0013509 | JK3: 0.0008864 | JL3: 0.0010684 | JM3: 7.47e-05 | JN3: 4.97e-05 | JO3: 6.75e-05 | JP3: 6.59e-05 | JQ3: 9.31e-05 | JR3: 4.22e-05 | JS3: 0.0001079 | JT3: 1.02e-05 | JU3: 0.000573 | JV3: 0.0013705 | JW3: 0 | JX3: 5.97e-05 | JY3: 0.00012 | JZ3: 7.86e-05 | KA3: 5.97e-05 | KB3: 6.71e-05 | KC3: 8.44e-05 | KD3: 9.71e-05 | KE3: 0.0001107 | KF3: 7.51e-05 | KG3: 0.0002301 | KH3: 0.0001022 | KI3: 0.0001363 | KJ3: 6.99e-05 | KK3: 0.0001324 | KL3: 7.84e-05 | KM3: 9.59e-05 | KN3: 0.0001362 | KO3: 8.7e-05 | KP3: 0.0001413 | KQ3: 0.0001704 | KR3: 0.0001366 | KS3: 0.0001682 | KT3: 4.42e-05 | KU3: 8.4e-05 | KV3: 6.79e-05 | KW3: 0.0001061 | KX3: 7.61e-05 | KY3: 5.12e-05 | KZ3: 0.0001103 | LA3: 5.05e-05 | LB3: 0.0001057 | LC3: 0.000119 | LD3: 6.75e-05 | LE3: 6.16e-05 | LF3: 7.17e-05 | LG3: 8.82e-05 | LH3: 6.74e-05 | LI3: 2.7e-06 | LJ3: 4.66e-05 | LK3: 5.38e-05 | LL3: 7.48e-05 | LM3: 2.12e-05 | LN3: 5.2e-06 | LO3: 0.0001665 | LP3: 8.03e-05 | LQ3: 0.0001887 | LR3: 0.0001622 | LS3: 5.6e-05 | LT3: 5.95e-05 | LU3: 3.75e-05 | LV3: 8.79e-05 | LW3: 0.0001073 | LX3: 5.37e-05 | LY3: 0.0001973 | LZ3: 0.0001257 | MA3: 8.51e-05 | MB3: 0.0001369 | MC3: 0.0001727 | MD3: 0.0002347 | ME3: 0.0002935 | MF3: 0.0006652 | MG3: 0.0001063 | MH3: 9.77e-05 | MI3: 5.1e-05 | MJ3: 0.0002119 | MK3: 0.0001307 | ML3: 0.0001619 | MM3: 0.0001328 | MN3: 0.0001833 | MO3: 0.0001075 | MP3: 0.000263 | MQ3: 0.0002125 | MR3: 0.0005564 | MS3: 0.0005074 | MT3: 0.0001143 | MU3: 0.0002538 | MV3: 0.0001067 | MW3: 0.0002702 | MX3: 0.000482 | MY3: 0.0002194 | MZ3: 0.0004562 | NA3: 0.0004351 | NB3: 0.0005415 | NC3: 0.0006772 | ND3: 0.0005782 | NE3: 0.0004505 | NF3: 0.0005564 | NG3: 0.0020763 | NH3: 8.12e-05 | NI3: 0.0006893 | NJ3: 3.66e-05 | NK3: 0.0001075 | NL3: 0.000164 | NM3: 0.0006098 | NN3: 0.0001521 | NO3: 0.003158 | NP3: 0.0003992 | NQ3: 0.0013854 | NR3: 0.0017641 | NS3: 0.0047613 | NT3: 9.3e-05 | NU3: 5.32e-05 | NV3: 0.000101 | NW3: 5.75e-05 | NX3: 0.0004792 | NY3: 7.01e-05 | NZ3: 0.0001308 | OA3: 8.8e-05 | OB3: 0.0002226 | OC3: 3.11e-05 | OD3: 0.0001902 | OE3: 0 | OF3: 0.000151 | OG3: -0.0018755 | OH3: 6.28e-05 | OI3: 0.0010916 | OJ3: 0.0002858 | OK3: 0.0012532 | OL3: 0.0004213 | OM3: 0.0001225 | ON3: 0.0003573 | OO3: 0 | OP3: 0 | OQ3: -0.0018755 | OR3: 8733 | OS3: =OR3*0 -> 0 | OT3: =MMULT(C3:OQ407,OS3:OS407) -> 0 | OU3: 24512.51395 | OV3: 24513 | OW3: =OT3*(245.12/207.342) -> 0 | OX3: 10919 | OY3: =(OT3/OU3)*OX3 -> 0 | OZ3: =RANK(OY3,$OY$3:$OY$407,0) -> 1 | PA3: 1
A4: 1111B0 | B4: Grain farming | C4: 0.003422 | D4: 1.05818 | E4: 0.0035253 | F4: 0.0042293 | G4: 0.0020769 | H4: 0.011006 | I4: 0.0725672 | J4: 0.0689844 | K4: 0.12565 | L4: 0.0190881 | M4: 0.0068011 | N4: 0.0007202 | O4: 0.0285719 | P4: 0.0002365 | Q4: 0.0005001 | R4: 0.0010891 | S4: 0.0017754 | T4: 0.0004725 | U4: 0.0010036 | V4: 0.0002958 | W4: 0.000601 | X4: 0.0002779 | Y4: 0.0002226 | Z4: 0.0004295 | AA4: 0.0006347 | AB4: 0.0006378 | AC4: 0.0006985 | AD4: 0.0007573 | AE4: 0.0004648 | AF4: 0.0006133 | AG4: 0.0008746 | AH4: 0.0003395 | AI4: 0.0004704 | AJ4: 0.0003302 | AK4: 0.000637 | AL4: 0.0005696 | AM4: 0.0033345 | AN4: 0.0028868 | AO4: 0.0018097 | AP4: 0.0016859 | AQ4: 0.0007556 | AR4: 0.0010517 | AS4: 0.0006726 | AT4: 0.0041315 | AU4: 0.0010157 | AV4: 0.0011093 | AW4: 0.0117263 | AX4: 0.0009016 | AY4: 0.0020704 | AZ4: 0.0007475 | BA4: 0.0021489 | BB4: 0.0009253 | BC4: 0.0008832 | BD4: 0.0008803 | BE4: 0.0009349 | BF4: 0.0008861 | BG4: 0.0007127 | BH4: 0.0009188 | BI4: 0.0007974 | BJ4: 0.0004355 | BK4: 0.0006236 | BL4: 0.000647 | BM4: 0.0005058 | BN4: 0.0008581 | BO4: 0.0007404 | BP4: 0.0007169 | BQ4: 0.0012905 | BR4: 0.0005922 | BS4: 0.0007373 | BT4: 0.0008036 | BU4: 0.0008845 | BV4: 0.0008897 | BW4: 0.0005522 | BX4: 0.0004403 | BY4: 0.0015034 | BZ4: 0.0009798 | CA4: 0.0005342 | CB4: 0.0002407 | CC4: 0.0005458 | CD4: 0.0007931 | CE4: 0.0010536 | CF4: 0.0008056 | CG4: 0.0010795 | CH4: 0.0008004 | CI4: 0.0007174 | CJ4: 0.0005838 | CK4: 0.0006518 | CL4: 0.0007428 | CM4: 0.0016639 | CN4: 0.0009357 | CO4: 0.0012569 | CP4: 0.0009837 | CQ4: 0.0008869 | CR4: 0.0011455 | CS4: 0.0005546 | CT4: 0.0006001 | CU4: 0.0004688 | CV4: 0.0004587 | CW4: 0.0003421 | CX4: 0.0004473 | CY4: 0.0009597 | CZ4: 0.0007021 | DA4: 0.0005767 | DB4: 0.0006877 | DC4: 0.000774 | DD4: 0.0005047 | DE4: 0.0003234 | DF4: 0.0015631 | DG4: 0.0005323 | DH4: 0.0003826 | DI4: 0.0003817 | DJ4: 0.0005461 | DK4: 0.0004801 | DL4: 0.0002543 | DM4: 0.0005205 | DN4: 0.0006389 | DO4: 0.0006155 | DP4: 0.0007251 | DQ4: 0.0016742 | DR4: 0.0004526 | DS4: 0.0007178 | DT4: 0.0005908 | DU4: 0.0009778 | DV4: 0.0003891 | DW4: 0.0006301 | DX4: 0.001751 | DY4: 0.0004477 | DZ4: 0.0007399 | EA4: 0.0026586 | EB4: 0.0007481 | EC4: 0.0009108 | ED4: 0.0026984 | EE4: 0.0011861 | EF4: 0.002165 | EG4: 0.0019224 | EH4: 0.0014667 | EI4: 0.0007884 | EJ4: 0.000654 | EK4: 0.0007104 | EL4: 0.0005807 | EM4: 0.000642 | EN4: 0.000477 | EO4: 0.0015562 | EP4: 0.0017205 | EQ4: 0.0017174 | ER4: 0.000508 | ES4: 0.0010969 | ET4: 0.0012632 | EU4: 0.0011386 | EV4: 0.0008288 | EW4: 0.0009949 | EX4: 0.0016551 | EY4: 0.0019303 | EZ4: 0.0008521 | FA4: 0.0012779 | FB4: 0.0007106 | FC4: 0.0029759 | FD4: 0.0008329 | FE4: 0.0013735 | FF4: 0.0010702 | FG4: 0.0003268 | FH4: 0.0002015 | FI4: 0.0004596 | FJ4: 0.0005115 | FK4: 0.0008019 | FL4: 0.0005937 | FM4: 0.0006408 | FN4: 0.0017159 | FO4: 0.0005745 | FP4: 0.0014184 | FQ4: 0.0017236 | FR4: 0.0014934 | FS4: 0.002362 | FT4: 0.0019621 | FU4: 0.0018044 | FV4: 0.0021564 | FW4: 0.0013789 | FX4: 0.0012086 | FY4: 0.0021885 | FZ4: 0.0018097 | GA4: 0.0016368 | GB4: 0.002027 | GC4: 0.0013096 | GD4: 0.0005874 | GE4: 0.0004535 | GF4: 0.0022322 | GG4: 0.003105 | GH4: 0.0043008 | GI4: 0.0021409 | GJ4: 0.0025929 | GK4: 0.0723883 | GL4: 0.237134 | GM4: 0.513464 | GN4: 0.351283 | GO4: 0.0365346 | GP4: 0.0144362 | GQ4: 0.0531748 | GR4: 0.0121447 | GS4: 0.109065 | GT4: 0.0206097 | GU4: 0.0431991 | GV4: 0.0334756 | GW4: 0.0434099 | GX4: 0.0278541 | GY4: 0.0637836 | GZ4: 0.0374862 | HA4: 0.0032008 | HB4: 0.0732305 | HC4: 0.0979482 | HD4: 0.0240412 | HE4: 0.0029141 | HF4: 0.0352109 | HG4: 0.0201133 | HH4: 0.0535391 | HI4: 0.0222014 | HJ4: 0.0552218 | HK4: 0.0008646 | HL4: 0.0137037 | HM4: 0.0011809 | HN4: 0.0096125 | HO4: 0.0058648 | HP4: 0.0042809 | HQ4: 0.0074313 | HR4: 0.0041248 | HS4: 0.0030986 | HT4: 0.0018707 | HU4: 0.0050408 | HV4: 0.006425 | HW4: 0.0074471 | HX4: 0.0065537 | HY4: 0.0037952 | HZ4: 0.0048935 | IA4: 0.0039412 | IB4: 0.0052735 | IC4: 0.0034662 | ID4: 0.0051827 | IE4: 0.0017878 | IF4: 0.0003987 | IG4: 0.0018745 | IH4: 0.0004878 | II4: 0.0020761 | IJ4: 0.0108138 | IK4: 0.0109403 | IL4: 0.0053636 | IM4: 0.0052661 | IN4: 0.0654536 | IO4: 0.0223379 | IP4: 0.0182463 | IQ4: 0.008661 | IR4: 0.0055099 | IS4: 0.0028991 | IT4: 0.0009503 | IU4: 0.0022353 | IV4: 0.0164266 | IW4: 0.0094241 | IX4: 0.0106375 | IY4: 0.0061006 | IZ4: 0.0051218 | JA4: 0.004401 | JB4: 0.0072733 | JC4: 0.0105949 | JD4: 0.0098962 | JE4: 0.0065096 | JF4: 0.0089495 | JG4: 0.0109062 | JH4: 0.0129 | JI4: 0.0067202 | JJ4: 0.0062899 | JK4: 0.0039486 | JL4: 0.00535 | JM4: 0.0002748 | JN4: 0.0001637 | JO4: 0.0002087 | JP4: 0.0002027 | JQ4: 0.00032 | JR4: 0.0001542 | JS4: 0.0003754 | JT4: 3.83e-05 | JU4: 0.0004734 | JV4: 0.0009386 | JW4: 0 | JX4: 0.0001804 | JY4: 0.0007248 | JZ4: 0.0002909 | KA4: 0.0001751 | KB4: 0.0002162 | KC4: 0.000221 | KD4: 0.0003296 | KE4: 0.0003495 | KF4: 0.0002407 | KG4: 0.0002713 | KH4: 0.0002691 | KI4: 0.0004178 | KJ4: 0.0002231 | KK4: 0.00059 | KL4: 0.0002633 | KM4: 0.0003202 | KN4: 0.0004334 | KO4: 0.0002294 | KP4: 0.0007368 | KQ4: 0.0012401 | KR4: 0.0006728 | KS4: 0.0008676 | KT4: 0.0001502 | KU4: 0.0002825 | KV4: 0.000287 | KW4: 0.0003396 | KX4: 0.0003029 | KY4: 0.0001986 | KZ4: 0.0004395 | LA4: 0.0001746 | LB4: 0.0003036 | LC4: 0.0006535 | LD4: 0.0002245 | LE4: 0.0001757 | LF4: 0.0002037 | LG4: 0.0002508 | LH4: 0.0001989 | LI4: 1.15e-05 | LJ4: 0.000142 | LK4: 0.0001786 | LL4: 0.0002094 | LM4: 6.77e-05 | LN4: 1.92e-05 | LO4: 0.0005638 | LP4: 0.0002054 | LQ4: 0.0002466 | LR4: 0.000293 | LS4: 0.0001765 | LT4: 0.000158 | LU4: 0.000107 | LV4: 0.0002296 | LW4: 0.000246 | LX4: 0.0001207 | LY4: 0.0007873 | LZ4: 0.0002838 | MA4: 0.0002422 | MB4: 0.0004347 | MC4: 0.0009445 | MD4: 0.0007109 | ME4: 0.0006396 | MF4: 0.0015181 | MG4: 0.0002615 | MH4: 0.0002798 | MI4: 0.0001133 | MJ4: 0.0006082 | MK4: 0.0003528 | ML4: 0.0006938 | MM4: 0.0003876 | MN4: 0.0003894 | MO4: 0.0002608 | MP4: 0.0006154 | MQ4: 0.0007615 | MR4: 0.0013008 | MS4: 0.0015398 | MT4: 0.0004339 | MU4: 0.000578 | MV4: 0.0004064 | MW4: 0.0010488 | MX4: 0.0008042 | MY4: 0.0009918 | MZ4: 0.0014397 | NA4: 0.0016955 | NB4: 0.0015314 | NC4: 0.0015581 | ND4: 0.0016602 | NE4: 0.0014555 | NF4: 0.0016753 | NG4: 0.004845 | NH4: 0.000287 | NI4: 0.0018747 | NJ4: 0.0001224 | NK4: 0.0003257 | NL4: 0.0006719 | NM4: 0.0021133 | NN4: 0.0004141 | NO4: 0.0070388 | NP4: 0.0009296 | NQ4: 0.0024966 | NR4: 0.0033404 | NS4: 0.0026325 | NT4: 0.0003225 | NU4: 0.0001822 | NV4: 0.0003198 | NW4: 0.0002473 | NX4: 0.0004747 | NY4: 0.000251 | NZ4: 0.0004596 | OA4: 0.0002676 | OB4: 0.0007108 | OC4: 0.0001126 | OD4: 0.0006375 | OE4: 0 | OF4: 0.0004282 | OG4: 5.2e-06 | OH4: 0.0001611 | OI4: 0.0029528 | OJ4: 0.0008861 | OK4: 0.0036793 | OL4: 0.001113 | OM4: 0.0004615 | ON4: 0.0012419 | OO4: 0 | OP4: 0 | OQ4: 5.2e-06 | OR4: 16930 | OS4: =OR4*0 -> 0 | OT4: 0 | OU4: 51785.31914 | OV4: 51785 | OW4: =OT4*(245.12/207.342) -> 0 | OX4: 6982 | OY4: =(OT4/OU4)*OX4 -> 0 | OZ4: =RANK(OY4,$OY$3:$OY$407,0) -> 1 | PA4: 2
A5: 111200 | B5: Vegetable and melon farming | C5: 0.0006282 | D5: 0.0010997 | E5: 1.04581 | F5: 0.0010453 | G5: 0.0003738 | H5: 0.0007492 | I5: 0.0003437 | J5: 0.000281 | K5: 0.000407 | L5: 0.0001543 | M5: 0.0014315 | N5: 2.17e-05 | O5: 0.0076456 | P5: 2.1e-06 | Q5: 1.01e-05 | R5: 8.6e-06 | S5: 1.11e-05 | T5: 1.67e-05 | U5: 7.8e-06 | V5: 5e-06 | W5: 7.6e-06 | X5: 9.4e-06 | Y5: 6.9e-06 | Z5: 1.21e-05 | AA5: 1.69e-05 | AB5: 1.94e-05 | AC5: 1.42e-05 | AD5: 2.06e-05 | AE5: 1.21e-05 | AF5: 1.43e-05 | AG5: 2.13e-05 | AH5: 5.8e-06 | AI5: 1.3e-05 | AJ5: 7.1e-06 | AK5: 1.63e-05 | AL5: 1.22e-05 | AM5: 0.0005141 | AN5: 0.000267 | AO5: 0.0001939 | AP5: 0.0001066 | AQ5: 1.06e-05 | AR5: 9.7e-06 | AS5: 1.02e-05 | AT5: 1.75e-05 | AU5: 2.46e-05 | AV5: 1.59e-05 | AW5: 2.92e-05 | AX5: 8.9e-06 | AY5: 1.51e-05 | AZ5: 8.8e-06 | BA5: 1.47e-05 | BB5: 1.27e-05 | BC5: 1.48e-05 | BD5: 1.22e-05 | BE5: 1.68e-05 | BF5: 1.43e-05 | BG5: 8.4e-06 | BH5: 1.06e-05 | BI5: 1.09e-05 | BJ5: 1.14e-05 | BK5: 1.11e-05 | BL5: 1.19e-05 | BM5: 1.05e-05 | BN5: 1.06e-05 | BO5: 1.03e-05 | BP5: 1.16e-05 | BQ5: 1.26e-05 | BR5: 7.1e-06 | BS5: 1.01e-05 | BT5: 1.11e-05 | BU5: 1.22e-05 | BV5: 1.15e-05 | BW5: 9e-06 | BX5: 8.4e-06 | BY5: 1.09e-05 | BZ5: 9.7e-06 | CA5: 8.1e-06 | CB5: 5e-06 | CC5: 8.8e-06 | CD5: 8.7e-06 | CE5: 1.3e-05 | CF5: 1.14e-05 | CG5: 1.29e-05 | CH5: 1.08e-05 | CI5: 1.3e-05 | CJ5: 1.02e-05 | CK5: 1.05e-05 | CL5: 8.2e-06 | CM5: 8.1e-06 | CN5: 9.6e-06 | CO5: 1.31e-05 | CP5: 9e-06 | CQ5: 9.7e-06 | CR5: 9.4e-06 | CS5: 9.1e-06 | CT5: 9.1e-06 | CU5: 8.2e-06 | CV5: 6.7e-06 | CW5: 6.7e-06 | CX5: 9.1e-06 | CY5: 2e-05 | CZ5: 9.2e-06 | DA5: 8.3e-06 | DB5: 1e-05 | DC5: 8.3e-06 | DD5: 8.4e-06 | DE5: 6.2e-06 | DF5: 1.29e-05 | DG5: 8.3e-06 | DH5: 3.6e-06 | DI5: 3.5e-06 | DJ5: 3.8e-06 | DK5: 6e-06 | DL5: 5.3e-06 | DM5: 6.4e-06 | DN5: 5e-06 | DO5: 5.8e-06 | DP5: 6.2e-06 | DQ5: 8.5e-06 | DR5: 5e-06 | DS5: 7.9e-06 | DT5: 7.7e-06 | DU5: 6.7e-06 | DV5: 9.5e-06 | DW5: 7.6e-06 | DX5: 9.9e-06 | DY5: 6.7e-06 | DZ5: 1.11e-05 | EA5: 1.54e-05 | EB5: 9.6e-06 | EC5: 9.1e-06 | ED5: 1.2e-05 | EE5: 9.7e-06 | EF5: 1.08e-05 | EG5: 1.09e-05 | EH5: 8.9e-06 | EI5: 8.4e-06 | EJ5: 8.1e-06 | EK5: 7.1e-06 | EL5: 6.9e-06 | EM5: 6.3e-06 | EN5: 5.4e-06 | EO5: 1.15e-05 | EP5: 8.1e-06 | EQ5: 8.2e-06 | ER5: 7.8e-06 | ES5: 1.25e-05 | ET5: 1.37e-05 | EU5: 1.5e-05 | EV5: 1.57e-05 | EW5: 2e-05 | EX5: 1.78e-05 | EY5: 2.64e-05 | EZ5: 9.9e-06 | FA5: 8.6e-06 | FB5: 9.8e-06 | FC5: 3.11e-05 | FD5: 1.24e-05 | FE5: 1.41e-05 | FF5: 1.31e-05 | FG5: 3.8e-06 | FH5: 3.4e-06 | FI5: 5e-06 | FJ5: 4.4e-06 | FK5: 5e-06 | FL5: 1.27e-05 | FM5: 1.12e-05 | FN5: 1.54e-05 | FO5: 1.2e-05 | FP5: 1.41e-05 | FQ5: 1.56e-05 | FR5: 7.65e-05 | FS5: 3.42e-05 | FT5: 8.73e-05 | FU5: 3.59e-05 | FV5: 3.73e-05 | FW5: 2.97e-05 | FX5: 4.44e-05 | FY5: 2.6e-05 | FZ5: 9.7e-06 | GA5: 1.61e-05 | GB5: 1.12e-05 | GC5: 7.3e-06 | GD5: 6.9e-06 | GE5: 8.2e-06 | GF5: 3.96e-05 | GG5: 3.09e-05 | GH5: 4.61e-05 | GI5: 2.1e-05 | GJ5: 3.29e-05 | GK5: 0.0001575 | GL5: 0.0004252 | GM5: 0.0005938 | GN5: 0.0003845 | GO5: 0.0003336 | GP5: 0.0004333 | GQ5: 0.0021103 | GR5: 0.0006508 | GS5: 0.0284682 | GT5: 0.0148765 | GU5: 0.0003366 | GV5: 0.0003088 | GW5: 0.0003417 | GX5: 0.0004128 | GY5: 0.0002244 | GZ5: 0.0002693 | HA5: 0.0004545 | HB5: 0.0009465 | HC5: 0.0006897 | HD5: 0.0055747 | HE5: 0.0003048 | HF5: 0.0014011 | HG5: 0.0047908 | HH5: 0.0178591 | HI5: 0.0005903 | HJ5: 7.13e-05 | HK5: 0.000113 | HL5: 2.48e-05 | HM5: 2.98e-05 | HN5: 0.0001902 | HO5: 5.67e-05 | HP5: 3.76e-05 | HQ5: 5.43e-05 | HR5: 4.31e-05 | HS5: 2.99e-05 | HT5: 2.86e-05 | HU5: 3.95e-05 | HV5: 0.0001381 | HW5: 9e-05 | HX5: 0.0001235 | HY5: 5.76e-05 | HZ5: 3.58e-05 | IA5: 5.35e-05 | IB5: 5.76e-05 | IC5: 5.01e-05 | ID5: 2.3e-05 | IE5: 2.16e-05 | IF5: 2.9e-06 | IG5: 8.5e-06 | IH5: 6e-06 | II5: 8.2e-06 | IJ5: 1.85e-05 | IK5: 2.77e-05 | IL5: 1.36e-05 | IM5: 1.33e-05 | IN5: 9.35e-05 | IO5: 3.64e-05 | IP5: 6e-05 | IQ5: 3.34e-05 | IR5: 3.23e-05 | IS5: 1.85e-05 | IT5: 6.7e-06 | IU5: 8.3e-06 | IV5: 4.05e-05 | IW5: 2.55e-05 | IX5: 2.46e-05 | IY5: 2.31e-05 | IZ5: 4.21e-05 | JA5: 1.33e-05 | JB5: 2.54e-05 | JC5: 2.43e-05 | JD5: 2.07e-05 | JE5: 2.11e-05 | JF5: 2.73e-05 | JG5: 2.51e-05 | JH5: 2.61e-05 | JI5: 2.59e-05 | JJ5: 0.0001402 | JK5: 3.39e-05 | JL5: 6.22e-05 | JM5: 8.5e-06 | JN5: 5.3e-06 | JO5: 7.1e-06 | JP5: 6.9e-06 | JQ5: 9.6e-06 | JR5: 3.4e-06 | JS5: 1.03e-05 | JT5: 8e-07 | JU5: 1.18e-05 | JV5: 1.15e-05 | JW5: 0 | JX5: 6.3e-06 | JY5: 1.12e-05 | JZ5: 8.8e-06 | KA5: 7.1e-06 | KB5: 5.4e-06 | KC5: 9.6e-06 | KD5: 8.6e-06 | KE5: 8.9e-06 | KF5: 7.9e-06 | KG5: 2.76e-05 | KH5: 1.76e-05 | KI5: 2.81e-05 | KJ5: 2.98e-05 | KK5: 9.4e-06 | KL5: 1.24e-05 | KM5: 0.0002656 | KN5: 2.9e-05 | KO5: 5.3e-06 | KP5: 1.03e-05 | KQ5: 1.03e-05 | KR5: 1.1e-05 | KS5: 1.14e-05 | KT5: 5.2e-06 | KU5: 7.8e-06 | KV5: 8.1e-06 | KW5: 5.09e-05 | KX5: 1.27e-05 | KY5: 4.5e-06 | KZ5: 8.1e-06 | LA5: 5.9e-06 | LB5: 1.64e-05 | LC5: 9.9e-06 | LD5: 2.07e-05 | LE5: 9.9e-06 | LF5: 1.15e-05 | LG5: 1.38e-05 | LH5: 9.6e-06 | LI5: 3e-07 | LJ5: 7.8e-06 | LK5: 7.8e-06 | LL5: 1.19e-05 | LM5: 2.9e-06 | LN5: 5e-07 | LO5: 1.69e-05 | LP5: 1.05e-05 | LQ5: 8.6e-06 | LR5: 9.5e-06 | LS5: 6.7e-06 | LT5: 7.7e-06 | LU5: 5.3e-06 | LV5: 1.25e-05 | LW5: 1.62e-05 | LX5: 6.8e-06 | LY5: 1.36e-05 | LZ5: 1.19e-05 | MA5: 9.9e-06 | MB5: 1.14e-05 | MC5: 1.76e-05 | MD5: 1.16e-05 | ME5: 1.34e-05 | MF5: 9.9e-06 | MG5: 8.3e-06 | MH5: 1.11e-05 | MI5: 7.8e-06 | MJ5: 9.7e-06 | MK5: 1.05e-05 | ML5: 1.18e-05 | MM5: 1.1e-05 | MN5: 1.8e-05 | MO5: 1.18e-05 | MP5: 1.61e-05 | MQ5: 2.52e-05 | MR5: 0.0003803 | MS5: 0.0002256 | MT5: 1.28e-05 | MU5: 1.22e-05 | MV5: 6.6e-06 | MW5: 7.9e-06 | MX5: 4.23e-05 | MY5: 6e-06 | MZ5: 6.77e-05 | NA5: 2.87e-05 | NB5: 8.56e-05 | NC5: 9.73e-05 | ND5: 7.74e-05 | NE5: 5.47e-05 | NF5: 8.26e-05 | NG5: 8.48e-05 | NH5: 8.9e-06 | NI5: 0.0005225 | NJ5: 7.3e-06 | NK5: 1.92e-05 | NL5: 2.15e-05 | NM5: 0.0001513 | NN5: 1.15e-05 | NO5: 0.0018077 | NP5: 6.58e-05 | NQ5: 0.0003607 | NR5: 0.0004824 | NS5: 0.0001105 | NT5: 4.7e-06 | NU5: 4e-06 | NV5: 4.5e-06 | NW5: 2.5e-06 | NX5: 8.6e-06 | NY5: 5.1e-06 | NZ5: 8.9e-06 | OA5: 6.1e-06 | OB5: 0.0001089 | OC5: 3e-06 | OD5: 5.17e-05 | OE5: 0 | OF5: 1.59e-05 | OG5: 3.9e-06 | OH5: 8.8e-06 | OI5: 0.0002005 | OJ5: 0.0001334 | OK5: 0.0003274 | OL5: 9.93e-05 | OM5: 1.21e-05 | ON5: 4.88e-05 | OO5: 0 | OP5: 0 | OQ5: 3.9e-06 | OR5: 15753 | OS5: 0 | OT5: 0 | OU5: 18720.16778 | OV5: 18721 | OW5: 0 | OX5: 9471 | OY5: 0 | OZ5: 1 | PA5: 3
A6: 111300 | B6: Fruit and tree nut farming | C6: 0.0006221 | D6: 0.0010875 | E6: 0.0006933 | F6: 1.00528 | G6: 0.0003705 | H6: 0.0007392 | I6: 0.0004788 | J6: 0.0003255 | K6: 0.0006331 | L6: 0.0001907 | M6: 0.0014063 | N6: 3.26e-05 | O6: 0.007482 | P6: 4.8e-06 | Q6: 1.54e-05 | R6: 1.41e-05 | S6: 1.74e-05 | T6: 1.78e-05 | U6: 1.47e-05 | V6: 1.08e-05 | W6: 1.76e-05 | X6: 1.66e-05 | Y6: 1.24e-05 | Z6: 2.09e-05 | AA6: 2.17e-05 | AB6: 2.41e-05 | AC6: 1.98e-05 | AD6: 2.48e-05 | AE6: 1.63e-05 | AF6: 1.94e-05 | AG6: 2.82e-05 | AH6: 9e-06 | AI6: 1.69e-05 | AJ6: 1.01e-05 | AK6: 2.11e-05 | AL6: 1.7e-05 | AM6: 0.0005109 | AN6: 0.0002699 | AO6: 0.0001974 | AP6: 0.000114 | AQ6: 1.64e-05 | AR6: 1.72e-05 | AS6: 1.79e-05 | AT6: 2.89e-05 | AU6: 2.52e-05 | AV6: 2.92e-05 | AW6: 3.57e-05 | AX6: 1.28e-05 | AY6: 2.6e-05 | AZ6: 1.69e-05 | BA6: 2.11e-05 | BB6: 2.13e-05 | BC6: 3.49e-05 | BD6: 2.65e-05 | BE6: 3.94e-05 | BF6: 3.23e-05 | BG6: 1.52e-05 | BH6: 2.09e-05 | BI6: 2.09e-05 | BJ6: 2.84e-05 | BK6: 2.39e-05 | BL6: 2.67e-05 | BM6: 2.22e-05 | BN6: 2.27e-05 | BO6: 2.1e-05 | BP6: 2.58e-05 | BQ6: 2.62e-05 | BR6: 1.45e-05 | BS6: 2.27e-05 | BT6: 2.35e-05 | BU6: 2.61e-05 | BV6: 2.3e-05 | BW6: 2.04e-05 | BX6: 1.86e-05 | BY6: 2.19e-05 | BZ6: 1.78e-05 | CA6: 1.68e-05 | CB6: 1.08e-05 | CC6: 1.94e-05 | CD6: 1.36e-05 | CE6: 2.62e-05 | CF6: 1.98e-05 | CG6: 2.17e-05 | CH6: 2e-05 | CI6: 2.75e-05 | CJ6: 2.12e-05 | CK6: 2.18e-05 | CL6: 1.7e-05 | CM6: 1.33e-05 | CN6: 1.83e-05 | CO6: 2.6e-05 | CP6: 1.72e-05 | CQ6: 1.71e-05 | CR6: 1.87e-05 | CS6: 2e-05 | CT6: 1.99e-05 | CU6: 1.78e-05 | CV6: 1.25e-05 | CW6: 1.44e-05 | CX6: 1.95e-05 | CY6: 2.9e-05 | CZ6: 1.86e-05 | DA6: 1.69e-05 | DB6: 1.97e-05 | DC6: 1.63e-05 | DD6: 1.74e-05 | DE6: 1.4e-05 | DF6: 2.29e-05 | DG6: 1.72e-05 | DH6: 6.9e-06 | DI6: 6.8e-06 | DJ6: 6.7e-06 | DK6: 1.2e-05 | DL6: 1.2e-05 | DM6: 1.3e-05 | DN6: 9.7e-06 | DO6: 1.03e-05 | DP6: 1.12e-05 | DQ6: 1.66e-05 | DR6: 1.06e-05 | DS6: 1.61e-05 | DT6: 1.63e-05 | DU6: 1.31e-05 | DV6: 2.33e-05 | DW6: 1.64e-05 | DX6: 1.83e-05 | DY6: 1.45e-05 | DZ6: 2.05e-05 | EA6: 2.52e-05 | EB6: 1.71e-05 | EC6: 1.79e-05 | ED6: 2.02e-05 | EE6: 1.79e-05 | EF6: 1.86e-05 | EG6: 1.97e-05 | EH6: 1.57e-05 | EI6: 1.63e-05 | EJ6: 1.48e-05 | EK6: 1.38e-05 | EL6: 1.19e-05 | EM6: 1.19e-05 | EN6: 1.06e-05 | EO6: 1.95e-05 | EP6: 1.5e-05 | EQ6: 1.61e-05 | ER6: 1.73e-05 | ES6: 2.08e-05 | ET6: 2.19e-05 | EU6: 2.32e-05 | EV6: 2.37e-05 | EW6: 2.98e-05 | EX6: 2.57e-05 | EY6: 3.74e-05 | EZ6: 1.86e-05 | FA6: 1.63e-05 | FB6: 1.99e-05 | FC6: 4.16e-05 | FD6: 2.62e-05 | FE6: 2.32e-05 | FF6: 2.33e-05 | FG6: 7.6e-06 | FH6: 6.9e-06 | FI6: 1.03e-05 | FJ6: 9.1e-06 | FK6: 9.3e-06 | FL6: 2.63e-05 | FM6: 2.29e-05 | FN6: 2.65e-05 | FO6: 2.17e-05 | FP6: 2.32e-05 | FQ6: 2.45e-05 | FR6: 8.91e-05 | FS6: 4.21e-05 | FT6: 9.52e-05 | FU6: 4.82e-05 | FV6: 5.05e-05 | FW6: 4.04e-05 | FX6: 5.3e-05 | FY6: 3.06e-05 | FZ6: 1.7e-05 | GA6: 2.99e-05 | GB6: 2.2e-05 | GC6: 1.54e-05 | GD6: 1.58e-05 | GE6: 1.7e-05 | GF6: 5.3e-05 | GG6: 4.02e-05 | GH6: 5.54e-05 | GI6: 3.21e-05 | GJ6: 4.36e-05 | GK6: 0.0005388 | GL6: 0.0010105 | GM6: 0.0008586 | GN6: 0.0003886 | GO6: 0.000493 | GP6: 0.0005089 | GQ6: 0.0116855 | GR6: 0.0358866 | GS6: 0.0190756 | GT6: 0.0526908 | GU6: 0.001032 | GV6: 0.0016375 | GW6: 0.0015822 | GX6: 0.0256831 | GY6: 0.0003854 | GZ6: 0.0006986 | HA6: 0.0011337 | HB6: 0.0066406 | HC6: 0.0106522 | HD6: 0.0354644 | HE6: 0.242529 | HF6: 0.0071959 | HG6: 0.025189 | HH6: 0.0922893 | HI6: 0.002755 | HJ6: 8.56e-05 | HK6: 0.10057 | HL6: 0.0028719 | HM6: 3.14e-05 | HN6: 0.0001956 | HO6: 6.36e-05 | HP6: 4.66e-05 | HQ6: 6.08e-05 | HR6: 4.94e-05 | HS6: 3.81e-05 | HT6: 3.9e-05 | HU6: 8.8e-05 | HV6: 0.0001437 | HW6: 9.67e-05 | HX6: 0.0001314 | HY6: 6.64e-05 | HZ6: 4.36e-05 | IA6: 6.38e-05 | IB6: 6.4e-05 | IC6: 5.4e-05 | ID6: 3.47e-05 | IE6: 3.05e-05 | IF6: 5.5e-06 | IG6: 1.32e-05 | IH6: 9.5e-06 | II6: 1.33e-05 | IJ6: 2.5e-05 | IK6: 3.59e-05 | IL6: 2.12e-05 | IM6: 2.1e-05 | IN6: 0.0001234 | IO6: 4.85e-05 | IP6: 6.92e-05 | IQ6: 7.51e-05 | IR6: 0.0001192 | IS6: 5.77e-05 | IT6: 2.23e-05 | IU6: 1.38e-05 | IV6: 5.02e-05 | IW6: 3.62e-05 | IX6: 3.39e-05 | IY6: 3.67e-05 | IZ6: 0.000149 | JA6: 2.23e-05 | JB6: 3.89e-05 | JC6: 3.58e-05 | JD6: 2.95e-05 | JE6: 2.87e-05 | JF6: 4.6e-05 | JG6: 3.43e-05 | JH6: 3.67e-05 | JI6: 3.98e-05 | JJ6: 0.000145 | JK6: 4.26e-05 | JL6: 7.15e-05 | JM6: 2.05e-05 | JN6: 1.07e-05 | JO6: 1.45e-05 | JP6: 1.36e-05 | JQ6: 1.76e-05 | JR6: 6.3e-06 | JS6: 1.92e-05 | JT6: 1.4e-06 | JU6: 2.08e-05 | JV6: 2.74e-05 | JW6: 0 | JX6: 1.37e-05 | JY6: 3.67e-05 | JZ6: 2.78e-05 | KA6: 1.58e-05 | KB6: 1.39e-05 | KC6: 2.12e-05 | KD6: 2.02e-05 | KE6: 1.92e-05 | KF6: 1.7e-05 | KG6: 0.0001337 | KH6: 2.18e-05 | KI6: 0.000229 | KJ6: 2.17e-05 | KK6: 1.34e-05 | KL6: 1.51e-05 | KM6: 0.0001044 | KN6: 2.71e-05 | KO6: 1.18e-05 | KP6: 1.62e-05 | KQ6: 2.05e-05 | KR6: 2.15e-05 | KS6: 2.17e-05 | KT6: 1.37e-05 | KU6: 2.46e-05 | KV6: 2.05e-05 | KW6: 0.00025 | KX6: 5.59e-05 | KY6: 1.27e-05 | KZ6: 1.9e-05 | LA6: 1.53e-05 | LB6: 3.6e-05 | LC6: 2.06e-05 | LD6: 3.56e-05 | LE6: 2.72e-05 | LF6: 2.98e-05 | LG6: 3.97e-05 | LH6: 2.68e-05 | LI6: 1e-06 | LJ6: 2.35e-05 | LK6: 1.97e-05 | LL6: 3.34e-05 | LM6: 5.9e-06 | LN6: 7e-07 | LO6: 4.01e-05 | LP6: 2.68e-05 | LQ6: 1.94e-05 | LR6: 2.3e-05 | LS6: 1.82e-05 | LT6: 2.08e-05 | LU6: 1.38e-05 | LV6: 3.4e-05 | LW6: 4.45e-05 | LX6: 1.91e-05 | LY6: 3.52e-05 | LZ6: 3.71e-05 | MA6: 2.78e-05 | MB6: 2.69e-05 | MC6: 6.23e-05 | MD6: 2.72e-05 | ME6: 3.44e-05 | MF6: 2.78e-05 | MG6: 2.69e-05 | MH6: 2.71e-05 | MI6: 2.13e-05 | MJ6: 1.84e-05 | MK6: 3.38e-05 | ML6: 2.88e-05 | MM6: 3.21e-05 | MN6: 6.05e-05 | MO6: 3.68e-05 | MP6: 6.25e-05 | MQ6: 7.54e-05 | MR6: 0.0003149 | MS6: 0.000429 | MT6: 2.66e-05 | MU6: 3.66e-05 | MV6: 1.57e-05 | MW6: 2.84e-05 | MX6: 0.0002412 | MY6: 1.32e-05 | MZ6: 0.0003437 | NA6: 0.0001198 | NB6: 0.000516 | NC6: 0.0003134 | ND6: 0.0003118 | NE6: 0.000451 | NF6: 0.0004883 | NG6: 0.0006692 | NH6: 2.57e-05 | NI6: 0.0026722 | NJ6: 2.98e-05 | NK6: 7.64e-05 | NL6: 0.0002255 | NM6: 0.0007934 | NN6: 0.0001059 | NO6: 0.0022081 | NP6: 0.0003991 | NQ6: 0.0009222 | NR6: 0.0012111 | NS6: 0.0012239 | NT6: 1.01e-05 | NU6: 9.4e-06 | NV6: 1.14e-05 | NW6: 4.9e-06 | NX6: 2.73e-05 | NY6: 1e-05 | NZ6: 1.9e-05 | OA6: 1.6e-05 | OB6: 0.0002639 | OC6: 2.95e-05 | OD6: 0.0002025 | OE6: 0 | OF6: 5.39e-05 | OG6: 1.39e-05 | OH6: 2.42e-05 | OI6: 0.0009818 | OJ6: 0.0002071 | OK6: 0.0017324 | OL6: 0.0003738 | OM6: 1.69e-05 | ON6: 0.0001577 | OO6: 0 | OP6: 0 | OQ6: 1.39e-05 | OR6: 9395 | OS6: 0 | OT6: 0 | OU6: 18955.87722 | OV6: 18956 | OW6: 0 | OX6: 12055 | OY6: 0 | OZ6: 1 | PA6: 4
A7: 111400 | B7: Greenhouse, nursery, and floriculture production | C7: 0.0019799 | D7: 0.003472 | E7: 0.002196 | F7: 0.0027931 | G7: 1.19497 | H7: 0.0023615 | I7: 0.0011409 | J7: 0.0009565 | K7: 0.0012881 | L7: 0.0005033 | M7: 0.0041856 | N7: 0.0001942 | O7: 0.0221755 | P7: 5.08e-05 | Q7: 0.0001612 | R7: 0.0001957 | S7: 0.0002593 | T7: 0.0001653 | U7: 0.0002142 | V7: 0.0001525 | W7: 0.0001437 | X7: 8.48e-05 | Y7: 0.0001015 | Z7: 0.0002016 | AA7: 0.0001634 | AB7: 0.0001659 | AC7: 0.000149 | AD7: 0.0008288 | AE7: 0.0001208 | AF7: 0.0001533 | AG7: 0.0013267 | AH7: 9.19e-05 | AI7: 0.0001274 | AJ7: 8.59e-05 | AK7: 0.0006143 | AL7: 0.0001377 | AM7: 0.0016398 | AN7: 0.0009964 | AO7: 0.0007198 | AP7: 0.0005058 | AQ7: 0.0001777 | AR7: 0.0003378 | AS7: 0.0002299 | AT7: 0.0004581 | AU7: 0.0002634 | AV7: 0.0002514 | AW7: 0.0002332 | AX7: 0.0001619 | AY7: 0.0002755 | AZ7: 0.0002178 | BA7: 0.0002703 | BB7: 0.0001778 | BC7: 0.0003402 | BD7: 0.0003156 | BE7: 0.0003963 | BF7: 0.0003171 | BG7: 0.0001727 | BH7: 0.0002241 | BI7: 0.0002278 | BJ7: 0.0002685 | BK7: 0.0002457 | BL7: 0.0002625 | BM7: 0.0002126 | BN7: 0.0002785 | BO7: 0.0001981 | BP7: 0.0002227 | BQ7: 0.0002633 | BR7: 0.0001589 | BS7: 0.0002086 | BT7: 0.000241 | BU7: 0.0002582 | BV7: 0.0003166 | BW7: 0.0001954 | BX7: 0.000197 | BY7: 0.0002407 | BZ7: 0.000212 | CA7: 0.0002026 | CB7: 0.0001236 | CC7: 0.0003045 | CD7: 0.0001401 | CE7: 0.000282 | CF7: 0.0002655 | CG7: 0.0005433 | CH7: 0.0002991 | CI7: 0.000737 | CJ7: 0.0006315 | CK7: 0.0006278 | CL7: 0.0004667 | CM7: 0.0004301 | CN7: 0.000511 | CO7: 0.0005763 | CP7: 0.0002978 | CQ7: 0.0003094 | CR7: 0.0002841 | CS7: 0.0001857 | CT7: 0.000199 | CU7: 0.0002051 | CV7: 0.0003985 | CW7: 0.0001575 | CX7: 0.0001781 | CY7: 0.0003863 | CZ7: 0.0004544 | DA7: 0.0004382 | DB7: 0.00058 | DC7: 0.0002113 | DD7: 0.0002836 | DE7: 0.0001938 | DF7: 0.0002953 | DG7: 0.0004173 | DH7: 0.0001094 | DI7: 9.37e-05 | DJ7: 0.0001025 | DK7: 0.0001127 | DL7: 8.8e-05 | DM7: 0.0003644 | DN7: 0.0001699 | DO7: 0.0001476 | DP7: 0.0001542 | DQ7: 0.0002193 | DR7: 0.0001167 | DS7: 0.0001899 | DT7: 0.0001981 | DU7: 0.000181 | DV7: 0.0001694 | DW7: 0.0001458 | DX7: 0.0002431 | DY7: 0.0001639 | DZ7: 0.0002203 | EA7: 0.0003762 | EB7: 0.0002107 | EC7: 0.0001947 | ED7: 0.0003432 | EE7: 0.0002507 | EF7: 0.0003305 | EG7: 0.0003282 | EH7: 0.0002377 | EI7: 0.0001997 | EJ7: 0.0004459 | EK7: 0.0004492 | EL7: 0.0017588 | EM7: 0.0001475 | EN7: 0.0001138 | EO7: 0.0002556 | EP7: 0.0002565 | EQ7: 0.0002167 | ER7: 0.000169 | ES7: 0.0003374 | ET7: 0.0003282 | EU7: 0.0003152 | EV7: 0.0002106 | EW7: 0.0003161 | EX7: 0.0003105 | EY7: 0.0003668 | EZ7: 0.0004695 | FA7: 0.0003567 | FB7: 0.0003151 | FC7: 0.0004645 | FD7: 0.0002526 | FE7: 0.0003964 | FF7: 0.0005565 | FG7: 0.0001097 | FH7: 0.0002459 | FI7: 0.0001213 | FJ7: 0.0001941 | FK7: 0.0001625 | FL7: 0.0002866 | FM7: 0.0001695 | FN7: 0.0004239 | FO7: 0.0001636 | FP7: 0.0002663 | FQ7: 0.0004427 | FR7: 0.0004029 | FS7: 0.0003567 | FT7: 0.000478 | FU7: 0.0005618 | FV7: 0.0004789 | FW7: 0.0005379 | FX7: 0.0002984 | FY7: 0.0002833 | FZ7: 0.0002468 | GA7: 0.0002359 | GB7: 0.0002873 | GC7: 0.0002089 | GD7: 0.0001389 | GE7: 0.0002203 | GF7: 0.0003729 | GG7: 0.0009514 | GH7: 0.0004855 | GI7: 0.00055 | GJ7: 0.0270222 | GK7: 0.0005296 | GL7: 0.0012432 | GM7: 0.0018655 | GN7: 0.0015878 | GO7: 0.0010383 | GP7: 0.001359 | GQ7: 0.0014674 | GR7: 0.0010825 | GS7: 0.0007775 | GT7: 0.0014557 | GU7: 0.0007991 | GV7: 0.0007332 | GW7: 0.0008666 | GX7: 0.0008808 | GY7: 0.0007669 | GZ7: 0.0007373 | HA7: 0.0002626 | HB7: 0.0010476 | HC7: 0.0010282 | HD7: 0.0071701 | HE7: 0.0009663 | HF7: 0.0009188 | HG7: 0.0019202 | HH7: 0.0291328 | HI7: 0.0005768 | HJ7: 0.0003385 | HK7: 0.0004341 | HL7: 0.00073 | HM7: 0.0001685 | HN7: 0.0011368 | HO7: 0.0007141 | HP7: 0.0005186 | HQ7: 0.0007396 | HR7: 0.0010461 | HS7: 0.0004043 | HT7: 0.0007204 | HU7: 0.0005548 | HV7: 0.0006733 | HW7: 0.0005639 | HX7: 0.000654 | HY7: 0.0004154 | HZ7: 0.0004657 | IA7: 0.0004281 | IB7: 0.0004472 | IC7: 0.0003916 | ID7: 0.0003195 | IE7: 0.0002147 | IF7: 6.3e-05 | IG7: 0.0002246 | IH7: 9.38e-05 | II7: 0.0002102 | IJ7: 0.0008121 | IK7: 0.000674 | IL7: 0.0004988 | IM7: 0.0005535 | IN7: 0.0044846 | IO7: 0.0017405 | IP7: 0.0014768 | IQ7: 0.0007213 | IR7: 0.0004617 | IS7: 0.0002904 | IT7: 0.000141 | IU7: 0.0002561 | IV7: 0.0012604 | IW7: 0.0007809 | IX7: 0.0009091 | IY7: 0.0005218 | IZ7: 0.0004754 | JA7: 0.0004252 | JB7: 0.0006797 | JC7: 0.000884 | JD7: 0.0008393 | JE7: 0.0005756 | JF7: 0.0007818 | JG7: 0.0005987 | JH7: 0.0010562 | JI7: 0.0006976 | JJ7: 0.0008725 | JK7: 0.0004862 | JL7: 0.0010243 | JM7: 0.0001133 | JN7: 8.57e-05 | JO7: 0.0001144 | JP7: 9.93e-05 | JQ7: 0.0001523 | JR7: 5.04e-05 | JS7: 0.0001727 | JT7: 3.83e-05 | JU7: 0.0001972 | JV7: 0.0001646 | JW7: 0 | JX7: 0.0027493 | JY7: 0.0022689 | JZ7: 0.0001248 | KA7: 0.0001263 | KB7: 0.0001213 | KC7: 0.0049255 | KD7: 0.0002323 | KE7: 0.0001325 | KF7: 0.0001324 | KG7: 8.47e-05 | KH7: 0.0001827 | KI7: 0.0001029 | KJ7: 0.0002032 | KK7: 0.0002092 | KL7: 0.0001535 | KM7: 0.0001314 | KN7: 0.0001329 | KO7: 0.0001647 | KP7: 9.95e-05 | KQ7: 0.0001276 | KR7: 0.0001321 | KS7: 0.0001629 | KT7: 7.08e-05 | KU7: 0.0001113 | KV7: 0.0001271 | KW7: 0.0001732 | KX7: 8.96e-05 | KY7: 6.68e-05 | KZ7: 0.0001431 | LA7: 6.83e-05 | LB7: 0.0001239 | LC7: 0.0001282 | LD7: 5.03e-05 | LE7: 8.66e-05 | LF7: 9.81e-05 | LG7: 0.0001309 | LH7: 0.0001004 | LI7: 6.4e-06 | LJ7: 5.95e-05 | LK7: 7.9e-05 | LL7: 0.0001141 | LM7: 5.61e-05 | LN7: 1.49e-05 | LO7: 0.0004794 | LP7: 9.39e-05 | LQ7: 0.0001093 | LR7: 0.0001173 | LS7: 9.96e-05 | LT7: 8.1e-05 | LU7: 6.04e-05 | LV7: 9.82e-05 | LW7: 0.0001129 | LX7: 0.0001711 | LY7: 0.0003083 | LZ7: 0.0001957 | MA7: 0.0001426 | MB7: 0.0001195 | MC7: 0.0004921 | MD7: 0.0003179 | ME7: 0.0001765 | MF7: 0.0001096 | MG7: 0.000118 | MH7: 0.0001204 | MI7: 5.02e-05 | MJ7: 0.0069865 | MK7: 0.0001088 | ML7: 0.0002653 | MM7: 0.0001155 | MN7: 0.0001453 | MO7: 0.0002023 | MP7: 0.000155 | MQ7: 0.0006165 | MR7: 0.0002801 | MS7: 0.0001256 | MT7: 0.000182 | MU7: 0.0001068 | MV7: 0.0001167 | MW7: 0.0001535 | MX7: 0.000155 | MY7: 0.0001342 | MZ7: 0.0001629 | NA7: 0.0002274 | NB7: 0.0001644 | NC7: 0.000187 | ND7: 0.0001923 | NE7: 0.0002897 | NF7: 0.0001954 | NG7: 0.0003675 | NH7: 0.0002268 | NI7: 0.0009667 | NJ7: 8.35e-05 | NK7: 0.0002191 | NL7: 0.0006155 | NM7: 0.0019902 | NN7: 0.0004009 | NO7: 0.0025878 | NP7: 0.0002016 | NQ7: 0.0002102 | NR7: 0.0002657 | NS7: 0.000148 | NT7: 0.0001791 | NU7: 9.64e-05 | NV7: 0.0001189 | NW7: 8.75e-05 | NX7: 0.0003349 | NY7: 0.0013161 | NZ7: 0.0002449 | OA7: 0.0001461 | OB7: 0.0008198 | OC7: 0.0001185 | OD7: 0.0002111 | OE7: 0 | OF7: 8.1e-05 | OG7: 6.28e-05 | OH7: 0.0001471 | OI7: 0.000158 | OJ7: 8.05e-05 | OK7: 0.0002695 | OL7: 0.0032764 | OM7: 0.0001707 | ON7: 0.0013031 | OO7: 0 | OP7: 0 | OQ7: 6.28e-05 | OR7: 9514 | OS7: 0 | OT7: 0 | OU7: 18749.65693 | OV7: 18749 | OW7: 0 | OX7: 9624 | OY7: 0 | OZ7: 1 | PA7: 5
A8: 111900 | B8: Other crop farming | C8: 0.0103981 | D8: 0.0133918 | E8: 0.0012848 | F8: 0.0015223 | G8: 0.0007084 | H8: 1.02834 | I8: 0.0306699 | J8: 0.0249362 | K8: 0.0052224 | L8: 0.0040851 | M8: 0.0440992 | N8: 0.0002827 | O8: 0.010372 | P8: 8.3e-05 | Q8: 0.0006395 | R8: 0.0007465 | S8: 0.0018265 | T8: 0.0005239 | U8: 0.0010328 | V8: 0.000409 | W8: 0.0003966 | X8: 0.0001296 | Y8: 0.0001201 | Z8: 0.0004711 | AA8: 0.0014134 | AB8: 0.0010599 | AC8: 0.0011035 | AD8: 0.0067355 | AE8: 0.0007274 | AF8: 0.0007299 | AG8: 0.0030185 | AH8: 0.0004254 | AI8: 0.0008248 | AJ8: 0.0005909 | AK8: 0.0014395 | AL8: 0.0006183 | AM8: 0.0158115 | AN8: 0.0085046 | AO8: 0.0060751 | AP8: 0.0043408 | AQ8: 0.0005404 | AR8: 0.0003415 | AS8: 0.0003 | AT8: 0.0007186 | AU8: 0.0003868 | AV8: 0.0004044 | AW8: 0.0006991 | AX8: 0.0015336 | AY8: 0.0010434 | AZ8: 0.000228 | BA8: 0.0010159 | BB8: 0.0004041 | BC8: 0.000504 | BD8: 0.0004152 | BE8: 0.0004134 | BF8: 0.0003357 | BG8: 0.000452 | BH8: 0.0004282 | BI8: 0.0004027 | BJ8: 0.0002259 | BK8: 0.0003057 | BL8: 0.0003376 | BM8: 0.0002479 | BN8: 0.0002925 | BO8: 0.0003353 | BP8: 0.0003024 | BQ8: 0.0003716 | BR8: 0.0002184 | BS8: 0.000289 | BT8: 0.0003015 | BU8: 0.0003404 | BV8: 0.0004767 | BW8: 0.0002124 | BX8: 0.0001974 | BY8: 0.0004272 | BZ8: 0.0003333 | CA8: 0.0003163 | CB8: 0.0001197 | CC8: 0.0002363 | CD8: 0.0003104 | CE8: 0.0004112 | CF8: 0.0005225 | CG8: 0.0005595 | CH8: 0.0004453 | CI8: 0.0003642 | CJ8: 0.0002818 | CK8: 0.0002961 | CL8: 0.0002425 | CM8: 0.0003892 | CN8: 0.0010032 | CO8: 0.0003994 | CP8: 0.0003164 | CQ8: 0.0020533 | CR8: 0.0003059 | CS8: 0.0002123 | CT8: 0.0002451 | CU8: 0.0002187 | CV8: 0.0002939 | CW8: 0.0001573 | CX8: 0.0002002 | CY8: 0.0006661 | CZ8: 0.0002873 | DA8: 0.0002473 | DB8: 0.0003747 | DC8: 0.0002716 | DD8: 0.0009292 | DE8: 0.0001568 | DF8: 0.0026208 | DG8: 0.000264 | DH8: 0.0001283 | DI8: 0.00011 | DJ8: 0.0001362 | DK8: 0.000146 | DL8: 9.27e-05 | DM8: 0.0001869 | DN8: 0.000241 | DO8: 0.000206 | DP8: 0.0002303 | DQ8: 0.0004282 | DR8: 0.0002908 | DS8: 0.0002026 | DT8: 0.0001812 | DU8: 0.0002226 | DV8: 0.0001345 | DW8: 0.0001781 | DX8: 0.0004687 | DY8: 0.0001578 | DZ8: 0.0003157 | EA8: 0.000588 | EB8: 0.0003049 | EC8: 0.0002817 | ED8: 0.0005668 | EE8: 0.0003806 | EF8: 0.0005004 | EG8: 0.0005321 | EH8: 0.0003838 | EI8: 0.0002913 | EJ8: 0.0002925 | EK8: 0.0002583 | EL8: 0.0003472 | EM8: 0.0002479 | EN8: 0.0001734 | EO8: 0.0004814 | EP8: 0.0003422 | EQ8: 0.0003091 | ER8: 0.0001717 | ES8: 0.0008835 | ET8: 0.0010591 | EU8: 0.0009879 | EV8: 0.0007204 | EW8: 0.0007324 | EX8: 0.0009252 | EY8: 0.0011814 | EZ8: 0.0003706 | FA8: 0.0003562 | FB8: 0.0003259 | FC8: 0.0051047 | FD8: 0.0003606 | FE8: 0.0006069 | FF8: 0.0005001 | FG8: 0.0002521 | FH8: 0.000112 | FI8: 0.0001851 | FJ8: 0.0001579 | FK8: 0.0002539 | FL8: 0.0005564 | FM8: 0.0003514 | FN8: 0.0010555 | FO8: 0.0004173 | FP8: 0.0005707 | FQ8: 0.0009117 | FR8: 0.0023292 | FS8: 0.0090959 | FT8: 0.0037829 | FU8: 0.0016963 | FV8: 0.0022771 | FW8: 0.0012742 | FX8: 0.002012 | FY8: 0.0057592 | FZ8: 0.0015217 | GA8: 0.0022855 | GB8: 0.0004957 | GC8: 0.0007395 | GD8: 0.0001747 | GE8: 0.0002686 | GF8: 0.0028724 | GG8: 0.0063065 | GH8: 0.0017727 | GI8: 0.0010454 | GJ8: 0.003036 | GK8: 0.0045513 | GL8: 0.0104227 | GM8: 0.00848 | GN8: 0.0052908 | GO8: 0.0182305 | GP8: 0.0235536 | GQ8: 0.0110042 | GR8: 0.102982 | GS8: 0.0050311 | GT8: 0.0091115 | GU8: 0.0210392 | GV8: 0.014415 | GW8: 0.0183268 | GX8: 0.0125577 | GY8: 0.0034385 | GZ8: 0.0127171 | HA8: 0.0008074 | HB8: 0.0054581 | HC8: 0.0103812 | HD8: 0.0921293 | HE8: 0.0539575 | HF8: 0.0069569 | HG8: 0.100998 | HH8: 0.0111978 | HI8: 0.0025033 | HJ8: 0.0080558 | HK8: 0.0003737 | HL8: 0.0011779 | HM8: 0.033262 | HN8: 0.237722 | HO8: 0.0516885 | HP8: 0.0314881 | HQ8: 0.0506178 | HR8: 0.0308949 | HS8: 0.0151265 | HT8: 0.0154731 | HU8: 0.0037667 | HV8: 0.0045767 | HW8: 0.0041326 | HX8: 0.0039376 | HY8: 0.0020416 | HZ8: 0.0025337 | IA8: 0.0022272 | IB8: 0.0041382 | IC8: 0.0030364 | ID8: 0.0012127 | IE8: 0.0011538 | IF8: 0.0001032 | IG8: 0.0004733 | IH8: 0.0001586 | II8: 0.0004057 | IJ8: 0.0012949 | IK8: 0.0096639 | IL8: 0.0009236 | IM8: 0.0009328 | IN8: 0.0073069 | IO8: 0.0027725 | IP8: 0.0401612 | IQ8: 0.0043312 | IR8: 0.0010363 | IS8: 0.0006379 | IT8: 0.0002109 | IU8: 0.0003781 | IV8: 0.0023789 | IW8: 0.001714 | IX8: 0.0027388 | IY8: 0.0010535 | IZ8: 0.0010974 | JA8: 0.0007317 | JB8: 0.0013025 | JC8: 0.0015556 | JD8: 0.0014012 | JE8: 0.0014262 | JF8: 0.0046129 | JG8: 0.0019491 | JH8: 0.0016727 | JI8: 0.0013717 | JJ8: 0.0100419 | JK8: 0.0065358 | JL8: 0.0049352 | JM8: 0.0001047 | JN8: 6.5e-05 | JO8: 9.44e-05 | JP8: 8.25e-05 | JQ8: 0.0001642 | JR8: 5.63e-05 | JS8: 0.0001576 | JT8: 1.98e-05 | JU8: 0.0001544 | JV8: 0.0003802 | JW8: 0 | JX8: 7.6e-05 | JY8: 0.0001497 | JZ8: 0.0003392 | KA8: 7.33e-05 | KB8: 8.92e-05 | KC8: 9.88e-05 | KD8: 0.0003832 | KE8: 0.0001272 | KF8: 0.0001961 | KG8: 8.6e-05 | KH8: 0.0004313 | KI8: 0.000238 | KJ8: 0.0001015 | KK8: 0.0001726 | KL8: 0.0001706 | KM8: 0.0002029 | KN8: 0.0001466 | KO8: 0.0001007 | KP8: 0.0002958 | KQ8: 0.0001995 | KR8: 0.0002428 | KS8: 0.000308 | KT8: 5.58e-05 | KU8: 0.0003018 | KV8: 0.0001263 | KW8: 0.0001241 | KX8: 0.0001201 | KY8: 0.0001127 | KZ8: 0.0002691 | LA8: 9.47e-05 | LB8: 0.0001934 | LC8: 0.0001832 | LD8: 9.33e-05 | LE8: 7.8e-05 | LF8: 9.89e-05 | LG8: 0.0001073 | LH8: 8.58e-05 | LI8: 4e-06 | LJ8: 5.77e-05 | LK8: 6.76e-05 | LL8: 9.11e-05 | LM8: 0.0003603 | LN8: 0.0001051 | LO8: 0.0002543 | LP8: 0.0001075 | LQ8: 0.0001259 | LR8: 0.0001596 | LS8: 7e-05 | LT8: 6.15e-05 | LU8: 4.21e-05 | LV8: 8.97e-05 | LW8: 9.92e-05 | LX8: 4.77e-05 | LY8: 0.0002046 | LZ8: 9.84e-05 | MA8: 9.07e-05 | MB8: 0.0001409 | MC8: 0.0002662 | MD8: 0.0002716 | ME8: 0.0001924 | MF8: 0.0002815 | MG8: 9.51e-05 | MH8: 0.0001005 | MI8: 4.65e-05 | MJ8: 0.0004832 | MK8: 9.03e-05 | ML8: 0.0002444 | MM8: 0.000131 | MN8: 0.0001478 | MO8: 0.0001104 | MP8: 0.00021 | MQ8: 0.0003434 | MR8: 0.0005208 | MS8: 0.0006377 | MT8: 0.000185 | MU8: 0.0001823 | MV8: 0.0001455 | MW8: 0.000229 | MX8: 0.0003219 | MY8: 0.0001981 | MZ8: 0.000449 | NA8: 0.0004626 | NB8: 0.000609 | NC8: 0.0006711 | ND8: 0.0014687 | NE8: 0.000839 | NF8: 0.0007587 | NG8: 0.0017535 | NH8: 0.0001327 | NI8: 0.0004563 | NJ8: 5.27e-05 | NK8: 0.0001262 | NL8: 0.0002461 | NM8: 0.0007669 | NN8: 0.0002842 | NO8: 0.0032514 | NP8: 0.0007446 | NQ8: 0.0009953 | NR8: 0.0014571 | NS8: 0.0005996 | NT8: 0.0001351 | NU8: 7.77e-05 | NV8: 0.000142 | NW8: 0.0001565 | NX8: 0.00019 | NY8: 0.000191 | NZ8: 0.0012851 | OA8: 0.0001265 | OB8: 0.0003339 | OC8: 5.54e-05 | OD8: 0.0006737 | OE8: 0 | OF8: 0.0002387 | OG8: -0.0001927 | OH8: 7.63e-05 | OI8: 0.0012993 | OJ8: 0.0003936 | OK8: 0.0014707 | OL8: 0.0006791 | OM8: 0.0005395 | ON8: 0.000671 | OO8: 0 | OP8: 0 | OQ8: -0.0001927 | OR8: 3599 | OS8: 0 | OT8: 0 | OU8: 21153.74016 | OV8: 21153 | OW8: 0 | OX8: 10211 | OY8: 0 | OZ8: 1 | PA8: 6
A9: 112120 | B9: Dairy cattle and milk production | C9: 0.0012152 | D9: 0.0021239 | E9: 0.0013469 | F9: 0.0017584 | G9: 0.0007296 | H9: 0.0014352 | I9: 1.00107 | J9: 0.0007478 | K9: 0.0019704 | L9: 0.0006213 | M9: 0.002704 | N9: 0.0001179 | O9: 0.0142655 | P9: 1.65e-05 | Q9: 4.66e-05 | R9: 4.74e-05 | S9: 5.38e-05 | T9: 5.17e-05 | U9: 5.15e-05 | V9: 4.06e-05 | W9: 7.37e-05 | X9: 5.28e-05 | Y9: 4.42e-05 | Z9: 7.95e-05 | AA9: 5.74e-05 | AB9: 6.13e-05 | AC9: 5.59e-05 | AD9: 6.17e-05 | AE9: 4.42e-05 | AF9: 5.32e-05 | AG9: 7.55e-05 | AH9: 2.73e-05 | AI9: 4.57e-05 | AJ9: 2.92e-05 | AK9: 5.51e-05 | AL9: 4.72e-05 | AM9: 0.0010063 | AN9: 0.000549 | AO9: 0.0004094 | AP9: 0.0002533 | AQ9: 4.98e-05 | AR9: 6.08e-05 | AS9: 5.88e-05 | AT9: 8.99e-05 | AU9: 6.73e-05 | AV9: 0.0001016 | AW9: 9.08e-05 | AX9: 4.02e-05 | AY9: 8.45e-05 | AZ9: 5.95e-05 | BA9: 6.6e-05 | BB9: 7.1e-05 | BC9: 0.0001464 | BD9: 0.0001049 | BE9: 0.000168 | BF9: 0.0001345 | BG9: 5.22e-05 | BH9: 7.8e-05 | BI9: 7.92e-05 | BJ9: 0.0001237 | BK9: 9.54e-05 | BL9: 0.0001079 | BM9: 8.7e-05 | BN9: 8.56e-05 | BO9: 7.53e-05 | BP9: 9.94e-05 | BQ9: 9.78e-05 | BR9: 5.49e-05 | BS9: 8.78e-05 | BT9: 9.3e-05 | BU9: 9.76e-05 | BV9: 8.49e-05 | BW9: 7.71e-05 | BX9: 7.22e-05 | BY9: 7.94e-05 | BZ9: 6.1e-05 | CA9: 6.38e-05 | CB9: 4.25e-05 | CC9: 7.64e-05 | CD9: 4.21e-05 | CE9: 9.83e-05 | CF9: 6.73e-05 | CG9: 7.2e-05 | CH9: 7.04e-05 | CI9: 0.0001028 | CJ9: 7.93e-05 | CK9: 8.22e-05 | CL9: 5.96e-05 | CM9: 4.51e-05 | CN9: 6.45e-05 | CO9: 9.47e-05 | CP9: 6.09e-05 | CQ9: 6.01e-05 | CR9: 6.82e-05 | CS9: 7.59e-05 | CT9: 7.58e-05 | CU9: 6.82e-05 | CV9: 4.46e-05 | CW9: 5.59e-05 | CX9: 7.68e-05 | CY9: 8.8e-05 | CZ9: 6.81e-05 | DA9: 6.29e-05 | DB9: 7.27e-05 | DC9: 6.27e-05 | DD9: 6.38e-05 | DE9: 5.48e-05 | DF9: 7.88e-05 | DG9: 6.56e-05 | DH9: 2.27e-05 | DI9: 2.21e-05 | DJ9: 2.2e-05 | DK9: 4.05e-05 | DL9: 4.25e-05 | DM9: 4.38e-05 | DN9: 3.12e-05 | DO9: 3.25e-05 | DP9: 3.74e-05 | DQ9: 5.37e-05 | DR9: 3.45e-05 | DS9: 6.52e-05 | DT9: 5.79e-05 | DU9: 4.5e-05 | DV9: 8.03e-05 | DW9: 5.75e-05 | DX9: 6.16e-05 | DY9: 5.04e-05 | DZ9: 7.59e-05 | EA9: 7.92e-05 | EB9: 6.05e-05 | EC9: 6.32e-05 | ED9: 6.36e-05 | EE9: 6.36e-05 | EF9: 6.36e-05 | EG9: 7.38e-05 | EH9: 5.45e-05 | EI9: 5.8e-05 | EJ9: 5.28e-05 | EK9: 5.06e-05 | EL9: 3.93e-05 | EM9: 4.3e-05 | EN9: 4.19e-05 | EO9: 6.68e-05 | EP9: 5.26e-05 | EQ9: 4.83e-05 | ER9: 6.56e-05 | ES9: 6.69e-05 | ET9: 6.87e-05 | EU9: 7.28e-05 | EV9: 7.35e-05 | EW9: 9.42e-05 | EX9: 7.7e-05 | EY9: 0.0001103 | EZ9: 6.62e-05 | FA9: 5.71e-05 | FB9: 7.46e-05 | FC9: 0.0001085 | FD9: 0.0001 | FE9: 7.65e-05 | FF9: 8.22e-05 | FG9: 2.61e-05 | FH9: 2.42e-05 | FI9: 3.6e-05 | FJ9: 3.14e-05 | FK9: 3.08e-05 | FL9: 0.0001015 | FM9: 8.45e-05 | FN9: 8.81e-05 | FO9: 7.93e-05 | FP9: 7.77e-05 | FQ9: 7.76e-05 | FR9: 0.0002152 | FS9: 0.0001156 | FT9: 0.0002136 | FU9: 0.0001364 | FV9: 0.0001448 | FW9: 0.0001181 | FX9: 0.0001351 | FY9: 8.34e-05 | FZ9: 5.63e-05 | GA9: 0.0001051 | GB9: 7.8e-05 | GC9: 3.93e-05 | GD9: 5.7e-05 | GE9: 5.97e-05 | GF9: 0.0001414 | GG9: 0.0001077 | GH9: 0.0001354 | GI9: 9.66e-05 | GJ9: 0.0001219 | GK9: 0.0025311 | GL9: 0.0032013 | GM9: 0.0012866 | GN9: 0.0007727 | GO9: 0.0017769 | GP9: 0.0008468 | GQ9: 0.0049609 | GR9: 0.0135507 | GS9: 0.0509595 | GT9: 0.0114754 | GU9: 0.577344 | GV9: 0.395583 | GW9: 0.546871 | GX9: 0.216508 | GY9: 0.0010683 | GZ9: 0.0007519 | HA9: 0.0004869 | HB9: 0.0091276 | HC9: 0.0174724 | HD9: 0.0014605 | HE9: 0.0063662 | HF9: 0.0033067 | HG9: 0.0186818 | HH9: 0.0408233 | HI9: 0.0120949 | HJ9: 0.0001708 | HK9: 0.0002393 | HL9: 8.55e-05 | HM9: 7.06e-05 | HN9: 0.000409 | HO9: 0.0001572 | HP9: 0.0001292 | HQ9: 0.0001477 | HR9: 0.0001322 | HS9: 0.0001118 | HT9: 0.0001192 | HU9: 0.0001539 | HV9: 0.0003032 | HW9: 0.0002142 | HX9: 0.0002891 | HY9: 0.0001678 | HZ9: 0.0001159 | IA9: 0.000167 | IB9: 0.0001491 | IC9: 0.0001348 | ID9: 0.0001024 | IE9: 8.83e-05 | IF9: 1.88e-05 | IG9: 4.12e-05 | IH9: 3.25e-05 | II9: 4.14e-05 | IJ9: 5.96e-05 | IK9: 8.97e-05 | IL9: 5.93e-05 | IM9: 6.53e-05 | IN9: 0.0002332 | IO9: 0.0001113 | IP9: 0.0001538 | IQ9: 0.0012793 | IR9: 0.0019249 | IS9: 0.0004557 | IT9: 0.0002121 | IU9: 5.16e-05 | IV9: 0.0001122 | IW9: 9.02e-05 | IX9: 8.74e-05 | IY9: 8.41e-05 | IZ9: 0.0001473 | JA9: 6.47e-05 | JB9: 9.51e-05 | JC9: 0.0001012 | JD9: 8.25e-05 | JE9: 8.18e-05 | JF9: 0.0001174 | JG9: 9.75e-05 | JH9: 9.8e-05 | JI9: 0.0001076 | JJ9: 0.0003 | JK9: 0.0001142 | JL9: 0.0001685 | JM9: 5.36e-05 | JN9: 3.84e-05 | JO9: 5.14e-05 | JP9: 4.96e-05 | JQ9: 5.94e-05 | JR9: 2.22e-05 | JS9: 6.21e-05 | JT9: 4.8e-06 | JU9: 0.0001907 | JV9: 0.0001074 | JW9: 0 | JX9: 4.34e-05 | JY9: 8.07e-05 | JZ9: 8.61e-05 | KA9: 5.19e-05 | KB9: 5.41e-05 | KC9: 8.47e-05 | KD9: 7.38e-05 | KE9: 5.67e-05 | KF9: 5.68e-05 | KG9: 0.0001795 | KH9: 5.75e-05 | KI9: 0.0003758 | KJ9: 4.26e-05 | KK9: 4.49e-05 | KL9: 4.98e-05 | KM9: 5.65e-05 | KN9: 6.47e-05 | KO9: 4.42e-05 | KP9: 5.67e-05 | KQ9: 6.25e-05 | KR9: 6.79e-05 | KS9: 6.62e-05 | KT9: 4.2e-05 | KU9: 6.88e-05 | KV9: 5.28e-05 | KW9: 0.00014 | KX9: 4.82e-05 | KY9: 3.21e-05 | KZ9: 5.84e-05 | LA9: 4.8e-05 | LB9: 0.0001229 | LC9: 6.17e-05 | LD9: 0.0003015 | LE9: 0.00011 | LF9: 0.0001248 | LG9: 0.0001841 | LH9: 0.0001091 | LI9: 2.8e-06 | LJ9: 0.0001307 | LK9: 7.21e-05 | LL9: 0.0001521 | LM9: 2.64e-05 | LN9: 2.2e-06 | LO9: 0.0001826 | LP9: 0.000108 | LQ9: 7.42e-05 | LR9: 8.95e-05 | LS9: 7.44e-05 | LT9: 7.94e-05 | LU9: 5.33e-05 | LV9: 0.00013 | LW9: 0.0001591 | LX9: 7.3e-05 | LY9: 0.0001424 | LZ9: 0.0001353 | MA9: 0.0001083 | MB9: 8.62e-05 | MC9: 7.77e-05 | MD9: 0.0001033 | ME9: 0.0001428 | MF9: 0.0002338 | MG9: 9.16e-05 | MH9: 8.81e-05 | MI9: 7.75e-05 | MJ9: 6.16e-05 | MK9: 0.0001152 | ML9: 0.0001012 | MM9: 0.000112 | MN9: 0.0002004 | MO9: 0.0001503 | MP9: 0.0002156 | MQ9: 0.0003435 | MR9: 0.005529 | MS9: 0.002693 | MT9: 0.0001276 | MU9: 0.0002045 | MV9: 6.29e-05 | MW9: 0.0001133 | MX9: 0.000607 | MY9: 5.75e-05 | MZ9: 0.0007971 | NA9: 0.0003381 | NB9: 0.0015868 | NC9: 0.0023067 | ND9: 0.0012361 | NE9: 0.0007315 | NF9: 0.0066261 | NG9: 0.0011181 | NH9: 7.48e-05 | NI9: 0.0012643 | NJ9: 3.63e-05 | NK9: 0.0001345 | NL9: 0.0002538 | NM9: 0.0022643 | NN9: 0.0001257 | NO9: 0.0040032 | NP9: 0.0006137 | NQ9: 0.0050486 | NR9: 0.0095559 | NS9: 0.004105 | NT9: 3.69e-05 | NU9: 3.29e-05 | NV9: 4.33e-05 | NW9: 1.6e-05 | NX9: 8.02e-05 | NY9: 3.26e-05 | NZ9: 7.61e-05 | OA9: 5.8e-05 | OB9: 0.0011766 | OC9: 2.55e-05 | OD9: 0.0004997 | OE9: 0 | OF9: 0.0003582 | OG9: 1e-07 | OH9: 0.0001156 | OI9: 0.0089891 | OJ9: 0.002031 | OK9: 0.0034428 | OL9: 0.001855 | OM9: 5.65e-05 | ON9: 0.0007737 | OO9: 0 | OP9: 0 | OQ9: 1e-07 | OR9: 227 | OS9: 0 | OT9: 0 | OU9: 36154.39872 | OV9: 36155 | OW9: 0 | OX9: 11961 | OY9: 0 | OZ9: 1 | PA9: 7
A10: 1121A0 | B10: Beef cattle ranching and farming, including feedlots and dual-purpose ranching and farming | C10: 0.0039672 | D10: 0.0088201 | E10: 0.0031047 | F10: 0.0049189 | G10: 0.0024035 | H10: 0.0036224 | I10: 0.0586529 | J10: 1.30981 | K10: 0.0123658 | L10: 0.0159072 | M10: 0.0056931 | N10: 0.0002537 | O10: 0.0290276 | P10: 2.68e-05 | Q10: 8.29e-05 | R10: 8.06e-05 | S10: 0.0001004 | T10: 8.1e-05 | U10: 8.54e-05 | V10: 6.87e-05 | W10: 0.0001043 | X10: 8.44e-05 | Y10: 6.55e-05 | Z10: 0.0001248 | AA10: 0.0001028 | AB10: 0.0001116 | AC10: 0.0001014 | AD10: 0.000118 | AE10: 7.77e-05 | AF10: 9.11e-05 | AG10: 0.0001342 | AH10: 4.59e-05 | AI10: 8.05e-05 | AJ10: 5.19e-05 | AK10: 9.79e-05 | AL10: 8.07e-05 | AM10: 0.0020864 | AN10: 0.0011219 | AO10: 0.000819 | AP10: 0.000504 | AQ10: 8.29e-05 | AR10: 9.71e-05 | AS10: 8.99e-05 | AT10: 0.0001569 | AU10: 0.000109 | AV10: 0.0001536 | AW10: 0.0002068 | AX10: 7.31e-05 | AY10: 0.0001535 | AZ10: 8.76e-05 | BA10: 0.0001175 | BB10: 0.0001091 | BC10: 0.000288 | BD10: 0.0001907 | BE10: 0.000285 | BF10: 0.0002221 | BG10: 8.65e-05 | BH10: 0.0001284 | BI10: 0.0001309 | BJ10: 0.0002037 | BK10: 0.0001536 | BL10: 0.0001975 | BM10: 0.0001448 | BN10: 0.0001445 | BO10: 0.0001271 | BP10: 0.0001632 | BQ10: 0.0001643 | BR10: 9.15e-05 | BS10: 0.0001451 | BT10: 0.0001565 | BU10: 0.0001525 | BV10: 0.0001543 | BW10: 0.0001162 | BX10: 0.0001136 | BY10: 0.0001326 | BZ10: 0.0001027 | CA10: 0.000103 | CB10: 6.84e-05 | CC10: 0.000128 | CD10: 7.67e-05 | CE10: 0.0001733 | CF10: 0.0001149 | CG10: 0.0001312 | CH10: 0.0001532 | CI10: 0.000165 | CJ10: 0.0001192 | CK10: 0.0001278 | CL10: 9.39e-05 | CM10: 8.06e-05 | CN10: 0.0001093 | CO10: 0.0001541 | CP10: 0.0001016 | CQ10: 0.0001084 | CR10: 0.0001126 | CS10: 0.0001183 | CT10: 0.0001149 | CU10: 0.0001058 | CV10: 7.66e-05 | CW10: 8.75e-05 | CX10: 0.0001203 | CY10: 0.000158 | CZ10: 0.0001106 | DA10: 0.0001008 | DB10: 0.000124 | DC10: 0.0001012 | DD10: 0.0001014 | DE10: 8.74e-05 | DF10: 0.0001367 | DG10: 0.0001146 | DH10: 3.63e-05 | DI10: 3.57e-05 | DJ10: 3.78e-05 | DK10: 6.27e-05 | DL10: 6.12e-05 | DM10: 7.16e-05 | DN10: 5.11e-05 | DO10: 5.51e-05 | DP10: 6.31e-05 | DQ10: 9.35e-05 | DR10: 5.43e-05 | DS10: 9.61e-05 | DT10: 8.91e-05 | DU10: 7.52e-05 | DV10: 0.0001113 | DW10: 9.79e-05 | DX10: 0.0001112 | DY10: 8.84e-05 | DZ10: 0.0001129 | EA10: 0.0001441 | EB10: 9.71e-05 | EC10: 0.0001131 | ED10: 0.0001213 | EE10: 0.0001133 | EF10: 0.0001192 | EG10: 0.0001269 | EH10: 0.0001 | EI10: 0.0001214 | EJ10: 9.35e-05 | EK10: 8.69e-05 | EL10: 7.58e-05 | EM10: 7.12e-05 | EN10: 7.33e-05 | EO10: 0.0001142 | EP10: 9.67e-05 | EQ10: 0.0001839 | ER10: 9.62e-05 | ES10: 0.0005451 | ET10: 0.0005508 | EU10: 0.0002573 | EV10: 0.0001634 | EW10: 0.0001707 | EX10: 0.0001834 | EY10: 0.0002025 | EZ10: 0.000151 | FA10: 9.59e-05 | FB10: 0.0001519 | FC10: 0.0043522 | FD10: 0.000175 | FE10: 0.0001513 | FF10: 0.000143 | FG10: 4.74e-05 | FH10: 3.95e-05 | FI10: 5.94e-05 | FJ10: 4.98e-05 | FK10: 5.19e-05 | FL10: 0.0001626 | FM10: 0.0001264 | FN10: 0.0001626 | FO10: 0.0001298 | FP10: 0.0001442 | FQ10: 0.0001473 | FR10: 0.000396 | FS10: 0.0002417 | FT10: 0.0004216 | FU10: 0.0002743 | FV10: 0.0002707 | FW10: 0.0002184 | FX10: 0.0002509 | FY10: 0.0001631 | FZ10: 0.0001021 | GA10: 0.000183 | GB10: 0.0001415 | GC10: 6.73e-05 | GD10: 8.37e-05 | GE10: 8.78e-05 | GF10: 0.0006131 | GG10: 0.0002277 | GH10: 0.0002724 | GI10: 0.0001794 | GJ10: 0.0003887 | GK10: 0.0721487 | GL10: 0.0249556 | GM10: 0.0062087 | GN10: 0.0031399 | GO10: 0.0160792 | GP10: 0.0040733 | GQ10: 0.0040419 | GR10: 0.0037409 | GS10: 0.0342706 | GT10: 0.0290483 | GU10: 0.0344693 | GV10: 0.0252771 | GW10: 0.0325939 | GX10: 0.0139699 | GY10: 0.0329044 | GZ10: 0.600198 | HA10: 0.0030819 | HB10: 0.0044122 | HC10: 0.0058504 | HD10: 0.005242 | HE10: 0.0018351 | HF10: 0.0017976 | HG10: 0.0222577 | HH10: 0.0112388 | HI10: 0.0018006 | HJ10: 0.0006208 | HK10: 0.0005793 | HL10: 0.0002166 | HM10: 0.0001604 | HN10: 0.0011708 | HO10: 0.0005072 | HP10: 0.0003365 | HQ10: 0.0003868 | HR10: 0.0003354 | HS10: 0.0006726 | HT10: 0.0013049 | HU10: 0.0610732 | HV10: 0.0006333 | HW10: 0.0004543 | HX10: 0.0005989 | HY10: 0.0003553 | HZ10: 0.0002309 | IA10: 0.0003191 | IB10: 0.000375 | IC10: 0.0002608 | ID10: 0.000308 | IE10: 0.0001798 | IF10: 3.25e-05 | IG10: 8.26e-05 | IH10: 5.01e-05 | II10: 0.0006064 | IJ10: 0.0001729 | IK10: 0.0002232 | IL10: 0.0001452 | IM10: 0.0001396 | IN10: 0.0008591 | IO10: 0.0003398 | IP10: 0.0004515 | IQ10: 0.001865 | IR10: 0.0048657 | IS10: 0.0027395 | IT10: 0.0011892 | IU10: 9.1e-05 | IV10: 0.0003315 | IW10: 0.0002273 | IX10: 0.0002225 | IY10: 0.0008306 | IZ10: 0.0025468 | JA10: 0.0001295 | JB10: 0.0002279 | JC10: 0.0002284 | JD10: 0.0001938 | JE10: 0.0001706 | JF10: 0.0002697 | JG10: 0.000216 | JH10: 0.0002444 | JI10: 0.0002147 | JJ10: 0.0006823 | JK10: 0.0002341 | JL10: 0.0003519 | JM10: 8.16e-05 | JN10: 5.29e-05 | JO10: 7.09e-05 | JP10: 6.64e-05 | JQ10: 8.42e-05 | JR10: 3.33e-05 | JS10: 9.18e-05 | JT10: 7.4e-06 | JU10: 0.0001321 | JV10: 0.0002944 | JW10: 0 | JX10: 5.62e-05 | JY10: 9.63e-05 | JZ10: 8.33e-05 | KA10: 6.71e-05 | KB10: 7.08e-05 | KC10: 9.78e-05 | KD10: 0.0001196 | KE10: 7.95e-05 | KF10: 7.53e-05 | KG10: 9.26e-05 | KH10: 9.99e-05 | KI10: 0.0003394 | KJ10: 5.76e-05 | KK10: 6.76e-05 | KL10: 7.11e-05 | KM10: 9.32e-05 | KN10: 6.14e-05 | KO10: 5.97e-05 | KP10: 9.55e-05 | KQ10: 0.000103 | KR10: 0.0001077 | KS10: 0.0001111 | KT10: 5.93e-05 | KU10: 9.32e-05 | KV10: 8.1e-05 | KW10: 0.0001231 | KX10: 5.58e-05 | KY10: 4.91e-05 | KZ10: 9.25e-05 | LA10: 7.2e-05 | LB10: 0.000181 | LC10: 9.98e-05 | LD10: 0.0004198 | LE10: 0.0001552 | LF10: 0.0001653 | LG10: 0.0002605 | LH10: 0.000153 | LI10: 4e-06 | LJ10: 0.0001799 | LK10: 0.0001043 | LL10: 0.0002111 | LM10: 3.48e-05 | LN10: 3.7e-06 | LO10: 0.0002412 | LP10: 0.0001512 | LQ10: 0.000118 | LR10: 0.0001339 | LS10: 9.39e-05 | LT10: 0.0001007 | LU10: 7.06e-05 | LV10: 0.0001686 | LW10: 0.0002085 | LX10: 8.53e-05 | LY10: 0.0001893 | LZ10: 0.0001487 | MA10: 0.0001419 | MB10: 0.0002879 | MC10: 0.0001132 | MD10: 0.000129 | ME10: 0.0001776 | MF10: 0.0020577 | MG10: 9.62e-05 | MH10: 0.0001368 | MI10: 0.0001023 | MJ10: 0.0001164 | MK10: 0.0001207 | ML10: 0.0001301 | MM10: 0.0001544 | MN10: 0.0002078 | MO10: 0.0002187 | MP10: 0.000234 | MQ10: 0.0005838 | MR10: 0.0027137 | MS10: 0.0052087 | MT10: 0.0001843 | MU10: 0.0003458 | MV10: 0.0001044 | MW10: 0.0001458 | MX10: 0.0010595 | MY10: 0.00012 | MZ10: 0.0020685 | NA10: 0.0008571 | NB10: 0.0036615 | NC10: 0.0051593 | ND10: 0.0080132 | NE10: 0.0050031 | NF10: 0.0043371 | NG10: 0.0167202 | NH10: 0.0001347 | NI10: 0.0009396 | NJ10: 5.04e-05 | NK10: 0.0002634 | NL10: 0.0006575 | NM10: 0.0078201 | NN10: 0.0004402 | NO10: 0.0077549 | NP10: 0.0027133 | NQ10: 0.0064793 | NR10: 0.0084472 | NS10: 0.0014768 | NT10: 6.08e-05 | NU10: 4.77e-05 | NV10: 5.61e-05 | NW10: 7.95e-05 | NX10: 0.0002141 | NY10: 5.51e-05 | NZ10: 0.0001171 | OA10: 0.0001258 | OB10: 0.0011731 | OC10: 3.6e-05 | OD10: 0.0009496 | OE10: 0 | OF10: 0.0016274 | OG10: 8.9e-05 | OH10: 0.0001625 | OI10: 0.0133214 | OJ10: 0.0028778 | OK10: 0.0093477 | OL10: 0.0032147 | OM10: 8.39e-05 | ON10: 0.0013064 | OO10: 0 | OP10: 0 | OQ10: 8.9e-05 | OR10: -1692 | OS10: 0 | OT10: 0 | OU10: 56005.67586 | OV10: 56006 | OW10: 0 | OX10: 22594 | OY10: 0 | OZ10: 1 | PA10: 8
A11: 112300 | B11: Poultry and egg production | C11: 0.0016825 | D11: 0.002301 | E11: 0.001463 | F11: 0.0019216 | G11: 0.0007871 | H11: 0.0016589 | I11: 0.001206 | J11: 0.0008222 | K11: 1.18324 | L11: 0.0004975 | M11: 0.0029644 | N11: 8.19e-05 | O11: 0.0156778 | P11: 1.16e-05 | Q11: 3.78e-05 | R11: 3.59e-05 | S11: 4.2e-05 | T11: 3.73e-05 | U11: 3.79e-05 | V11: 3.02e-05 | W11: 4.78e-05 | X11: 3.82e-05 | Y11: 3.55e-05 | Z11: 5.22e-05 | AA11: 5.03e-05 | AB11: 5.5e-05 | AC11: 4.7e-05 | AD11: 5.66e-05 | AE11: 3.8e-05 | AF11: 4.49e-05 | AG11: 6.51e-05 | AH11: 2.21e-05 | AI11: 3.98e-05 | AJ11: 2.52e-05 | AK11: 4.8e-05 | AL11: 4e-05 | AM11: 0.0010834 | AN11: 0.0005772 | AO11: 0.0004213 | AP11: 0.0002498 | AQ11: 3.86e-05 | AR11: 4.43e-05 | AS11: 4.29e-05 | AT11: 6.66e-05 | AU11: 4.93e-05 | AV11: 7.3e-05 | AW11: 7.92e-05 | AX11: 3.17e-05 | AY11: 6.5e-05 | AZ11: 4.13e-05 | BA11: 5.04e-05 | BB11: 5.28e-05 | BC11: 9.55e-05 | BD11: 7.05e-05 | BE11: 0.0001055 | BF11: 8.83e-05 | BG11: 3.64e-05 | BH11: 5.24e-05 | BI11: 5.36e-05 | BJ11: 7.8e-05 | BK11: 6.3e-05 | BL11: 7.18e-05 | BM11: 5.93e-05 | BN11: 5.88e-05 | BO11: 5.45e-05 | BP11: 6.81e-05 | BQ11: 6.85e-05 | BR11: 3.8e-05 | BS11: 5.98e-05 | BT11: 6.23e-05 | BU11: 6.81e-05 | BV11: 5.97e-05 | BW11: 5.29e-05 | BX11: 4.97e-05 | BY11: 5.6e-05 | BZ11: 4.44e-05 | CA11: 4.43e-05 | CB11: 2.92e-05 | CC11: 5.18e-05 | CD11: 3.3e-05 | CE11: 7e-05 | CF11: 4.95e-05 | CG11: 5.42e-05 | CH11: 5.21e-05 | CI11: 7.18e-05 | CJ11: 5.58e-05 | CK11: 5.89e-05 | CL11: 4.25e-05 | CM11: 3.41e-05 | CN11: 4.68e-05 | CO11: 6.83e-05 | CP11: 4.42e-05 | CQ11: 4.48e-05 | CR11: 4.86e-05 | CS11: 5.25e-05 | CT11: 5.24e-05 | CU11: 4.72e-05 | CV11: 3.22e-05 | CW11: 3.98e-05 | CX11: 5.43e-05 | CY11: 7.08e-05 | CZ11: 4.88e-05 | DA11: 4.49e-05 | DB11: 5.22e-05 | DC11: 4.4e-05 | DD11: 4.53e-05 | DE11: 3.73e-05 | DF11: 5.89e-05 | DG11: 4.6e-05 | DH11: 1.77e-05 | DI11: 1.67e-05 | DJ11: 1.71e-05 | DK11: 3.05e-05 | DL11: 3.1e-05 | DM11: 3.24e-05 | DN11: 2.46e-05 | DO11: 2.54e-05 | DP11: 2.89e-05 | DQ11: 4.01e-05 | DR11: 2.54e-05 | DS11: 4.53e-05 | DT11: 4.11e-05 | DU11: 3.29e-05 | DV11: 5.54e-05 | DW11: 4.02e-05 | DX11: 4.74e-05 | DY11: 3.61e-05 | DZ11: 6.2e-05 | EA11: 6.12e-05 | EB11: 4.95e-05 | EC11: 5.49e-05 | ED11: 5.05e-05 | EE11: 4.58e-05 | EF11: 4.76e-05 | EG11: 5.23e-05 | EH11: 4.05e-05 | EI11: 4.49e-05 | EJ11: 4.02e-05 | EK11: 3.74e-05 | EL11: 3.12e-05 | EM11: 3e-05 | EN11: 2.93e-05 | EO11: 4.99e-05 | EP11: 4.07e-05 | EQ11: 4.26e-05 | ER11: 5.19e-05 | ES11: 6.02e-05 | ET11: 6.26e-05 | EU11: 6.17e-05 | EV11: 5.86e-05 | EW11: 7.32e-05 | EX11: 6.4e-05 | EY11: 9.01e-05 | EZ11: 4.86e-05 | FA11: 4.19e-05 | FB11: 5.23e-05 | FC11: 0.0001815 | FD11: 6.87e-05 | FE11: 5.8e-05 | FF11: 5.94e-05 | FG11: 1.9e-05 | FH11: 1.73e-05 | FI11: 2.58e-05 | FJ11: 2.28e-05 | FK11: 2.3e-05 | FL11: 7.04e-05 | FM11: 5.93e-05 | FN11: 6.58e-05 | FO11: 5.88e-05 | FP11: 5.77e-05 | FQ11: 6.02e-05 | FR11: 0.0001993 | FS11: 0.0001042 | FT11: 0.0002107 | FU11: 0.000115 | FV11: 0.0001212 | FW11: 9.72e-05 | FX11: 0.0001225 | FY11: 6.92e-05 | FZ11: 4.35e-05 | GA11: 8.69e-05 | GB11: 5.22e-05 | GC11: 2.97e-05 | GD11: 3.91e-05 | GE11: 4.15e-05 | GF11: 0.0001267 | GG11: 9.34e-05 | GH11: 0.0001235 | GI11: 7.68e-05 | GJ11: 0.0001061 | GK11: 0.0019921 | GL11: 0.0037336 | GM11: 0.0013934 | GN11: 0.0008272 | GO11: 0.0011949 | GP11: 0.0011399 | GQ11: 0.0029855 | GR11: 0.0049315 | GS11: 0.0400081 | GT11: 0.0072909 | GU11: 0.0013371 | GV11: 0.0011165 | GW11: 0.0012212 | GX11: 0.0253304 | GY11: 0.581339 | GZ11: 0.0137469 | HA11: 0.0004592 | HB11: 0.0159616 | HC11: 0.0193222 | HD11: 0.0012332 | HE11: 0.0006166 | HF11: 0.0012604 | HG11: 0.0200454 | HH11: 0.0313113 | HI11: 0.0005458 | HJ11: 0.000171 | HK11: 0.0002375 | HL11: 7.57e-05 | HM11: 7.38e-05 | HN11: 0.0004444 | HO11: 0.0001503 | HP11: 0.0001177 | HQ11: 0.0001435 | HR11: 0.0001237 | HS11: 0.0001014 | HT11: 0.0001218 | HU11: 0.0014087 | HV11: 0.00031 | HW11: 0.0002139 | HX11: 0.0002865 | HY11: 0.0001546 | HZ11: 0.0001038 | IA11: 0.0001489 | IB11: 0.0001459 | IC11: 0.0001199 | ID11: 8.44e-05 | IE11: 7.31e-05 | IF11: 1.33e-05 | IG11: 3.12e-05 | IH11: 2.35e-05 | II11: 4.18e-05 | IJ11: 5.31e-05 | IK11: 7.98e-05 | IL11: 4.74e-05 | IM11: 5.11e-05 | IN11: 0.0002249 | IO11: 0.0001007 | IP11: 0.0001513 | IQ11: 0.0001332 | IR11: 0.0001807 | IS11: 0.0001222 | IT11: 4.65e-05 | IU11: 3.89e-05 | IV11: 0.0001042 | IW11: 7.92e-05 | IX11: 7.46e-05 | IY11: 8.39e-05 | IZ11: 0.0001582 | JA11: 5.09e-05 | JB11: 8.12e-05 | JC11: 8.34e-05 | JD11: 6.97e-05 | JE11: 6.94e-05 | JF11: 0.0001021 | JG11: 8.08e-05 | JH11: 8.26e-05 | JI11: 8.94e-05 | JJ11: 0.0003101 | JK11: 9.98e-05 | JL11: 0.0001585 | JM11: 4.15e-05 | JN11: 2.91e-05 | JO11: 4.03e-05 | JP11: 3.73e-05 | JQ11: 4.57e-05 | JR11: 1.83e-05 | JS11: 4.72e-05 | JT11: 3.7e-06 | JU11: 0.000145 | JV11: 0.0007757 | JW11: 0 | JX11: 3.08e-05 | JY11: 4.78e-05 | JZ11: 3.79e-05 | KA11: 3.48e-05 | KB11: 3.46e-05 | KC11: 4.97e-05 | KD11: 5.1e-05 | KE11: 5.17e-05 | KF11: 4.07e-05 | KG11: 0.0001135 | KH11: 5.06e-05 | KI11: 0.0002135 | KJ11: 2.9e-05 | KK11: 3.19e-05 | KL11: 3.43e-05 | KM11: 3.59e-05 | KN11: 4.35e-05 | KO11: 3.04e-05 | KP11: 3.78e-05 | KQ11: 4.7e-05 | KR11: 5.23e-05 | KS11: 5.1e-05 | KT11: 3.08e-05 | KU11: 4.66e-05 | KV11: 4.03e-05 | KW11: 0.0001083 | KX11: 3.64e-05 | KY11: 2.22e-05 | KZ11: 4.31e-05 | LA11: 3.59e-05 | LB11: 9.41e-05 | LC11: 4.72e-05 | LD11: 5.92e-05 | LE11: 7.44e-05 | LF11: 8.53e-05 | LG11: 0.0001147 | LH11: 7.25e-05 | LI11: 1.9e-06 | LJ11: 7.53e-05 | LK11: 5.27e-05 | LL11: 9.69e-05 | LM11: 1.8e-05 | LN11: 1.8e-06 | LO11: 0.0001225 | LP11: 7.99e-05 | LQ11: 0.0001221 | LR11: 0.0001006 | LS11: 4.76e-05 | LT11: 5.54e-05 | LU11: 3.75e-05 | LV11: 9.15e-05 | LW11: 0.0001158 | LX11: 5.01e-05 | LY11: 9.87e-05 | LZ11: 9.2e-05 | MA11: 7.32e-05 | MB11: 6.42e-05 | MC11: 5.83e-05 | MD11: 7.01e-05 | ME11: 9.35e-05 | MF11: 8.95e-05 | MG11: 6.24e-05 | MH11: 6.18e-05 | MI11: 5.62e-05 | MJ11: 4.59e-05 | MK11: 7.89e-05 | ML11: 7.23e-05 | MM11: 7.85e-05 | MN11: 0.0001373 | MO11: 9.76e-05 | MP11: 0.000142 | MQ11: 0.0002057 | MR11: 0.0011132 | MS11: 0.0006698 | MT11: 6.14e-05 | MU11: 9.63e-05 | MV11: 4.08e-05 | MW11: 6.47e-05 | MX11: 0.0004278 | MY11: 3.31e-05 | MZ11: 0.0005563 | NA11: 0.0002026 | NB11: 0.0010552 | NC11: 0.0023232 | ND11: 0.0027381 | NE11: 0.0009384 | NF11: 0.0006522 | NG11: 0.0243257 | NH11: 5.13e-05 | NI11: 0.0009742 | NJ11: 2.63e-05 | NK11: 9.15e-05 | NL11: 0.0001991 | NM11: 0.0021367 | NN11: 0.0001225 | NO11: 0.0043615 | NP11: 0.0008287 | NQ11: 0.0038449 | NR11: 0.0041498 | NS11: 0.0024675 | NT11: 2.61e-05 | NU11: 2.34e-05 | NV11: 2.99e-05 | NW11: 1.3e-05 | NX11: 5.67e-05 | NY11: 2.45e-05 | NZ11: 5.34e-05 | OA11: 4.1e-05 | OB11: 0.0001585 | OC11: 1.8e-05 | OD11: 0.0003342 | OE11: 0 | OF11: 0.0004014 | OG11: 4.26e-05 | OH11: 6.65e-05 | OI11: 0.0040773 | OJ11: 0.0002856 | OK11: 0.0026914 | OL11: 0.0010378 | OM11: 4.01e-05 | ON11: 0.0004448 | OO11: 0 | OP11: 0 | OQ11: 4.26e-05 | OR11: 4574 | OS11: 0 | OT11: 0 | OU11: 33476.85785 | OV11: 33477 | OW11: 0 | OX11: 4837 | OY11: 0 | OZ11: 1 | PA11: 9
A12: 112A00 | B12: Animal production, except cattle and poultry and eggs | C12: 0.0025999 | D12: 0.0056593 | E12: 0.0022341 | F12: 0.0032186 | G12: 0.001483 | H12: 0.0037926 | I12: 0.0068822 | J12: 0.010461 | K12: 0.0047926 | L12: 1.05545 | M12: 0.0121679 | N12: 0.0001516 | O12: 0.0222003 | P12: 1.68e-05 | Q12: 9e-05 | R12: 7.89e-05 | S12: 9.69e-05 | T12: 7.38e-05 | U12: 5.99e-05 | V12: 4.33e-05 | W12: 6.07e-05 | X12: 5.28e-05 | Y12: 4.23e-05 | Z12: 8.31e-05 | AA12: 0.0001425 | AB12: 0.0001671 | AC12: 0.000123 | AD12: 0.0001741 | AE12: 0.000105 | AF12: 0.0001186 | AG12: 0.0001756 | AH12: 5.38e-05 | AI12: 0.0001072 | AJ12: 5.95e-05 | AK12: 0.0001365 | AL12: 9.91e-05 | AM12: 0.0043576 | AN12: 0.0022895 | AO12: 0.0016315 | AP12: 0.001006 | AQ12: 0.0001054 | AR12: 7.87e-05 | AS12: 7.45e-05 | AT12: 0.0001118 | AU12: 0.0001069 | AV12: 0.0001199 | AW12: 0.0001934 | AX12: 0.000335 | AY12: 0.0002896 | AZ12: 5.99e-05 | BA12: 0.0001884 | BB12: 9.92e-05 | BC12: 0.0001498 | BD12: 0.0001171 | BE12: 0.0001515 | BF12: 0.0001241 | BG12: 6.66e-05 | BH12: 8.67e-05 | BI12: 9.1e-05 | BJ12: 0.0001072 | BK12: 9.59e-05 | BL12: 0.0001087 | BM12: 8.51e-05 | BN12: 8.98e-05 | BO12: 9.5e-05 | BP12: 0.0001002 | BQ12: 0.0001049 | BR12: 6e-05 | BS12: 8.96e-05 | BT12: 9.48e-05 | BU12: 0.0001192 | BV12: 0.0001177 | BW12: 7.42e-05 | BX12: 7.13e-05 | BY12: 8.7e-05 | BZ12: 8.16e-05 | CA12: 8.24e-05 | CB12: 4.3e-05 | CC12: 7.71e-05 | CD12: 7.46e-05 | CE12: 0.0001178 | CF12: 0.0001169 | CG12: 0.0001305 | CH12: 0.0001153 | CI12: 0.0001178 | CJ12: 9.16e-05 | CK12: 9.56e-05 | CL12: 6.97e-05 | CM12: 7.34e-05 | CN12: 0.0001839 | CO12: 0.0001128 | CP12: 8e-05 | CQ12: 0.0004597 | CR12: 8.06e-05 | CS12: 7.57e-05 | CT12: 7.88e-05 | CU12: 7.24e-05 | CV12: 7.24e-05 | CW12: 5.71e-05 | CX12: 7.51e-05 | CY12: 0.0001783 | CZ12: 8.33e-05 | DA12: 7.51e-05 | DB12: 0.0001001 | DC12: 7.45e-05 | DD12: 0.0002345 | DE12: 5.63e-05 | DF12: 0.0003903 | DG12: 8.1e-05 | DH12: 2.67e-05 | DI12: 2.73e-05 | DJ12: 2.98e-05 | DK12: 4.58e-05 | DL12: 4.04e-05 | DM12: 5.63e-05 | DN12: 3.75e-05 | DO12: 4.57e-05 | DP12: 4.96e-05 | DQ12: 7.69e-05 | DR12: 4.77e-05 | DS12: 6.57e-05 | DT12: 6.09e-05 | DU12: 5.4e-05 | DV12: 6.88e-05 | DW12: 6.2e-05 | DX12: 8.18e-05 | DY12: 5.66e-05 | DZ12: 9.56e-05 | EA12: 0.0001255 | EB12: 7.75e-05 | EC12: 7.88e-05 | ED12: 0.0001052 | EE12: 8.78e-05 | EF12: 9.43e-05 | EG12: 0.0001071 | EH12: 8.01e-05 | EI12: 7.86e-05 | EJ12: 7.89e-05 | EK12: 6.26e-05 | EL12: 8.11e-05 | EM12: 5.01e-05 | EN12: 4.74e-05 | EO12: 9.27e-05 | EP12: 6.65e-05 | EQ12: 8.86e-05 | ER12: 6.24e-05 | ES12: 0.0002791 | ET12: 0.0003027 | EU12: 0.000251 | EV12: 0.0001904 | EW12: 0.0001863 | EX12: 0.0002043 | EY12: 0.0002514 | EZ12: 0.0001026 | FA12: 7.42e-05 | FB12: 9.56e-05 | FC12: 0.0018973 | FD12: 0.000109 | FE12: 0.0001363 | FF12: 0.0001201 | FG12: 4.24e-05 | FH12: 3.11e-05 | FI12: 4.36e-05 | FJ12: 3.73e-05 | FK12: 4.29e-05 | FL12: 0.0001999 | FM12: 0.0001082 | FN12: 0.0002827 | FO12: 0.0001148 | FP12: 0.000123 | FQ12: 0.0001609 | FR12: 0.0006498 | FS12: 0.0020363 | FT12: 0.0009679 | FU12: 0.0004159 | FV12: 0.0005475 | FW12: 0.0003142 | FX12: 0.0004945 | FY12: 0.0008655 | FZ12: 0.0001938 | GA12: 0.0003692 | GB12: 9.65e-05 | GC12: 0.0001289 | GD12: 5.32e-05 | GE12: 6.32e-05 | GF12: 0.0006356 | GG12: 0.0008906 | GH12: 0.000397 | GI12: 0.0002439 | GJ12: 0.0006758 | GK12: 0.0224752 | GL12: 0.0090941 | GM12: 0.0034165 | GN12: 0.0019999 | GO12: 0.005545 | GP12: 0.0021831 | GQ12: 0.0021454 | GR12: 0.0015906 | GS12: 0.0111575 | GT12: 0.009601 | GU12: 0.0043309 | GV12: 0.003758 | GW12: 0.0040534 | GX12: 0.002262 | GY12: 0.0133272 | GZ12: 0.181442 | HA12: 0.0868741 | HB12: 0.0019565 | HC12: 0.0022754 | HD12: 0.0024587 | HE12: 0.00109 | HF12: 0.0011317 | HG12: 0.0091317 | HH12: 0.0229509 | HI12: 0.0006553 | HJ12: 0.0004007 | HK12: 0.0003966 | HL12: 0.0001445 | HM12: 0.0002266 | HN12: 0.0133454 | HO12: 0.0115829 | HP12: 0.0043921 | HQ12: 0.0037725 | HR12: 0.0046405 | HS12: 0.0056962 | HT12: 0.002839 | HU12: 0.0188785 | HV12: 0.0011872 | HW12: 0.0009257 | HX12: 0.0010464 | HY12: 0.000524 | HZ12: 0.0004516 | IA12: 0.000505 | IB12: 0.0009371 | IC12: 0.0004664 | ID12: 0.0002838 | IE12: 0.000291 | IF12: 2.08e-05 | IG12: 8.66e-05 | IH12: 4.27e-05 | II12: 0.0002123 | IJ12: 0.0001148 | IK12: 0.0001715 | IL12: 9.73e-05 | IM12: 9.12e-05 | IN12: 0.0005802 | IO12: 0.0002555 | IP12: 0.0022904 | IQ12: 0.0006414 | IR12: 0.0015177 | IS12: 0.0008747 | IT12: 0.0003739 | IU12: 5.8e-05 | IV12: 0.0002958 | IW12: 0.0001899 | IX12: 0.0002681 | IY12: 0.0003287 | IZ12: 0.0008697 | JA12: 9.67e-05 | JB12: 0.0001599 | JC12: 0.000182 | JD12: 0.0001525 | JE12: 0.0001842 | JF12: 0.0003838 | JG12: 0.0002324 | JH12: 0.0001832 | JI12: 0.0002211 | JJ12: 0.0018812 | JK12: 0.0010427 | JL12: 0.0007551 | JM12: 5.41e-05 | JN12: 3.72e-05 | JO12: 5.2e-05 | JP12: 4.55e-05 | JQ12: 6.82e-05 | JR12: 2.52e-05 | JS12: 7.02e-05 | JT12: 7.4e-06 | JU12: 7.7e-05 | JV12: 0.0001549 | JW12: 0 | JX12: 3.96e-05 | JY12: 6.66e-05 | JZ12: 0.000103 | KA12: 4.25e-05 | KB12: 4.48e-05 | KC12: 5.93e-05 | KD12: 0.0001323 | KE12: 5.7e-05 | KF12: 6.39e-05 | KG12: 9.06e-05 | KH12: 0.0001316 | KI12: 0.0001807 | KJ12: 7.48e-05 | KK12: 5.42e-05 | KL12: 6e-05 | KM12: 0.0004293 | KN12: 8.2e-05 | KO12: 4e-05 | KP12: 8.93e-05 | KQ12: 7.55e-05 | KR12: 8.85e-05 | KS12: 9.77e-05 | KT12: 3.67e-05 | KU12: 7.03e-05 | KV12: 5.69e-05 | KW12: 0.0001088 | KX12: 4.57e-05 | KY12: 3.63e-05 | KZ12: 7.89e-05 | LA12: 4.6e-05 | LB12: 0.000118 | LC12: 7.33e-05 | LD12: 0.0001519 | LE12: 7.88e-05 | LF12: 8.96e-05 | LG12: 0.0001221 | LH12: 7.78e-05 | LI12: 2.3e-06 | LJ12: 7.85e-05 | LK12: 5.68e-05 | LL12: 0.0001019 | LM12: 2.5e-05 | LN12: 4e-06 | LO12: 0.0001388 | LP12: 8.66e-05 | LQ12: 7.17e-05 | LR12: 8.32e-05 | LS12: 5.26e-05 | LT12: 5.67e-05 | LU12: 3.94e-05 | LV12: 9.28e-05 | LW12: 0.0001142 | LX12: 4.85e-05 | LY12: 0.00011 | LZ12: 8.62e-05 | MA12: 8.16e-05 | MB12: 0.0004164 | MC12: 9.37e-05 | MD12: 9.8e-05 | ME12: 0.0001065 | MF12: 0.0006633 | MG12: 6.05e-05 | MH12: 9.96e-05 | MI12: 5.69e-05 | MJ12: 8.32e-05 | MK12: 7.14e-05 | ML12: 9.37e-05 | MM12: 8.85e-05 | MN12: 0.0001242 | MO12: 0.0001534 | MP12: 0.0001396 | MQ12: 0.0002617 | MR12: 0.0009786 | MS12: 0.0017841 | MT12: 9.87e-05 | MU12: 0.0001493 | MV12: 6.09e-05 | MW12: 7.5e-05 | MX12: 0.0004195 | MY12: 5.92e-05 | MZ12: 0.0007213 | NA12: 0.0003289 | NB12: 0.0013059 | NC12: 0.0017684 | ND12: 0.0029626 | NE12: 0.001648 | NF12: 0.0013062 | NG12: 0.0055596 | NH12: 7.42e-05 | NI12: 0.0008794 | NJ12: 3.27e-05 | NK12: 0.0001231 | NL12: 0.0003096 | NM12: 0.0050331 | NN12: 0.0005592 | NO12: 0.0052659 | NP12: 0.0010606 | NQ12: 0.0032362 | NR12: 0.0044399 | NS12: 0.0010336 | NT12: 4.28e-05 | NU12: 3.25e-05 | NV12: 4.35e-05 | NW12: 4.84e-05 | NX12: 0.0001028 | NY12: 5.5e-05 | NZ12: 0.0002464 | OA12: 6.55e-05 | OB12: 0.000405 | OC12: 2.37e-05 | OD12: 0.0004104 | OE12: 0 | OF12: 0.0005531 | OG12: 5.06e-05 | OH12: 8.15e-05 | OI12: 0.0043542 | OJ12: 0.0009572 | OK12: 0.003199 | OL12: 0.001196 | OM12: 7.34e-05 | ON12: 0.000559 | OO12: 0 | OP12: 0 | OQ12: 5.06e-05 | OR12: 2804 | OS12: 0 | OT12: 0 | OU12: 23413.28432 | OV12: 23413 | OW12: 0 | OX12: 17390 | OY12: 0 | OZ12: 1 | PA12: 10
A13: 113000 | B13: Forestry and logging | C13: 0.0014566 | D13: 0.0022063 | E13: 0.0021117 | F13: 0.0015592 | G13: 0.003843 | H13: 0.0012796 | I13: 0.001545 | J13: 0.0007254 | K13: 0.0014492 | L13: 0.0004466 | M13: 1.14507 | N13: 0.0011399 | O13: 0.0007828 | P13: 0.0002073 | Q13: 0.0042862 | R13: 0.0023842 | S13: 0.0028566 | T13: 0.0010887 | U13: 0.0009702 | V13: 0.0007431 | W13: 0.0006407 | X13: 0.0006758 | Y13: 0.0005188 | Z13: 0.0019837 | AA13: 0.0090163 | AB13: 0.0113547 | AC13: 0.0068996 | AD13: 0.0091723 | AE13: 0.0062954 | AF13: 0.0072126 | AG13: 0.0098076 | AH13: 0.0022149 | AI13: 0.0069397 | AJ13: 0.0034154 | AK13: 0.0085727 | AL13: 0.0058874 | AM13: 0.4055 | AN13: 0.205643 | AO13: 0.144515 | AP13: 0.076022 | AQ13: 0.0040256 | AR13: 0.0021645 | AS13: 0.0020125 | AT13: 0.0017583 | AU13: 0.0027288 | AV13: 0.0034541 | AW13: 0.0078148 | AX13: 0.0027568 | AY13: 0.0028494 | AZ13: 0.0010692 | BA13: 0.0035294 | BB13: 0.0030978 | BC13: 0.0019926 | BD13: 0.0017816 | BE13: 0.0022646 | BF13: 0.0019296 | BG13: 0.0017605 | BH13: 0.0017544 | BI13: 0.0024079 | BJ13: 0.001459 | BK13: 0.0020136 | BL13: 0.0015574 | BM13: 0.0012946 | BN13: 0.001491 | BO13: 0.0024069 | BP13: 0.0016081 | BQ13: 0.0020021 | BR13: 0.001067 | BS13: 0.0013295 | BT13: 0.0017376 | BU13: 0.0017646 | BV13: 0.0020446 | BW13: 0.0009895 | BX13: 0.0010619 | BY13: 0.0012905 | BZ13: 0.0024256 | CA13: 0.0015127 | CB13: 0.0006732 | CC13: 0.0011683 | CD13: 0.0036554 | CE13: 0.0025632 | CF13: 0.0036862 | CG13: 0.0042172 | CH13: 0.0028175 | CI13: 0.0020978 | CJ13: 0.0015149 | CK13: 0.0017168 | CL13: 0.0010162 | CM13: 0.0018518 | CN13: 0.0015003 | CO13: 0.0024368 | CP13: 0.0015682 | CQ13: 0.0016418 | CR13: 0.0015951 | CS13: 0.0012237 | CT13: 0.0013126 | CU13: 0.0011684 | CV13: 0.0015987 | CW13: 0.0011003 | CX13: 0.0012962 | CY13: 0.009711 | CZ13: 0.0016952 | DA13: 0.0014728 | DB13: 0.0021315 | DC13: 0.0016817 | DD13: 0.0009899 | DE13: 0.0007679 | DF13: 0.0022569 | DG13: 0.001437 | DH13: 0.00054 | DI13: 0.0006185 | DJ13: 0.0008091 | DK13: 0.0009593 | DL13: 0.0005601 | DM13: 0.0012177 | DN13: 0.0008041 | DO13: 0.0013774 | DP13: 0.0014148 | DQ13: 0.0011709 | DR13: 0.0007576 | DS13: 0.0012041 | DT13: 0.0010868 | DU13: 0.0011326 | DV13: 0.0008213 | DW13: 0.0010491 | DX13: 0.0014589 | DY13: 0.000905 | DZ13: 0.0032106 | EA13: 0.0048696 | EB13: 0.0024267 | EC13: 0.0018407 | ED13: 0.0028311 | EE13: 0.0020902 | EF13: 0.0020921 | EG13: 0.0019904 | EH13: 0.0018959 | EI13: 0.0018766 | EJ13: 0.0018569 | EK13: 0.0011914 | EL13: 0.0014916 | EM13: 0.0011192 | EN13: 0.0010725 | EO13: 0.0026683 | EP13: 0.0012685 | EQ13: 0.0012657 | ER13: 0.0009766 | ES13: 0.0038536 | ET13: 0.0045819 | EU13: 0.0057662 | EV13: 0.0072047 | EW13: 0.0095711 | EX13: 0.0077886 | EY13: 0.0130707 | EZ13: 0.0021976 | FA13: 0.0014486 | FB13: 0.0017319 | FC13: 0.0133148 | FD13: 0.0020695 | FE13: 0.0048513 | FF13: 0.0038386 | FG13: 0.0006335 | FH13: 0.0006055 | FI13: 0.0008757 | FJ13: 0.0005585 | FK13: 0.0008631 | FL13: 0.002177 | FM13: 0.0023298 | FN13: 0.0045499 | FO13: 0.0039395 | FP13: 0.0051714 | FQ13: 0.0057436 | FR13: 0.0521809 | FS13: 0.014614 | FT13: 0.0618449 | FU13: 0.0198187 | FV13: 0.0200621 | FW13: 0.0161032 | FX13: 0.0288383 | FY13: 0.0060879 | FZ13: 0.001675 | GA13: 0.0031347 | GB13: 0.001665 | GC13: 0.001154 | GD13: 0.0006559 | GE13: 0.0011705 | GF13: 0.0180147 | GG13: 0.0134866 | GH13: 0.0278874 | GI13: 0.0085632 | GJ13: 0.0099516 | GK13: 0.0021389 | GL13: 0.0018569 | GM13: 0.0023433 | GN13: 0.0020479 | GO13: 0.0021471 | GP13: 0.0017339 | GQ13: 0.0037451 | GR13: 0.0054231 | GS13: 0.0023953 | GT13: 0.0034006 | GU13: 0.0019592 | GV13: 0.0021824 | GW13: 0.0022569 | GX13: 0.0048543 | GY13: 0.0019095 | GZ13: 0.0009891 | HA13: 0.0014746 | HB13: 0.0023137 | HC13: 0.0031962 | HD13: 0.002804 | HE13: 0.0018902 | HF13: 0.0107774 | HG13: 0.0044511 | HH13: 0.0042942 | HI13: 0.0054631 | HJ13: 0.002221 | HK13: 0.0016765 | HL13: 0.0018394 | HM13: 0.0024318 | HN13: 0.0022533 | HO13: 0.0025858 | HP13: 0.0023661 | HQ13: 0.0024244 | HR13: 0.0042203 | HS13: 0.0033429 | HT13: 0.0062316 | HU13: 0.0034673 | HV13: 0.100499 | HW13: 0.0600216 | HX13: 0.08808 | HY13: 0.0360304 | HZ13: 0.0182039 | IA13: 0.032709 | IB13: 0.0355971 | IC13: 0.0246034 | ID13: 0.0066912 | IE13: 0.0104126 | IF13: 0.0002887 | IG13: 0.0007166 | IH13: 0.0012453 | II13: 0.0009281 | IJ13: 0.0010704 | IK13: 0.0027344 | IL13: 0.0015781 | IM13: 0.0012314 | IN13: 0.00459 | IO13: 0.0024617 | IP13: 0.0039988 | IQ13: 0.0012271 | IR13: 0.0010387 | IS13: 0.0010435 | IT13: 0.0003163 | IU13: 0.0008871 | IV13: 0.0128455 | IW13: 0.0044654 | IX13: 0.0041621 | IY13: 0.0026423 | IZ13: 0.0026287 | JA13: 0.0019468 | JB13: 0.0029844 | JC13: 0.0031576 | JD13: 0.0022891 | JE13: 0.006168 | JF13: 0.0036107 | JG13: 0.0030075 | JH13: 0.0027814 | JI13: 0.0073784 | JJ13: 0.0977682 | JK13: 0.0150983 | JL13: 0.0378274 | JM13: 0.0006203 | JN13: 0.000365 | JO13: 0.0004987 | JP13: 0.0004886 | JQ13: 0.0009544 | JR13: 0.0003163 | JS13: 0.0009365 | JT13: 0.000128 | JU13: 0.0006711 | JV13: 0.0008805 | JW13: 0 | JX13: 0.0004576 | JY13: 0.0008172 | JZ13: 0.0004735 | KA13: 0.000447 | KB13: 0.0005805 | KC13: 0.0005658 | KD13: 0.0010232 | KE13: 0.0007851 | KF13: 0.0006483 | KG13: 0.0003075 | KH13: 0.0091592 | KI13: 0.0005533 | KJ13: 0.0007148 | KK13: 0.0010128 | KL13: 0.0011439 | KM13: 0.0013782 | KN13: 0.0010077 | KO13: 0.000657 | KP13: 0.003368 | KQ13: 0.0013828 | KR13: 0.0020975 | KS13: 0.0023955 | KT13: 0.0004089 | KU13: 0.0007119 | KV13: 0.0013513 | KW13: 0.0008585 | KX13: 0.0004895 | KY13: 0.0005015 | KZ13: 0.0013518 | LA13: 0.0004222 | LB13: 0.0026769 | LC13: 0.0013272 | LD13: 0.0003759 | LE13: 0.0004514 | LF13: 0.0006087 | LG13: 0.0005096 | LH13: 0.0004539 | LI13: 2.4e-05 | LJ13: 0.0002285 | LK13: 0.0003501 | LL13: 0.0004265 | LM13: 0.000659 | LN13: 0.0001718 | LO13: 0.0016998 | LP13: 0.000531 | LQ13: 0.0007805 | LR13: 0.0008155 | LS13: 0.0004438 | LT13: 0.0003532 | LU13: 0.0002153 | LV13: 0.0003934 | LW13: 0.0004724 | LX13: 0.000274 | LY13: 0.0008904 | LZ13: 0.0005426 | MA13: 0.000552 | MB13: 0.0005087 | MC13: 0.0019034 | MD13: 0.0026178 | ME13: 0.0011148 | MF13: 0.000466 | MG13: 0.0007228 | MH13: 0.0005225 | MI13: 0.0002506 | MJ13: 0.0012053 | MK13: 0.0003687 | ML13: 0.0026391 | MM13: 0.000764 | MN13: 0.000692 | MO13: 0.0004809 | MP13: 0.0010464 | MQ13: 0.0010255 | MR13: 0.0007594 | MS13: 0.0007084 | MT13: 0.0010608 | MU13: 0.0004981 | MV13: 0.0006401 | MW13: 0.0005166 | MX13: 0.000916 | MY13: 0.0005037 | MZ13: 0.0007636 | NA13: 0.0019493 | NB13: 0.000817 | NC13: 0.0007662 | ND13: 0.0009077 | NE13: 0.0013056 | NF13: 0.001634 | NG13: 0.0063518 | NH13: 0.0007047 | NI13: 0.0006584 | NJ13: 0.0003905 | NK13: 0.0006259 | NL13: 0.0010903 | NM13: 0.0008893 | NN13: 0.0009584 | NO13: 0.0015239 | NP13: 0.001023 | NQ13: 0.0011696 | NR13: 0.0011576 | NS13: 0.0005989 | NT13: 0.000837 | NU13: 0.0004 | NV13: 0.0005665 | NW13: 0.000535 | NX13: 0.0006587 | NY13: 0.0007952 | NZ13: 0.0006734 | OA13: 0.0006628 | OB13: 0.0016607 | OC13: 0.0003338 | OD13: 0.0009351 | OE13: 0 | OF13: 0.0006328 | OG13: 0.0006727 | OH13: 0.0003226 | OI13: 0.0008161 | OJ13: 0.0009446 | OK13: 0.0013803 | OL13: 0.0009874 | OM13: 0.002305 | ON13: 0.0033864 | OO13: 0 | OP13: 0 | OQ13: 0.0006727 | OR13: -1715 | OS13: 0 | OT13: 0 | OU13: 20182.76564 | OV13: 20182 | OW13: 0 | OX13: 10676 | OY13: 0 | OZ13: 1 | PA13: 11
A14: 114000 | B14: Fishing, hunting and trapping | C14: 0.0001618 | D14: 0.0003932 | E14: 0.0001636 | F14: 0.0001312 | G14: 0.0001082 | H14: 0.0001506 | I14: 0.0022753 | J14: 0.0011586 | K14: 0.0053118 | L14: 0.000831 | M14: 0.0001824 | N14: 0.968672 | O14: 0.0004763 | P14: 1.48e-05 | Q14: 6.05e-05 | R14: 4.22e-05 | S14: 4.26e-05 | T14: 5.08e-05 | U14: 4.78e-05 | V14: 3.92e-05 | W14: 6.76e-05 | X14: 6.71e-05 | Y14: 5.04e-05 | Z14: 6.09e-05 | AA14: 3.99e-05 | AB14: 4.09e-05 | AC14: 4.37e-05 | AD14: 3.74e-05 | AE14: 3.28e-05 | AF14: 4.1e-05 | AG14: 5.53e-05 | AH14: 2.34e-05 | AI14: 3.41e-05 | AJ14: 2.35e-05 | AK14: 4.01e-05 | AL14: 3.55e-05 | AM14: 0.0001145 | AN14: 9.63e-05 | AO14: 9.23e-05 | AP14: 8.33e-05 | AQ14: 4.02e-05 | AR14: 5.6e-05 | AS14: 5.76e-05 | AT14: 8.3e-05 | AU14: 6.13e-05 | AV14: 9.57e-05 | AW14: 5.57e-05 | AX14: 3.12e-05 | AY14: 7.73e-05 | AZ14: 5.9e-05 | BA14: 5.67e-05 | BB14: 6.75e-05 | BC14: 9.85e-05 | BD14: 8.01e-05 | BE14: 0.0001074 | BF14: 9.51e-05 | BG14: 3.93e-05 | BH14: 5.58e-05 | BI14: 5.59e-05 | BJ14: 8.18e-05 | BK14: 7.24e-05 | BL14: 8.09e-05 | BM14: 7.16e-05 | BN14: 7.26e-05 | BO14: 6.3e-05 | BP14: 8.5e-05 | BQ14: 8.19e-05 | BR14: 4.57e-05 | BS14: 7.42e-05 | BT14: 6.93e-05 | BU14: 8.98e-05 | BV14: 7.29e-05 | BW14: 7.28e-05 | BX14: 6.53e-05 | BY14: 7e-05 | BZ14: 4.73e-05 | CA14: 5.27e-05 | CB14: 3.71e-05 | CC14: 6.41e-05 | CD14: 2.92e-05 | CE14: 8.06e-05 | CF14: 5.36e-05 | CG14: 5.64e-05 | CH14: 5.7e-05 | CI14: 9.51e-05 | CJ14: 7.69e-05 | CK14: 7.74e-05 | CL14: 5.79e-05 | CM14: 4.03e-05 | CN14: 5.71e-05 | CO14: 8.5e-05 | CP14: 5.18e-05 | CQ14: 4.84e-05 | CR14: 5.89e-05 | CS14: 6.99e-05 | CT14: 7.05e-05 | CU14: 6.23e-05 | CV14: 3.53e-05 | CW14: 4.93e-05 | CX14: 7e-05 | CY14: 6.21e-05 | CZ14: 5.83e-05 | DA14: 5.49e-05 | DB14: 6.07e-05 | DC14: 5.39e-05 | DD14: 5.95e-05 | DE14: 4.82e-05 | DF14: 6.52e-05 | DG14: 5.6e-05 | DH14: 2.07e-05 | DI14: 1.97e-05 | DJ14: 1.84e-05 | DK14: 3.92e-05 | DL14: 4.32e-05 | DM14: 4.07e-05 | DN14: 2.77e-05 | DO14: 2.74e-05 | DP14: 3.28e-05 | DQ14: 4.63e-05 | DR14: 3.14e-05 | DS14: 6.46e-05 | DT14: 5.52e-05 | DU14: 3.92e-05 | DV14: 8.39e-05 | DW14: 5.44e-05 | DX14: 5.46e-05 | DY14: 4.92e-05 | DZ14: 7.28e-05 | EA14: 5.75e-05 | EB14: 5.59e-05 | EC14: 5.4e-05 | ED14: 4.84e-05 | EE14: 4.91e-05 | EF14: 4.83e-05 | EG14: 5.53e-05 | EH14: 4.37e-05 | EI14: 4.55e-05 | EJ14: 4.33e-05 | EK14: 4.23e-05 | EL14: 3.23e-05 | EM14: 3.54e-05 | EN14: 3.48e-05 | EO14: 5.05e-05 | EP14: 4.08e-05 | EQ14: 3.9e-05 | ER14: 6.39e-05 | ES14: 5.47e-05 | ET14: 5.32e-05 | EU14: 5.44e-05 | EV14: 5.47e-05 | EW14: 6.36e-05 | EX14: 5.24e-05 | EY14: 7.23e-05 | EZ14: 5.39e-05 | FA14: 4.97e-05 | FB14: 6.04e-05 | FC14: 8.56e-05 | FD14: 8.06e-05 | FE14: 5.77e-05 | FF14: 6.33e-05 | FG14: 2.27e-05 | FH14: 2.1e-05 | FI14: 3.12e-05 | FJ14: 2.91e-05 | FK14: 2.69e-05 | FL14: 9.34e-05 | FM14: 7.85e-05 | FN14: 7.01e-05 | FO14: 6.41e-05 | FP14: 5.35e-05 | FQ14: 5.37e-05 | FR14: 0.0001024 | FS14: 6.32e-05 | FT14: 7.29e-05 | FU14: 8.64e-05 | FV14: 8.78e-05 | FW14: 7.32e-05 | FX14: 6.84e-05 | FY14: 5.63e-05 | FZ14: 4.62e-05 | GA14: 9.34e-05 | GB14: 6.48e-05 | GC14: 3.25e-05 | GD14: 5.63e-05 | GE14: 5.48e-05 | GF14: 9.66e-05 | GG14: 5.98e-05 | GH14: 6.45e-05 | GI14: 7.1e-05 | GJ14: 7.58e-05 | GK14: 0.003878 | GL14: 0.014371 | GM14: 0.0003851 | GN14: 0.0001723 | GO14: 0.0002242 | GP14: 0.0001521 | GQ14: 0.0009961 | GR14: 0.0004381 | GS14: 0.0087455 | GT14: 0.0206852 | GU14: 0.0017782 | GV14: 0.002318 | GW14: 0.0013949 | GX14: 0.0008352 | GY14: 0.0085553 | GZ14: 0.0040034 | HA14: 0.444962 | HB14: 0.0005492 | HC14: 0.0005057 | HD14: 0.000352 | HE14: 0.0001118 | HF14: 0.0007188 | HG14: 0.0037767 | HH14: 0.0010574 | HI14: 0.0006543 | HJ14: 6.19e-05 | HK14: 6.79e-05 | HL14: 4.02e-05 | HM14: 1.89e-05 | HN14: 9.24e-05 | HO14: 7.15e-05 | HP14: 7.2e-05 | HQ14: 5.97e-05 | HR14: 6.54e-05 | HS14: 7.49e-05 | HT14: 7.72e-05 | HU14: 0.0004654 | HV14: 6.64e-05 | HW14: 6.21e-05 | HX14: 7.12e-05 | HY14: 7.63e-05 | HZ14: 6.03e-05 | IA14: 7.43e-05 | IB14: 5.42e-05 | IC14: 6.24e-05 | ID14: 8.51e-05 | IE14: 6.56e-05 | IF14: 1.7e-05 | IG14: 3.61e-05 | IH14: 2.99e-05 | II14: 2.9e-05 | IJ14: 3.22e-05 | IK14: 5.74e-05 | IL14: 4.45e-05 | IM14: 7.53e-05 | IN14: 8.76e-05 | IO14: 5.87e-05 | IP14: 5.91e-05 | IQ14: 7.43e-05 | IR14: 8.27e-05 | IS14: 8.4e-05 | IT14: 2.44e-05 | IU14: 0.0019437 | IV14: 4.8e-05 | IW14: 5.29e-05 | IX14: 5.63e-05 | IY14: 4.79e-05 | IZ14: 5.53e-05 | JA14: 4.55e-05 | JB14: 7.12e-05 | JC14: 7.2e-05 | JD14: 5.45e-05 | JE14: 5.16e-05 | JF14: 0.0001077 | JG14: 7.13e-05 | JH14: 6.35e-05 | JI14: 7.35e-05 | JJ14: 6.57e-05 | JK14: 6.6e-05 | JL14: 6.95e-05 | JM14: 5.96e-05 | JN14: 3.8e-05 | JO14: 5.36e-05 | JP14: 4.94e-05 | JQ14: 5.89e-05 | JR14: 2.09e-05 | JS14: 5.87e-05 | JT14: 4.5e-06 | JU14: 7.08e-05 | JV14: 9.3e-05 | JW14: 0 | JX14: 3.78e-05 | JY14: 0.003085 | JZ14: 4.18e-05 | KA14: 4.54e-05 | KB14: 4.95e-05 | KC14: 5.89e-05 | KD14: 7.27e-05 | KE14: 4.67e-05 | KF14: 5.2e-05 | KG14: 7.52e-05 | KH14: 3.98e-05 | KI14: 0.0001654 | KJ14: 4.51e-05 | KK14: 4.73e-05 | KL14: 4.97e-05 | KM14: 8.23e-05 | KN14: 4.34e-05 | KO14: 4.35e-05 | KP14: 4.39e-05 | KQ14: 6.53e-05 | KR14: 7.08e-05 | KS14: 6.87e-05 | KT14: 4.86e-05 | KU14: 6.23e-05 | KV14: 6.09e-05 | KW14: 3.6e-05 | KX14: 2.69e-05 | KY14: 3.1e-05 | KZ14: 6.32e-05 | LA14: 5.97e-05 | LB14: 0.0001602 | LC14: 6.99e-05 | LD14: 0.0001023 | LE14: 0.0001262 | LF14: 0.0001505 | LG14: 0.0001845 | LH14: 0.0001204 | LI14: 2.9e-06 | LJ14: 0.0001199 | LK14: 9.24e-05 | LL14: 0.0001606 | LM14: 2.92e-05 | LN14: 2e-06 | LO14: 0.0002104 | LP14: 0.0001292 | LQ14: 8.73e-05 | LR14: 0.0001092 | LS14: 7.61e-05 | LT14: 9.11e-05 | LU14: 6.49e-05 | LV14: 0.0001561 | LW14: 0.0001948 | LX14: 7.79e-05 | LY14: 0.0001646 | LZ14: 0.0001304 | MA14: 0.0001066 | MB14: 9.5e-05 | MC14: 5.56e-05 | MD14: 9.38e-05 | ME14: 0.0001457 | MF14: 0.000111 | MG14: 7.88e-05 | MH14: 8.67e-05 | MI14: 9.51e-05 | MJ14: 6.46e-05 | MK14: 9.89e-05 | ML14: 9.69e-05 | MM14: 0.0001083 | MN14: 0.0001782 | MO14: 0.0001248 | MP14: 0.0001455 | MQ14: 0.0001957 | MR14: 0.0023721 | MS14: 0.0012087 | MT14: 9.92e-05 | MU14: 0.0001391 | MV14: 6.44e-05 | MW14: 7.19e-05 | MX14: 0.0003808 | MY14: 4.67e-05 | MZ14: 0.0005713 | NA14: 0.0002123 | NB14: 0.0011223 | NC14: 0.0008743 | ND14: 0.0019607 | NE14: 0.0002837 | NF14: 0.0002222 | NG14: 0.0016486 | NH14: 7.22e-05 | NI14: 0.0001125 | NJ14: 2.6e-05 | NK14: 9.26e-05 | NL14: 0.0003919 | NM14: 0.0026446 | NN14: 0.0004191 | NO14: 0.0028439 | NP14: 0.0023796 | NQ14: 0.0085681 | NR14: 0.0053304 | NS14: 0.0012598 | NT14: 3.65e-05 | NU14: 3.54e-05 | NV14: 4.22e-05 | NW14: 1.55e-05 | NX14: 6.92e-05 | NY14: 3.27e-05 | NZ14: 8.12e-05 | OA14: 5.6e-05 | OB14: 0.0007478 | OC14: 2.73e-05 | OD14: 0.000871 | OE14: 0 | OF14: 0.0001513 | OG14: 4.7e-05 | OH14: 0.0001007 | OI14: 0.0047789 | OJ14: 0.0005335 | OK14: 0.0026876 | OL14: 0.0007333 | OM14: 5.41e-05 | ON14: 0.0003774 | OO14: 0 | OP14: 0 | OQ14: 4.7e-05 | OR14: -2905 | OS14: 0 | OT14: 0 | OU14: 6940.019424 | OV14: 6940 | OW14: 0 | OX14: 4817 | OY14: 0 | OZ14: 1 | PA14: 12
A15: 115000 | B15: Support activities for agriculture and forestry | C15: 0.0676011 | D15: 0.118455 | E15: 0.0757826 | F15: 0.100582 | G15: 0.0401465 | H15: 0.0808283 | I15: 0.0351427 | J15: 0.0293078 | K15: 0.0399711 | L15: 0.0159358 | M15: 0.154934 | N15: 0.0014324 | O15: 0.829046 | P15: 6.92e-05 | Q15: 0.0006922 | R15: 0.0005206 | S15: 0.0007523 | T15: 0.0002627 | U15: 0.0003499 | V15: 0.0001814 | W15: 0.0002066 | X15: 0.0001453 | Y15: 0.0001167 | Z15: 0.0003977 | AA15: 0.0013874 | AB15: 0.0016676 | AC15: 0.0010942 | AD15: 0.0018536 | AE15: 0.000953 | AF15: 0.0010937 | AG15: 0.0016856 | AH15: 0.0003751 | AI15: 0.0010459 | AJ15: 0.0005437 | AK15: 0.0013451 | AL15: 0.0009056 | AM15: 0.0550067 | AN15: 0.0280932 | AO15: 0.0197301 | AP15: 0.0106074 | AQ15: 0.0006796 | AR15: 0.0004631 | AS15: 0.0003885 | AT15: 0.0008144 | AU15: 0.0005437 | AV15: 0.0006523 | AW15: 0.0024417 | AX15: 0.000606 | AY15: 0.0007325 | AZ15: 0.0002665 | BA15: 0.000827 | BB15: 0.000569 | BC15: 0.0005192 | BD15: 0.0004403 | BE15: 0.00058 | BF15: 0.0004823 | BG15: 0.0003813 | BH15: 0.0004245 | BI15: 0.0004944 | BJ15: 0.0003571 | BK15: 0.0004219 | BL15: 0.0003805 | BM15: 0.000299 | BN15: 0.0003692 | BO15: 0.0004663 | BP15: 0.0003728 | BQ15: 0.0005018 | BR15: 0.0002609 | BS15: 0.0003326 | BT15: 0.0004136 | BU15: 0.0004037 | BV15: 0.0004567 | BW15: 0.000245 | BX15: 0.0002405 | BY15: 0.0004382 | BZ15: 0.0004932 | CA15: 0.0003205 | CB15: 0.0001474 | CC15: 0.0002807 | CD15: 0.0006196 | CE15: 0.0005459 | CF15: 0.0006542 | CG15: 0.0007733 | CH15: 0.0005392 | CI15: 0.0004458 | CJ15: 0.0003315 | CK15: 0.000372 | CL15: 0.000275 | CM15: 0.0005123 | CN15: 0.0004246 | CO15: 0.0005602 | CP15: 0.0003816 | CQ15: 0.0005198 | CR15: 0.0004048 | CS15: 0.000276 | CT15: 0.0002971 | CU15: 0.000257 | CV15: 0.0003202 | CW15: 0.0002232 | CX15: 0.0002724 | CY15: 0.0014807 | CZ15: 0.0003726 | DA15: 0.0003207 | DB15: 0.0004412 | DC15: 0.0003651 | DD15: 0.0002931 | DE15: 0.0001801 | DF15: 0.0007258 | DG15: 0.0003157 | DH15: 0.0001378 | DI15: 0.0001466 | DJ15: 0.0001946 | DK15: 0.0002102 | DL15: 0.0001234 | DM15: 0.0002628 | DN15: 0.0002168 | DO15: 0.0002895 | DP15: 0.0003113 | DQ15: 0.0004132 | DR15: 0.0001913 | DS15: 0.0002835 | DT15: 0.0002505 | DU15: 0.0003043 | DV15: 0.0001852 | DW15: 0.0002503 | DX15: 0.0005045 | DY15: 0.0002046 | DZ15: 0.0005594 | EA15: 0.0010481 | EB15: 0.0004546 | EC15: 0.0004063 | ED15: 0.0007738 | EE15: 0.0004889 | EF15: 0.0006154 | EG15: 0.0005784 | EH15: 0.0004886 | EI15: 0.0004045 | EJ15: 0.0003824 | EK15: 0.000298 | EL15: 0.0003642 | EM15: 0.0002652 | EN15: 0.0002372 | EO15: 0.0006113 | EP15: 0.000434 | EQ15: 0.0004441 | ER15: 0.0002255 | ES15: 0.000749 | ET15: 0.0008799 | EU15: 0.0010099 | EV15: 0.0011322 | EW15: 0.0014802 | EX15: 0.0013307 | EY15: 0.0020883 | EZ15: 0.0004627 | FA15: 0.000402 | FB15: 0.0003838 | FC15: 0.002627 | FD15: 0.0004571 | FE15: 0.0008914 | FF15: 0.0007245 | FG15: 0.0001554 | FH15: 0.0001289 | FI15: 0.0002016 | FJ15: 0.0001627 | FK15: 0.0002461 | FL15: 0.000443 | FM15: 0.0004379 | FN15: 0.0009277 | FO15: 0.0006523 | FP15: 0.00094 | FQ15: 0.0010818 | FR15: 0.0072633 | FS15: 0.0029599 | FT15: 0.008704 | FU15: 0.0030098 | FV15: 0.0031294 | FW15: 0.0024379 | FX15: 0.0041268 | FY15: 0.0015405 | FZ15: 0.0005781 | GA15: 0.000817 | GB15: 0.0005327 | GC15: 0.0003828 | GD15: 0.0001869 | GE15: 0.0002526 | GF15: 0.0029106 | GG15: 0.0026948 | GH15: 0.0043545 | GI15: 0.001512 | GJ15: 0.0027814 | GK15: 0.0115837 | GL15: 0.0366995 | GM15: 0.0587853 | GN15: 0.0407584 | GO15: 0.0310544 | GP15: 0.0441396 | GQ15: 0.0131473 | GR15: 0.0152003 | GS15: 0.0198813 | GT15: 0.0110446 | GU15: 0.021066 | GV15: 0.0154985 | GW15: 0.020208 | GX15: 0.0133235 | GY15: 0.0206634 | GZ15: 0.0169076 | HA15: 0.0025458 | HB15: 0.0110783 | HC15: 0.0152174 | HD15: 0.0171954 | HE15: 0.0289864 | HF15: 0.0070799 | HG15: 0.01717 | HH15: 0.0217074 | HI15: 0.0041718 | HJ15: 0.0070949 | HK15: 0.0103506 | HL15: 0.002249 | HM15: 0.0030373 | HN15: 0.0199852 | HO15: 0.0052179 | HP15: 0.0033443 | HQ15: 0.0052021 | HR15: 0.0035441 | HS15: 0.0021032 | HT15: 0.0023279 | HU15: 0.0025346 | HV15: 0.0143713 | HW15: 0.0091491 | HX15: 0.0127139 | HY15: 0.0053861 | HZ15: 0.003215 | IA15: 0.004993 | IB15: 0.0056842 | IC15: 0.0039295 | ID15: 0.0016122 | IE15: 0.0016929 | IF15: 0.0001023 | IG15: 0.0004142 | IH15: 0.0002453 | II15: 0.0005619 | IJ15: 0.0016361 | IK15: 0.0024402 | IL15: 0.0009682 | IM15: 0.0009059 | IN15: 0.0091988 | IO15: 0.0033174 | IP15: 0.0059178 | IQ15: 0.0023054 | IR15: 0.0011372 | IS15: 0.0006654 | IT15: 0.0002338 | IU15: 0.0004394 | IV15: 0.0039091 | IW15: 0.0021571 | IX15: 0.0020809 | IY15: 0.0013531 | IZ15: 0.0015406 | JA15: 0.0009117 | JB15: 0.0016318 | JC15: 0.0018646 | JD15: 0.0016517 | JE15: 0.0017439 | JF15: 0.0019622 | JG15: 0.0018702 | JH15: 0.0021056 | JI15: 0.0019347 | JJ15: 0.0144428 | JK15: 0.0030133 | JL15: 0.0060566 | JM15: 0.0001362 | JN15: 8.23e-05 | JO15: 0.0001108 | JP15: 0.0001071 | JQ15: 0.0001934 | JR15: 7.06e-05 | JS15: 0.0001984 | JT15: 2.53e-05 | JU15: 0.0002074 | JV15: 0.0003622 | JW15: 0 | JX15: 0.0001861 | JY15: 0.000295 | JZ15: 0.0001406 | KA15: 9.85e-05 | KB15: 0.0001218 | KC15: 0.0002835 | KD15: 0.0002258 | KE15: 0.0001701 | KF15: 0.0001438 | KG15: 0.000118 | KH15: 0.0012857 | KI15: 0.0001949 | KJ15: 0.0001466 | KK15: 0.0002328 | KL15: 0.0002115 | KM15: 0.0002816 | KN15: 0.0002142 | KO15: 0.0001375 | KP15: 0.000565 | KQ15: 0.0003564 | KR15: 0.0003902 | KS15: 0.0004586 | KT15: 8.54e-05 | KU15: 0.0001658 | KV15: 0.0002342 | KW15: 0.0002093 | KX15: 0.0001255 | KY15: 0.0001065 | KZ15: 0.0002662 | LA15: 9.37e-05 | LB15: 0.0004245 | LC15: 0.0002799 | LD15: 0.0001088 | LE15: 0.000103 | LF15: 0.0001308 | LG15: 0.0001309 | LH15: 0.0001072 | LI15: 5.5e-06 | LJ15: 6.65e-05 | LK15: 8.48e-05 | LL15: 0.0001103 | LM15: 0.0001274 | LN15: 3.39e-05 | LO15: 0.000352 | LP15: 0.0001207 | LQ15: 0.000165 | LR15: 0.0001767 | LS15: 9.79e-05 | LT15: 8.35e-05 | LU15: 5.38e-05 | LV15: 0.0001067 | LW15: 0.0001248 | LX15: 6.96e-05 | LY15: 0.0002602 | LZ15: 0.0001383 | MA15: 0.0001435 | MB15: 0.0002783 | MC15: 0.0004148 | MD15: 0.0004785 | ME15: 0.0002697 | MF15: 0.0003415 | MG15: 0.0001515 | MH15: 0.0001459 | MI15: 6.31e-05 | MJ15: 0.0005143 | MK15: 0.0001184 | ML15: 0.0004743 | MM15: 0.0001779 | MN15: 0.0001822 | MO15: 0.000192 | MP15: 0.0002645 | MQ15: 0.0005886 | MR15: 0.0005779 | MS15: 0.0005728 | MT15: 0.0002293 | MU15: 0.0001814 | MV15: 0.0001588 | MW15: 0.0002344 | MX15: 0.0003377 | MY15: 0.0002155 | MZ15: 0.000432 | NA15: 0.0005545 | NB15: 0.0005414 | NC15: 0.0005975 | ND15: 0.0007211 | NE15: 0.0006523 | NF15: 0.000785 | NG15: 0.0024888 | NH15: 0.0001588 | NI15: 0.0007756 | NJ15: 8.29e-05 | NK15: 0.0001957 | NL15: 0.0004956 | NM15: 0.0008626 | NN15: 0.0002473 | NO15: 0.002257 | NP15: 0.0004623 | NQ15: 0.0010334 | NR15: 0.001363 | NS15: 0.001003 | NT15: 0.0001741 | NU15: 9.1e-05 | NV15: 0.0001364 | NW15: 0.0001199 | NX15: 0.0002058 | NY15: 0.0001995 | NZ15: 0.0002699 | OA15: 0.0001447 | OB15: 0.0004497 | OC15: 7.15e-05 | OD15: 0.0003243 | OE15: 0 | OF15: 0.0002137 | OG15: -2.96e-05 | OH15: 8.62e-05 | OI15: 0.0012293 | OJ15: 0.0004046 | OK15: 0.0012756 | OL15: 0.0024841 | OM15: 0.000418 | ON15: 0.0014302 | OO15: 0 | OP15: 0 | OQ15: -2.96e-05 | OR15: 119 | OS15: 0 | OT15: 0 | OU15: 19185.14933 | OV15: 19185 | OW15: 0 | OX15: 14034 | OY15: 0 | OZ15: 1 | PA15: 13
... 18 more rows

Sheet 2012 - Hidden (hidden)
A1: Industry / Commodity | C1: Oilseed farming | D1: Grain farming | E1: Vegetable and melon farming | F1: Fruit and tree nut farming | G1: Greenhouse, nursery, and floriculture production | H1: Other crop farming | I1: Dairy cattle and milk production | J1: Beef cattle ranching and farming, including feedlots and dual-purpose ranching and farming | K1: Poultry and egg production | L1: Animal production, except cattle and poultry and eggs | M1: Forestry and logging | N1: Fishing, hunting and trapping | O1: Support activities for agriculture and forestry | P1: Oil and gas extraction | Q1: Coal mining | R1: Copper, nickel, lead, and zinc mining | S1: Iron, gold, silver, and other metal ore mining | T1: Stone mining and quarrying | U1: Other nonmetallic mineral mining and quarrying | V1: Drilling oil and gas wells | W1: Other support activities for mining | X1: Electric power generation, transmission, and distribution | Y1: Natural gas distribution | Z1: Water, sewage and other systems | AA1: Health care structures | AB1: Educational and vocational structures | AC1: Nonresidential maintenance and repair | AD1: Residential maintenance and repair | AE1: Office and commercial structures | AF1: Multifamily residential structures | AG1: Other residential structures | AH1: Manufacturing structures | AI1: Other nonresidential structures | AJ1: Power and communication structures | AK1: Single-family residential structures | AL1: Transportation structures and highways and streets | AM1: Sawmills and wood preservation | AN1: Veneer, plywood, and engineered wood product manufacturing | AO1: Millwork | AP1: All other wood product manufacturing | AQ1: Clay product and refractory manufacturing | AR1: Glass and glass product manufacturing | AS1: Cement manufacturing | AT1: Ready-mix concrete manufacturing | AU1: Concrete pipe, brick, and block manufacturing | AV1: Other concrete product manufacturing | AW1: Lime and gypsum product manufacturing | AX1: Abrasive product manufacturing | AY1: Cut stone and stone product manufacturing | AZ1: Ground or treated mineral and earth manufacturing | BA1: Mineral wool manufacturing | BB1: Miscellaneous nonmetallic mineral products | BC1: Iron and steel mills and ferroalloy manufacturing | BD1: Steel product manufacturing from purchased steel | BE1: Alumina refining and primary aluminum production | BF1: Aluminum product manufacturing from purchased aluminum | BG1: Nonferrous Metal (except Aluminum) Smelting and Refining | BH1: Copper rolling, drawing, extruding and alloying | BI1: Nonferrous metal (except copper and aluminum) rolling, drawing, extruding and alloying | BJ1: Ferrous metal foundries | BK1: Nonferrous metal foundries | BL1: Custom roll forming | BM1: All other forging, stamping, and sintering | BN1: Metal crown, closure, and other metal stamping (except automotive) | BO1: Cutlery and handtool manufacturing | BP1: Plate work and fabricated structural product manufacturing | BQ1: Ornamental and architectural metal products manufacturing | BR1: Power boiler and heat exchanger manufacturing | BS1: Metal tank (heavy gauge) manufacturing | BT1: Metal can, box, and other metal container (light gauge) manufacturing | BU1: Hardware manufacturing | BV1: Spring and wire product manufacturing | BW1: Machine shops | BX1: Turned product and screw, nut, and bolt manufacturing | BY1: Coating, engraving, heat treating and allied activities | BZ1: Plumbing fixture fitting and trim manufacturing | CA1: Valve and fittings other than plumbing | CB1: Ball and roller bearing manufacturing | CC1: Fabricated pipe and pipe fitting manufacturing | CD1: Ammunition, arms, ordnance, and accessories manufacturing | CE1: Other fabricated metal manufacturing | CF1: Farm machinery and equipment manufacturing | CG1: Lawn and garden equipment manufacturing | CH1: Construction machinery manufacturing | CI1: Mining and oil and gas field machinery manufacturing | CJ1: Semiconductor machinery manufacturing | CK1: Other industrial machinery manufacturing | CL1: Optical instrument and lens manufacturing | CM1: Photographic and photocopying equipment manufacturing | CN1: Other commercial and service industry machinery manufacturing | CO1: Heating equipment (except warm air furnaces) manufacturing | CP1: Air conditioning, refrigeration, and warm air heating equipment manufacturing | CQ1: Industrial and commercial fan and blower and air purification equipment manufacturing | CR1: Industrial mold manufacturing | CS1: Special tool, die, jig, and fixture manufacturing | CT1: Machine tool manufacturing | CU1: Cutting and machine tool accessory, rolling mill, and other metalworking machinery manufacturing | CV1: Turbine and turbine generator set units manufacturing | CW1: Speed changer, industrial high-speed drive, and gear manufacturing | CX1: Mechanical power transmission equipment manufacturing | CY1: Other engine equipment manufacturing | CZ1: Air and gas compressor manufacturing | DA1: Pump and pumping equipment manufacturing | DB1: Material handling equipment manufacturing | DC1: Power-driven handtool manufacturing | DD1: Packaging machinery manufacturing | DE1: Industrial process furnace and oven manufacturing | DF1: Other general purpose machinery manufacturing | DG1: Fluid power process machinery | DH1: Electronic computer manufacturing | DI1: Computer storage device manufacturing | DJ1: Computer terminals and other computer peripheral equipment manufacturing | DK1: Telephone apparatus manufacturing | DL1: Broadcast and wireless communications equipment | DM1: Other communications equipment manufacturing | DN1: Semiconductor and related device manufacturing | DO1: Printed circuit assembly (electronic assembly) manufacturing | DP1: Other electronic component manufacturing | DQ1: Electromedical and electrotherapeutic apparatus manufacturing | DR1: Search, detection, and navigation instruments manufacturing | DS1: Automatic environmental control manufacturing | DT1: Industrial process variable instruments manufacturing | DU1: Totalizing fluid meter and counting device manufacturing | DV1: Electricity and signal testing instruments manufacturing | DW1: Analytical laboratory instrument manufacturing | DX1: Irradiation apparatus manufacturing | DY1: Watch, clock, and other measuring and controlling device manufacturing | DZ1: Audio and video equipment manufacturing | EA1: Manufacturing and reproducing magnetic and optical media | EB1: Electric lamp bulb and part manufacturing | EC1: Lighting fixture manufacturing | ED1: Small electrical appliance manufacturing | EE1: Household cooking appliance manufacturing | EF1: Household refrigerator and home freezer manufacturing | EG1: Household laundry equipment manufacturing | EH1: Other major household appliance manufacturing | EI1: Power, distribution, and specialty transformer manufacturing | EJ1: Motor and generator manufacturing | EK1: Switchgear and switchboard apparatus manufacturing | EL1: Relay and industrial control manufacturing | EM1: Storage battery manufacturing | EN1: Primary battery manufacturing | EO1: Communication and energy wire and cable manufacturing | EP1: Wiring device manufacturing | EQ1: Carbon and graphite product manufacturing | ER1: All other miscellaneous electrical equipment and component manufacturing | ES1: Automobile manufacturing | ET1: Light truck and utility vehicle manufacturing | EU1: Heavy duty truck manufacturing | EV1: Motor vehicle body manufacturing | EW1: Truck trailer manufacturing | EX1: Motor home manufacturing | EY1: Travel trailer and camper manufacturing | EZ1: Motor vehicle gasoline engine and engine parts manufacturing | FA1: Motor vehicle electrical and electronic equipment manufacturing | FB1: Motor vehicle transmission and power train parts manufacturing | FC1: Motor vehicle seating and interior trim manufacturing | FD1: Motor vehicle metal stamping | FE1: Other Motor Vehicle Parts Manufacturing | FF1: Motor vehicle steering, suspension component (except spring), and brake systems manufacturing | FG1: Aircraft manufacturing | FH1: Aircraft engine and engine parts manufacturing | FI1: Other aircraft parts and auxiliary equipment manufacturing | FJ1: Guided missile and space vehicle manufacturing | FK1: Propulsion units and parts for space vehicles and guided missiles | FL1: Railroad rolling stock manufacturing | FM1: Ship building and repairing | FN1: Boat building | FO1: Motorcycle, bicycle, and parts manufacturing | FP1: Military armored vehicle, tank, and tank component manufacturing | FQ1: All other transportation equipment manufacturing | FR1: Wood kitchen cabinet and countertop manufacturing | FS1: Upholstered household furniture manufacturing | FT1: Nonupholstered wood household furniture manufacturing | FU1: Institutional furniture manufacturing | FV1: Other household nonupholstered furniture | FW1: Showcase, partition, shelving, and locker manufacturing | FX1: Office furniture and custom architectural woodwork and millwork manufacturing | FY1: Other furniture related product manufacturing | FZ1: Surgical and medical instrument manufacturing | GA1: Surgical appliance and supplies manufacturing | GB1: Dental equipment and supplies manufacturing | GC1: Ophthalmic goods manufacturing | GD1: Dental laboratories | GE1: Jewelry and silverware manufacturing | GF1: Sporting and athletic goods manufacturing | GG1: Doll, toy, and game manufacturing | GH1: Office supplies (except paper) manufacturing | GI1: Sign manufacturing | GJ1: All other miscellaneous manufacturing | GK1: Dog and cat food manufacturing | GL1: Other animal food manufacturing | GM1: Flour milling and malt manufacturing | GN1: Wet corn milling | GO1: Fats and oils refining and blending | GP1: Soybean and other oilseed processing | GQ1: Breakfast cereal manufacturing | GR1: Sugar and confectionery product manufacturing | GS1: Frozen food manufacturing | GT1: Fruit and vegetable canning, pickling, and drying | GU1: Cheese manufacturing | GV1: Dry, condensed, and evaporated dairy product manufacturing | GW1: Fluid milk and butter manufacturing | GX1: Ice cream and frozen dessert manufacturing | GY1: Poultry processing | GZ1: Animal (except poultry) slaughtering, rendering, and processing | HA1: Seafood product preparation and packaging | HB1: Bread and bakery product manufacturing | HC1: Cookie, cracker, pasta, and tortilla manufacturing | HD1: Snack food manufacturing | HE1: Coffee and tea manufacturing | HF1: Flavoring syrup and concentrate manufacturing | HG1: Seasoning and dressing manufacturing | HH1: All other food manufacturing | HI1: Soft drink and ice manufacturing | HJ1: Breweries | HK1: Wineries | HL1: Distilleries | HM1: Tobacco product manufacturing | HN1: Fiber, yarn, and thread mills | HO1: Fabric mills | HP1: Textile and fabric finishing and fabric coating mills | HQ1: Carpet and rug mills | HR1: Curtain and linen mills | HS1: Other textile product mills | HT1: Apparel manufacturing | HU1: Leather and allied product manufacturing | HV1: Pulp mills | HW1: Paper mills | HX1: Paperboard mills | HY1: Paperboard container manufacturing | HZ1: Paper Bag and Coated and Treated Paper Manufacturing | IA1: Stationery product manufacturing | IB1: Sanitary paper product manufacturing | IC1: All other converted paper product manufacturing | ID1: Printing | IE1: Support activities for printing | IF1: Petroleum refineries | IG1: Asphalt paving mixture and block manufacturing | IH1: Asphalt shingle and coating materials manufacturing | II1: Other petroleum and coal products manufacturing | IJ1: Petrochemical manufacturing | IK1: Industrial gas manufacturing | IL1: Synthetic dye and pigment manufacturing | IM1: Other Basic Inorganic Chemical Manufacturing | IN1: Other basic organic chemical manufacturing | IO1: Plastics material and resin manufacturing | IP1: Synthetic rubber and artificial and synthetic fibers and filaments manufacturing | IQ1: Medicinal and botanical manufacturing | IR1: Pharmaceutical preparation manufacturing | IS1: In-vitro diagnostic substance manufacturing | IT1: Biological product (except diagnostic) manufacturing | IU1: Fertilizer manufacturing | IV1: Pesticide and other agricultural chemical manufacturing | IW1: Paint and coating manufacturing | IX1: Adhesive manufacturing | IY1: Soap and cleaning compound manufacturing | IZ1: Toilet preparation manufacturing | JA1: Printing ink manufacturing | JB1: All other chemical product and preparation manufacturing | JC1: Plastics packaging materials and unlaminated film and sheet manufacturing | JD1: Plastics pipe, pipe fitting, and unlaminated profile shape manufacturing | JE1: Laminated plastics plate, sheet (except packaging), and shape manufacturing | JF1: Polystyrene foam product manufacturing | JG1: Urethane and other foam product (except polystyrene) manufacturing | JH1: Plastics bottle manufacturing | JI1: Other plastics product manufacturing | JJ1: Tire manufacturing | JK1: Rubber and plastics hoses and belting manufacturing | JL1: Other rubber product manufacturing | JM1: Motor vehicle and motor vehicle parts and supplies | JN1: Professional and commercial equipment and supplies | JO1: Household appliances and electrical and electronic goods | JP1: Machinery, equipment, and supplies | JQ1: Other durable goods merchant wholesalers | JR1: Drugs and druggists’ sundries | JS1: Grocery and related product wholesalers | JT1: Petroleum and petroleum products | JU1: Other nondurable goods merchant wholesalers | JV1: Wholesale electronic markets and agents and brokers | JW1: Customs duties | JX1: Motor vehicle and parts dealers | JY1: Food and beverage stores | JZ1: General merchandise stores | KA1: Building material and garden equipment and supplies dealers | KB1: Health and personal care stores | KC1: Gasoline stations | KD1: Clothing and clothing accessories stores | KE1: Nonstore retailers | KF1: All other retail | KG1: Air transportation | KH1: Rail transportation | KI1: Water transportation | KJ1: Truck transportation | KK1: Transit and ground passenger transportation | KL1: Pipeline transportation | KM1: Scenic and sightseeing transportation and support activities for transportation | KN1: Couriers and messengers | KO1: Warehousing and storage | KP1: Newspaper publishers | KQ1: Periodical Publishers | KR1: Book publishers | KS1: Directory, mailing list, and other publishers | KT1: Software publishers | KU1: Motion picture and video industries | KV1: Sound recording industries | KW1: Radio and television broadcasting | KX1: Cable and other subscription programming | KY1: Wired telecommunications carriers | KZ1: Wireless telecommunications carriers (except satellite) | LA1: Satellite, telecommunications resellers, and all other telecommunications | LB1: Data processing, hosting, and related services | LC1: Internet publishing and broadcasting and Web search portals | LD1: News syndicates, libraries, archives and all other information services | LE1: Nondepository credit intermediation and related activities | LF1: Monetary authorities and depository credit intermediation | LG1: Other financial investment activities | LH1: Securities and commodity contracts intermediation and brokerage | LI1: Direct life insurance carriers | LJ1: Insurance carriers, except direct life | LK1: Insurance agencies, brokerages, and related activities | LL1: Funds, trusts, and other financial vehicles | LM1: Owner-occupied housing | LN1: Tenant-occupied housing | LO1: Other real estate | LP1: Automotive equipment rental and leasing | LQ1: Commercial and industrial machinery and equipment rental and leasing | LR1: General and consumer goods rental | LS1: Lessors of nonfinancial intangible assets | LT1: Legal services | LU1: Custom computer programming services | LV1: Computer systems design services | LW1: Other computer related services, including facilities management | LX1: Accounting, tax preparation, bookkeeping, and payroll services | LY1: Architectural, engineering, and related services | LZ1: Management consulting services | MA1: Environmental and other technical consulting services | MB1: Scientific research and development services | MC1: Advertising, public relations, and related services | MD1: Specialized design services | ME1: Photographic services | MF1: Veterinary services | MG1: All other miscellaneous professional, scientific, and technical services | MH1: Management of companies and enterprises | MI1: Employment services | MJ1: Services to buildings and dwellings | MK1: Office administrative services | ML1: Facilities support services | MM1: Business support services | MN1: Travel arrangement and reservation services | MO1: Investigation and security services | MP1: Other support services | MQ1: Waste management and remediation services | MR1: Elementary and secondary schools | MS1: Junior colleges, colleges, universities, and professional schools | MT1: Other educational services | MU1: Offices of physicians | MV1: Offices of dentists | MW1: Offices of other health practitioners | MX1: Outpatient care centers | MY1: Medical and diagnostic laboratories | MZ1: Home health care services | NA1: Other ambulatory health care services | NB1: Hospitals | NC1: Nursing and community care facilities | ND1: Residential mental health, substance abuse, and other residential care facilities | NE1: Individual and family services | NF1: Child day care services | NG1: Community food, housing, and other relief services, including rehabilitation services | NH1: Performing arts companies | NI1: Spectator sports | NJ1: Independent artists, writers, and performers | NK1: Promoters of performing arts and sports and agents for public figures | NL1: Museums, historical sites, zoos, and parks | NM1: Amusement parks and arcades | NN1: Gambling industries (except casino hotels) | NO1: Other amusement and recreation industries | NP1: Accommodation | NQ1: Full-service restaurants | NR1: Limited-service restaurants | NS1: All other food and drinking places | NT1: Automotive repair and maintenance | NU1: Electronic and precision equipment repair and maintenance | NV1: Commercial and industrial machinery and equipment repair and maintenance | NW1: Personal and household goods repair and maintenance | NX1: Personal care services | NY1: Death care services | NZ1: Dry-cleaning and laundry services | OA1: Other personal services | OB1: Religious organizations | OC1: Grantmaking, giving, and social advocacy organizations | OD1: Civic, social, professional, and similar organizations | OE1: Private households | OF1: Federal general government (defense) | OG1: Federal general government (nondefense) | OH1: Postal service | OI1: Other federal government enterprises | OJ1: State and local government educational services | OK1: State and local government hospitals and health services | OL1: State and local government other services | OM1: Other state and local government enterprises | ON1: Scrap | OO1: Used and secondhand goods | OP1: Noncomparable imports | OQ1: Rest of the world adjustment
A2: Code | B2: Commodity | C2: 1111A0 | D2: 1111B0 | E2: 111200 | F2: 111300 | G2: 111400 | H2: 111900 | I2: 112120 | J2: 1121A0 | K2: 112300 | L2: 112A00 | M2: 113000 | N2: 114000 | O2: 115000 | P2: 211000 | Q2: 212100 | R2: 212230 | S2: 2122A0 | T2: 212310 | U2: 2123A0 | V2: 213111 | W2: 21311A | X2: 221100 | Y2: 221200 | Z2: 221300 | AA2: 233210 | AB2: 233262 | AC2: 230301 | AD2: 230302 | AE2: 2332A0 | AF2: 233412 | AG2: 2334A0 | AH2: 233230 | AI2: 2332D0 | AJ2: 233240 | AK2: 233411 | AL2: 2332C0 | AM2: 321100 | AN2: 321200 | AO2: 321910 | AP2: 3219A0 | AQ2: 327100 | AR2: 327200 | AS2: 327310 | AT2: 327320 | AU2: 327330 | AV2: 327390 | AW2: 327400 | AX2: 327910 | AY2: 327991 | AZ2: 327992 | BA2: 327993 | BB2: 327999 | BC2: 331110 | BD2: 331200 | BE2: 331313 | BF2: 33131B | BG2: 331410 | BH2: 331420 | BI2: 331490 | BJ2: 331510 | BK2: 331520 | BL2: 332114 | BM2: 33211A | BN2: 332119 | BO2: 332200 | BP2: 332310 | BQ2: 332320 | BR2: 332410 | BS2: 332420 | BT2: 332430 | BU2: 332500 | BV2: 332600 | BW2: 332710 | BX2: 332720 | BY2: 332800 | BZ2: 332913 | CA2: 33291A | CB2: 332991 | CC2: 332996 | CD2: 33299A | CE2: 332999 | CF2: 333111 | CG2: 333112 | CH2: 333120 | CI2: 333130 | CJ2: 333242 | CK2: 33329A | CL2: 333314 | CM2: 333316 | CN2: 333318 | CO2: 333414 | CP2: 333415 | CQ2: 333413 | CR2: 333511 | CS2: 333514 | CT2: 333517 | CU2: 33351B | CV2: 333611 | CW2: 333612 | CX2: 333613 | CY2: 333618 | CZ2: 333912 | DA2: 33391A | DB2: 333920 | DC2: 333991 | DD2: 333993 | DE2: 333994 | DF2: 33399A | DG2: 33399B | DH2: 334111 | DI2: 334112 | DJ2: 334118 | DK2: 334210 | DL2: 334220 | DM2: 334290 | DN2: 334413 | DO2: 334418 | DP2: 33441A | DQ2: 334510 | DR2: 334511 | DS2: 334512 | DT2: 334513 | DU2: 334514 | DV2: 334515 | DW2: 334516 | DX2: 334517 | DY2: 33451A | DZ2: 334300 | EA2: 334610 | EB2: 335110 | EC2: 335120 | ED2: 335210 | EE2: 335221 | EF2: 335222 | EG2: 335224 | EH2: 335228 | EI2: 335311 | EJ2: 335312 | EK2: 335313 | EL2: 335314 | EM2: 335911 | EN2: 335912 | EO2: 335920 | EP2: 335930 | EQ2: 335991 | ER2: 335999 | ES2: 336111 | ET2: 336112 | EU2: 336120 | EV2: 336211 | EW2: 336212 | EX2: 336213 | EY2: 336214 | EZ2: 336310 | FA2: 336320 | FB2: 336350 | FC2: 336360 | FD2: 336370 | FE2: 336390 | FF2: 3363A0 | FG2: 336411 | FH2: 336412 | FI2: 336413 | FJ2: 336414 | FK2: 33641A | FL2: 336500 | FM2: 336611 | FN2: 336612 | FO2: 336991 | FP2: 336992 | FQ2: 336999 | FR2: 337110 | FS2: 337121 | FT2: 337122 | FU2: 337127 | FV2: 33712N | FW2: 337215 | FX2: 33721A | FY2: 337900 | FZ2: 339112 | GA2: 339113 | GB2: 339114 | GC2: 339115 | GD2: 339116 | GE2: 339910 | GF2: 339920 | GG2: 339930 | GH2: 339940 | GI2: 339950 | GJ2: 339990 | GK2: 311111 | GL2: 311119 | GM2: 311210 | GN2: 311221 | GO2: 311225 | GP2: 311224 | GQ2: 311230 | GR2: 311300 | GS2: 311410 | GT2: 311420 | GU2: 311513 | GV2: 311514 | GW2: 31151A | GX2: 311520 | GY2: 311615 | GZ2: 31161A | HA2: 311700 | HB2: 311810 | HC2: 3118A0 | HD2: 311910 | HE2: 311920 | HF2: 311930 | HG2: 311940 | HH2: 311990 | HI2: 312110 | HJ2: 312120 | HK2: 312130 | HL2: 312140 | HM2: 312200 | HN2: 313100 | HO2: 313200 | HP2: 313300 | HQ2: 314110 | HR2: 314120 | HS2: 314900 | HT2: 315000 | HU2: 316000 | HV2: 322110 | HW2: 322120 | HX2: 322130 | HY2: 322210 | HZ2: 322220 | IA2: 322230 | IB2: 322291 | IC2: 322299 | ID2: 323110 | IE2: 323120 | IF2: 324110 | IG2: 324121 | IH2: 324122 | II2: 324190 | IJ2: 325110 | IK2: 325120 | IL2: 325130 | IM2: 325180 | IN2: 325190 | IO2: 325211 | IP2: 3252A0 | IQ2: 325411 | IR2: 325412 | IS2: 325413 | IT2: 325414 | IU2: 325310 | IV2: 325320 | IW2: 325510 | IX2: 325520 | IY2: 325610 | IZ2: 325620 | JA2: 325910 | JB2: 3259A0 | JC2: 326110 | JD2: 326120 | JE2: 326130 | JF2: 326140 | JG2: 326150 | JH2: 326160 | JI2: 326190 | JJ2: 326210 | JK2: 326220 | JL2: 326290 | JM2: 423100 | JN2: 423400 | JO2: 423600 | JP2: 423800 | JQ2: 423A00 | JR2: 424200 | JS2: 424400 | JT2: 424700 | JU2: 424A00 | JV2: 425000 | JW2: 4200ID | JX2: 441000 | JY2: 445000 | JZ2: 452000 | KA2: 444000 | KB2: 446000 | KC2: 447000 | KD2: 448000 | KE2: 454000 | KF2: 4B0000 | KG2: 481000 | KH2: 482000 | KI2: 483000 | KJ2: 484000 | KK2: 485000 | KL2: 486000 | KM2: 48A000 | KN2: 492000 | KO2: 493000 | KP2: 511110 | KQ2: 511120 | KR2: 511130 | KS2: 5111A0 | KT2: 511200 | KU2: 512100 | KV2: 512200 | KW2: 515100 | KX2: 515200 | KY2: 517110 | KZ2: 517210 | LA2: 517A00 | LB2: 518200 | LC2: 519130 | LD2: 5191A0 | LE2: 522A00 | LF2: 52A000 | LG2: 523900 | LH2: 523A00 | LI2: 524113 | LJ2: 5241XX | LK2: 524200 | LL2: 525000 | LM2: 531HSO | LN2: 531HST | LO2: 531ORE | LP2: 532100 | LQ2: 532400 | LR2: 532A00 | LS2: 533000 | LT2: 541100 | LU2: 541511 | LV2: 541512 | LW2: 54151A | LX2: 541200 | LY2: 541300 | LZ2: 541610 | MA2: 5416A0 | MB2: 541700 | MC2: 541800 | MD2: 541400 | ME2: 541920 | MF2: 541940 | MG2: 5419A0 | MH2: 550000 | MI2: 561300 | MJ2: 561700 | MK2: 561100 | ML2: 561200 | MM2: 561400 | MN2: 561500 | MO2: 561600 | MP2: 561900 | MQ2: 562000 | MR2: 611100 | MS2: 611A00 | MT2: 611B00 | MU2: 621100 | MV2: 621200 | MW2: 621300 | MX2: 621400 | MY2: 621500 | MZ2: 621600 | NA2: 621900 | NB2: 622000 | NC2: 623A00 | ND2: 623B00 | NE2: 624100 | NF2: 624400 | NG2: 624A00 | NH2: 711100 | NI2: 711200 | NJ2: 711500 | NK2: 711A00 | NL2: 712000 | NM2: 713100 | NN2: 713200 | NO2: 713900 | NP2: 721000 | NQ2: 722110 | NR2: 722211 | NS2: 722A00 | NT2: 811100 | NU2: 811200 | NV2: 811300 | NW2: 811400 | NX2: 812100 | NY2: 812200 | NZ2: 812300 | OA2: 812900 | OB2: 813100 | OC2: 813A00 | OD2: 813B00 | OE2: 814000 | OF2: S00500 | OG2: S00600 | OH2: 491000 | OI2: S00102 | OJ2: GSLGE | OK2: GSLGH | OL2: GSLGO | OM2: S00203 | ON2: S00401 | OO2: S00402 | OP2: S00300 | OQ2: S00900 | OR2: Final use (from Use table) | OS2: Final use (estimated) | OT2: Final use' | OV2: NAICS | OW2: Industry | OX2: Calculated | OY2: From Make Matrix | OZ2: From Make Matrix | PA2: Value added | PB2: Compensation | PC2: Estimated VA | PD2: VA + Imports | PG2: VA Percentile | PI2: 3Dig | PJ2: 5Dig | PS2: 3Dig Ratio | PU2: 3 Dig comp | QA2: 5Dig Ratio | QE2: 3 Dig comp reorganized | QH2: industries examined | QI2: final use calculation - Industry self use | QJ2: Final use calculation - self use - req matrix
A3: 1111A0 | B3: Oilseed farming | C3: 1.0562 | D3: 0.0037867 | E3: 0.0017371 | F3: 0.0017143 | G3: 0.0009505 | H3: 0.001854 | I3: 0.0464972 | J3: 0.0178657 | K3: 0.0787002 | L3: 0.014256 | M3: 0.0036353 | N3: 0.00064 | O3: 0.013259 | P3: 0.000232 | Q3: 0.0003375 | R3: 0.0003956 | S3: 0.0005351 | T3: 0.0002716 | U3: 0.0004466 | V3: 0.0001698 | W3: 0.000251 | X3: 0.0001422 | Y3: 0.0001089 | Z3: 0.000211 | AA3: 0.0001954 | AB3: 0.0001947 | AC3: 0.0003487 | AD3: 0.000338 | AE3: 0.0002073 | AF3: 9.06e-05 | AG3: 0.0002722 | AH3: 0.0001507 | AI3: 0.0002623 | AJ3: 0.0001609 | AK3: 0.0001996 | AL3: 0.0002354 | AM3: 0.0012819 | AN3: 0.0010861 | AO3: 0.0006887 | AP3: 0.0022294 | AQ3: 0.0003692 | AR3: 0.0003812 | AS3: 0.0002099 | AT3: 0.0008554 | AU3: 0.0004279 | AV3: 0.0004085 | AW3: 0.0008461 | AX3: 0.0002846 | AY3: 0.0008652 | AZ3: 0.0003554 | BA3: 0.0006182 | BB3: 0.0002824 | BC3: 0.0004338 | BD3: 0.0003852 | BE3: 0.0004441 | BF3: 0.0003707 | BG3: 0.0002696 | BH3: 0.0003206 | BI3: 0.0003279 | BJ3: 0.0002308 | BK3: 0.0002543 | BL3: 0.0003132 | BM3: 0.0002622 | BN3: 0.0003696 | BO3: 0.0004295 | BP3: 0.0003675 | BQ3: 0.000551 | BR3: 0.0003327 | BS3: 0.0003572 | BT3: 0.0004568 | BU3: 0.000336 | BV3: 0.0003777 | BW3: 0.000281 | BX3: 0.0002207 | BY3: 0.0009304 | BZ3: 0.0003733 | CA3: 0.0002327 | CB3: 0.0001344 | CC3: 0.0002372 | CD3: 0.0002826 | CE3: 0.0003048 | CF3: 0.0003869 | CG3: 0.0004424 | CH3: 0.0002874 | CI3: 0.0002799 | CJ3: 0.0001869 | CK3: 0.0002654 | CL3: 0.0002819 | CM3: 0.0010552 | CN3: 0.000407 | CO3: 0.0006444 | CP3: 0.0002851 | CQ3: 0.0004327 | CR3: 0.000425 | CS3: 0.0001993 | CT3: 0.0004186 | CU3: 0.0001985 | CV3: 0.0002223 | CW3: 0.0001487 | CX3: 0.0001757 | CY3: 0.0003487 | CZ3: 0.0003364 | DA3: 0.0002777 | DB3: 0.0003294 | DC3: 0.0002738 | DD3: 0.0002381 | DE3: 0.0001436 | DF3: 0.0005224 | DG3: 0.000364 | DH3: 5.77e-05 | DI3: 0.0001041 | DJ3: 0.0003842 | DK3: 7.85e-05 | DL3: 7.82e-05 | DM3: 0.0001431 | DN3: 0.0001352 | DO3: 0.0002 | DP3: 0.0002602 | DQ3: 0.0001562 | DR3: 6.08e-05 | DS3: 0.0001537 | DT3: 0.0001339 | DU3: 7.45e-05 | DV3: 8.54e-05 | DW3: 0.0001758 | DX3: 0.0001526 | DY3: 8.45e-05 | DZ3: 0.0002344 | EA3: 0.0001796 | EB3: 0.0002575 | EC3: 0.0004981 | ED3: 0.0008583 | EE3: 0.0004274 | EF3: 0.000479 | EG3: 0.0005824 | EH3: 0.0004151 | EI3: 0.0005651 | EJ3: 0.0002755 | EK3: 0.0002869 | EL3: 0.0001741 | EM3: 0.0002158 | EN3: 0.0002864 | EO3: 0.0004069 | EP3: 0.0004536 | EQ3: 0.0019519 | ER3: 0.0002188 | ES3: 0.0003776 | ET3: 0.0004394 | EU3: 0.0004298 | EV3: 0.0003928 | EW3: 0.0004026 | EX3: 0.0004456 | EY3: 0.0005818 | EZ3: 0.0003207 | FA3: 0.0004076 | FB3: 0.0002808 | FC3: 0.0011325 | FD3: 0.0003764 | FE3: 0.0004908 | FF3: 0.0003899 | FG3: 0.0001416 | FH3: 9.61e-05 | FI3: 0.0002341 | FJ3: 0.0001972 | FK3: 0.0002195 | FL3: 0.0003398 | FM3: 0.0002563 | FN3: 0.0004897 | FO3: 0.0002016 | FP3: 0.0003455 | FQ3: 0.0005754 | FR3: 0.0006676 | FS3: 0.0007681 | FT3: 0.0007795 | FU3: 0.0007419 | FV3: 0.0007553 | FW3: 0.0005992 | FX3: 0.0006406 | FY3: 0.0006905 | FZ3: 0.0005151 | GA3: 0.0004184 | GB3: 0.0004699 | GC3: 0.0003039 | GD3: 0.000159 | GE3: 0.0001627 | GF3: 0.0007193 | GG3: 0.0008131 | GH3: 0.0013176 | GI3: 0.0007629 | GJ3: 0.0006668 | GK3: 0.0348411 | GL3: 0.151433 | GM3: 0.0063123 | GN3: 0.0218011 | GO3: 0.397469 | GP3: 0.666126 | GQ3: 0.140149 | GR3: 0.0355447 | GS3: 0.0160525 | GT3: 0.0137843 | GU3: 0.0265353 | GV3: 0.0310655 | GW3: 0.0241742 | GX3: 0.0148345 | GY3: 0.0399382 | GZ3: 0.0133275 | HA3: 0.003645 | HB3: 0.0196738 | HC3: 0.0239411 | HD3: 0.0708452 | HE3: 0.0017731 | HF3: 0.0083878 | HG3: 0.0663083 | HH3: 0.0301015 | HI3: 0.0040232 | HJ3: 0.0011357 | HK3: 0.0008292 | HL3: 0.0033717 | HM3: 0.0003354 | HN3: 0.0019756 | HO3: 0.0020895 | HP3: 0.0013143 | HQ3: 0.0014321 | HR3: 0.001048 | HS3: 0.001847 | HT3: 0.000587 | HU3: 0.0037885 | HV3: 0.0014742 | HW3: 0.0025056 | HX3: 0.0015522 | HY3: 0.0011366 | HZ3: 0.0014093 | IA3: 0.0010991 | IB3: 0.0016855 | IC3: 0.000881 | ID3: 0.0013702 | IE3: 0.0005981 | IF3: 0.0003514 | IG3: 0.0023572 | IH3: 0.0002535 | II3: 0.0060776 | IJ3: 0.0026342 | IK3: 0.0014337 | IL3: 0.0013974 | IM3: 0.001002 | IN3: 0.0121604 | IO3: 0.0044274 | IP3: 0.0031822 | IQ3: 0.005535 | IR3: 0.0017956 | IS3: 0.0010336 | IT3: 0.0003145 | IU3: 0.0007759 | IV3: 0.0047858 | IW3: 0.0079472 | IX3: 0.0026996 | IY3: 0.0053723 | IZ3: 0.0114197 | JA3: 0.0021413 | JB3: 0.0064244 | JC3: 0.002385 | JD3: 0.0020885 | JE3: 0.0015795 | JF3: 0.0018353 | JG3: 0.0016388 | JH3: 0.0027108 | JI3: 0.0014802 | JJ3: 0.001629 | JK3: 0.00132 | JL3: 0.0011973 | JM3: 0.0001495 | JN3: 9.8e-05 | JO3: 0.0001255 | JP3: 0.0001137 | JQ3: 0.0001565 | JR3: 0.0001372 | JS3: 0.0001637 | JT3: 5.96e-05 | JU3: 0.0012971 | JV3: 0.0007866 | JW3: 0 | JX3: 0.0001105 | JY3: 0.0001939 | JZ3: 0.0001314 | KA3: 8.29e-05 | KB3: 0.0001044 | KC3: 0.0001767 | KD3: 0.0001522 | KE3: 0.000128 | KF3: 0.0001189 | KG3: 0.0004207 | KH3: 0.0001596 | KI3: 0.0002536 | KJ3: 0.0001418 | KK3: 0.0003957 | KL3: 7.44e-05 | KM3: 0.0001677 | KN3: 0.0002658 | KO3: 0.0001802 | KP3: 0.0001587 | KQ3: 0.0002103 | KR3: 0.0002054 | KS3: 0.0002093 | KT3: 8.44e-05 | KU3: 8.73e-05 | KV3: 3.96e-05 | KW3: 0.000114 | KX3: 0.0001257 | KY3: 8.95e-05 | KZ3: 0.0001534 | LA3: 0.0001201 | LB3: 0.0001896 | LC3: 0.0002052 | LD3: 0.0001557 | LE3: 8.9e-05 | LF3: 8.26e-05 | LG3: 0.0001257 | LH3: 8.64e-05 | LI3: 3.28e-05 | LJ3: 5.14e-05 | LK3: 4.56e-05 | LL3: 0.0001235 | LM3: 2.56e-05 | LN3: 8.3e-06 | LO3: 0.0002763 | LP3: 0.000137 | LQ3: 0.0001794 | LR3: 0.0001963 | LS3: 9.48e-05 | LT3: 0.0001046 | LU3: 4.91e-05 | LV3: 0.0001067 | LW3: 0.0001352 | LX3: 0.0001048 | LY3: 0.0003439 | LZ3: 0.0001934 | MA3: 0.0001246 | MB3: 0.0002489 | MC3: 0.000237 | MD3: 0.0001764 | ME3: 0.0002858 | MF3: 0.0047144 | MG3: 0.0001509 | MH3: 0.0001246 | MI3: 7.38e-05 | MJ3: 0.0003147 | MK3: 0.0003353 | ML3: 0.0002909 | MM3: 0.0002357 | MN3: 0.0002802 | MO3: 0.0001934 | MP3: 0.0004694 | MQ3: 0.0003066 | MR3: 0.0005665 | MS3: 0.0006506 | MT3: 0.0001797 | MU3: 0.0002341 | MV3: 0.0001254 | MW3: 0.0003475 | MX3: 0.0005915 | MY3: 0.0002756 | MZ3: 0.0004023 | NA3: 0.0005049 | NB3: 0.0006526 | NC3: 0.0010206 | ND3: 0.0008575 | NE3: 0.0006961 | NF3: 0.0011628 | NG3: 0.0025655 | NH3: 8.37e-05 | NI3: 0.0005959 | NJ3: 2.18e-05 | NK3: 0.0001264 | NL3: 0.0001919 | NM3: 0.0008899 | NN3: 0.000231 | NO3: 0.003532 | NP3: 0.0008377 | NQ3: 0.0021141 | NR3: 0.0026675 | NS3: 0.0072435 | NT3: 0.0001227 | NU3: 6.81e-05 | NV3: 0.0001988 | NW3: 5.91e-05 | NX3: 0.0004375 | NY3: 3.99e-05 | NZ3: 0.0002099 | OA3: 0.0001272 | OB3: 0.0003987 | OC3: 0.000114 | OD3: 0.000448 | OE3: 0 | OF3: 0.0002355 | OG3: -0.000854 | OH3: 0.0001447 | OI3: 0.000669 | OJ3: 0.0004691 | OK3: 0.0016678 | OL3: 0.0006426 | OM3: 0.0002238 | ON3: 0.0005748 | OO3: 0 | OP3: 0 | OQ3: -0.000854 | OR3: 17770 | OT3: =OS3*0 -> 0 | OV3: 1111A0 | OW3: Oilseed farming | OX3: =MMULT(C3:OQ407,OT3:OT407) -> 0 | OY3: 42655 | OZ3: 42655 | PA3: 22896 | PB3: 72 | PC3: =(OX3/OY3)*PA3 -> 0 | PD3: =((OX3/OY3)*'2012 Imports - Hidden'!OT7)+'2012 - Hidden'!PC3 -> 0 | PE3: =RANK(PC3,$PC$3:$PC$407,0) -> 1 | PF3: 1 | PG3: =100*((RANK(PD3,$PD$3:$PD$407,0)-1)/405) -> 0 | PI3: =LEFT(OV3,3) -> 111 | PJ3: =IF(ISNUMBER(CONCATENATE(LEFT(OV3,5),"0")*1)=TRUE,CONCATENATE(LEFT(OV3,5),"0")*1,CONCATENATE(LEFT(OV3,5),"0")) -> 1111A0 | PK3: =OX3 -> 0 | PL3: =OY3 -> 42655 | PO3: 111 | PP3: =PO3*1 -> 111 | PQ3: =SUMIF($PI$3:$PI$407,PP3,$PK$3:$PK$407) -> 0 | PR3: =SUMIF($PI$3:$PI$407,PP3,$PL$3:$PL$407) -> 213114 | PS3: =PQ3/PR3 -> 0 | PU3: =SUMIF($PI$3:$PI$407,PP3,$PB$3:$PB$407)*PS3 -> 0 | PV3: =SUMIF($PI$3:$PI$407,PP3,$PB$3:$PB$407) -> 21565 | PX3: 321100 | PY3: =SUMIF($PJ$39:$PJ$273,$PX3,PK$39:PK$273) -> 0 | PZ3: =SUMIF($PJ$39:$PJ$273,$PX3,PL$39:PL$273) -> 23266 | QA3: =IF(PY3=0,0,IF(PZ3=0,0,PY3/PZ3)) -> 0 | QD3: 113 | QE3: =VLOOKUP(QD3,$PP$3:$PU$92,6,FALSE) -> 0 | QF3: =VLOOKUP(QD3,$PP$3:$PV$92,7,FALSE) -> 6193 | QI3: 2222
A4: 1111B0 | B4: Grain farming | C4: 0.0055459 | D4: 1.08838 | E4: 0.0062494 | F4: 0.0062687 | G4: 0.0037915 | H4: 0.0196591 | I4: 0.153359 | J4: 0.157125 | K4: 0.203957 | L4: 0.0380387 | M4: 0.0103622 | N4: 0.0019483 | O4: 0.0335631 | P4: 0.0014004 | Q4: 0.0015738 | R4: 0.0032069 | S4: 0.0048507 | T4: 0.0014364 | U4: 0.0036007 | V4: 0.0007285 | W4: 0.0015377 | X4: 0.001065 | Y4: 0.0006326 | Z4: 0.0015905 | AA4: 0.001293 | AB4: 0.0012993 | AC4: 0.0020585 | AD4: 0.0021222 | AE4: 0.0013562 | AF4: 0.0005848 | AG4: 0.0016883 | AH4: 0.0009898 | AI4: 0.0016314 | AJ4: 0.0009383 | AK4: 0.0012322 | AL4: 0.00138 | AM4: 0.0049845 | AN4: 0.0064124 | AO4: 0.0032902 | AP4: 0.0032179 | AQ4: 0.0026185 | AR4: 0.0030914 | AS4: 0.0013967 | AT4: 0.0092787 | AU4: 0.0021709 | AV4: 0.0023531 | AW4: 0.0140221 | AX4: 0.0023625 | AY4: 0.0086121 | AZ4: 0.0033269 | BA4: 0.0057923 | BB4: 0.0017673 | BC4: 0.0023732 | BD4: 0.0022987 | BE4: 0.0023853 | BF4: 0.002253 | BG4: 0.0019382 | BH4: 0.0025161 | BI4: 0.0023012 | BJ4: 0.0012409 | BK4: 0.0013952 | BL4: 0.0016672 | BM4: 0.0014097 | BN4: 0.0021776 | BO4: 0.0020049 | BP4: 0.0017493 | BQ4: 0.0034868 | BR4: 0.0016555 | BS4: 0.0017928 | BT4: 0.0022349 | BU4: 0.0022129 | BV4: 0.002271 | BW4: 0.0013933 | BX4: 0.0012969 | BY4: 0.0039788 | BZ4: 0.0029298 | CA4: 0.0014499 | CB4: 0.000762 | CC4: 0.0014782 | CD4: 0.0019689 | CE4: 0.0021214 | CF4: 0.0024984 | CG4: 0.0025438 | CH4: 0.0018227 | CI4: 0.0016974 | CJ4: 0.0011827 | CK4: 0.0015282 | CL4: 0.0015517 | CM4: 0.0072074 | CN4: 0.0025062 | CO4: 0.0026097 | CP4: 0.0020984 | CQ4: 0.0024364 | CR4: 0.0038145 | CS4: 0.0012276 | CT4: 0.0017892 | CU4: 0.0011887 | CV4: 0.0013843 | CW4: 0.0008485 | CX4: 0.0010586 | CY4: 0.0021446 | CZ4: 0.0016749 | DA4: 0.0014241 | DB4: 0.0017806 | DC4: 0.0021038 | DD4: 0.0013912 | DE4: 0.0007795 | DF4: 0.003586 | DG4: 0.0014118 | DH4: 0.0003282 | DI4: 0.0006085 | DJ4: 0.0021681 | DK4: 0.0004668 | DL4: 0.0005737 | DM4: 0.0008789 | DN4: 0.0007508 | DO4: 0.0010584 | DP4: 0.0015673 | DQ4: 0.0012082 | DR4: 0.000377 | DS4: 0.001052 | DT4: 0.0009289 | DU4: 0.000575 | DV4: 0.0005143 | DW4: 0.0008836 | DX4: 0.0007911 | DY4: 0.0004599 | DZ4: 0.0007477 | EA4: 0.0015473 | EB4: 0.0015423 | EC4: 0.0023222 | ED4: 0.0056175 | EE4: 0.0022199 | EF4: 0.0037877 | EG4: 0.0039843 | EH4: 0.0028448 | EI4: 0.0017596 | EJ4: 0.0015014 | EK4: 0.0017829 | EL4: 0.0011788 | EM4: 0.0016532 | EN4: 0.0014532 | EO4: 0.0035235 | EP4: 0.0038728 | EQ4: 0.0062247 | ER4: 0.0012717 | ES4: 0.002522 | ET4: 0.0029847 | EU4: 0.0026562 | EV4: 0.0022305 | EW4: 0.0023061 | EX4: 0.0030085 | EY4: 0.0040656 | EZ4: 0.0023197 | FA4: 0.0034145 | FB4: 0.0017444 | FC4: 0.0071863 | FD4: 0.0021538 | FE4: 0.0035695 | FF4: 0.0027845 | FG4: 0.0008215 | FH4: 0.0005265 | FI4: 0.0013464 | FJ4: 0.0015974 | FK4: 0.0016684 | FL4: 0.0016613 | FM4: 0.0015206 | FN4: 0.0034818 | FO4: 0.0013163 | FP4: 0.0029146 | FQ4: 0.0039025 | FR4: 0.003152 | FS4: 0.0052024 | FT4: 0.0039752 | FU4: 0.0040786 | FV4: 0.0049314 | FW4: 0.0032644 | FX4: 0.0034199 | FY4: 0.0053639 | FZ4: 0.0053591 | GA4: 0.0032383 | GB4: 0.0043341 | GC4: 0.0027839 | GD4: 0.0012683 | GE4: 0.0010956 | GF4: 0.0048375 | GG4: 0.0056978 | GH4: 0.0130914 | GI4: 0.005253 | GJ4: 0.0049975 | GK4: 0.174943 | GL4: 0.345464 | GM4: 0.647644 | GN4: 0.457129 | GO4: 0.0835026 | GP4: 0.0201084 | GQ4: 0.0973292 | GR4: 0.0269762 | GS4: 0.228355 | GT4: 0.0443846 | GU4: 0.0798427 | GV4: 0.066934 | GW4: 0.075665 | GX4: 0.0490688 | GY4: 0.10638 | GZ4: 0.0834172 | HA4: 0.006892 | HB4: 0.145975 | HC4: 0.17257 | HD4: 0.0651112 | HE4: 0.0069611 | HF4: 0.0830803 | HG4: 0.0378785 | HH4: 0.110717 | HI4: 0.0399836 | HJ4: 0.133561 | HK4: 0.0052316 | HL4: 0.060007 | HM4: 0.0029034 | HN4: 0.0186979 | HO4: 0.0146623 | HP4: 0.0104641 | HQ4: 0.0136325 | HR4: 0.0081829 | HS4: 0.0076053 | HT4: 0.0034382 | HU4: 0.0178076 | HV4: 0.0129806 | HW4: 0.0153204 | HX4: 0.013542 | HY4: 0.0080931 | HZ4: 0.0128476 | IA4: 0.0085201 | IB4: 0.0112013 | IC4: 0.0074353 | ID4: 0.0169501 | IE4: 0.0059675 | IF4: 0.0025301 | IG4: 0.0095242 | IH4: 0.0018524 | II4: 0.007032 | IJ4: 0.0235862 | IK4: 0.0188746 | IL4: 0.0121071 | IM4: 0.0111436 | IN4: 0.15107 | IO4: 0.0520633 | IP4: 0.0362264 | IQ4: 0.0134043 | IR4: 0.0109026 | IS4: 0.0058929 | IT4: 0.001508 | IU4: 0.0079722 | IV4: 0.0562112 | IW4: 0.022366 | IX4: 0.0321425 | IY4: 0.0174914 | IZ4: 0.0126778 | JA4: 0.0112793 | JB4: 0.0198002 | JC4: 0.026268 | JD4: 0.0227521 | JE4: 0.0160452 | JF4: 0.0196181 | JG4: 0.0198457 | JH4: 0.0305004 | JI4: 0.0150845 | JJ4: 0.0138842 | JK4: 0.0105198 | JL4: 0.0112549 | JM4: 0.0009292 | JN4: 0.0005896 | JO4: 0.0007118 | JP4: 0.0006442 | JQ4: 0.0010408 | JR4: 0.0009584 | JS4: 0.0010148 | JT4: 0.0003913 | JU4: 0.0013409 | JV4: 0.0008126 | JW4: 0 | JX4: 0.0005786 | JY4: 0.001522 | JZ4: 0.0007314 | KA4: 0.0004261 | KB4: 0.0006023 | KC4: 0.0008201 | KD4: 0.0008609 | KE4: 0.0007629 | KF4: 0.0006572 | KG4: 0.0011064 | KH4: 0.0008524 | KI4: 0.0013372 | KJ4: 0.0008916 | KK4: 0.0037381 | KL4: 0.0004665 | KM4: 0.0009981 | KN4: 0.0016058 | KO4: 0.0009904 | KP4: 0.001193 | KQ4: 0.0019992 | KR4: 0.0014785 | KS4: 0.0017458 | KT4: 0.0004649 | KU4: 0.0004758 | KV4: 0.0002773 | KW4: 0.0007431 | KX4: 0.0009073 | KY4: 0.0006202 | KZ4: 0.0009965 | LA4: 0.0007322 | LB4: 0.0009238 | LC4: 0.0017674 | LD4: 0.0007906 | LE4: 0.0004571 | LF4: 0.0003939 | LG4: 0.0006391 | LH4: 0.000452 | LI4: 0.0002 | LJ4: 0.0002807 | LK4: 0.0002481 | LL4: 0.0006069 | LM4: 0.0001478 | LN4: 5.48e-05 | LO4: 0.0018291 | LP4: 0.0007119 | LQ4: 0.0007059 | LR4: 0.0006986 | LS4: 0.0005374 | LT4: 0.0004783 | LU4: 0.0002425 | LV4: 0.000522 | LW4: 0.0005406 | LX4: 0.0003714 | LY4: 0.0030243 | LZ4: 0.0007831 | MA4: 0.0006517 | MB4: 0.0014875 | MC4: 0.0020962 | MD4: 0.0010759 | ME4: 0.0012408 | MF4: 0.0235234 | MG4: 0.0006764 | MH4: 0.0006068 | MI4: 0.0002872 | MJ4: 0.0017856 | MK4: 0.0021487 | ML4: 0.0022809 | MM4: 0.0011056 | MN4: 0.00092 | MO4: 0.0007686 | MP4: 0.0016035 | MQ4: 0.0021151 | MR4: 0.0020435 | MS4: 0.0031174 | MT4: 0.0010709 | MU4: 0.0011601 | MV4: 0.0009539 | MW4: 0.0027778 | MX4: 0.0013378 | MY4: 0.0026711 | MZ4: 0.0028153 | NA4: 0.0048049 | NB4: 0.0033403 | NC4: 0.0034362 | ND4: 0.0037906 | NE4: 0.0033054 | NF4: 0.0045322 | NG4: 0.0093768 | NH4: 0.0005201 | NI4: 0.0022553 | NJ4: 0.0001147 | NK4: 0.0006644 | NL4: 0.0013188 | NM4: 0.0065831 | NN4: 0.0013474 | NO4: 0.011103 | NP4: 0.0025288 | NQ4: 0.0059226 | NR4: 0.0077299 | NS4: 0.0057137 | NT4: 0.0007655 | NU4: 0.0004051 | NV4: 0.0013564 | NW4: 0.0004465 | NX4: 0.0008735 | NY4: 0.0002556 | NZ4: 0.0011871 | OA4: 0.0007404 | OB4: 0.0020033 | OC4: 0.0006584 | OD4: 0.0023171 | OE4: 0 | OF4: 0.0010868 | OG4: 0.0005687 | OH4: 0.0006729 | OI4: 0.0040209 | OJ4: 0.0021662 | OK4: 0.0081802 | OL4: 0.0025872 | OM4: 0.0016901 | ON4: 0.0030369 | OO4: 0 | OP4: 0 | OQ4: 0.0005687 | OR4: 8667 | OT4: =OS4*0 -> 0 | OV4: 1111B0 | OW4: Grain farming | OX4: 0 | OY4: 92357 | OZ4: 92357 | PA4: 22046 | PB4: 4754 | PC4: =(OX4/OY4)*PA4 -> 0 | PD4: =((OX4/OY4)*'2012 Imports - Hidden'!OT8)+'2012 - Hidden'!PC4 -> 0 | PE4: =RANK(PC4,$PC$3:$PC$407,0) -> 1 | PF4: 2 | PG4: =100*((RANK(PD4,$PD$3:$PD$407,0)-1)/405) -> 0 | PI4: 111 | PJ4: 1111B0 | PK4: =OX4 -> 0 | PL4: =OY4 -> 92357 | PO4: 112 | PP4: =PO4*1 -> 112 | PQ4: 0 | PR4: 193134 | PS4: =PQ4/PR4 -> 0 | PU4: =SUMIF($PI$3:$PI$407,PP4,$PB$3:$PB$407)*PS4 -> 0 | PV4: =SUMIF($PI$3:$PI$407,PP4,$PB$3:$PB$407) -> 6874 | PX4: 321200 | PY4: 0 | PZ4: 16969 | QA4: =IF(PY4=0,0,IF(PZ4=0,0,PY4/PZ4)) -> 0 | QD4: 115 | QE4: =VLOOKUP(QD4,$PP$3:$PU$92,6,FALSE) -> 0 | QF4: =VLOOKUP(QD4,$PP$3:$PV$92,7,FALSE) -> 12624 | QI4: 6745
A5: 111200 | B5: Vegetable and melon farming | C5: 0.0004547 | D5: 0.0008133 | E5: 1.04647 | F5: 0.0009645 | G5: 0.0003463 | H5: 0.0006515 | I5: 0.0003308 | J5: 0.0003137 | K5: 0.000358 | L5: 0.0001534 | M5: 0.001665 | N5: 3.68e-05 | O5: 0.0069009 | P5: 7e-06 | Q5: 1.61e-05 | R5: 1.72e-05 | S5: 2.13e-05 | T5: 4.46e-05 | U5: 1.35e-05 | V5: 7e-06 | W5: 1.27e-05 | X5: 2e-05 | Y5: 1.42e-05 | Z5: 2.06e-05 | AA5: 1.54e-05 | AB5: 1.72e-05 | AC5: 2.16e-05 | AD5: 2.54e-05 | AE5: 1.61e-05 | AF5: 7e-06 | AG5: 1.91e-05 | AH5: 9.9e-06 | AI5: 2.08e-05 | AJ5: 9.3e-06 | AK5: 1.49e-05 | AL5: 1.51e-05 | AM5: 0.0004923 | AN5: 0.0002848 | AO5: 0.0001837 | AP5: 0.0001128 | AQ5: 1.93e-05 | AR5: 1.69e-05 | AS5: 1.6e-05 | AT5: 2.77e-05 | AU5: 8.2e-05 | AV5: 2.21e-05 | AW5: 3.2e-05 | AX5: 1.52e-05 | AY5: 2.46e-05 | AZ5: 1.94e-05 | BA5: 2.37e-05 | BB5: 1.78e-05 | BC5: 2.94e-05 | BD5: 2.28e-05 | BE5: 2.72e-05 | BF5: 2.16e-05 | BG5: 1.64e-05 | BH5: 1.95e-05 | BI5: 1.98e-05 | BJ5: 2.19e-05 | BK5: 1.81e-05 | BL5: 2.2e-05 | BM5: 2.11e-05 | BN5: 1.82e-05 | BO5: 1.59e-05 | BP5: 1.88e-05 | BQ5: 2.01e-05 | BR5: 1.41e-05 | BS5: 1.83e-05 | BT5: 1.89e-05 | BU5: 2.1e-05 | BV5: 1.89e-05 | BW5: 1.44e-05 | BX5: 1.58e-05 | BY5: 1.78e-05 | BZ5: 1.55e-05 | CA5: 1.56e-05 | CB5: 1.13e-05 | CC5: 1.68e-05 | CD5: 1.37e-05 | CE5: 1.71e-05 | CF5: 2.43e-05 | CG5: 1.96e-05 | CH5: 1.65e-05 | CI5: 1.84e-05 | CJ5: 1.12e-05 | CK5: 1.56e-05 | CL5: 1.38e-05 | CM5: 1.95e-05 | CN5: 1.47e-05 | CO5: 1.75e-05 | CP5: 1.32e-05 | CQ5: 1.6e-05 | CR5: 1.54e-05 | CS5: 1.25e-05 | CT5: 1.63e-05 | CU5: 1.28e-05 | CV5: 1.35e-05 | CW5: 1.16e-05 | CX5: 1.3e-05 | CY5: 2.29e-05 | CZ5: 1.41e-05 | DA5: 1.35e-05 | DB5: 1.7e-05 | DC5: 1.48e-05 | DD5: 1.37e-05 | DE5: 1.13e-05 | DF5: 1.79e-05 | DG5: 1.44e-05 | DH5: 3.5e-06 | DI5: 7.5e-06 | DJ5: 8.7e-06 | DK5: 5.2e-06 | DL5: 5e-06 | DM5: 7.8e-06 | DN5: 4.8e-06 | DO5: 8.5e-06 | DP5: 1.05e-05 | DQ5: 4.8e-06 | DR5: 3.5e-06 | DS5: 8.5e-06 | DT5: 7.7e-06 | DU5: 3.2e-06 | DV5: 7.6e-06 | DW5: 6.1e-06 | DX5: 5.9e-06 | DY5: 4.6e-06 | DZ5: 1.43e-05 | EA5: 7.3e-06 | EB5: 1.21e-05 | EC5: 1.43e-05 | ED5: 1.68e-05 | EE5: 1.3e-05 | EF5: 1.5e-05 | EG5: 1.62e-05 | EH5: 1.3e-05 | EI5: 1.3e-05 | EJ5: 1.22e-05 | EK5: 1.21e-05 | EL5: 9.6e-06 | EM5: 1.17e-05 | EN5: 1.23e-05 | EO5: 1.73e-05 | EP5: 1.38e-05 | EQ5: 1.66e-05 | ER5: 1.28e-05 | ES5: 1.86e-05 | ET5: 2.11e-05 | EU5: 2.18e-05 | EV5: 2.2e-05 | EW5: 2.71e-05 | EX5: 2.1e-05 | EY5: 3.46e-05 | EZ5: 1.72e-05 | FA5: 1.54e-05 | FB5: 1.65e-05 | FC5: 3.87e-05 | FD5: 2.26e-05 | FE5: 2.36e-05 | FF5: 2.08e-05 | FG5: 7.1e-06 | FH5: 6.6e-06 | FI5: 1.01e-05 | FJ5: 7.6e-06 | FK5: 6.7e-06 | FL5: 1.91e-05 | FM5: 1.67e-05 | FN5: 1.96e-05 | FO5: 1.78e-05 | FP5: 1.69e-05 | FQ5: 2.29e-05 | FR5: 7.01e-05 | FS5: 3.78e-05 | FT5: 7.61e-05 | FU5: 4.4e-05 | FV5: 5.86e-05 | FW5: 3.66e-05 | FX5: 6e-05 | FY5: 6.7e-05 | FZ5: 1.36e-05 | GA5: 1.81e-05 | GB5: 1.52e-05 | GC5: 9.4e-06 | GD5: 1.12e-05 | GE5: 1.29e-05 | GF5: 5.2e-05 | GG5: 2.64e-05 | GH5: 4.93e-05 | GI5: 2.58e-05 | GJ5: 3.89e-05 | GK5: 0.0002437 | GL5: 0.0004407 | GM5: 0.0005407 | GN5: 0.0003646 | GO5: 0.0002794 | GP5: 0.0003216 | GQ5: 0.0007426 | GR5: 0.0007019 | GS5: 0.0314809 | GT5: 0.0133715 | GU5: 0.0004774 | GV5: 0.0006366 | GW5: 0.000516 | GX5: 0.0019374 | GY5: 0.0002295 | GZ5: 0.0003199 | HA5: 0.0004327 | HB5: 0.0016559 | HC5: 0.0013515 | HD5: 0.0030981 | HE5: 0.0004784 | HF5: 0.0028715 | HG5: 0.0072492 | HH5: 0.0320336 | HI5: 0.0008841 | HJ5: 0.0001147 | HK5: 0.0002293 | HL5: 7.07e-05 | HM5: 2.93e-05 | HN5: 0.0001191 | HO5: 4.31e-05 | HP5: 3.53e-05 | HQ5: 4.04e-05 | HR5: 3.23e-05 | HS5: 3.32e-05 | HT5: 3.59e-05 | HU5: 6.56e-05 | HV5: 0.0001729 | HW5: 0.0001029 | HX5: 0.0001535 | HY5: 7.26e-05 | HZ5: 4.41e-05 | IA5: 6.32e-05 | IB5: 6.15e-05 | IC5: 7.57e-05 | ID5: 3.53e-05 | IE5: 3.13e-05 | IF5: 8.9e-06 | IG5: 2.05e-05 | IH5: 1.42e-05 | II5: 1.91e-05 | IJ5: 2.68e-05 | IK5: 2.72e-05 | IL5: 1.99e-05 | IM5: 1.93e-05 | IN5: 0.0001361 | IO5: 5.41e-05 | IP5: 5.47e-05 | IQ5: 2.89e-05 | IR5: 4.31e-05 | IS5: 2.32e-05 | IT5: 7.5e-06 | IU5: 1.79e-05 | IV5: 7.93e-05 | IW5: 3.74e-05 | IX5: 4.24e-05 | IY5: 2.81e-05 | IZ5: 2.82e-05 | JA5: 2.19e-05 | JB5: 4.74e-05 | JC5: 3.66e-05 | JD5: 3.05e-05 | JE5: 2.85e-05 | JF5: 3.67e-05 | JG5: 3.61e-05 | JH5: 3.92e-05 | JI5: 3.14e-05 | JJ5: 0.0002045 | JK5: 5.48e-05 | JL5: 9.29e-05 | JM5: 2.21e-05 | JN5: 1.5e-05 | JO5: 1.96e-05 | JP5: 1.72e-05 | JQ5: 2.16e-05 | JR5: 1.65e-05 | JS5: 2.04e-05 | JT5: 5.9e-06 | JU5: 2.56e-05 | JV5: 8.2e-06 | JW5: 0 | JX5: 1.24e-05 | JY5: 2.23e-05 | JZ5: 1.53e-05 | KA5: 1.15e-05 | KB5: 9.7e-06 | KC5: 2.19e-05 | KD5: 1.41e-05 | KE5: 1.49e-05 | KF5: 1.52e-05 | KG5: 8.07e-05 | KH5: 2.61e-05 | KI5: 0.0001034 | KJ5: 4.59e-05 | KK5: 1.63e-05 | KL5: 1.28e-05 | KM5: 0.0006221 | KN5: 6.28e-05 | KO5: 1.46e-05 | KP5: 1.45e-05 | KQ5: 1.72e-05 | KR5: 1.91e-05 | KS5: 1.8e-05 | KT5: 8.8e-06 | KU5: 9.8e-06 | KV5: 4.8e-06 | KW5: 3.79e-05 | KX5: 2.73e-05 | KY5: 8.5e-06 | KZ5: 1.49e-05 | LA5: 1.57e-05 | LB5: 3.47e-05 | LC5: 1.98e-05 | LD5: 5.47e-05 | LE5: 1.6e-05 | LF5: 1.56e-05 | LG5: 2.34e-05 | LH5: 1.38e-05 | LI5: 4.8e-06 | LJ5: 9.4e-06 | LK5: 8.1e-06 | LL5: 2.36e-05 | LM5: 3e-06 | LN5: 8e-07 | LO5: 2.97e-05 | LP5: 1.86e-05 | LQ5: 1.64e-05 | LR5: 1.36e-05 | LS5: 1.2e-05 | LT5: 1.63e-05 | LU5: 7.6e-06 | LV5: 1.53e-05 | LW5: 2.21e-05 | LX5: 1.44e-05 | LY5: 2.12e-05 | LZ5: 2e-05 | MA5: 1.52e-05 | MB5: 2.01e-05 | MC5: 2.41e-05 | MD5: 1.22e-05 | ME5: 1.7e-05 | MF5: 4.05e-05 | MG5: 1.18e-05 | MH5: 1.46e-05 | MI5: 1.35e-05 | MJ5: 1.54e-05 | MK5: 2.24e-05 | ML5: 1.86e-05 | MM5: 2.32e-05 | MN5: 3.02e-05 | MO5: 2.26e-05 | MP5: 3.03e-05 | MQ5: 3.98e-05 | MR5: 0.0005152 | MS5: 0.0003111 | MT5: 1.82e-05 | MU5: 2.1e-05 | MV5: 1.07e-05 | MW5: 1.17e-05 | MX5: 3.56e-05 | MY5: 1.04e-05 | MZ5: 7.18e-05 | NA5: 3.19e-05 | NB5: 0.0001335 | NC5: 0.0001621 | ND5: 0.0001203 | NE5: 9.57e-05 | NF5: 0.0001441 | NG5: 0.0001393 | NH5: 9.8e-06 | NI5: 0.0004976 | NJ5: 5.7e-06 | NK5: 2.31e-05 | NL5: 3.32e-05 | NM5: 0.0003467 | NN5: 2.01e-05 | NO5: 0.0038766 | NP5: 0.0001129 | NQ5: 0.0008897 | NR5: 0.0007304 | NS5: 0.0001948 | NT5: 7e-06 | NU5: 4.8e-06 | NV5: 9e-06 | NW5: 2.8e-06 | NX5: 1.05e-05 | NY5: 2.7e-06 | NZ5: 1.04e-05 | OA5: 1.06e-05 | OB5: 0.0001528 | OC5: 1.51e-05 | OD5: 0.0001111 | OE5: 0 | OF5: 1.92e-05 | OG5: 7.8e-06 | OH5: 2.51e-05 | OI5: 0.0001801 | OJ5: 0.0002289 | OK5: 0.0004945 | OL5: 0.0001497 | OM5: 2.09e-05 | ON5: 9.02e-05 | OO5: 0 | OP5: 0 | OQ5: 7.8e-06 | OR5: 10745 | OT5: 0 | OV5: 111200 | OW5: Vegetable and melon farming | OX5: 0 | OY5: 14753 | OZ5: 14753 | PA5: 7586 | PB5: 2336 | PC5: 0 | PD5: =((OX5/OY5)*'2012 Imports - Hidden'!OT9)+'2012 - Hidden'!PC5 -> 0 | PE5: 1 | PF5: 3 | PG5: 0 | PI5: 111 | PJ5: 111200 | PK5: 0 | PL5: 14753 | PO5: 113 | PP5: 113 | PQ5: 0 | PR5: 16455 | PS5: 0 | PU5: 0 | PV5: 6193 | PX5: 321900 | PY5: 0 | PZ5: 38611 | QA5: 0 | QD5: 211 | QE5: 0 | QF5: 9629 | QI5: 647
A6: 111300 | B6: Fruit and tree nut farming | C6: 0.0004596 | D6: 0.0008193 | E6: 0.0005884 | F6: 1.00651 | G6: 0.0003499 | H6: 0.0006526 | I6: 0.0008232 | J6: 0.0004459 | K6: 0.0009654 | L6: 0.000272 | M6: 0.0016499 | N6: 5.64e-05 | O6: 0.0068061 | P6: 1.55e-05 | Q6: 2.64e-05 | R6: 2.79e-05 | S6: 3.31e-05 | T6: 3.43e-05 | U6: 2.5e-05 | V6: 1.65e-05 | W6: 3.38e-05 | X6: 3.34e-05 | Y6: 2.31e-05 | Z6: 3.64e-05 | AA6: 2.28e-05 | AB6: 2.4e-05 | AC6: 3.56e-05 | AD6: 3.56e-05 | AE6: 2.44e-05 | AF6: 1.07e-05 | AG6: 2.87e-05 | AH6: 1.7e-05 | AI6: 3.16e-05 | AJ6: 1.53e-05 | AK6: 2.2e-05 | AL6: 2.38e-05 | AM6: 0.0004973 | AN6: 0.0002907 | AO6: 0.0001901 | AP6: 0.0001256 | AQ6: 3.28e-05 | AR6: 3.28e-05 | AS6: 2.97e-05 | AT6: 4.67e-05 | AU6: 5.33e-05 | AV6: 4.35e-05 | AW6: 4.37e-05 | AX6: 2.59e-05 | AY6: 4.08e-05 | AZ6: 3.85e-05 | BA6: 3.43e-05 | BB6: 3.18e-05 | BC6: 8.6e-05 | BD6: 5.95e-05 | BE6: 6.95e-05 | BF6: 5.24e-05 | BG6: 3.3e-05 | BH6: 4.21e-05 | BI6: 4.22e-05 | BJ6: 6.72e-05 | BK6: 4.5e-05 | BL6: 5.91e-05 | BM6: 4.71e-05 | BN6: 4.51e-05 | BO6: 3.54e-05 | BP6: 4.84e-05 | BQ6: 4.62e-05 | BR6: 3.24e-05 | BS6: 4.64e-05 | BT6: 4.42e-05 | BU6: 4.5e-05 | BV6: 4.22e-05 | BW6: 3.57e-05 | BX6: 3.91e-05 | BY6: 3.9e-05 | BZ6: 2.97e-05 | CA6: 3.64e-05 | CB6: 2.68e-05 | CC6: 4.26e-05 | CD6: 2.48e-05 | CE6: 3.92e-05 | CF6: 4.46e-05 | CG6: 3.71e-05 | CH6: 3.45e-05 | CI6: 4.33e-05 | CJ6: 2.37e-05 | CK6: 3.5e-05 | CL6: 3.26e-05 | CM6: 3.12e-05 | CN6: 3.02e-05 | CO6: 3.81e-05 | CP6: 2.7e-05 | CQ6: 3.32e-05 | CR6: 3.3e-05 | CS6: 3.03e-05 | CT6: 3.84e-05 | CU6: 2.96e-05 | CV6: 2.78e-05 | CW6: 2.72e-05 | CX6: 3.11e-05 | CY6: 4.04e-05 | CZ6: 3.06e-05 | DA6: 2.97e-05 | DB6: 3.69e-05 | DC6: 3.14e-05 | DD6: 3.14e-05 | DE6: 2.83e-05 | DF6: 3.6e-05 | DG6: 3.32e-05 | DH6: 7.3e-06 | DI6: 1.66e-05 | DJ6: 1.5e-05 | DK6: 1.13e-05 | DL6: 1.05e-05 | DM6: 1.62e-05 | DN6: 1.02e-05 | DO6: 1.65e-05 | DP6: 2.08e-05 | DQ6: 9.9e-06 | DR6: 7.8e-06 | DS6: 1.78e-05 | DT6: 1.75e-05 | DU6: 6.7e-06 | DV6: 1.76e-05 | DW6: 1.33e-05 | DX6: 1.24e-05 | DY6: 1.03e-05 | DZ6: 2.26e-05 | EA6: 1.35e-05 | EB6: 2.23e-05 | EC6: 2.97e-05 | ED6: 2.98e-05 | EE6: 2.71e-05 | EF6: 2.65e-05 | EG6: 3.25e-05 | EH6: 2.53e-05 | EI6: 2.82e-05 | EJ6: 2.47e-05 | EK6: 2.59e-05 | EL6: 1.77e-05 | EM6: 2.36e-05 | EN6: 2.62e-05 | EO6: 3.29e-05 | EP6: 2.89e-05 | EQ6: 3.09e-05 | ER6: 2.93e-05 | ES6: 3.5e-05 | ET6: 3.82e-05 | EU6: 3.82e-05 | EV6: 4.01e-05 | EW6: 4.84e-05 | EX6: 3.52e-05 | EY6: 5.48e-05 | EZ6: 3.68e-05 | FA6: 3.06e-05 | FB6: 3.85e-05 | FC6: 5.79e-05 | FD6: 5.78e-05 | FE6: 4.68e-05 | FF6: 4.4e-05 | FG6: 1.53e-05 | FH6: 1.44e-05 | FI6: 2.15e-05 | FJ6: 1.57e-05 | FK6: 1.28e-05 | FL6: 4.29e-05 | FM6: 3.91e-05 | FN6: 3.68e-05 | FO6: 3.34e-05 | FP6: 3.31e-05 | FQ6: 4.05e-05 | FR6: 8.92e-05 | FS6: 5.31e-05 | FT6: 9.03e-05 | FU6: 7.19e-05 | FV6: 8.66e-05 | FW6: 5.89e-05 | FX6: 8.02e-05 | FY6: 6.04e-05 | FZ6: 2.48e-05 | GA6: 3.72e-05 | GB6: 3e-05 | GC6: 1.77e-05 | GD6: 2.69e-05 | GE6: 2.61e-05 | GF6: 6.92e-05 | GG6: 3.8e-05 | GH6: 6.43e-05 | GI6: 4.33e-05 | GJ6: 5.56e-05 | GK6: 0.0013598 | GL6: 0.0017471 | GM6: 0.0007469 | GN6: 0.0003768 | GO6: 0.0003956 | GP6: 0.0004102 | GQ6: 0.0124354 | GR6: 0.0354474 | GS6: 0.0343334 | GT6: 0.075077 | GU6: 0.0028526 | GV6: 0.0030857 | GW6: 0.0029255 | GX6: 0.0336663 | GY6: 0.0005939 | GZ6: 0.0006164 | HA6: 0.0013015 | HB6: 0.0091905 | HC6: 0.0143727 | HD6: 0.0531203 | HE6: 0.347413 | HF6: 0.0230009 | HG6: 0.0336801 | HH6: 0.0989704 | HI6: 0.0061601 | HJ6: 0.0002209 | HK6: 0.148004 | HL6: 0.0094995 | HM6: 3.41e-05 | HN6: 0.0001315 | HO6: 5.75e-05 | HP6: 5.08e-05 | HQ6: 5.05e-05 | HR6: 4.43e-05 | HS6: 4.99e-05 | HT6: 4.71e-05 | HU6: 0.0001332 | HV6: 0.0001872 | HW6: 0.0001167 | HX6: 0.0001717 | HY6: 8.93e-05 | HZ6: 5.71e-05 | IA6: 8.31e-05 | IB6: 7.44e-05 | IC6: 7.28e-05 | ID6: 5.47e-05 | IE6: 4.58e-05 | IF6: 1.66e-05 | IG6: 3.02e-05 | IH6: 2.28e-05 | II6: 3.1e-05 | IJ6: 3.4e-05 | IK6: 3.81e-05 | IL6: 2.99e-05 | IM6: 3.15e-05 | IN6: 0.00015 | IO6: 6.52e-05 | IP6: 6.55e-05 | IQ6: 5.21e-05 | IR6: 0.0001125 | IS6: 5.54e-05 | IT6: 1.63e-05 | IU6: 3.12e-05 | IV6: 8.98e-05 | IW6: 5.25e-05 | IX6: 5.46e-05 | IY6: 4.01e-05 | IZ6: 4.44e-05 | JA6: 3.84e-05 | JB6: 6.21e-05 | JC6: 5.21e-05 | JD6: 4.08e-05 | JE6: 3.9e-05 | JF6: 6.78e-05 | JG6: 5.02e-05 | JH6: 5.12e-05 | JI6: 4.84e-05 | JJ6: 0.000214 | JK6: 6.93e-05 | JL6: 0.0001094 | JM6: 5.02e-05 | JN6: 2.58e-05 | JO6: 3.44e-05 | JP6: 3.42e-05 | JQ6: 3.33e-05 | JR6: 2.45e-05 | JS6: 3.22e-05 | JT6: 9.3e-06 | JU6: 4.4e-05 | JV6: 1.95e-05 | JW6: 0 | JX6: 2.44e-05 | JY6: 6.15e-05 | JZ6: 4.33e-05 | KA6: 2.34e-05 | KB6: 2.28e-05 | KC6: 4.89e-05 | KD6: 3.08e-05 | KE6: 2.64e-05 | KF6: 2.74e-05 | KG6: 0.0005182 | KH6: 2.98e-05 | KI6: 0.000638 | KJ6: 4.1e-05 | KK6: 2.35e-05 | KL6: 1.54e-05 | KM6: 0.0001782 | KN6: 4.64e-05 | KO6: 3.01e-05 | KP6: 2.45e-05 | KQ6: 3.25e-05 | KR6: 3.53e-05 | KS6: 3.39e-05 | KT6: 2.18e-05 | KU6: 2.79e-05 | KV6: 1.21e-05 | KW6: 0.0001134 | KX6: 7.92e-05 | KY6: 2.1e-05 | KZ6: 3.59e-05 | LA6: 4.16e-05 | LB6: 8.08e-05 | LC6: 3.97e-05 | LD6: 0.0001011 | LE6: 4.77e-05 | LF6: 4.14e-05 | LG6: 7.87e-05 | LH6: 4.2e-05 | LI6: 1.69e-05 | LJ6: 2.81e-05 | LK6: 2.15e-05 | LL6: 7.17e-05 | LM6: 6.3e-06 | LN6: 1.5e-06 | LO6: 7.02e-05 | LP6: 4.81e-05 | LQ6: 3.49e-05 | LR6: 3.18e-05 | LS6: 3.22e-05 | LT6: 4.25e-05 | LU6: 2.03e-05 | LV6: 4.26e-05 | LW6: 6.33e-05 | LX6: 4e-05 | LY6: 5.36e-05 | LZ6: 5.9e-05 | MA6: 4.29e-05 | MB6: 6.33e-05 | MC6: 6.09e-05 | MD6: 3.19e-05 | ME6: 4.19e-05 | MF6: 0.0001933 | MG6: 3.36e-05 | MH6: 3.55e-05 | MI6: 3.71e-05 | MJ6: 3.19e-05 | MK6: 7e-05 | ML6: 4.81e-05 | MM6: 6.4e-05 | MN6: 9.69e-05 | MO6: 7.81e-05 | MP6: 0.0001165 | MQ6: 0.0001399 | MR6: 0.0005025 | MS6: 0.0007036 | MT6: 3.83e-05 | MU6: 5.83e-05 | MV6: 2.53e-05 | MW6: 3.67e-05 | MX6: 0.0002292 | MY6: 2.11e-05 | MZ6: 0.0005087 | NA6: 0.0001639 | NB6: 0.0011696 | NC6: 0.0005788 | ND6: 0.0005157 | NE6: 0.0012314 | NF6: 0.0008876 | NG6: 0.0015714 | NH6: 2.59e-05 | NI6: 0.0015368 | NJ6: 1.71e-05 | NK6: 7.51e-05 | NL6: 0.0002372 | NM6: 0.001281 | NN6: 0.0001726 | NO6: 0.0027767 | NP6: 0.0010577 | NQ6: 0.0016976 | NR6: 0.002294 | NS6: 0.0017159 | NT6: 1.46e-05 | NU6: 1.02e-05 | NV6: 2e-05 | NW6: 5.5e-06 | NX6: 2.97e-05 | NY6: 4.1e-06 | NZ6: 2.21e-05 | OA6: 2.51e-05 | OB6: 0.0006322 | OC6: 0.0001745 | OD6: 0.0006822 | OE6: 0 | OF6: 6.81e-05 | OG6: 2.54e-05 | OH6: 6.2e-05 | OI6: 0.0009426 | OJ6: 0.0004018 | OK6: 0.0038368 | OL6: 0.0007474 | OM6: 2.79e-05 | ON6: 0.0003739 | OO6: 0 | OP6: 0 | OQ6: 2.54e-05 | OR6: 8886 | OT6: 0 | OV6: 111300 | OW6: Fruit and tree nut farming | OX6: 0 | OY6: 25763 | OZ6: 25763 | PA6: 17305 | PB6: 4941 | PC6: 0 | PD6: =((OX6/OY6)*'2012 Imports - Hidden'!OT10)+'2012 - Hidden'!PC6 -> 0 | PE6: 1 | PF6: 4 | PG6: 0 | PI6: 111 | PJ6: 111300 | PK6: 0 | PL6: 25763 | PO6: 114 | PP6: 114 | PQ6: 0 | PR6: 8366 | PS6: 0 | PU6: 0 | PV6: 1052 | PX6: 327100 | PY6: 0 | PZ6: 6877 | QA6: 0 | QD6: 212 | QE6: 0 | QF6: 12394 | QI6: 148
A7: 111400 | B7: Greenhouse, nursery, and floriculture production | C7: 0.0015087 | D7: 0.0026944 | E7: 0.0019167 | F7: 0.0022886 | G7: 1.19102 | H7: 0.0021693 | I7: 0.0011751 | J7: 0.0011054 | K7: 0.0012117 | L7: 0.0005225 | M7: 0.0048994 | N7: 0.0002354 | O7: 0.0201353 | P7: 0.0001255 | Q7: 0.00019 | R7: 0.0002433 | S7: 0.0003354 | T7: 0.0002073 | U7: 0.000283 | V7: 0.0001546 | W7: 0.0001553 | X7: 0.0001097 | Y7: 0.0001176 | Z7: 0.000253 | AA7: 0.0001455 | AB7: 0.0001447 | AC7: 0.0002071 | AD7: 0.0013631 | AE7: 0.0001496 | AF7: 6.95e-05 | AG7: 0.0013811 | AH7: 0.0001283 | AI7: 0.0002021 | AJ7: 0.0001079 | AK7: 0.0006176 | AL7: 0.0001499 | AM7: 0.0015832 | AN7: 0.0010515 | AO7: 0.0006696 | AP7: 0.0005166 | AQ7: 0.0002316 | AR7: 0.0003092 | AS7: 0.0002213 | AT7: 0.0004743 | AU7: 0.0002412 | AV7: 0.0002464 | AW7: 0.0002803 | AX7: 0.000202 | AY7: 0.0004078 | AZ7: 0.0002925 | BA7: 0.0003226 | BB7: 0.0001766 | BC7: 0.000455 | BD7: 0.0003682 | BE7: 0.0003889 | BF7: 0.000319 | BG7: 0.0002264 | BH7: 0.0002744 | BI7: 0.0002769 | BJ7: 0.0003435 | BK7: 0.0002409 | BL7: 0.0003177 | BM7: 0.00026 | BN7: 0.0002857 | BO7: 0.0002199 | BP7: 0.0002542 | BQ7: 0.0002973 | BR7: 0.0001998 | BS7: 0.0002473 | BT7: 0.0002671 | BU7: 0.000249 | BV7: 0.0004249 | BW7: 0.0002377 | BX7: 0.0002356 | BY7: 0.0002861 | BZ7: 0.0002304 | CA7: 0.0002329 | CB7: 0.000168 | CC7: 0.0003106 | CD7: 0.0001736 | CE7: 0.0002472 | CF7: 0.0003809 | CG7: 0.000507 | CH7: 0.0003304 | CI7: 0.0006626 | CJ7: 0.0004243 | CK7: 0.0004988 | CL7: 0.0003139 | CM7: 0.0006983 | CN7: 0.0004726 | CO7: 0.0004389 | CP7: 0.0002497 | CQ7: 0.0002986 | CR7: 0.0003136 | CS7: 0.0001753 | CT7: 0.0002324 | CU7: 0.0002116 | CV7: 0.0004064 | CW7: 0.0001866 | CX7: 0.0001805 | CY7: 0.000365 | CZ7: 0.0003756 | DA7: 0.0003897 | DB7: 0.0005211 | DC7: 0.0002106 | DD7: 0.0002612 | DE7: 0.0001885 | DF7: 0.0003748 | DG7: 0.0003802 | DH7: 3.81e-05 | DI7: 9.52e-05 | DJ7: 0.0001457 | DK7: 5.99e-05 | DL7: 6.21e-05 | DM7: 0.0001674 | DN7: 8.16e-05 | DO7: 0.0001122 | DP7: 0.0001533 | DQ7: 7.62e-05 | DR7: 4.65e-05 | DS7: 0.000121 | DT7: 0.000108 | DU7: 4.88e-05 | DV7: 0.000112 | DW7: 7.68e-05 | DX7: 8.01e-05 | DY7: 6.56e-05 | DZ7: 0.0001614 | EA7: 0.0001292 | EB7: 0.0001532 | EC7: 0.0002976 | ED7: 0.0003096 | EE7: 0.0002088 | EF7: 0.0002642 | EG7: 0.0002844 | EH7: 0.0002034 | EI7: 0.0001896 | EJ7: 0.0003457 | EK7: 0.0003784 | EL7: 0.0011525 | EM7: 0.0001963 | EN7: 0.0001846 | EO7: 0.0002677 | EP7: 0.0002588 | EQ7: 0.000409 | ER7: 0.0001646 | ES7: 0.0003206 | ET7: 0.0003357 | EU7: 0.0003124 | EV7: 0.0002646 | EW7: 0.0003436 | EX7: 0.0002727 | EY7: 0.0003559 | EZ7: 0.0005861 | FA7: 0.0003582 | FB7: 0.000345 | FC7: 0.0004304 | FD7: 0.0003136 | FE7: 0.0004204 | FF7: 0.0005267 | FG7: 0.0001127 | FH7: 0.0002402 | FI7: 0.0001423 | FJ7: 0.0001698 | FK7: 0.0001249 | FL7: 0.0002512 | FM7: 0.0002044 | FN7: 0.0004427 | FO7: 0.0001751 | FP7: 0.0002399 | FQ7: 0.0004539 | FR7: 0.0003733 | FS7: 0.0003595 | FT7: 0.000421 | FU7: 0.0004472 | FV7: 0.0004712 | FW7: 0.000379 | FX7: 0.0003775 | FY7: 0.000348 | FZ7: 0.00027 | GA7: 0.0002082 | GB7: 0.0002808 | GC7: 0.0001835 | GD7: 0.000144 | GE7: 0.0001891 | GF7: 0.0003585 | GG7: 0.0010466 | GH7: 0.000595 | GI7: 0.0003713 | GJ7: 0.0203568 | GK7: 0.0009095 | GL7: 0.0013954 | GM7: 0.0018318 | GN7: 0.003151 | GO7: 0.0009917 | GP7: 0.0011295 | GQ7: 0.0010102 | GR7: 0.0013584 | GS7: 0.0011583 | GT7: 0.0016873 | GU7: 0.0008179 | GV7: 0.001032 | GW7: 0.0008806 | GX7: 0.0019968 | GY7: 0.0007308 | GZ7: 0.0007234 | HA7: 0.0002668 | HB7: 0.0015866 | HC7: 0.0014117 | HD7: 0.0095042 | HE7: 0.0010977 | HF7: 0.0015459 | HG7: 0.0016049 | HH7: 0.0277906 | HI7: 0.0007303 | HJ7: 0.0005061 | HK7: 0.0005019 | HL7: 0.0017211 | HM7: 0.0001923 | HN7: 0.0009146 | HO7: 0.0006366 | HP7: 0.0005046 | HQ7: 0.0006103 | HR7: 0.0008705 | HS7: 0.0003953 | HT7: 0.0004812 | HU7: 0.0003675 | HV7: 0.0008651 | HW7: 0.0006856 | HX7: 0.0008117 | HY7: 0.0005144 | HZ7: 0.0005776 | IA7: 0.0004896 | IB7: 0.0005265 | IC7: 0.0004375 | ID7: 0.0004997 | IE7: 0.0002893 | IF7: 0.0001618 | IG7: 0.0004341 | IH7: 0.0001593 | II7: 0.0003239 | IJ7: 0.0008542 | IK7: 0.000637 | IL7: 0.0005243 | IM7: 0.0005421 | IN7: 0.0048441 | IO7: 0.0018314 | IP7: 0.0013275 | IQ7: 0.0005119 | IR7: 0.0003996 | IS7: 0.0002436 | IT7: 8.13e-05 | IU7: 0.0003887 | IV7: 0.0019525 | IW7: 0.0008505 | IX7: 0.0011285 | IY7: 0.0007155 | IZ7: 0.0005355 | JA7: 0.000495 | JB7: 0.0007777 | JC7: 0.0009953 | JD7: 0.0008673 | JE7: 0.0006436 | JF7: 0.0007933 | JG7: 0.0006362 | JH7: 0.0011401 | JI7: 0.0006906 | JJ7: 0.001057 | JK7: 0.0005885 | JL7: 0.0009969 | JM7: 0.0001626 | JN7: 0.0001332 | JO7: 0.0001578 | JP7: 0.000144 | JQ7: 0.0001786 | JR7: 0.0001329 | JS7: 0.0002022 | JT7: 0.0001579 | JU7: 0.0002833 | JV7: 7.4e-05 | JW7: 0 | JX7: 0.00418 | JY7: 0.0028929 | JZ7: 0.0001473 | KA7: 0.0001238 | KB7: 0.0001445 | KC7: 0.0075587 | KD7: 0.0002697 | KE7: 0.0001227 | KF7: 0.0001589 | KG7: 0.000134 | KH7: 0.0001915 | KI7: 0.0001428 | KJ7: 0.0003098 | KK7: 0.0002962 | KL7: 8.89e-05 | KM7: 0.0001945 | KN7: 0.0001889 | KO7: 0.0002634 | KP7: 9.8e-05 | KQ7: 0.0001347 | KR7: 0.0001477 | KS7: 0.0001645 | KT7: 8.87e-05 | KU7: 8.53e-05 | KV7: 3.9e-05 | KW7: 0.0001049 | KX7: 0.0001091 | KY7: 0.0001135 | KZ7: 0.0001624 | LA7: 0.000143 | LB7: 0.000164 | LC7: 0.0001772 | LD7: 7.13e-05 | LE7: 9.51e-05 | LF7: 7.89e-05 | LG7: 0.0001432 | LH7: 9.81e-05 | LI7: 5.68e-05 | LJ7: 6.59e-05 | LK7: 4.91e-05 | LL7: 0.0001413 | LM7: 7.43e-05 | LN7: 1.95e-05 | LO7: 0.0005846 | LP7: 0.000129 | LQ7: 0.0001347 | LR7: 0.0001033 | LS7: 0.0001258 | LT7: 0.0001144 | LU7: 5.18e-05 | LV7: 8.29e-05 | LW7: 9.9e-05 | LX7: 0.0002649 | LY7: 0.0002886 | LZ7: 0.0002993 | MA7: 0.0001337 | MB7: 0.0001348 | MC7: 0.0004484 | MD7: 0.0001432 | ME7: 0.0001279 | MF7: 0.0001894 | MG7: 0.0001109 | MH7: 0.0001137 | MI7: 5.96e-05 | MJ7: 0.0088956 | MK7: 0.0001925 | ML7: 0.0002263 | MM7: 0.0001641 | MN7: 0.0001433 | MO7: 0.0002513 | MP7: 0.0001736 | MQ7: 0.00066 | MR7: 0.0001714 | MS7: 0.0001311 | MT7: 0.0001888 | MU7: 0.0001016 | MV7: 0.000116 | MW7: 0.0001612 | MX7: 0.0001586 | MY7: 0.0001567 | MZ7: 0.0001549 | NA7: 0.0002614 | NB7: 0.0001998 | NC7: 0.0002016 | ND7: 0.0002177 | NE7: 0.0002612 | NF7: 0.0002347 | NG7: 0.0004621 | NH7: 0.0001556 | NI7: 0.0005297 | NJ7: 3.02e-05 | NK7: 0.0001785 | NL7: 0.0005215 | NM7: 0.0018572 | NN7: 0.0004402 | NO7: 0.0027955 | NP7: 0.0002535 | NQ7: 0.0002622 | NR7: 0.0003382 | NS7: 0.0001886 | NT7: 0.0002056 | NU7: 6.61e-05 | NV7: 0.0001457 | NW7: 5.75e-05 | NX7: 0.0002491 | NY7: 0.0007964 | NZ7: 0.000215 | OA7: 0.0001524 | OB7: 0.0010415 | OC7: 0.0002285 | OD7: 0.0003255 | OE7: 0 | OF7: 8.68e-05 | OG7: 6.83e-05 | OH7: 0.0002582 | OI7: 0.0004368 | OJ7: 9.52e-05 | OK7: 0.0003017 | OL7: 0.0035213 | OM7: 0.0002264 | ON7: 0.0016651 | OO7: 0 | OP7: 0 | OQ7: 6.83e-05 | OR7: 8437 | OT7: 0 | OV7: 111400 | OW7: Greenhouse, nursery, and floriculture production | OX7: 0 | OY7: 18835 | OZ7: 18835 | PA7: 9834 | PB7: 4982 | PC7: 0 | PD7: =((OX7/OY7)*'2012 Imports - Hidden'!OT11)+'2012 - Hidden'!PC7 -> 0 | PE7: 1 | PF7: 5 | PG7: 0 | PI7: 111 | PJ7: 111400 | PK7: 0 | PL7: 18835 | PO7: 115 | PP7: 115 | PQ7: 0 | PR7: 23011 | PS7: 0 | PU7: 0 | PV7: 12624 | PX7: 327200 | PY7: 0 | PZ7: 23074 | QA7: 0 | QD7: 213 | QE7: 0 | QF7: 57814 | QI7: 3019
A8: 111900 | B8: Other crop farming | C8: 0.0104504 | D8: 0.002707 | E8: 0.0007561 | F8: 0.0008164 | G8: 0.0004317 | H8: 1.0282 | I8: 0.0078678 | J8: 0.00686 | K8: 0.0041004 | L8: 0.0015446 | M8: 0.0763587 | N8: 0.0002732 | O8: 0.0058159 | P8: 9.04e-05 | Q8: 0.0005263 | R8: 0.0005674 | S8: 0.0009848 | T8: 0.0002881 | U8: 0.0004244 | V8: 0.0001486 | W8: 0.0001569 | X8: 0.0001038 | Y8: 7.03e-05 | Z8: 0.0002667 | AA8: 0.0006357 | AB8: 0.0006402 | AC8: 0.0007853 | AD8: 0.0026653 | AE8: 0.0005921 | AF8: 0.0002191 | AG8: 0.001059 | AH8: 0.0003169 | AI8: 0.0007322 | AJ8: 0.0003806 | AK8: 0.000632 | AL8: 0.000438 | AM8: 0.0220713 | AN8: 0.0126319 | AO8: 0.0076426 | AP8: 0.0052976 | AQ8: 0.0006771 | AR8: 0.0002873 | AS8: 0.0001785 | AT8: 0.000385 | AU8: 0.0002494 | AV8: 0.0002896 | AW8: 0.0005653 | AX8: 0.0008689 | AY8: 0.0007142 | AZ8: 0.0002302 | BA8: 0.0007525 | BB8: 0.0002909 | BC8: 0.0003501 | BD8: 0.0002806 | BE8: 0.0002954 | BF8: 0.0002374 | BG8: 0.0002939 | BH8: 0.0002837 | BI8: 0.0003204 | BJ8: 0.0001953 | BK8: 0.0002 | BL8: 0.0002349 | BM8: 0.0001905 | BN8: 0.0002198 | BO8: 0.0002662 | BP8: 0.0002032 | BQ8: 0.0002753 | BR8: 0.0001758 | BS8: 0.0002069 | BT8: 0.0005346 | BU8: 0.0003615 | BV8: 0.0003184 | BW8: 0.0001524 | BX8: 0.0001643 | BY8: 0.000292 | BZ8: 0.0002978 | CA8: 0.0002806 | CB8: 0.0001084 | CC8: 0.0001872 | CD8: 0.0003166 | CE8: 0.0002447 | CF8: 0.0007289 | CG8: 0.0004859 | CH8: 0.0003667 | CI8: 0.0002814 | CJ8: 0.000182 | CK8: 0.0002291 | CL8: 0.00014 | CM8: 0.0004683 | CN8: 0.0005703 | CO8: 0.0002834 | CP8: 0.0002019 | CQ8: 0.0015316 | CR8: 0.0002313 | CS8: 0.0001443 | CT8: 0.0002075 | CU8: 0.0001544 | CV8: 0.0003013 | CW8: 0.0001266 | CX8: 0.0001414 | CY8: 0.0006087 | CZ8: 0.0002155 | DA8: 0.0001975 | DB8: 0.0003417 | DC8: 0.0001973 | DD8: 0.0007148 | DE8: 0.0001111 | DF8: 0.0016644 | DG8: 0.0002159 | DH8: 2.9e-05 | DI8: 5.59e-05 | DJ8: 0.0001976 | DK8: 4.49e-05 | DL8: 4.74e-05 | DM8: 9.69e-05 | DN8: 5.91e-05 | DO8: 0.0001075 | DP8: 0.000145 | DQ8: 8.77e-05 | DR8: 6.15e-05 | DS8: 0.0001129 | DT8: 8.57e-05 | DU8: 3.98e-05 | DV8: 5.67e-05 | DW8: 6.81e-05 | DX8: 9.39e-05 | DY8: 4.84e-05 | DZ8: 0.0004017 | EA8: 0.0001273 | EB8: 0.0002031 | EC8: 0.0002374 | ED8: 0.000385 | EE8: 0.0002421 | EF8: 0.0003857 | EG8: 0.0003432 | EH8: 0.0002413 | EI8: 0.0001998 | EJ8: 0.0002133 | EK8: 0.0001759 | EL8: 0.0002132 | EM8: 0.0001783 | EN8: 0.0001858 | EO8: 0.0002965 | EP8: 0.0002167 | EQ8: 0.0003256 | ER8: 0.0001257 | ES8: 0.0007179 | ET8: 0.0009235 | EU8: 0.0007698 | EV8: 0.000672 | EW8: 0.000734 | EX8: 0.0008167 | EY8: 0.0013186 | EZ8: 0.0002749 | FA8: 0.0002501 | FB8: 0.0002151 | FC8: 0.0034081 | FD8: 0.0002759 | FE8: 0.0005633 | FF8: 0.0004285 | FG8: 0.0002053 | FH8: 0.0001177 | FI8: 0.0001971 | FJ8: 0.0001126 | FK8: 0.0001365 | FL8: 0.0004278 | FM8: 0.0002525 | FN8: 0.0008154 | FO8: 0.0004641 | FP8: 0.0003816 | FQ8: 0.0007267 | FR8: 0.0026735 | FS8: 0.004919 | FT8: 0.0035667 | FU8: 0.0015778 | FV8: 0.0024815 | FW8: 0.0013054 | FX8: 0.0025631 | FY8: 0.0048985 | FZ8: 0.000779 | GA8: 0.0011681 | GB8: 0.0002874 | GC8: 0.0004224 | GD8: 0.0001074 | GE8: 0.0001645 | GF8: 0.0024034 | GG8: 0.0033238 | GH8: 0.0017223 | GI8: 0.000892 | GJ8: 0.0022024 | GK8: 0.0032693 | GL8: 0.0077212 | GM8: 0.0025872 | GN8: 0.003169 | GO8: 0.0189267 | GP8: 0.0242607 | GQ8: 0.0113001 | GR8: 0.0471595 | GS8: 0.0027864 | GT8: 0.0090851 | GU8: 0.0065153 | GV8: 0.0049239 | GW8: 0.0052187 | GX8: 0.0055247 | GY8: 0.0025007 | GZ8: 0.0039812 | HA8: 0.0005193 | HB8: 0.0033801 | HC8: 0.0070825 | HD8: 0.0610237 | HE8: 0.0611191 | HF8: 0.0064595 | HG8: 0.0910024 | HH8: 0.0078518 | HI8: 0.0018505 | HJ8: 0.0016878 | HK8: 0.0010215 | HL8: 0.001449 | HM8: 0.0316018 | HN8: 0.146527 | HO8: 0.0263806 | HP8: 0.0187048 | HQ8: 0.0244436 | HR8: 0.0150852 | HS8: 0.0078639 | HT8: 0.0068688 | HU8: 0.0018875 | HV8: 0.0073376 | HW8: 0.0050958 | HX8: 0.00638 | HY8: 0.0027944 | HZ8: 0.0022309 | IA8: 0.0026363 | IB8: 0.0044393 | IC8: 0.0026186 | ID8: 0.0009786 | IE8: 0.0013344 | IF8: 0.0001224 | IG8: 0.0004592 | IH8: 0.0001704 | II8: 0.0005222 | IJ8: 0.0006691 | IK8: 0.0019393 | IL8: 0.0004988 | IM8: 0.0004337 | IN8: 0.0039202 | IO8: 0.0014573 | IP8: 0.0192408 | IQ8: 0.0025128 | IR8: 0.0005086 | IS8: 0.0002739 | IT8: 8.22e-05 | IU8: 0.0003165 | IV8: 0.0026036 | IW8: 0.0012599 | IX8: 0.0018364 | IY8: 0.0008033 | IZ8: 0.000934 | JA8: 0.0005032 | JB8: 0.0009241 | JC8: 0.0009181 | JD8: 0.0007641 | JE8: 0.0009256 | JF8: 0.0025189 | JG8: 0.001027 | JH8: 0.0009493 | JI8: 0.0008209 | JJ8: 0.0113006 | JK8: 0.0056123 | JL8: 0.0052523 | JM8: 0.0001038 | JN8: 6.91e-05 | JO8: 9.45e-05 | JP8: 7.73e-05 | JQ8: 0.0001384 | JR8: 9.77e-05 | JS8: 0.0001325 | JT8: 6.56e-05 | JU8: 0.0001513 | JV8: 9.85e-05 | JW8: 0 | JX8: 7.31e-05 | JY8: 0.0001255 | JZ8: 0.0002878 | KA8: 5.31e-05 | KB8: 7.13e-05 | KC8: 0.0001082 | KD8: 0.0002762 | KE8: 8.38e-05 | KF8: 0.0001331 | KG8: 0.0001455 | KH8: 0.0004113 | KI8: 0.0002615 | KJ8: 9.64e-05 | KK8: 0.0002408 | KL8: 6.93e-05 | KM8: 0.0001852 | KN8: 0.0001679 | KO8: 0.0001334 | KP8: 0.0001829 | KQ8: 0.0001504 | KR8: 0.0002156 | KS8: 0.0001926 | KT8: 6.36e-05 | KU8: 0.0001656 | KV8: 4.11e-05 | KW8: 7.34e-05 | KX8: 8.88e-05 | KY8: 7.72e-05 | KZ8: 0.0001455 | LA8: 8.33e-05 | LB8: 0.0002071 | LC8: 0.0001554 | LD8: 0.0001055 | LE8: 5.99e-05 | LF8: 5.77e-05 | LG8: 8.21e-05 | LH8: 5.67e-05 | LI8: 2.36e-05 | LJ8: 3.32e-05 | LK8: 2.81e-05 | LL8: 7.76e-05 | LM8: 0.0001356 | LN8: 3.28e-05 | LO8: 0.0001999 | LP8: 0.0001272 | LQ8: 0.0001488 | LR8: 0.000111 | LS8: 6.48e-05 | LT8: 5.96e-05 | LU8: 2.74e-05 | LV8: 5.98e-05 | LW8: 7e-05 | LX8: 4.85e-05 | LY8: 0.0001609 | LZ8: 8.86e-05 | MA8: 7.82e-05 | MB8: 0.000139 | MC8: 0.0001748 | MD8: 0.0001393 | ME8: 0.0001242 | MF8: 0.0005106 | MG8: 9.19e-05 | MH8: 6.7e-05 | MI8: 4.13e-05 | MJ8: 0.0002442 | MK8: 0.0001158 | ML8: 0.0002049 | MM8: 0.0001209 | MN8: 0.0001047 | MO8: 0.0001022 | MP8: 0.0001648 | MQ8: 0.0002224 | MR8: 0.0002107 | MS8: 0.0004132 | MT8: 0.0001386 | MU8: 0.0001065 | MV8: 9.23e-05 | MW8: 0.0001245 | MX8: 0.0001645 | MY8: 0.0001199 | MZ8: 0.000253 | NA8: 0.000272 | NB8: 0.0004716 | NC8: 0.0004475 | ND8: 0.000636 | NE8: 0.0006433 | NF8: 0.0004432 | NG8: 0.0014344 | NH8: 6.82e-05 | NI8: 0.0001847 | NJ8: 1.41e-05 | NK8: 7.27e-05 | NL8: 0.0001373 | NM8: 0.0003666 | NN8: 0.0001908 | NO8: 0.0019094 | NP8: 0.0006271 | NQ8: 0.00084 | NR8: 0.0011838 | NS8: 0.0005617 | NT8: 0.0001024 | NU8: 4.45e-05 | NV8: 0.0001791 | NW8: 7.11e-05 | NX8: 0.000107 | NY8: 9.25e-05 | NZ8: 0.0006391 | OA8: 0.0001021 | OB8: 0.0003045 | OC8: 0.0001165 | OD8: 0.0004818 | OE8: 0 | OF8: 0.0001491 | OG8: -5.07e-05 | OH8: 9.09e-05 | OI8: 0.0005492 | OJ8: 0.0002874 | OK8: 0.0012309 | OL8: 0.00051 | OM8: 0.0003009 | ON8: 0.0005424 | OO8: 0 | OP8: 0 | OQ8: -5.07e-05 | OR8: 5888 | OT8: 0 | OV8: 111900 | OW8: Other crop farming | OX8: 0 | OY8: 18751 | OZ8: 18751 | PA8: 9167 | PB8: 4480 | PC8: 0 | PD8: =((OX8/OY8)*'2012 Imports - Hidden'!OT12)+'2012 - Hidden'!PC8 -> 0 | PE8: 1 | PF8: 6 | PG8: 0 | PI8: 111 | PJ8: 111900 | PK8: 0 | PL8: 18751 | PO8: 211 | PP8: 211 | PQ8: 0 | PR8: 313193 | PS8: 0 | PU8: 0 | PV8: 9629 | PX8: 327310 | PY8: 0 | PZ8: 5728 | QA8: 0 | QD8: 221 | QE8: 0 | QF8: 67835 | QI8: 499
A9: 112120 | B9: Dairy cattle and milk production | C9: 0.0008899 | D9: 0.0015937 | E9: 0.0011374 | F9: 0.001412 | G9: 0.0006915 | H9: 0.0012563 | I9: 1.00131 | J9: 0.0008669 | K9: 0.0021439 | L9: 0.0006334 | M9: 0.0031309 | N9: 0.0001143 | O9: 0.0128882 | P9: 3.02e-05 | Q9: 5.19e-05 | R9: 5.78e-05 | S9: 6.52e-05 | T9: 5.03e-05 | U9: 4.96e-05 | V9: 3.23e-05 | W9: 7.43e-05 | X9: 5.41e-05 | Y9: 4.3e-05 | Z9: 7.27e-05 | AA9: 4.43e-05 | AB9: 4.69e-05 | AC9: 6.91e-05 | AD9: 7.02e-05 | AE9: 4.75e-05 | AF9: 2.1e-05 | AG9: 5.66e-05 | AH9: 3.33e-05 | AI9: 6.22e-05 | AJ9: 3.05e-05 | AK9: 4.34e-05 | AL9: 4.49e-05 | AM9: 0.0009454 | AN9: 0.0005557 | AO9: 0.0003586 | AP9: 0.0002404 | AQ9: 6.11e-05 | AR9: 6.65e-05 | AS9: 5.13e-05 | AT9: 8.61e-05 | AU9: 7.11e-05 | AV9: 8.32e-05 | AW9: 7.72e-05 | AX9: 5.4e-05 | AY9: 8.12e-05 | AZ9: 6.47e-05 | BA9: 6.89e-05 | BB9: 5.8e-05 | BC9: 0.0001809 | BD9: 0.000123 | BE9: 0.0001453 | BF9: 0.0001083 | BG9: 6.4e-05 | BH9: 8.31e-05 | BI9: 8.52e-05 | BJ9: 0.0001442 | BK9: 9.07e-05 | BL9: 0.0001202 | BM9: 9.37e-05 | BN9: 9.14e-05 | BO9: 7.21e-05 | BP9: 9.76e-05 | BQ9: 9.4e-05 | BR9: 6.62e-05 | BS9: 9.46e-05 | BT9: 9.06e-05 | BU9: 9.02e-05 | BV9: 8.57e-05 | BW9: 7.07e-05 | BX9: 7.81e-05 | BY9: 8.1e-05 | BZ9: 6.11e-05 | CA9: 7.43e-05 | CB9: 5.4e-05 | CC9: 8.67e-05 | CD9: 5.1e-05 | CE9: 8e-05 | CF9: 8.91e-05 | CG9: 7.51e-05 | CH9: 6.92e-05 | CI9: 8.55e-05 | CJ9: 4.72e-05 | CK9: 7.09e-05 | CL9: 6.31e-05 | CM9: 7.11e-05 | CN9: 6.16e-05 | CO9: 7.92e-05 | CP9: 5.41e-05 | CQ9: 7.07e-05 | CR9: 6.9e-05 | CS9: 6.05e-05 | CT9: 7.9e-05 | CU9: 5.95e-05 | CV9: 5.66e-05 | CW9: 5.51e-05 | CX9: 6.25e-05 | CY9: 8.02e-05 | CZ9: 6.31e-05 | DA9: 6.11e-05 | DB9: 7.54e-05 | DC9: 7.09e-05 | DD9: 6.32e-05 | DE9: 5.64e-05 | DF9: 7.71e-05 | DG9: 6.74e-05 | DH9: 1.52e-05 | DI9: 3.41e-05 | DJ9: 3.3e-05 | DK9: 2.17e-05 | DL9: 2.01e-05 | DM9: 3.18e-05 | DN9: 1.98e-05 | DO9: 3.28e-05 | DP9: 4.3e-05 | DQ9: 2.09e-05 | DR9: 1.5e-05 | DS9: 3.69e-05 | DT9: 3.4e-05 | DU9: 1.33e-05 | DV9: 3.09e-05 | DW9: 3.25e-05 | DX9: 2.49e-05 | DY9: 1.95e-05 | DZ9: 4.67e-05 | EA9: 2.91e-05 | EB9: 4.59e-05 | EC9: 6.18e-05 | ED9: 6.5e-05 | EE9: 5.78e-05 | EF9: 5.76e-05 | EG9: 7.51e-05 | EH9: 5.54e-05 | EI9: 5.67e-05 | EJ9: 5.02e-05 | EK9: 5.34e-05 | EL9: 3.57e-05 | EM9: 4.67e-05 | EN9: 5.55e-05 | EO9: 6.59e-05 | EP9: 6.15e-05 | EQ9: 5.59e-05 | ER9: 5.89e-05 | ES9: 7.05e-05 | ET9: 7.78e-05 | EU9: 7.71e-05 | EV9: 8.01e-05 | EW9: 9.81e-05 | EX9: 7.17e-05 | EY9: 0.0001102 | EZ9: 7.44e-05 | FA9: 6.34e-05 | FB9: 7.75e-05 | FC9: 0.0001296 | FD9: 0.0001164 | FE9: 9.56e-05 | FF9: 8.97e-05 | FG9: 3.03e-05 | FH9: 2.77e-05 | FI9: 4.25e-05 | FJ9: 3.14e-05 | FK9: 2.66e-05 | FL9: 8.84e-05 | FM9: 7.69e-05 | FN9: 7.91e-05 | FO9: 6.74e-05 | FP9: 6.83e-05 | FQ9: 8.54e-05 | FR9: 0.0001728 | FS9: 0.0001263 | FT9: 0.0001814 | FU9: 0.0001462 | FV9: 0.0001782 | FW9: 0.0001206 | FX9: 0.0001618 | FY9: 0.0001199 | FZ9: 5.45e-05 | GA9: 7.99e-05 | GB9: 6.12e-05 | GC9: 3.89e-05 | GD9: 5.21e-05 | GE9: 4.95e-05 | GF9: 0.0001365 | GG9: 8.65e-05 | GH9: 0.0001352 | GI9: 9.09e-05 | GJ9: 0.0001168 | GK9: 0.0043362 | GL9: 0.0031678 | GM9: 0.0010944 | GN9: 0.0007324 | GO9: 0.0011518 | GP9: 0.0006403 | GQ9: 0.0028716 | GR9: 0.0127575 | GS9: 0.0371861 | GT9: 0.0568787 | GU9: 0.497324 | GV9: 0.348209 | GW9: 0.430485 | GX9: 0.147475 | GY9: 0.0011779 | GZ9: 0.0007698 | HA9: 0.000459 | HB9: 0.0073063 | HC9: 0.0132973 | HD9: 0.001377 | HE9: 0.006798 | HF9: 0.0066533 | HG9: 0.0182985 | HH9: 0.0302073 | HI9: 0.0101891 | HJ9: 0.0002502 | HK9: 0.000372 | HL9: 0.0001823 | HM9: 7.58e-05 | HN9: 0.0002788 | HO9: 0.0001359 | HP9: 0.000126 | HQ9: 0.0001264 | HR9: 0.0001092 | HS9: 0.0001123 | HT9: 0.0001157 | HU9: 0.000224 | HV9: 0.000361 | HW9: 0.0002341 | HX9: 0.0003335 | HY9: 0.0001891 | HZ9: 0.0001313 | IA9: 0.0001806 | IB9: 0.0001607 | IC9: 0.000141 | ID9: 0.0001115 | IE9: 9.2e-05 | IF9: 3.26e-05 | IG9: 6.01e-05 | IH9: 4.38e-05 | II9: 6.76e-05 | IJ9: 7.95e-05 | IK9: 8.21e-05 | IL9: 6.04e-05 | IM9: 6.91e-05 | IN9: 0.0003091 | IO9: 0.0001498 | IP9: 0.000147 | IQ9: 0.0003052 | IR9: 0.0014221 | IS9: 0.0003142 | IT9: 9.56e-05 | IU9: 9.86e-05 | IV9: 0.0001932 | IW9: 0.0001124 | IX9: 0.0001197 | IY9: 9.22e-05 | IZ9: 8.79e-05 | JA9: 8.38e-05 | JB9: 0.0001225 | JC9: 0.0001254 | JD9: 0.0001041 | JE9: 0.0001011 | JF9: 0.0001333 | JG9: 0.0001131 | JH9: 0.000125 | JI9: 0.0001093 | JJ9: 0.0004138 | JK9: 0.0001474 | JL9: 0.0002182 | JM9: 7.31e-05 | JN9: 5.21e-05 | JO9: 6.81e-05 | JP9: 6.09e-05 | JQ9: 6.22e-05 | JR9: 4.86e-05 | JS9: 6.18e-05 | JT9: 1.85e-05 | JU9: 0.0004615 | JV9: 6.59e-05 | JW9: 0 | JX9: 4.8e-05 | JY9: 8.93e-05 | JZ9: 8.1e-05 | KA9: 4.87e-05 | KB9: 5.17e-05 | KC9: 0.0001172 | KD9: 6.51e-05 | KE9: 5.32e-05 | KF9: 5.57e-05 | KG9: 0.0001775 | KH9: 5.15e-05 | KI9: 0.0003647 | KJ9: 3.9e-05 | KK9: 4.72e-05 | KL9: 2.9e-05 | KM9: 5.78e-05 | KN9: 6.77e-05 | KO9: 5.87e-05 | KP9: 6.03e-05 | KQ9: 6.02e-05 | KR9: 6.78e-05 | KS9: 6.2e-05 | KT9: 3.91e-05 | KU9: 4.15e-05 | KV9: 1.95e-05 | KW9: 5.49e-05 | KX9: 4.7e-05 | KY9: 3.51e-05 | KZ9: 6.64e-05 | LA9: 7.03e-05 | LB9: 0.000145 | LC9: 6.77e-05 | LD9: 0.0004592 | LE9: 9.53e-05 | LF9: 8.76e-05 | LG9: 0.0001768 | LH9: 8.6e-05 | LI9: 2.75e-05 | LJ9: 6.18e-05 | LK9: 3.85e-05 | LL9: 0.0001576 | LM9: 1.34e-05 | LN9: 3e-06 | LO9: 0.0001586 | LP9: 9.56e-05 | LQ9: 6.85e-05 | LR9: 6.43e-05 | LS9: 6.26e-05 | LT9: 8.51e-05 | LU9: 3.92e-05 | LV9: 8.22e-05 | LW9: 0.0001127 | LX9: 7.87e-05 | LY9: 0.0001097 | LZ9: 0.0001155 | MA9: 8.55e-05 | MB9: 0.0001023 | MC9: 6.93e-05 | MD9: 6.98e-05 | ME9: 9.15e-05 | MF9: 0.0006869 | MG9: 6.39e-05 | MH9: 6.84e-05 | MI9: 6.91e-05 | MJ9: 6.49e-05 | MK9: 0.0001324 | ML9: 9.27e-05 | MM9: 0.00012 | MN9: 0.0001793 | MO9: 0.0001552 | MP9: 0.0002331 | MQ9: 0.0002945 | MR9: 0.004055 | MS9: 0.0020331 | MT9: 9.38e-05 | MU9: 0.0001387 | MV9: 5.04e-05 | MW9: 9.63e-05 | MX9: 0.0003371 | MY9: 4.84e-05 | MZ9: 0.0004544 | NA9: 0.0001876 | NB9: 0.0013923 | NC9: 0.0019576 | ND9: 0.0010265 | NE9: 0.0006284 | NF9: 0.0101102 | NG9: 0.0009896 | NH9: 4.36e-05 | NI9: 0.0005299 | NJ9: 1.41e-05 | NK9: 9.21e-05 | NL9: 0.0001898 | NM9: 0.0017513 | NN9: 0.0001018 | NO9: 0.0041282 | NP9: 0.0007524 | NQ9: 0.0046375 | NR9: 0.0078102 | NS9: 0.0034162 | NT9: 2.97e-05 | NU9: 1.99e-05 | NV9: 4.14e-05 | NW9: 1.15e-05 | NX9: 6.01e-05 | NY9: 8.6e-06 | NZ9: 4.84e-05 | OA9: 4.89e-05 | OB9: 0.0015626 | OC9: 7.05e-05 | OD9: 0.0007483 | OE9: 0 | OF9: 0.0002904 | OG9: 2.55e-05 | OH9: 0.0001504 | OI9: 0.0028071 | OJ9: 0.0020061 | OK9: 0.0030604 | OL9: 0.0016516 | OM9: 5.35e-05 | ON9: 0.0008468 | OO9: 0 | OP9: 0 | OQ9: 2.55e-05 | OR9: 246 | OT9: 0 | OV9: 112120 | OW9: Dairy cattle and milk production | OX9: 0 | OY9: 36981 | OZ9: 36981 | PA9: 7274 | PB9: 1550 | PC9: 0 | PD9: =((OX9/OY9)*'2012 Imports - Hidden'!OT13)+'2012 - Hidden'!PC9 -> 0 | PE9: 1 | PF9: 7 | PG9: 0 | PI9: 112 | PJ9: 112120 | PK9: 0 | PL9: 36981 | PO9: 212 | PP9: 212 | PQ9: 0 | PR9: 104404 | PS9: 0 | PU9: 0 | PV9: 12394 | PX9: 327320 | PY9: 0 | PZ9: 20222 | QA9: 0 | QD9: 23 | QE9: 0 | QF9: 426370 | QI9: 0
A10: 1121A0 | B10: Beef cattle ranching and farming, including feedlots and dual-purpose ranching and farming | C10: 0.0031444 | D10: 0.0067944 | E10: 0.0028889 | F10: 0.0043387 | G10: 0.0024256 | H10: 0.0035822 | I10: 0.0730065 | J10: 1.40833 | K10: 0.0112622 | L10: 0.0155849 | M10: 0.0073183 | N10: 0.00041 | O10: 0.0293629 | P10: 7.57e-05 | Q10: 0.0001275 | R10: 0.0001318 | S10: 0.0001624 | T10: 0.0001092 | U10: 0.0001176 | V10: 8.03e-05 | W10: 0.0001373 | X10: 0.0001123 | Y10: 8.37e-05 | Z10: 0.0001525 | AA10: 9.65e-05 | AB10: 0.0001033 | AC10: 0.0001533 | AD10: 0.0001628 | AE10: 0.0001035 | AF10: 4.52e-05 | AG10: 0.0001259 | AH10: 7.06e-05 | AI10: 0.0001344 | AJ10: 7.26e-05 | AK10: 9.46e-05 | AL10: 9.82e-05 | AM10: 0.0021927 | AN10: 0.0012897 | AO10: 0.0008212 | AP10: 0.0005935 | AQ10: 0.0001303 | AR10: 0.0001396 | AS10: 0.0001055 | AT10: 0.0001991 | AU10: 0.0001463 | AV10: 0.0001665 | AW10: 0.0002051 | AX10: 0.0001133 | AY10: 0.000241 | AZ10: 0.0001346 | BA10: 0.0001598 | BB10: 0.0001173 | BC10: 0.0004615 | BD10: 0.0002977 | BE10: 0.0003344 | BF10: 0.0002439 | BG10: 0.0001402 | BH10: 0.0001786 | BI10: 0.0001869 | BJ10: 0.0003165 | BK10: 0.0001877 | BL10: 0.0002893 | BM10: 0.00021 | BN10: 0.0002108 | BO10: 0.0001794 | BP10: 0.0002166 | BQ10: 0.0002096 | BR10: 0.0001436 | BS10: 0.0002112 | BT10: 0.0002102 | BU10: 0.0001958 | BV10: 0.0002009 | BW10: 0.0001429 | BX10: 0.000167 | BY10: 0.0001826 | BZ10: 0.0001377 | CA10: 0.0001591 | CB10: 0.0001153 | CC10: 0.0001949 | CD10: 0.0001134 | CE10: 0.0001851 | CF10: 0.000207 | CG10: 0.0001736 | CH10: 0.0002262 | CI10: 0.0001847 | CJ10: 0.0001 | CK10: 0.0001501 | CL10: 0.0001289 | CM10: 0.0001699 | CN10: 0.0001607 | CO10: 0.0001744 | CP10: 0.0001214 | CQ10: 0.0001693 | CR10: 0.0001543 | CS10: 0.0001296 | CT10: 0.0001618 | CU10: 0.0001271 | CV10: 0.0001268 | CW10: 0.0001147 | CX10: 0.000134 | CY10: 0.0001824 | CZ10: 0.0001384 | DA10: 0.0001318 | DB10: 0.000176 | DC10: 0.0001429 | DD10: 0.0001373 | DE10: 0.0001211 | DF10: 0.0001756 | DG10: 0.0001793 | DH10: 3.06e-05 | DI10: 6.86e-05 | DJ10: 7.27e-05 | DK10: 4.64e-05 | DL10: 4.22e-05 | DM10: 7.23e-05 | DN10: 4.26e-05 | DO10: 7.18e-05 | DP10: 9.15e-05 | DQ10: 5.33e-05 | DR10: 3.27e-05 | DS10: 7.9e-05 | DT10: 7.18e-05 | DU10: 2.96e-05 | DV10: 6.09e-05 | DW10: 0.0001412 | DX10: 5.44e-05 | DY10: 4.73e-05 | DZ10: 9.94e-05 | EA10: 6.13e-05 | EB10: 0.000101 | EC10: 0.0001647 | ED10: 0.0001882 | EE10: 0.0001334 | EF10: 0.0001343 | EG10: 0.0001597 | EH10: 0.0001281 | EI10: 0.0001964 | EJ10: 0.0001202 | EK10: 0.0001202 | EL10: 8.73e-05 | EM10: 0.0001008 | EN10: 0.0001367 | EO10: 0.0001431 | EP10: 0.0001429 | EQ10: 0.0004926 | ER10: 0.0001169 | ES10: 0.000881 | ET10: 0.0010089 | EU10: 0.0005239 | EV10: 0.0003128 | EW10: 0.0002405 | EX10: 0.0003111 | EY10: 0.0002644 | EZ10: 0.0001809 | FA10: 0.0001433 | FB10: 0.0001761 | FC10: 0.0077609 | FD10: 0.000272 | FE10: 0.0002679 | FF10: 0.0002617 | FG10: 8.71e-05 | FH10: 6.41e-05 | FI10: 0.000144 | FJ10: 6.99e-05 | FK10: 5.79e-05 | FL10: 0.0002153 | FM10: 0.0001524 | FN10: 0.0002134 | FO10: 0.0001517 | FP10: 0.0001631 | FQ10: 0.0002022 | FR10: 0.0003843 | FS10: 0.000315 | FT10: 0.0004184 | FU10: 0.0003416 | FV10: 0.0004224 | FW10: 0.0002812 | FX10: 0.0003624 | FY10: 0.0002904 | FZ10: 0.0001327 | GA10: 0.0001875 | GB10: 0.0001451 | GC10: 8.46e-05 | GD10: 0.0001012 | GE10: 0.0001001 | GF10: 0.0007423 | GG10: 0.0002381 | GH10: 0.0003727 | GI10: 0.0002459 | GJ10: 0.0004493 | GK10: 0.084771 | GL10: 0.0208416 | GM10: 0.004946 | GN10: 0.003142 | GO10: 0.0169973 | GP10: 0.0027251 | GQ10: 0.0032812 | GR10: 0.0046492 | GS10: 0.0335209 | GT10: 0.0246639 | GU10: 0.0372546 | GV10: 0.0291044 | GW10: 0.0325707 | GX10: 0.0127005 | GY10: 0.0400196 | GZ10: 0.639758 | HA10: 0.0030485 | HB10: 0.0070496 | HC10: 0.015986 | HD10: 0.0086283 | HE10: 0.0024434 | HF10: 0.0026109 | HG10: 0.0197303 | HH10: 0.0145613 | HI10: 0.0020322 | HJ10: 0.0009811 | HK10: 0.0008836 | HL10: 0.0005915 | HM10: 0.00018 | HN10: 0.0010602 | HO10: 0.0006641 | HP10: 0.000407 | HQ10: 0.0004077 | HR10: 0.000363 | HS10: 0.0018841 | HT10: 0.0014738 | HU10: 0.0949384 | HV10: 0.0008561 | HW10: 0.0005703 | HX10: 0.0007971 | HY10: 0.0004089 | HZ10: 0.0003079 | IA10: 0.0003931 | IB10: 0.0003994 | IC10: 0.0003238 | ID10: 0.0007155 | IE10: 0.0003201 | IF10: 9.18e-05 | IG10: 0.000198 | IH10: 9.3e-05 | II10: 0.0016829 | IJ10: 0.0002577 | IK10: 0.0002331 | IL10: 0.0002322 | IM10: 0.0001781 | IN10: 0.0013021 | IO10: 0.0005098 | IP10: 0.0004896 | IQ10: 0.0011491 | IR10: 0.0037289 | IS10: 0.0025367 | IT10: 0.0006875 | IU10: 0.0001477 | IV10: 0.0006751 | IW10: 0.0003178 | IX10: 0.0003683 | IY10: 0.0014421 | IZ10: 0.0017998 | JA10: 0.0001996 | JB10: 0.0003447 | JC10: 0.0003347 | JD10: 0.000273 | JE10: 0.0002368 | JF10: 0.0003456 | JG10: 0.000279 | JH10: 0.0003593 | JI10: 0.0002604 | JJ10: 0.0011261 | JK10: 0.0003778 | JL10: 0.0005305 | JM10: 0.0001548 | JN10: 0.0001046 | JO10: 0.0001332 | JP10: 0.0001067 | JQ10: 0.0001193 | JR10: 0.0001041 | JS10: 0.0001657 | JT10: 3.85e-05 | JU10: 0.0002376 | JV10: 0.0001346 | JW10: 0 | JX10: 0.0001417 | JY10: 0.0001495 | JZ10: 0.0001196 | KA10: 0.0001059 | KB10: 0.0001118 | KC10: 0.0002483 | KD10: 0.0001925 | KE10: 0.0001594 | KF10: 9.93e-05 | KG10: 0.0001383 | KH10: 0.0001117 | KI10: 0.0004369 | KJ10: 7.77e-05 | KK10: 0.0001102 | KL10: 5.49e-05 | KM10: 0.0001326 | KN10: 9.06e-05 | KO10: 0.0001152 | KP10: 0.000123 | KQ10: 0.0001306 | KR10: 0.0001399 | KS10: 0.0001406 | KT10: 7.41e-05 | KU10: 7.2e-05 | KV10: 4.09e-05 | KW10: 7.72e-05 | KX10: 7.35e-05 | KY10: 6.72e-05 | KZ10: 0.0001264 | LA10: 0.0001346 | LB10: 0.0002807 | LC10: 0.0001516 | LD10: 0.0007334 | LE10: 0.0001695 | LF10: 0.0001489 | LG10: 0.0003009 | LH10: 0.0001503 | LI10: 5.14e-05 | LJ10: 0.0001035 | LK10: 7.32e-05 | LL10: 0.0002671 | LM10: 2.5e-05 | LN10: 5.9e-06 | LO10: 0.0002767 | LP10: 0.0001775 | LQ10: 0.0001369 | LR10: 0.0001214 | LS10: 0.0001054 | LT10: 0.0001429 | LU10: 6.87e-05 | LV10: 0.0001435 | LW10: 0.0001954 | LX10: 0.0001175 | LY10: 0.000205 | LZ10: 0.0001711 | MA10: 0.0001543 | MB10: 0.0010551 | MC10: 0.0001525 | MD10: 0.0001079 | ME10: 0.0001531 | MF10: 0.012606 | MG10: 9.81e-05 | MH10: 0.0001615 | MI10: 0.0001224 | MJ10: 0.0001589 | MK10: 0.0001886 | ML10: 0.000161 | MM10: 0.0002042 | MN10: 0.0002494 | MO10: 0.0003001 | MP10: 0.0002898 | MQ10: 0.0006517 | MR10: 0.0022417 | MS10: 0.0049596 | MT10: 0.0001774 | MU10: 0.0002339 | MV10: 0.0001006 | MW10: 0.0001909 | MX10: 0.0005082 | MY10: 0.000138 | MZ10: 0.0014299 | NA10: 0.000677 | NB10: 0.0042606 | NC10: 0.0064513 | ND10: 0.0114569 | NE10: 0.0069711 | NF10: 0.0072324 | NG10: 0.0198409 | NH10: 0.000102 | NI10: 0.0005665 | NJ10: 2.73e-05 | NK10: 0.0002321 | NL10: 0.0005658 | NM10: 0.0072702 | NN10: 0.0004982 | NO10: 0.0087885 | NP10: 0.0039141 | NQ10: 0.0072465 | NR10: 0.0094974 | NS10: 0.0018179 | NT10: 0.0001035 | NU10: 4.12e-05 | NV10: 7.82e-05 | NW10: 9.29e-05 | NX10: 0.0001373 | NY10: 2.38e-05 | NZ10: 0.0001193 | OA10: 0.0001271 | OB10: 0.0015518 | OC10: 0.0001309 | OD10: 0.0014833 | OE10: 0 | OF10: 0.0017834 | OG10: 0.000104 | OH10: 0.0002599 | OI10: 0.0044766 | OJ10: 0.0031844 | OK10: 0.0101488 | OL10: 0.0037071 | OM10: 0.0001081 | ON10: 0.0018391 | OO10: 0 | OP10: 0 | OQ10: 0.000104 | OR10: -1312 | OT10: 0 | OV10: 1121A0 | OW10: Beef cattle ranching and farming, including feedlots and dual-purpose ranching and farming | OX10: 0 | OY10: 78410 | OZ10: 78410 | PA10: 23828 | PB10: 959 | PC10: 0 | PD10: =((OX10/OY10)*'2012 Imports - Hidden'!OT14)+'2012 - Hidden'!PC10 -> 0 | PE10: 1 | PF10: 8 | PG10: 0 | PI10: 112 | PJ10: 1121A0 | PK10: 0 | PL10: 78410 | PO10: 213 | PP10: 213 | PQ10: 0 | PR10: 175348 | PS10: 0 | PU10: 0 | PV10: 57814 | PX10: 327330 | PY10: 0 | PZ10: 5337 | QA10: 0 | QD10: 311 | QE10: 0 | QF10: 79987 | QI10: 22587
A11: 112300 | B11: Poultry and egg production | C11: 0.0011264 | D11: 0.0015911 | E11: 0.001144 | F11: 0.0014373 | G11: 0.0006798 | H11: 0.0013446 | I11: 0.0008107 | J11: 0.0006735 | K11: 1.11418 | L11: 0.0003508 | M11: 0.0032175 | N11: 7.63e-05 | O11: 0.0132813 | P11: 2.08e-05 | Q11: 3.79e-05 | R11: 4.36e-05 | S11: 4.99e-05 | T11: 3.53e-05 | U11: 3.52e-05 | V11: 2.29e-05 | W11: 4.72e-05 | X11: 3.57e-05 | Y11: 3.2e-05 | Z11: 4.76e-05 | AA11: 3.51e-05 | AB11: 3.81e-05 | AC11: 5.27e-05 | AD11: 5.67e-05 | AE11: 3.74e-05 | AF11: 1.61e-05 | AG11: 4.39e-05 | AH11: 2.48e-05 | AI11: 4.83e-05 | AJ11: 2.34e-05 | AK11: 3.38e-05 | AL11: 3.46e-05 | AM11: 0.0009559 | AN11: 0.0005527 | AO11: 0.0003477 | AP11: 0.0002252 | AQ11: 4.51e-05 | AR11: 4.59e-05 | AS11: 3.6e-05 | AT11: 6.29e-05 | AU11: 4.97e-05 | AV11: 5.85e-05 | AW11: 6.24e-05 | AX11: 3.85e-05 | AY11: 5.97e-05 | AZ11: 4.54e-05 | BA11: 4.94e-05 | BB11: 4.24e-05 | BC11: 0.0001123 | BD11: 7.85e-05 | BE11: 9.05e-05 | BF11: 6.94e-05 | BG11: 4.34e-05 | BH11: 5.49e-05 | BI11: 5.63e-05 | BJ11: 8.74e-05 | BK11: 6.01e-05 | BL11: 7.65e-05 | BM11: 6.12e-05 | BN11: 5.99e-05 | BO11: 4.94e-05 | BP11: 6.38e-05 | BQ11: 6.35e-05 | BR11: 4.39e-05 | BS11: 6.18e-05 | BT11: 5.86e-05 | BU11: 6.29e-05 | BV11: 5.75e-05 | BW11: 4.77e-05 | BX11: 5.21e-05 | BY11: 5.38e-05 | BZ11: 4.2e-05 | CA11: 4.96e-05 | CB11: 3.56e-05 | CC11: 5.65e-05 | CD11: 3.68e-05 | CE11: 5.38e-05 | CF11: 6.49e-05 | CG11: 5.29e-05 | CH11: 4.93e-05 | CI11: 5.83e-05 | CJ11: 3.25e-05 | CK11: 4.86e-05 | CL11: 4.38e-05 | CM11: 5.09e-05 | CN11: 4.31e-05 | CO11: 5.36e-05 | CP11: 3.73e-05 | CQ11: 4.77e-05 | CR11: 4.68e-05 | CS11: 4.06e-05 | CT11: 5.31e-05 | CU11: 4e-05 | CV11: 3.86e-05 | CW11: 3.69e-05 | CX11: 4.18e-05 | CY11: 5.94e-05 | CZ11: 4.26e-05 | DA11: 4.14e-05 | DB11: 5.12e-05 | DC11: 4.7e-05 | DD11: 4.3e-05 | DE11: 3.75e-05 | DF11: 5.27e-05 | DG11: 4.56e-05 | DH11: 1.06e-05 | DI11: 2.37e-05 | DJ11: 2.31e-05 | DK11: 1.52e-05 | DL11: 1.42e-05 | DM11: 2.24e-05 | DN11: 1.37e-05 | DO11: 2.33e-05 | DP11: 3.04e-05 | DQ11: 1.41e-05 | DR11: 1.05e-05 | DS11: 2.54e-05 | DT11: 2.35e-05 | DU11: 9.2e-06 | DV11: 2.2e-05 | DW11: 1.86e-05 | DX11: 1.71e-05 | DY11: 1.37e-05 | DZ11: 3.83e-05 | EA11: 2.04e-05 | EB11: 3.25e-05 | EC11: 4.46e-05 | ED11: 4.67e-05 | EE11: 3.84e-05 | EF11: 4e-05 | EG11: 4.88e-05 | EH11: 3.8e-05 | EI11: 4.02e-05 | EJ11: 3.48e-05 | EK11: 3.63e-05 | EL11: 2.56e-05 | EM11: 3.12e-05 | EN11: 3.73e-05 | EO11: 4.56e-05 | EP11: 4.19e-05 | EQ11: 4.71e-05 | ER11: 4.18e-05 | ES11: 6.42e-05 | ET11: 7.19e-05 | EU11: 6.32e-05 | EV11: 6.1e-05 | EW11: 7.23e-05 | EX11: 5.59e-05 | EY11: 8.53e-05 | EZ11: 5.05e-05 | FA11: 4.35e-05 | FB11: 5.13e-05 | FC11: 0.0002449 | FD11: 7.58e-05 | FE11: 6.76e-05 | FF11: 6.21e-05 | FG11: 2.12e-05 | FH11: 1.96e-05 | FI11: 3.04e-05 | FJ11: 2.2e-05 | FK11: 1.9e-05 | FL11: 5.95e-05 | FM11: 5.34e-05 | FN11: 5.53e-05 | FO11: 4.88e-05 | FP11: 4.72e-05 | FQ11: 6.04e-05 | FR11: 0.0001527 | FS11: 9.46e-05 | FT11: 0.0001622 | FU11: 0.0001133 | FV11: 0.0001428 | FW11: 9.22e-05 | FX11: 0.0001365 | FY11: 8.22e-05 | FZ11: 3.84e-05 | GA11: 5.63e-05 | GB11: 4.24e-05 | GC11: 2.6e-05 | GD11: 3.61e-05 | GE11: 3.39e-05 | GF11: 0.0001159 | GG11: 6.41e-05 | GH11: 0.0001102 | GI11: 6.71e-05 | GJ11: 9.44e-05 | GK11: 0.0022249 | GL11: 0.0013792 | GM11: 0.0011089 | GN11: 0.0007212 | GO11: 0.0009582 | GP11: 0.0007822 | GQ11: 0.0013915 | GR11: 0.0054958 | GS11: 0.0340383 | GT11: 0.0057889 | GU11: 0.0009606 | GV11: 0.0011321 | GW11: 0.0010634 | GX11: 0.021598 | GY11: 0.551442 | GZ11: 0.0136829 | HA11: 0.0004041 | HB11: 0.0135605 | HC11: 0.0175206 | HD11: 0.0013045 | HE11: 0.0007521 | HF11: 0.0014775 | HG11: 0.0184073 | HH11: 0.0235809 | HI11: 0.0005642 | HJ11: 0.0002353 | HK11: 0.0003881 | HL11: 0.0001495 | HM11: 6.52e-05 | HN11: 0.0002549 | HO11: 0.0001026 | HP11: 8.92e-05 | HQ11: 9.27e-05 | HR11: 7.87e-05 | HS11: 0.0001099 | HT11: 0.0001098 | HU11: 0.0020797 | HV11: 0.0003458 | HW11: 0.0002129 | HX11: 0.0003128 | HY11: 0.0001566 | HZ11: 0.0001002 | IA11: 0.0001436 | IB11: 0.0001341 | IC11: 0.0001122 | ID11: 9.31e-05 | IE11: 7.64e-05 | IF11: 2.31e-05 | IG11: 4.58e-05 | IH11: 3.07e-05 | II11: 7.82e-05 | IJ11: 6.09e-05 | IK11: 6.21e-05 | IL11: 4.65e-05 | IM11: 4.83e-05 | IN11: 0.0002831 | IO11: 0.0001197 | IP11: 0.0001197 | IQ11: 7.82e-05 | IR11: 0.0001304 | IS11: 8.92e-05 | IT11: 2.62e-05 | IU11: 5.05e-05 | IV11: 0.0001684 | IW11: 8.66e-05 | IX11: 9.46e-05 | IY11: 9.1e-05 | IZ11: 9.65e-05 | JA11: 5.55e-05 | JB11: 9.54e-05 | JC11: 8.96e-05 | JD11: 7.28e-05 | JE11: 6.93e-05 | JF11: 9.76e-05 | JG11: 8.06e-05 | JH11: 9.1e-05 | JI11: 7.83e-05 | JJ11: 0.0004014 | JK11: 0.0001218 | JL11: 0.0001952 | JM11: 5.12e-05 | JN11: 3.61e-05 | JO11: 4.81e-05 | JP11: 4.09e-05 | JQ11: 4.32e-05 | JR11: 3.41e-05 | JS11: 4.43e-05 | JT11: 1.31e-05 | JU11: 0.0001494 | JV11: 0.000236 | JW11: 0 | JX11: 3.44e-05 | JY11: 4.94e-05 | JZ11: 3.67e-05 | KA11: 2.85e-05 | KB11: 3.28e-05 | KC11: 6.24e-05 | KD11: 4.61e-05 | KE11: 3.54e-05 | KF11: 3.76e-05 | KG11: 0.000103 | KH11: 4e-05 | KI11: 0.0002045 | KJ11: 2.62e-05 | KK11: 3.44e-05 | KL11: 1.96e-05 | KM11: 3.86e-05 | KN11: 4.3e-05 | KO11: 4.09e-05 | KP11: 3.15e-05 | KQ11: 4.28e-05 | KR11: 4.87e-05 | KS11: 4.53e-05 | KT11: 2.89e-05 | KU11: 2.91e-05 | KV11: 1.48e-05 | KW11: 4.13e-05 | KX11: 3.47e-05 | KY11: 2.56e-05 | KZ11: 4.9e-05 | LA11: 5.34e-05 | LB11: 0.0001112 | LC11: 5.05e-05 | LD11: 7.97e-05 | LE11: 6.17e-05 | LF11: 6.17e-05 | LG11: 9.71e-05 | LH11: 5.41e-05 | LI11: 1.86e-05 | LJ11: 3.88e-05 | LK11: 2.84e-05 | LL11: 9.6e-05 | LM11: 9.5e-06 | LN11: 2.1e-06 | LO11: 0.0001122 | LP11: 6.79e-05 | LQ11: 6.57e-05 | LR11: 5.98e-05 | LS11: 4.23e-05 | LT11: 6.15e-05 | LU11: 2.87e-05 | LV11: 5.95e-05 | LW11: 8.4e-05 | LX11: 5.5e-05 | LY11: 7.9e-05 | LZ11: 8e-05 | MA11: 5.96e-05 | MB11: 8.9e-05 | MC11: 5e-05 | MD11: 4.68e-05 | ME11: 6.22e-05 | MF11: 0.0003415 | MG11: 4.42e-05 | MH11: 4.72e-05 | MI11: 5.17e-05 | MJ11: 4.67e-05 | MK11: 9.09e-05 | ML11: 6.65e-05 | MM11: 8.39e-05 | MN11: 0.0001232 | MO11: 0.0001011 | MP11: 0.0001484 | MQ11: 0.000175 | MR11: 0.0006877 | MS11: 0.0005107 | MT11: 4.94e-05 | MU11: 8.78e-05 | MV11: 3.56e-05 | MW11: 4.81e-05 | MX11: 0.0002133 | MY11: 3.07e-05 | MZ11: 0.0003117 | NA11: 0.0001204 | NB11: 0.0009265 | NC11: 0.00207 | ND11: 0.0027537 | NE11: 0.0010097 | NF11: 0.0008895 | NG11: 0.0221851 | NH11: 3.02e-05 | NI11: 0.0004118 | NJ11: 1.01e-05 | NK11: 6.18e-05 | NL11: 0.0001357 | NM11: 0.0016804 | NN11: 9.54e-05 | NO11: 0.0042631 | NP11: 0.0008955 | NQ11: 0.0037372 | NR11: 0.0039984 | NS11: 0.0019582 | NT11: 2.16e-05 | NU11: 1.42e-05 | NV11: 2.91e-05 | NW11: 9.5e-06 | NX11: 4.12e-05 | NY11: 6.4e-06 | NZ11: 3.39e-05 | OA11: 3.48e-05 | OB11: 0.0001603 | OC11: 5.01e-05 | OD11: 0.0004806 | OE11: 0 | OF11: 0.0004367 | OG11: 3.36e-05 | OH11: 9.33e-05 | OI11: 0.0009957 | OJ11: 0.0002741 | OK11: 0.0021547 | OL11: 0.0009117 | OM11: 3.78e-05 | ON11: 0.0004845 | OO11: 0 | OP11: 0 | OQ11: 3.36e-05 | OR11: 5275 | OT11: 0 | OV11: 112300 | OW11: Poultry and egg production | OX11: 0 | OY11: 37700 | OZ11: 37700 | PA11: 3713 | PB11: 1361 | PC11: 0 | PD11: =((OX11/OY11)*'2012 Imports - Hidden'!OT15)+'2012 - Hidden'!PC11 -> 0 | PE11: 1 | PF11: 9 | PG11: 0 | PI11: 112 | PJ11: 112300 | PK11: 0 | PL11: 37700 | PO11: 221 | PP11: 221 | PQ11: 0 | PR11: 456650 | PS11: 0 | PU11: 0 | PV11: 67835 | PX11: 327390 | PY11: 0 | PZ11: 8396 | QA11: 0 | QD11: 312 | QE11: 0 | QF11: 14794 | QI11: 3834
A12: 112A00 | B12: Animal production, except cattle and poultry and eggs | C12: 0.0022215 | D12: 0.0044843 | E12: 0.0022357 | F12: 0.0030716 | G12: 0.0016212 | H12: 0.0035248 | I12: 0.0074189 | J12: 0.0122409 | K12: 0.0048411 | L12: 1.14201 | M12: 0.0158145 | N12: 0.0002722 | O12: 0.0238944 | P12: 5.38e-05 | Q12: 0.000158 | R12: 0.0001626 | S12: 0.0002038 | T12: 0.0001201 | U12: 9.25e-05 | V12: 5.51e-05 | W12: 8.72e-05 | X12: 7.72e-05 | Y12: 5.77e-05 | Z12: 0.000109 | AA12: 0.000137 | AB12: 0.0001601 | AC12: 0.0001853 | AD12: 0.0002612 | AE12: 0.0001568 | AF12: 5.96e-05 | AG12: 0.0001709 | AH12: 9.93e-05 | AI12: 0.0001753 | AJ12: 8.13e-05 | AK12: 0.0001347 | AL12: 0.0001216 | AM12: 0.004627 | AN12: 0.002721 | AO12: 0.0017079 | AP12: 0.0012508 | AQ12: 0.0002719 | AR12: 0.0001235 | AS12: 9.02e-05 | AT12: 0.0001478 | AU12: 0.0001558 | AV12: 0.0001413 | AW12: 0.000201 | AX12: 0.0005866 | AY12: 0.0005166 | AZ12: 0.0001027 | BA12: 0.0003819 | BB12: 0.0001137 | BC12: 0.0002576 | BD12: 0.000186 | BE12: 0.0001992 | BF12: 0.0001539 | BG12: 0.0001167 | BH12: 0.0001346 | BI12: 0.0001432 | BJ12: 0.0001772 | BK12: 0.0001285 | BL12: 0.0001721 | BM12: 0.000135 | BN12: 0.0001383 | BO12: 0.000137 | BP12: 0.000143 | BQ12: 0.0001476 | BR12: 0.0001061 | BS12: 0.0001411 | BT12: 0.000423 | BU12: 0.0001979 | BV12: 0.0001704 | BW12: 0.0001067 | BX12: 0.0001167 | BY12: 0.0001316 | BZ12: 0.0001231 | CA12: 0.0001608 | CB12: 8.1e-05 | CC12: 0.0001282 | CD12: 0.0001117 | CE12: 0.0001395 | CF12: 0.0002771 | CG12: 0.0002051 | CH12: 0.0001928 | CI12: 0.0001621 | CJ12: 0.0001056 | CK12: 0.0001376 | CL12: 9.98e-05 | CM12: 0.0001826 | CN12: 0.0002825 | CO12: 0.0001422 | CP12: 0.0001126 | CQ12: 0.0012711 | CR12: 0.0001203 | CS12: 9.94e-05 | CT12: 0.0001258 | CU12: 0.0001031 | CV12: 0.0001599 | CW12: 8.52e-05 | CX12: 9.65e-05 | CY12: 0.0002484 | CZ12: 0.0001222 | DA12: 0.0001154 | DB12: 0.0001734 | DC12: 0.0001121 | DD12: 0.0006127 | DE12: 9.01e-05 | DF12: 0.0009218 | DG12: 0.0001356 | DH12: 2.71e-05 | DI12: 6.17e-05 | DJ12: 7.89e-05 | DK12: 4.36e-05 | DL12: 3.66e-05 | DM12: 6.6e-05 | DN12: 3.75e-05 | DO12: 6.73e-05 | DP12: 7.85e-05 | DQ12: 4.66e-05 | DR12: 3.42e-05 | DS12: 7.3e-05 | DT12: 5.93e-05 | DU12: 2.4e-05 | DV12: 4.67e-05 | DW12: 7.36e-05 | DX12: 4.88e-05 | DY12: 3.69e-05 | DZ12: 0.0001353 | EA12: 5.98e-05 | EB12: 8.98e-05 | EC12: 0.0001232 | ED12: 0.000162 | EE12: 0.0001188 | EF12: 0.0001444 | EG12: 0.0001653 | EH12: 0.0001137 | EI12: 0.0001223 | EJ12: 0.0001148 | EK12: 9.42e-05 | EL12: 0.0001045 | EM12: 8.01e-05 | EN12: 9.72e-05 | EO12: 0.0001194 | EP12: 0.0001006 | EQ12: 0.0002276 | ER12: 8.75e-05 | ES12: 0.000516 | ET12: 0.000624 | EU12: 0.0004549 | EV12: 0.0003487 | EW12: 0.0002654 | EX12: 0.0003724 | EY12: 0.0003986 | EZ12: 0.0001483 | FA12: 0.0001214 | FB12: 0.0001296 | FC12: 0.0037143 | FD12: 0.0001786 | FE12: 0.0002442 | FF12: 0.0002089 | FG12: 9.08e-05 | FH12: 6.12e-05 | FI12: 0.000107 | FJ12: 6.02e-05 | FK12: 5.46e-05 | FL12: 0.0003516 | FM12: 0.0001541 | FN12: 0.0005265 | FO12: 0.000173 | FP12: 0.0001385 | FQ12: 0.0002472 | FR12: 0.0006555 | FS12: 0.003679 | FT12: 0.0012117 | FU12: 0.0005833 | FV12: 0.0009737 | FW12: 0.0004606 | FX12: 0.00081 | FY12: 0.0022143 | FZ12: 0.000314 | GA12: 0.0006033 | GB12: 0.0001159 | GC12: 0.0002443 | GD12: 7.37e-05 | GE12: 8.44e-05 | GF12: 0.0011038 | GG12: 0.0013679 | GH12: 0.0004609 | GI12: 0.000418 | GJ12: 0.0009776 | GK12: 0.0303533 | GL12: 0.0085733 | GM12: 0.0030625 | GN12: 0.0020565 | GO12: 0.0065653 | GP12: 0.0017527 | GQ12: 0.0018688 | GR12: 0.0022224 | GS12: 0.0125971 | GT12: 0.0092667 | GU12: 0.0042673 | GV12: 0.004491 | GW12: 0.0038883 | GX12: 0.0036759 | GY12: 0.0183927 | GZ12: 0.222942 | HA12: 0.093538 | HB12: 0.0038815 | HC12: 0.0065936 | HD12: 0.004203 | HE12: 0.0014944 | HF12: 0.0021353 | HG12: 0.0102904 | HH12: 0.0380668 | HI12: 0.0008973 | HJ12: 0.0006891 | HK12: 0.0006655 | HL12: 0.0004071 | HM12: 0.0003282 | HN12: 0.0261021 | HO12: 0.0232393 | HP12: 0.0094286 | HQ12: 0.0065981 | HR12: 0.006834 | HS12: 0.011241 | HT12: 0.00444 | HU12: 0.0337498 | HV12: 0.001644 | HW12: 0.0015729 | HX12: 0.0014398 | HY12: 0.0007446 | HZ12: 0.0007634 | IA12: 0.0007184 | IB12: 0.0024102 | IC12: 0.0007739 | ID12: 0.0005575 | IE12: 0.0006186 | IF12: 6.23e-05 | IG12: 0.0001965 | IH12: 8.26e-05 | II12: 0.0006499 | IJ12: 0.0001718 | IK12: 0.0001693 | IL12: 0.0001544 | IM12: 0.0001254 | IN12: 0.0008666 | IO12: 0.0003517 | IP12: 0.0034903 | IQ12: 0.0004702 | IR12: 0.0013531 | IS12: 0.000932 | IT12: 0.0002559 | IU12: 0.0001028 | IV12: 0.0005999 | IW12: 0.0002882 | IX12: 0.0004382 | IY12: 0.0006131 | IZ12: 0.0007467 | JA12: 0.0001552 | JB12: 0.0002519 | JC12: 0.0002586 | JD12: 0.0002047 | JE12: 0.0002535 | JF12: 0.0005968 | JG12: 0.0003336 | JH12: 0.0002563 | JI12: 0.0002639 | JJ12: 0.0031755 | JK12: 0.0027498 | JL12: 0.0014311 | JM12: 0.0001068 | JN12: 8.15e-05 | JO12: 0.0001101 | JP12: 8.07e-05 | JQ12: 0.0001105 | JR12: 9.03e-05 | JS12: 0.0001234 | JT12: 5.04e-05 | JU12: 0.000136 | JV12: 7.74e-05 | JW12: 0 | JX12: 8.62e-05 | JY12: 0.0001087 | JZ12: 0.000193 | KA12: 6.22e-05 | KB12: 7.12e-05 | KC12: 0.0001371 | KD12: 0.0002701 | KE12: 9.35e-05 | KF12: 9.96e-05 | KG12: 0.0001416 | KH12: 0.0001322 | KI12: 0.0003023 | KJ12: 8.25e-05 | KK12: 0.0001014 | KL12: 4.83e-05 | KM12: 0.0004592 | KN12: 0.0001187 | KO12: 8.74e-05 | KP12: 0.0001034 | KQ12: 0.0001024 | KR12: 0.0001302 | KS12: 0.0001222 | KT12: 5.31e-05 | KU12: 7.45e-05 | KV12: 2.96e-05 | KW12: 8.26e-05 | KX12: 7.46e-05 | KY12: 5.29e-05 | KZ12: 9.98e-05 | LA12: 8.8e-05 | LB12: 0.000184 | LC12: 0.0001145 | LD12: 0.0003004 | LE12: 9.45e-05 | LF12: 8.84e-05 | LG12: 0.000153 | LH12: 8.4e-05 | LI12: 2.93e-05 | LJ12: 5.64e-05 | LK12: 4.27e-05 | LL12: 0.0001432 | LM12: 2.3e-05 | LN12: 5.6e-06 | LO12: 0.0001759 | LP12: 0.0001325 | LQ12: 0.0001091 | LR12: 9.18e-05 | LS12: 6.76e-05 | LT12: 8.89e-05 | LU12: 4.36e-05 | LV12: 9.31e-05 | LW12: 0.0001191 | LX12: 7.49e-05 | LY12: 0.000143 | LZ12: 0.000112 | MA12: 0.0001148 | MB12: 0.0021743 | MC12: 0.0001244 | MD12: 8.45e-05 | ME12: 0.000106 | MF12: 0.0045248 | MG12: 7.18e-05 | MH12: 0.0001823 | MI12: 7.7e-05 | MJ12: 0.0001273 | MK12: 0.0001272 | ML12: 0.0001196 | MM12: 0.0001345 | MN12: 0.0001655 | MO12: 0.000332 | MP12: 0.000201 | MQ12: 0.0003307 | MR12: 0.0008697 | MS12: 0.0019195 | MT12: 0.0001154 | MU12: 0.0001408 | MV12: 7.36e-05 | MW12: 0.000102 | MX12: 0.0002796 | MY12: 8.03e-05 | MZ12: 0.0005813 | NA12: 0.0003062 | NB12: 0.0017303 | NC12: 0.0024972 | ND12: 0.0046501 | NE12: 0.0026116 | NF12: 0.0024393 | NG12: 0.007559 | NH12: 6.65e-05 | NI12: 0.0007292 | NJ12: 1.97e-05 | NK12: 0.000122 | NL12: 0.0002936 | NM12: 0.0058358 | NN12: 0.0006822 | NO12: 0.0070304 | NP12: 0.001678 | NQ12: 0.0040116 | NR12: 0.0055023 | NS12: 0.0014174 | NT12: 6.97e-05 | NU12: 3.47e-05 | NV12: 9.32e-05 | NW12: 5.88e-05 | NX12: 8.97e-05 | NY12: 4.29e-05 | NZ12: 0.0003574 | OA12: 8.36e-05 | OB12: 0.0006044 | OC12: 8.77e-05 | OD12: 0.0006732 | OE12: 0 | OF12: 0.0007235 | OG12: 7.13e-05 | OH12: 0.0001516 | OI12: 0.0017067 | OJ12: 0.0012127 | OK12: 0.0039445 | OL12: 0.0015477 | OM12: 9.69e-05 | ON12: 0.0008562 | OO12: 0 | OP12: 0 | OQ12: 7.13e-05 | OR12: 6540 | OT12: 0 | OV12: 112A00 | OW12: Animal production, except cattle and poultry and eggs | OX12: 0 | OY12: 40043 | OZ12: 40043 | PA12: 25720 | PB12: 3004 | PC12: 0 | PD12: =((OX12/OY12)*'2012 Imports - Hidden'!OT16)+'2012 - Hidden'!PC12 -> 0 | PE12: 1 | PF12: 10 | PG12: 0 | PI12: 112 | PJ12: 112A00 | PK12: 0 | PL12: 40043 | PO12: 233 | PP12: 23 | PQ12: 0 | PR12: 1165796 | PS12: 0 | PU12: 0 | PV12: 426370 | PX12: 327400 | PY12: 0 | PZ12: 5847 | QA12: 0 | QD12: 313 | QE12: 0 | QF12: 5973 | QI12: 5076
A13: 113000 | B13: Forestry and logging | C13: 0.0014178 | D13: 0.0021793 | E13: 0.0017968 | F13: 0.001328 | G13: 0.0018387 | H13: 0.0014347 | I13: 0.0016954 | J13: 0.000879 | K13: 0.0013742 | L13: 0.0005253 | M13: 1.07808 | N13: 0.0012565 | O13: 0.0007698 | P13: 0.0003434 | Q13: 0.0042716 | R13: 0.0037953 | S13: 0.0049769 | T13: 0.0012543 | U13: 0.0009653 | V13: 0.0004907 | W13: 0.0004955 | X13: 0.0005945 | Y13: 0.0003559 | Z13: 0.0014139 | AA13: 0.0049721 | AB13: 0.0063477 | AC13: 0.0057865 | AD13: 0.0087295 | AE13: 0.0050492 | AF13: 0.0020662 | AG13: 0.0054808 | AH13: 0.0022262 | AI13: 0.0062877 | AJ13: 0.0024855 | AK13: 0.0048627 | AL13: 0.0041395 | AM13: 0.309984 | AN13: 0.173146 | AO13: 0.102835 | AP13: 0.0589719 | AQ13: 0.0036947 | AR13: 0.0019137 | AS13: 0.0012726 | AT13: 0.0012812 | AU13: 0.0017214 | AV13: 0.0022392 | AW13: 0.0052898 | AX13: 0.0026562 | AY13: 0.0021024 | AZ13: 0.0011353 | BA13: 0.0028505 | BB13: 0.0024591 | BC13: 0.0018491 | BD13: 0.0015825 | BE13: 0.0019091 | BF13: 0.0015398 | BG13: 0.0019517 | BH13: 0.0016202 | BI13: 0.0022492 | BJ13: 0.0012772 | BK13: 0.0014203 | BL13: 0.0013398 | BM13: 0.0011617 | BN13: 0.001284 | BO13: 0.0020262 | BP13: 0.0011111 | BQ13: 0.0016668 | BR13: 0.0009942 | BS13: 0.001141 | BT13: 0.0013269 | BU13: 0.0029988 | BV13: 0.0017304 | BW13: 0.0008178 | BX13: 0.0010174 | BY13: 0.0011939 | BZ13: 0.0020613 | CA13: 0.0016089 | CB13: 0.0006878 | CC13: 0.0010999 | CD13: 0.0030811 | CE13: 0.001557 | CF13: 0.0061113 | CG13: 0.0037052 | CH13: 0.0025488 | CI13: 0.0017668 | CJ13: 0.0010268 | CK13: 0.001403 | CL13: 0.0006837 | CM13: 0.0024294 | CN13: 0.0013213 | CO13: 0.0018501 | CP13: 0.0011112 | CQ13: 0.0014139 | CR13: 0.0011325 | CS13: 0.000859 | CT13: 0.0012404 | CU13: 0.0009508 | CV13: 0.0017391 | CW13: 0.0009111 | CX13: 0.0009651 | CY13: 0.0059141 | CZ13: 0.0013378 | DA13: 0.0012676 | DB13: 0.0022553 | DC13: 0.0012626 | DD13: 0.0008449 | DE13: 0.0006149 | DF13: 0.001659 | DG13: 0.0013453 | DH13: 0.0001617 | DI13: 0.0003386 | DJ13: 0.0011389 | DK13: 0.0002961 | DL13: 0.0002761 | DM13: 0.0006712 | DN13: 0.0003063 | DO13: 0.0007511 | DP13: 0.000954 | DQ13: 0.000329 | DR13: 0.0002163 | DS13: 0.0006481 | DT13: 0.0005452 | DU13: 0.0002298 | DV13: 0.0003618 | DW13: 0.0003883 | DX13: 0.0004122 | DY13: 0.0003001 | DZ13: 0.0041767 | EA13: 0.0010035 | EB13: 0.0016905 | EC13: 0.0015771 | ED13: 0.0021617 | EE13: 0.0014543 | EF13: 0.002514 | EG13: 0.0016044 | EH13: 0.0013512 | EI13: 0.0012467 | EJ13: 0.0014104 | EK13: 0.0009976 | EL13: 0.0011711 | EM13: 0.0011259 | EN13: 0.0013548 | EO13: 0.0017239 | EP13: 0.0010338 | EQ13: 0.0011804 | ER13: 0.0007754 | ES13: 0.0033038 | ET13: 0.0041951 | EU13: 0.0050383 | EV13: 0.0051438 | EW13: 0.0073686 | EX13: 0.0052267 | EY13: 0.0114487 | EZ13: 0.0016601 | FA13: 0.001271 | FB13: 0.0012854 | FC13: 0.0103933 | FD13: 0.0016583 | FE13: 0.0039818 | FF13: 0.0028645 | FG13: 0.0006007 | FH13: 0.0008287 | FI13: 0.0011621 | FJ13: 0.0004974 | FK13: 0.0005642 | FL13: 0.0021493 | FM13: 0.001762 | FN13: 0.0029827 | FO13: 0.0045151 | FP13: 0.0030993 | FQ13: 0.0052795 | FR13: 0.0350209 | FS13: 0.0116376 | FT13: 0.0391883 | FU13: 0.0153388 | FV13: 0.0237748 | FW13: 0.0130841 | FX13: 0.0278996 | FY13: 0.0049708 | FZ13: 0.0011155 | GA13: 0.0020802 | GB13: 0.0013307 | GC13: 0.0007954 | GD13: 0.0005476 | GE13: 0.00105 | GF13: 0.0155562 | GG13: 0.0072108 | GH13: 0.0179667 | GI13: 0.0064138 | GJ13: 0.0101222 | GK13: 0.0020421 | GL13: 0.0017864 | GM13: 0.0020544 | GN13: 0.002931 | GO13: 0.0016983 | GP13: 0.0015018 | GQ13: 0.0039426 | GR13: 0.0056082 | GS13: 0.0021194 | GT13: 0.003122 | GU13: 0.0020118 | GV13: 0.0025287 | GW13: 0.0025035 | GX13: 0.0047224 | GY13: 0.0015539 | GZ13: 0.0009375 | HA13: 0.0012778 | HB13: 0.0021011 | HC13: 0.0029423 | HD13: 0.0028068 | HE13: 0.0017933 | HF13: 0.0174344 | HG13: 0.0043108 | HH13: 0.0037727 | HI13: 0.0058617 | HJ13: 0.0021477 | HK13: 0.00138 | HL13: 0.0027369 | HM13: 0.0024727 | HN13: 0.0019199 | HO13: 0.0021038 | HP13: 0.0024307 | HQ13: 0.0019032 | HR13: 0.0026058 | HS13: 0.0041086 | HT13: 0.013651 | HU13: 0.0025009 | HV13: 0.097706 | HW13: 0.0511084 | HX13: 0.0845456 | HY13: 0.03312 | HZ13: 0.0142211 | IA13: 0.0273508 | IB13: 0.0259845 | IC13: 0.0192706 | ID13: 0.0046637 | IE13: 0.0109977 | IF13: 0.0004176 | IG13: 0.0009423 | IH13: 0.0011859 | II13: 0.0014311 | IJ13: 0.000999 | IK13: 0.0014473 | IL13: 0.0015303 | IM13: 0.0010598 | IN13: 0.0044036 | IO13: 0.0021546 | IP13: 0.0033026 | IQ13: 0.0007156 | IR13: 0.0007085 | IS13: 0.0006245 | IT13: 0.0001865 | IU13: 0.0009051 | IV13: 0.0172396 | IW13: 0.0045894 | IX13: 0.0044102 | IY13: 0.0024976 | IZ13: 0.0023843 | JA13: 0.0017302 | JB13: 0.0023773 | JC13: 0.0023723 | JD13: 0.0018996 | JE13: 0.0043209 | JF13: 0.0028262 | JG13: 0.0022509 | JH13: 0.0022772 | JI13: 0.0041809 | JJ13: 0.115102 | JK13: 0.0215984 | JL13: 0.0462708 | JM13: 0.0005926 | JN13: 0.00039 | JO13: 0.0005079 | JP13: 0.0004654 | JQ13: 0.0007805 | JR13: 0.0005489 | JS13: 0.0008352 | JT13: 0.0004184 | JU13: 0.0006151 | JV13: 0.0002686 | JW13: 0 | JX13: 0.0004382 | JY13: 0.0006871 | JZ13: 0.0004067 | KA13: 0.0003234 | KB13: 0.000447 | KC13: 0.0006438 | KD13: 0.0007737 | KE13: 0.0005067 | KF13: 0.0005137 | KG13: 0.0003682 | KH13: 0.0050204 | KI13: 0.0005645 | KJ13: 0.0006205 | KK13: 0.0014056 | KL13: 0.0004702 | KM13: 0.001245 | KN13: 0.0011994 | KO13: 0.0008883 | KP13: 0.0015555 | KQ13: 0.0010623 | KR13: 0.0017388 | KS13: 0.0013531 | KT13: 0.000522 | KU13: 0.0003635 | KV13: 0.0002472 | KW13: 0.0003374 | KX13: 0.000409 | KY13: 0.0004457 | KZ13: 0.0010719 | LA13: 0.0004713 | LB13: 0.0019431 | LC13: 0.0010497 | LD13: 0.0004745 | LE13: 0.0003429 | LF13: 0.0003476 | LG13: 0.0004218 | LH13: 0.0003207 | LI13: 0.000115 | LJ13: 0.0001568 | LK13: 0.0001393 | LL13: 0.000382 | LM13: 0.0005062 | LN13: 0.0001227 | LO13: 0.0012645 | LP13: 0.0007946 | LQ13: 0.0011529 | LR13: 0.0006946 | LS13: 0.0004421 | LT13: 0.0003482 | LU13: 0.0001396 | LV13: 0.0002816 | LW13: 0.0003707 | LX13: 0.0002718 | LY13: 0.0006402 | LZ13: 0.0004708 | MA13: 0.0005164 | MB13: 0.0005009 | MC13: 0.0010688 | MD13: 0.0011834 | ME13: 0.0007905 | MF13: 0.0004763 | MG13: 0.0007679 | MH13: 0.0003807 | MI13: 0.0002427 | MJ13: 0.0011732 | MK13: 0.0004588 | ML13: 0.001559 | MM13: 0.0007501 | MN13: 0.0004756 | MO13: 0.0005037 | MP13: 0.0008684 | MQ13: 0.0008589 | MR13: 0.0004279 | MS13: 0.0005186 | MT13: 0.0009358 | MU13: 0.000346 | MV13: 0.0004747 | MW13: 0.0003807 | MX13: 0.0005495 | MY13: 0.0004242 | MZ13: 0.0005215 | NA13: 0.0009665 | NB13: 0.0006359 | NC13: 0.000548 | ND13: 0.0006237 | NE13: 0.0011558 | NF13: 0.0011861 | NG13: 0.0043766 | NH13: 0.0003655 | NI13: 0.0003116 | NJ13: 8.3e-05 | NK13: 0.0003177 | NL13: 0.0005842 | NM13: 0.0007236 | NN13: 0.0006809 | NO13: 0.0009838 | NP13: 0.0009081 | NQ13: 0.0008667 | NR13: 0.0009708 | NS13: 0.0005117 | NT13: 0.0006671 | NU13: 0.0002697 | NV13: 0.0009712 | NW13: 0.0003326 | NX13: 0.0004835 | NY13: 0.0004416 | NZ13: 0.0004592 | OA13: 0.0006316 | OB13: 0.0014924 | OC13: 0.000598 | OD13: 0.0010116 | OE13: 0 | OF13: 0.0005843 | OG13: 0.000482 | OH13: 0.0004565 | OI13: 0.0021086 | OJ13: 0.0007966 | OK13: 0.0010789 | OL13: 0.000894 | OM13: 0.0016414 | ON13: 0.0029723 | OO13: 0 | OP13: 0 | OQ13: 0.000482 | OR13: -1740 | OT13: 0 | OV13: 113000 | OW13: Forestry and logging | OX13: 0 | OY13: 16455 | OZ13: 16455 | PA13: 8173 | PB13: 6193 | PC13: 0 | PD13: =((OX13/OY13)*'2012 Imports - Hidden'!OT17)+'2012 - Hidden'!PC13 -> 0 | PE13: 1 | PF13: 11 | PG13: 0 | PI13: 113 | PJ13: 113000 | PK13: 0 | PL13: 16455 | PO13: 230 | PP13: 23 | PQ13: 0 | PR13: 1165796 | PS13: 0 | PU13: 0 | PV13: 426370 | PX13: 327910 | PY13: 0 | PZ13: 5072 | QA13: 0 | QD13: 314 | QE13: 0 | QF13: 5051 | QI13: 2425
A14: 114000 | B14: Fishing, hunting and trapping | C14: 0.0001646 | D14: 0.0003763 | E14: 0.0001876 | F14: 0.0001299 | G14: 0.0001367 | H14: 0.0001696 | I14: 0.0023351 | J14: 0.0009622 | K14: 0.0038338 | L14: 0.0007089 | M14: 0.0001613 | N14: 0.968304 | O14: 0.0004464 | P14: 2.9e-05 | Q14: 7.59e-05 | R14: 4.95e-05 | S14: 4.78e-05 | T14: 5.27e-05 | U14: 4.62e-05 | V14: 3.49e-05 | W14: 7.22e-05 | X14: 6.49e-05 | Y14: 5.45e-05 | Z14: 6.57e-05 | AA14: 3.59e-05 | AB14: 3.56e-05 | AC14: 6.38e-05 | AD14: 5.25e-05 | AE14: 3.87e-05 | AF14: 1.83e-05 | AG14: 4.8e-05 | AH14: 3.11e-05 | AI14: 5.48e-05 | AJ14: 2.79e-05 | AK14: 3.66e-05 | AL14: 3.74e-05 | AM14: 9.65e-05 | AN14: 7.67e-05 | AO14: 8.09e-05 | AP14: 7.97e-05 | AQ14: 5.31e-05 | AR14: 6.39e-05 | AS14: 5.55e-05 | AT14: 8.43e-05 | AU14: 7.6e-05 | AV14: 8.44e-05 | AW14: 4.97e-05 | AX14: 4.75e-05 | AY14: 6.99e-05 | AZ14: 6.57e-05 | BA14: 5.97e-05 | BB14: 5.93e-05 | BC14: 0.0001243 | BD14: 9.41e-05 | BE14: 0.0001039 | BF14: 8.4e-05 | BG14: 5.25e-05 | BH14: 6.8e-05 | BI14: 6.54e-05 | BJ14: 9.61e-05 | BK14: 8.45e-05 | BL14: 9.36e-05 | BM14: 8.08e-05 | BN14: 7.75e-05 | BO14: 6.06e-05 | BP14: 8.52e-05 | BQ14: 8.22e-05 | BR14: 5.93e-05 | BS14: 8.23e-05 | BT14: 7.17e-05 | BU14: 8.36e-05 | BV14: 7.45e-05 | BW14: 7.17e-05 | BX14: 7.47e-05 | BY14: 6.79e-05 | BZ14: 4.94e-05 | CA14: 6.44e-05 | CB14: 5.01e-05 | CC14: 7.45e-05 | CD14: 3.89e-05 | CE14: 6.99e-05 | CF14: 6.71e-05 | CG14: 5.91e-05 | CH14: 5.72e-05 | CI14: 8.06e-05 | CJ14: 4.52e-05 | CK14: 6.85e-05 | CL14: 7.1e-05 | CM14: 5.79e-05 | CN14: 5.69e-05 | CO14: 6.99e-05 | CP14: 4.78e-05 | CQ14: 6.05e-05 | CR14: 6.03e-05 | CS14: 5.78e-05 | CT14: 7.56e-05 | CU14: 5.64e-05 | CV14: 4.65e-05 | CW14: 5.15e-05 | CX14: 5.8e-05 | CY14: 6.21e-05 | CZ14: 5.54e-05 | DA14: 5.55e-05 | DB14: 6.11e-05 | DC14: 6.4e-05 | DD14: 6.33e-05 | DE14: 5.44e-05 | DF14: 6.55e-05 | DG14: 5.8e-05 | DH14: 1.68e-05 | DI14: 3.83e-05 | DJ14: 2.73e-05 | DK14: 2.34e-05 | DL14: 2.15e-05 | DM14: 3.18e-05 | DN14: 2e-05 | DO14: 3.24e-05 | DP14: 4.32e-05 | DQ14: 1.85e-05 | DR14: 1.55e-05 | DS14: 3.65e-05 | DT14: 3.48e-05 | DU14: 1.26e-05 | DV14: 3.55e-05 | DW14: 2.43e-05 | DX14: 2.36e-05 | DY14: 2.05e-05 | DZ14: 4e-05 | EA14: 2.57e-05 | EB14: 4.27e-05 | EC14: 5.36e-05 | ED14: 4.91e-05 | EE14: 4.48e-05 | EF14: 4.01e-05 | EG14: 5.57e-05 | EH14: 4.68e-05 | EI14: 4.77e-05 | EJ14: 4.26e-05 | EK14: 4.71e-05 | EL14: 3.09e-05 | EM14: 4.04e-05 | EN14: 4.63e-05 | EO14: 5.55e-05 | EP14: 4.82e-05 | EQ14: 4.15e-05 | ER14: 6.31e-05 | ES14: 5.92e-05 | ET14: 6.21e-05 | EU14: 5.92e-05 | EV14: 6.5e-05 | EW14: 7.45e-05 | EX14: 5.23e-05 | EY14: 7.17e-05 | EZ14: 6.42e-05 | FA14: 5.59e-05 | FB14: 6.65e-05 | FC14: 0.0001109 | FD14: 9.61e-05 | FE14: 7.75e-05 | FF14: 7.27e-05 | FG14: 2.84e-05 | FH14: 2.65e-05 | FI14: 3.87e-05 | FJ14: 3e-05 | FK14: 2.59e-05 | FL14: 7.62e-05 | FM14: 7.89e-05 | FN14: 6.54e-05 | FO14: 5.01e-05 | FP14: 4.94e-05 | FQ14: 5.73e-05 | FR14: 8.05e-05 | FS14: 6.73e-05 | FT14: 6.84e-05 | FU14: 0.0001036 | FV14: 0.0001047 | FW14: 7.37e-05 | FX14: 8.24e-05 | FY14: 8.77e-05 | FZ14: 4.46e-05 | GA14: 7.36e-05 | GB14: 5.48e-05 | GC14: 3.4e-05 | GD14: 5.78e-05 | GE14: 4.78e-05 | GF14: 9.11e-05 | GG14: 4.77e-05 | GH14: 6.43e-05 | GI14: 6.33e-05 | GJ14: 7e-05 | GK14: 0.0035269 | GL14: 0.0090185 | GM14: 0.0003086 | GN14: 0.0002 | GO14: 0.0002108 | GP14: 0.0001448 | GQ14: 0.0003366 | GR14: 0.0001859 | GS14: 0.0067201 | GT14: 0.0141376 | GU14: 0.0013617 | GV14: 0.0011731 | GW14: 0.0011732 | GX14: 0.0005872 | GY14: 0.0075397 | GZ14: 0.0036207 | HA14: 0.423962 | HB14: 0.000405 | HC14: 0.0004046 | HD14: 0.0002395 | HE14: 0.000167 | HF14: 0.0006148 | HG14: 0.0013324 | HH14: 0.002581 | HI14: 0.0006729 | HJ14: 8.96e-05 | HK14: 0.000102 | HL14: 6.85e-05 | HM14: 2.46e-05 | HN14: 8.37e-05 | HO14: 7.37e-05 | HP14: 7e-05 | HQ14: 5.82e-05 | HR14: 6.19e-05 | HS14: 8.42e-05 | HT14: 5.36e-05 | HU14: 0.0006672 | HV14: 7.64e-05 | HW14: 6.69e-05 | HX14: 7.56e-05 | HY14: 7.62e-05 | HZ14: 6.18e-05 | IA14: 7.67e-05 | IB14: 6.29e-05 | IC14: 6.99e-05 | ID14: 8.63e-05 | IE14: 5.9e-05 | IF14: 3e-05 | IG14: 4.7e-05 | IH14: 4.3e-05 | II14: 4.95e-05 | IJ14: 4.06e-05 | IK14: 8.22e-05 | IL14: 4.18e-05 | IM14: 9.21e-05 | IN14: 0.0001157 | IO14: 7.13e-05 | IP14: 6.38e-05 | IQ14: 5.15e-05 | IR14: 5.58e-05 | IS14: 4.84e-05 | IT14: 1.61e-05 | IU14: 0.0022244 | IV14: 7.14e-05 | IW14: 5.69e-05 | IX14: 6.48e-05 | IY14: 6.35e-05 | IZ14: 5.13e-05 | JA14: 5.26e-05 | JB14: 8.46e-05 | JC14: 7.58e-05 | JD14: 5.58e-05 | JE14: 5.4e-05 | JF14: 0.0001067 | JG14: 8.22e-05 | JH14: 6.72e-05 | JI14: 7.31e-05 | JJ14: 7.74e-05 | JK14: 6.61e-05 | JL14: 7.18e-05 | JM14: 9.03e-05 | JN14: 5.77e-05 | JO14: 7.98e-05 | JP14: 6.6e-05 | JQ14: 6.76e-05 | JR14: 5e-05 | JS14: 6.45e-05 | JT14: 1.92e-05 | JU14: 8.58e-05 | JV14: 3.3e-05 | JW14: 0 | JX14: 4.82e-05 | JY14: 0.003419 | JZ14: 4.5e-05 | KA14: 4.4e-05 | KB14: 5.21e-05 | KC14: 8.66e-05 | KD14: 7.25e-05 | KE14: 4.54e-05 | KF14: 5.63e-05 | KG14: 9.32e-05 | KH14: 4.31e-05 | KI14: 0.0001755 | KJ14: 4.5e-05 | KK14: 4.58e-05 | KL14: 3.13e-05 | KM14: 9.1e-05 | KN14: 4.76e-05 | KO14: 6.61e-05 | KP14: 4.7e-05 | KQ14: 6.94e-05 | KR14: 7.53e-05 | KS14: 7.25e-05 | KT14: 5.12e-05 | KU14: 4.71e-05 | KV14: 2.71e-05 | KW14: 2.75e-05 | KX14: 2.9e-05 | KY14: 4.3e-05 | KZ14: 8.51e-05 | LA14: 0.0001022 | LB14: 0.0002173 | LC14: 8.55e-05 | LD14: 0.0001501 | LE14: 0.0001129 | LF14: 0.0001195 | LG14: 0.0001592 | LH14: 9.64e-05 | LI14: 3.82e-05 | LJ14: 7.2e-05 | LK14: 5.64e-05 | LL14: 0.0001706 | LM14: 1.5e-05 | LN14: 3.3e-06 | LO14: 0.0002088 | LP14: 0.0001232 | LQ14: 8.68e-05 | LR14: 8.42e-05 | LS14: 7.51e-05 | LT14: 0.0001154 | LU14: 5.49e-05 | LV14: 0.0001124 | LW14: 0.0001609 | LX14: 9.4e-05 | LY14: 0.0001386 | LZ14: 0.0001315 | MA14: 9.87e-05 | MB14: 0.000116 | MC14: 6.51e-05 | MD14: 6.86e-05 | ME14: 0.0001048 | MF14: 0.0004907 | MG14: 6.5e-05 | MH14: 7.67e-05 | MI14: 0.0001008 | MJ14: 7.96e-05 | MK14: 0.0001329 | ML14: 0.0001031 | MM14: 0.0001338 | MN14: 0.0001916 | MO14: 0.0001453 | MP14: 0.0001784 | MQ14: 0.0001847 | MR14: 0.0015901 | MS14: 0.0009556 | MT14: 8.61e-05 | MU14: 0.000149 | MV14: 6.35e-05 | MW14: 5.85e-05 | MX14: 0.0002171 | MY14: 4.63e-05 | MZ14: 0.0003694 | NA14: 0.0001461 | NB14: 0.0011096 | NC14: 0.0008179 | ND14: 0.0021334 | NE14: 0.0002798 | NF14: 0.000274 | NG14: 0.0015833 | NH14: 4.75e-05 | NI14: 0.0001076 | NJ14: 1.13e-05 | NK14: 7.21e-05 | NL14: 0.0002737 | NM14: 0.0020902 | NN14: 0.0003527 | NO14: 0.0023886 | NP14: 0.0028349 | NQ14: 0.0085436 | NR14: 0.0052675 | NS14: 0.0014241 | NT14: 3.1e-05 | NU14: 2.3e-05 | NV14: 4.18e-05 | NW14: 1.16e-05 | NX14: 6.16e-05 | NY14: 6.2e-06 | NZ14: 5.46e-05 | OA14: 5.29e-05 | OB14: 0.0009065 | OC14: 9.2e-05 | OD14: 0.0013554 | OE14: 0 | OF14: 0.0002036 | OG14: 4.28e-05 | OH14: 0.0001513 | OI14: 0.0009469 | OJ14: 0.0005369 | OK14: 0.0024291 | OL14: 0.0007166 | OM14: 6.07e-05 | ON14: 0.0004584 | OO14: 0 | OP14: 0 | OQ14: 4.28e-05 | OR14: -2094 | OT14: 0 | OV14: 114000 | OW14: Fishing, hunting and trapping | OX14: 0 | OY14: 8366 | OZ14: 8366 | PA14: 5935 | PB14: 1052 | PC14: 0 | PD14: =((OX14/OY14)*'2012 Imports - Hidden'!OT18)+'2012 - Hidden'!PC14 -> 0 | PE14: 1 | PF14: 12 | PG14: 0 | PI14: 114 | PJ14: 114000 | PK14: 0 | PL14: 8366 | PO14: 321 | PP14: 321 | PQ14: 0 | PR14: 78846 | PS14: 0 | PU14: 0 | PV14: 15791 | PX14: 327990 | PY14: 0 | PZ14: 15702 | QA14: 0 | QD14: 315 | QE14: 0 | QF14: 6261 | QI14: 0
A15: 115000 | B15: Support activities for agriculture and forestry | C15: 0.0542543 | D15: 0.0971857 | E15: 0.0703364 | F15: 0.0896133 | G15: 0.0411814 | H15: 0.0781805 | I15: 0.0351503 | J15: 0.0355136 | K15: 0.0362127 | L15: 0.0169676 | M15: 0.201507 | N15: 0.0019636 | O15: 0.837584 | P15: 0.0002185 | Q15: 0.0009831 | R15: 0.0010497 | S15: 0.0014523 | T15: 0.000411 | U15: 0.0005689 | V15: 0.0001856 | W15: 0.0002666 | X15: 0.0002315 | Y15: 0.0001435 | Z15: 0.0004784 | AA15: 0.0010822 | AB15: 0.0013307 | AC15: 0.0013219 | AD15: 0.0020343 | AE15: 0.0011004 | AF15: 0.0004516 | AG15: 0.0012875 | AH15: 0.0005331 | AI15: 0.0013665 | AJ15: 0.0005781 | AK15: 0.0010718 | AL15: 0.0009279 | AM15: 0.0581523 | AN15: 0.0328554 | AO15: 0.0194898 | AP15: 0.0114694 | AQ15: 0.0009879 | AR15: 0.0006833 | AS15: 0.0003953 | AT15: 0.0011536 | AU15: 0.0005734 | AV15: 0.0006828 | AW15: 0.0023005 | AX15: 0.0007878 | AY15: 0.0012689 | AZ15: 0.0005589 | BA15: 0.0011398 | BB15: 0.0006524 | BC15: 0.0007637 | BD15: 0.0006295 | BE15: 0.0007281 | BF15: 0.0005973 | BG15: 0.0005968 | BH15: 0.0006062 | BI15: 0.000708 | BJ15: 0.0005095 | BK15: 0.0004572 | BL15: 0.0005208 | BM15: 0.0004263 | BN15: 0.0005202 | BO15: 0.0006244 | BP15: 0.0004512 | BQ15: 0.0007095 | BR15: 0.0003928 | BS15: 0.0004582 | BT15: 0.0005672 | BU15: 0.0008191 | BV15: 0.0006099 | BW15: 0.0003284 | BX15: 0.0003648 | BY15: 0.0006791 | BZ15: 0.0007011 | CA15: 0.0004953 | CB15: 0.0002381 | CC15: 0.0004155 | CD15: 0.000791 | CE15: 0.0005484 | CF15: 0.001443 | CG15: 0.0009954 | CH15: 0.0007061 | CI15: 0.0005604 | CJ15: 0.0003428 | CK15: 0.0004612 | CL15: 0.0003087 | CM15: 0.0012011 | CN15: 0.0005588 | CO15: 0.0006608 | CP15: 0.0004456 | CQ15: 0.0006522 | CR15: 0.0006173 | CS15: 0.0003167 | CT15: 0.0004553 | CU15: 0.0003308 | CV15: 0.0005104 | CW15: 0.000287 | CX15: 0.000323 | CY15: 0.0013571 | CZ15: 0.0004612 | DA15: 0.0004206 | DB15: 0.000662 | DC15: 0.0004763 | DD15: 0.0003747 | DE15: 0.0002281 | DF15: 0.0008096 | DG15: 0.0004486 | DH15: 6.85e-05 | DI15: 0.0001369 | DJ15: 0.0004437 | DK15: 0.0001104 | DL15: 0.0001153 | DM15: 0.0002291 | DN15: 0.0001415 | DO15: 0.0002605 | DP15: 0.0003524 | DQ15: 0.0001888 | DR15: 8.62e-05 | DS15: 0.0002424 | DT15: 0.0002078 | DU15: 0.0001048 | DV15: 0.0001296 | DW15: 0.0001727 | DX15: 0.0001708 | DY15: 0.0001107 | DZ15: 0.0008756 | EA15: 0.0003475 | EB15: 0.0004852 | EC15: 0.0005638 | ED15: 0.0009866 | EE15: 0.0005325 | EF15: 0.0008719 | EG15: 0.0007331 | EH15: 0.000564 | EI15: 0.0004569 | EJ15: 0.0004494 | EK15: 0.0003996 | EL15: 0.0003912 | EM15: 0.0003988 | EN15: 0.000434 | EO15: 0.0006982 | EP15: 0.0006044 | EQ15: 0.000917 | ER15: 0.0002928 | ES15: 0.0009398 | ET15: 0.001165 | EU15: 0.0012643 | EV15: 0.0012312 | EW15: 0.0016537 | EX15: 0.0013254 | EY15: 0.0025972 | EZ15: 0.0005938 | FA15: 0.0006033 | FB15: 0.0004695 | FC15: 0.002999 | FD15: 0.0006121 | FE15: 0.0011524 | FF15: 0.0008771 | FG15: 0.0002186 | FH15: 0.0002269 | FI15: 0.0003754 | FJ15: 0.0002653 | FK15: 0.0002818 | FL15: 0.0006345 | FM15: 0.0005116 | FN15: 0.0009697 | FO15: 0.0010104 | FP15: 0.0009072 | FQ15: 0.0014279 | FR15: 0.0068592 | FS15: 0.0030311 | FT15: 0.0077618 | FU15: 0.0033286 | FV15: 0.0050073 | FW15: 0.0028306 | FX15: 0.0055983 | FY15: 0.0018227 | FZ15: 0.00078 | GA15: 0.0007955 | GB15: 0.0006932 | GC15: 0.0004507 | GD15: 0.0002438 | GE15: 0.0003292 | GF15: 0.0034972 | GG15: 0.0021521 | GH15: 0.004629 | GI15: 0.001764 | GJ15: 0.0031848 | GK15: 0.0195759 | GL15: 0.0395949 | GM15: 0.058298 | GN15: 0.0424206 | GO15: 0.029262 | GP15: 0.0371309 | GQ15: 0.0184081 | GR15: 0.0122176 | GS15: 0.0283282 | GT15: 0.0148872 | GU15: 0.0186293 | GV15: 0.0150637 | GW15: 0.0169329 | GX15: 0.0124879 | GY15: 0.0193339 | GZ15: 0.0202048 | HA15: 0.0029349 | HB15: 0.0158852 | HC15: 0.019602 | HD15: 0.0196716 | HE15: 0.0362915 | HF15: 0.0138178 | HG15: 0.0185441 | HH15: 0.0256958 | HI15: 0.0057762 | HJ15: 0.0124286 | HK15: 0.0138926 | HL15: 0.0069785 | HM15: 0.0030696 | HN15: 0.0132552 | HO15: 0.0040198 | HP15: 0.0029454 | HQ15: 0.003531 | HR15: 0.0024773 | HS15: 0.0022618 | HT15: 0.0033937 | HU15: 0.0041139 | HV15: 0.0194553 | HW15: 0.0111337 | HX15: 0.0170772 | HY15: 0.0069993 | HZ15: 0.0039789 | IA15: 0.0059917 | IB15: 0.0061483 | IC15: 0.0044228 | ID15: 0.0025228 | IE15: 0.0026682 | IF15: 0.0003406 | IG15: 0.0011913 | IH15: 0.000418 | II15: 0.0012785 | IJ15: 0.0024859 | IK15: 0.0021804 | IL15: 0.0014832 | IM15: 0.0012888 | IN15: 0.0152395 | IO15: 0.005399 | IP15: 0.0054743 | IQ15: 0.0018253 | IR15: 0.0013378 | IS15: 0.0007731 | IT15: 0.0002085 | IU15: 0.0009571 | IV15: 0.0085966 | IW15: 0.0033394 | IX15: 0.0039633 | IY15: 0.0023827 | IZ15: 0.0022493 | JA15: 0.0014839 | JB15: 0.0026139 | JC15: 0.0029867 | JD15: 0.0025569 | JE15: 0.0023799 | JF15: 0.0025713 | JG15: 0.0023567 | JH15: 0.0033662 | JI15: 0.002262 | JJ15: 0.0229871 | JK15: 0.00537 | JL15: 0.0098577 | JM15: 0.0002235 | JN15: 0.0001463 | JO15: 0.0001851 | JP15: 0.0001679 | JQ15: 0.0002692 | JR15: 0.0002122 | JS15: 0.0002779 | JT15: 0.0001275 | JU15: 0.0003376 | JV15: 0.0001788 | JW15: 0 | JX15: 0.0002923 | JY15: 0.0003953 | JZ15: 0.0001846 | KA15: 0.0001162 | KB15: 0.0001576 | KC15: 0.0004791 | KD15: 0.0002675 | KE15: 0.0001848 | KF15: 0.0001816 | KG15: 0.0002611 | KH15: 0.0010365 | KI15: 0.0003418 | KJ15: 0.000228 | KK15: 0.0006408 | KL15: 0.0001454 | KM15: 0.0004099 | KN15: 0.000405 | KO15: 0.0002886 | KP15: 0.0004193 | KQ15: 0.0004044 | KR15: 0.0004869 | KS15: 0.0004396 | KT15: 0.0001539 | KU15: 0.0001345 | KV15: 7.89e-05 | KW15: 0.0001593 | KX15: 0.0001851 | KY15: 0.0001558 | KZ15: 0.0003168 | LA15: 0.0001787 | LB15: 0.0004841 | LC15: 0.000385 | LD15: 0.0002107 | LE15: 0.000127 | LF15: 0.0001202 | LG15: 0.0001707 | LH15: 0.0001209 | LI15: 4.92e-05 | LJ15: 6.8e-05 | LK15: 5.86e-05 | LL15: 0.0001596 | LM15: 0.00012 | LN15: 3.1e-05 | LO15: 0.0004611 | LP15: 0.0002409 | LQ15: 0.0003067 | LR15: 0.0002185 | LS15: 0.0001503 | LT15: 0.0001302 | LU15: 5.89e-05 | LV15: 0.000122 | LW15: 0.0001463 | LX15: 0.0001101 | LY15: 0.0004424 | LZ15: 0.0001958 | MA15: 0.0001943 | MB15: 0.0006271 | MC15: 0.0004318 | MD15: 0.0003412 | ME15: 0.0002917 | MF15: 0.0027039 | MG15: 0.0002258 | MH15: 0.0001673 | MI15: 8.86e-05 | MJ15: 0.000717 | MK15: 0.0003224 | ML15: 0.000537 | MM15: 0.0002766 | MN15: 0.0002172 | MO15: 0.0002878 | MP15: 0.0003672 | MQ15: 0.0007209 | MR15: 0.0005076 | MS15: 0.0006529 | MT15: 0.0003032 | MU15: 0.0002052 | MV15: 0.0001958 | MW15: 0.0003579 | MX15: 0.000308 | MY15: 0.0003484 | MZ15: 0.0004762 | NA15: 0.0006889 | NB15: 0.0007131 | NC15: 0.0007349 | ND15: 0.0008654 | NE15: 0.0008693 | NF15: 0.0011142 | NG15: 0.0026639 | NH15: 0.0001357 | NI15: 0.0005189 | NJ15: 3.36e-05 | NK15: 0.0001848 | NL15: 0.0004708 | NM15: 0.0012022 | NN15: 0.0003192 | NO15: 0.002467 | NP15: 0.0006971 | NQ15: 0.0013497 | NR15: 0.0017252 | NS15: 0.0012978 | NT15: 0.0002171 | NU15: 9.83e-05 | NV15: 0.0003314 | NW15: 0.0001138 | NX15: 0.0002127 | NY15: 0.00014 | NZ15: 0.0002666 | OA15: 0.0002072 | OB15: 0.0006514 | OC15: 0.0002106 | OD15: 0.0005747 | OE15: 0 | OF15: 0.0002806 | OG15: 0.0001005 | OH15: 0.0001838 | OI15: 0.0010633 | OJ15: 0.0005309 | OK15: 0.00174 | OL15: 0.0028 | OM15: 0.0004991 | ON15: 0.0019012 | OO15: 0 | OP15: 0 | OQ15: 0.0001005 | OR15: 212 | OT15: 0 | OV15: 115000 | OW15: Support activities for agriculture and forestry | OX15: 0 | OY15: 23011 | OZ15: 23011 | PA15: 16536 | PB15: 12624 | PC15: 0 | PD15: =((OX15/OY15)*'2012 Imports - Hidden'!OT19)+'2012 - Hidden'!PC15 -> 0 | PE15: 1 | PF15: 13 | PG15: 0 | PI15: 115 | PJ15: 115000 | PK15: 0 | PL15: 23011 | PO15: 327 | PP15: 327 | PQ15: 0 | PR15: 96255 | PS15: 0 | PU15: 0 | PV15: 21748 | PX15: 331110 | PY15: 0 | PZ15: 112421 | QA15: 0 | QD15: 316 | QE15: 0 | QF15: 1894 | QI15: 0
... 17 more rows

Sheet 2012 Use - Hidden (hidden)
A1: Use Table, After Redefinitions, Producers' Value, 2012 (NOTE that 331314 column was removed - See column PP)
A2: [Millions of Dollars]
A3: Bureau of Economic Analysis
PS4: 331313
A5: Commodity / Industry | C5: Oilseed farming | D5: Grain farming | E5: Vegetable and melon farming | F5: Fruit and tree nut farming | G5: Greenhouse, nursery, and floriculture production | H5: Other crop farming | I5: Dairy cattle and milk production | J5: Beef cattle ranching and farming, including feedlots and dual-purpose ranching and farming | K5: Poultry and egg production | L5: Animal production, except cattle and poultry and eggs | M5: Forestry and logging | N5: Fishing, hunting and trapping | O5: Support activities for agriculture and forestry | P5: Oil and gas extraction | Q5: Coal mining | R5: Copper, nickel, lead, and zinc mining | S5: Iron, gold, silver, and other metal ore mining | T5: Stone mining and quarrying | U5: Other nonmetallic mineral mining and quarrying | V5: Drilling oil and gas wells | W5: Other support activities for mining | X5: Electric power generation, transmission, and distribution | Y5: Natural gas distribution | Z5: Water, sewage and other systems | AA5: Health care structures | AB5: Educational and vocational structures | AC5: Nonresidential maintenance and repair | AD5: Residential maintenance and repair | AE5: Office and commercial structures | AF5: Multifamily residential structures | AG5: Other residential structures | AH5: Manufacturing structures | AI5: Other nonresidential structures | AJ5: Power and communication structures | AK5: Single-family residential structures | AL5: Transportation structures and highways and streets | AM5: Sawmills and wood preservation | AN5: Veneer, plywood, and engineered wood product manufacturing | AO5: Millwork | AP5: All other wood product manufacturing | AQ5: Clay product and refractory manufacturing | AR5: Glass and glass product manufacturing | AS5: Cement manufacturing | AT5: Ready-mix concrete manufacturing | AU5: Concrete pipe, brick, and block manufacturing | AV5: Other concrete product manufacturing | AW5: Lime and gypsum product manufacturing | AX5: Abrasive product manufacturing | AY5: Cut stone and stone product manufacturing | AZ5: Ground or treated mineral and earth manufacturing | BA5: Mineral wool manufacturing | BB5: Miscellaneous nonmetallic mineral products | BC5: Iron and steel mills and ferroalloy manufacturing | BD5: Steel product manufacturing from purchased steel | BE5: Alumina refining and primary aluminum production | BF5: Aluminum product manufacturing from purchased aluminum | BG5: Nonferrous Metal (except Aluminum) Smelting and Refining | BH5: Copper rolling, drawing, extruding and alloying | BI5: Nonferrous metal (except copper and aluminum) rolling, drawing, extruding and alloying | BJ5: Ferrous metal foundries | BK5: Nonferrous metal foundries | BL5: Custom roll forming | BM5: All other forging, stamping, and sintering | BN5: Metal crown, closure, and other metal stamping (except automotive) | BO5: Cutlery and handtool manufacturing | BP5: Plate work and fabricated structural product manufacturing | BQ5: Ornamental and architectural metal products manufacturing | BR5: Power boiler and heat exchanger manufacturing | BS5: Metal tank (heavy gauge) manufacturing | BT5: Metal can, box, and other metal container (light gauge) manufacturing | BU5: Hardware manufacturing | BV5: Spring and wire product manufacturing | BW5: Machine shops | BX5: Turned product and screw, nut, and bolt manufacturing | BY5: Coating, engraving, heat treating and allied activities | BZ5: Plumbing fixture fitting and trim manufacturing | CA5: Valve and fittings other than plumbing | CB5: Ball and roller bearing manufacturing | CC5: Fabricated pipe and pipe fitting manufacturing | CD5: Ammunition, arms, ordnance, and accessories manufacturing | CE5: Other fabricated metal manufacturing | CF5: Farm machinery and equipment manufacturing | CG5: Lawn and garden equipment manufacturing | CH5: Construction machinery manufacturing | CI5: Mining and oil and gas field machinery manufacturing | CJ5: Semiconductor machinery manufacturing | CK5: Other industrial machinery manufacturing | CL5: Optical instrument and lens manufacturing | CM5: Photographic and photocopying equipment manufacturing | CN5: Other commercial and service industry machinery manufacturing | CO5: Heating equipment (except warm air furnaces) manufacturing | CP5: Air conditioning, refrigeration, and warm air heating equipment manufacturing | CQ5: Industrial and commercial fan and blower and air purification equipment manufacturing | CR5: Industrial mold manufacturing | CS5: Special tool, die, jig, and fixture manufacturing | CT5: Machine tool manufacturing | CU5: Cutting and machine tool accessory, rolling mill, and other metalworking machinery manufacturing | CV5: Turbine and turbine generator set units manufacturing | CW5: Speed changer, industrial high-speed drive, and gear manufacturing | CX5: Mechanical power transmission equipment manufacturing | CY5: Other engine equipment manufacturing | CZ5: Air and gas compressor manufacturing | DA5: Pump and pumping equipment manufacturing | DB5: Material handling equipment manufacturing | DC5: Power-driven handtool manufacturing | DD5: Packaging machinery manufacturing | DE5: Industrial process furnace and oven manufacturing | DF5: Other general purpose machinery manufacturing | DG5: Fluid power process machinery | DH5: Electronic computer manufacturing | DI5: Computer storage device manufacturing | DJ5: Computer terminals and other computer peripheral equipment manufacturing | DK5: Telephone apparatus manufacturing | DL5: Broadcast and wireless communications equipment | DM5: Other communications equipment manufacturing | DN5: Semiconductor and related device manufacturing | DO5: Printed circuit assembly (electronic assembly) manufacturing | DP5: Other electronic component manufacturing | DQ5: Electromedical and electrotherapeutic apparatus manufacturing | DR5: Search, detection, and navigation instruments manufacturing | DS5: Automatic environmental control manufacturing | DT5: Industrial process variable instruments manufacturing | DU5: Totalizing fluid meter and counting device manufacturing | DV5: Electricity and signal testing instruments manufacturing | DW5: Analytical laboratory instrument manufacturing | DX5: Irradiation apparatus manufacturing | DY5: Watch, clock, and other measuring and controlling device manufacturing | DZ5: Audio and video equipment manufacturing | EA5: Manufacturing and reproducing magnetic and optical media | EB5: Electric lamp bulb and part manufacturing | EC5: Lighting fixture manufacturing | ED5: Small electrical appliance manufacturing | EE5: Household cooking appliance manufacturing | EF5: Household refrigerator and home freezer manufacturing | EG5: Household laundry equipment manufacturing | EH5: Other major household appliance manufacturing | EI5: Power, distribution, and specialty transformer manufacturing | EJ5: Motor and generator manufacturing | EK5: Switchgear and switchboard apparatus manufacturing | EL5: Relay and industrial control manufacturing | EM5: Storage battery manufacturing | EN5: Primary battery manufacturing | EO5: Communication and energy wire and cable manufacturing | EP5: Wiring device manufacturing | EQ5: Carbon and graphite product manufacturing | ER5: All other miscellaneous electrical equipment and component manufacturing | ES5: Automobile manufacturing | ET5: Light truck and utility vehicle manufacturing | EU5: Heavy duty truck manufacturing | EV5: Motor vehicle body manufacturing | EW5: Truck trailer manufacturing | EX5: Motor home manufacturing | EY5: Travel trailer and camper manufacturing | EZ5: Motor vehicle gasoline engine and engine parts manufacturing | FA5: Motor vehicle electrical and electronic equipment manufacturing | FB5: Motor vehicle transmission and power train parts manufacturing | FC5: Motor vehicle seating and interior trim manufacturing | FD5: Motor vehicle metal stamping | FE5: Other Motor Vehicle Parts Manufacturing | FF5: Motor vehicle steering, suspension component (except spring), and brake systems manufacturing | FG5: Aircraft manufacturing | FH5: Aircraft engine and engine parts manufacturing | FI5: Other aircraft parts and auxiliary equipment manufacturing | FJ5: Guided missile and space vehicle manufacturing | FK5: Propulsion units and parts for space vehicles and guided missiles | FL5: Railroad rolling stock manufacturing | FM5: Ship building and repairing | FN5: Boat building | FO5: Motorcycle, bicycle, and parts manufacturing | FP5: Military armored vehicle, tank, and tank component manufacturing | FQ5: All other transportation equipment manufacturing | FR5: Wood kitchen cabinet and countertop manufacturing | FS5: Upholstered household furniture manufacturing | FT5: Nonupholstered wood household furniture manufacturing | FU5: Institutional furniture manufacturing | FV5: Other household nonupholstered furniture | FW5: Showcase, partition, shelving, and locker manufacturing | FX5: Office furniture and custom architectural woodwork and millwork manufacturing | FY5: Other furniture related product manufacturing | FZ5: Surgical and medical instrument manufacturing | GA5: Surgical appliance and supplies manufacturing | GB5: Dental equipment and supplies manufacturing | GC5: Ophthalmic goods manufacturing | GD5: Dental laboratories | GE5: Jewelry and silverware manufacturing | GF5: Sporting and athletic goods manufacturing | GG5: Doll, toy, and game manufacturing | GH5: Office supplies (except paper) manufacturing | GI5: Sign manufacturing | GJ5: All other miscellaneous manufacturing | GK5: Dog and cat food manufacturing | GL5: Other animal food manufacturing | GM5: Flour milling and malt manufacturing | GN5: Wet corn milling | GO5: Fats and oils refining and blending | GP5: Soybean and other oilseed processing | GQ5: Breakfast cereal manufacturing | GR5: Sugar and confectionery product manufacturing | GS5: Frozen food manufacturing | GT5: Fruit and vegetable canning, pickling, and drying | GU5: Cheese manufacturing | GV5: Dry, condensed, and evaporated dairy product manufacturing | GW5: Fluid milk and butter manufacturing | GX5: Ice cream and frozen dessert manufacturing | GY5: Poultry processing | GZ5: Animal (except poultry) slaughtering, rendering, and processing | HA5: Seafood product preparation and packaging | HB5: Bread and bakery product manufacturing | HC5: Cookie, cracker, pasta, and tortilla manufacturing | HD5: Snack food manufacturing | HE5: Coffee and tea manufacturing | HF5: Flavoring syrup and concentrate manufacturing | HG5: Seasoning and dressing manufacturing | HH5: All other food manufacturing | HI5: Soft drink and ice manufacturing | HJ5: Breweries | HK5: Wineries | HL5: Distilleries | HM5: Tobacco product manufacturing | HN5: Fiber, yarn, and thread mills | HO5: Fabric mills | HP5: Textile and fabric finishing and fabric coating mills | HQ5: Carpet and rug mills | HR5: Curtain and linen mills | HS5: Other textile product mills | HT5: Apparel manufacturing | HU5: Leather and allied product manufacturing | HV5: Pulp mills | HW5: Paper mills | HX5: Paperboard mills | HY5: Paperboard container manufacturing | HZ5: Paper Bag and Coated and Treated Paper Manufacturing | IA5: Stationery product manufacturing | IB5: Sanitary paper product manufacturing | IC5: All other converted paper product manufacturing | ID5: Printing | IE5: Support activities for printing | IF5: Petroleum refineries | IG5: Asphalt paving mixture and block manufacturing | IH5: Asphalt shingle and coating materials manufacturing | II5: Other petroleum and coal products manufacturing | IJ5: Petrochemical manufacturing | IK5: Industrial gas manufacturing | IL5: Synthetic dye and pigment manufacturing | IM5: Other Basic Inorganic Chemical Manufacturing | IN5: Other basic organic chemical manufacturing | IO5: Plastics material and resin manufacturing | IP5: Synthetic rubber and artificial and synthetic fibers and filaments manufacturing | IQ5: Medicinal and botanical manufacturing | IR5: Pharmaceutical preparation manufacturing | IS5: In-vitro diagnostic substance manufacturing | IT5: Biological product (except diagnostic) manufacturing | IU5: Fertilizer manufacturing | IV5: Pesticide and other agricultural chemical manufacturing | IW5: Paint and coating manufacturing | IX5: Adhesive manufacturing | IY5: Soap and cleaning compound manufacturing | IZ5: Toilet preparation manufacturing | JA5: Printing ink manufacturing | JB5: All other chemical product and preparation manufacturing | JC5: Plastics packaging materials and unlaminated film and sheet manufacturing | JD5: Plastics pipe, pipe fitting, and unlaminated profile shape manufacturing | JE5: Laminated plastics plate, sheet (except packaging), and shape manufacturing | JF5: Polystyrene foam product manufacturing | JG5: Urethane and other foam product (except polystyrene) manufacturing | JH5: Plastics bottle manufacturing | JI5: Other plastics product manufacturing | JJ5: Tire manufacturing | JK5: Rubber and plastics hoses and belting manufacturing | JL5: Other rubber product manufacturing | JM5: Motor vehicle and motor vehicle parts and supplies | JN5: Professional and commercial equipment and supplies | JO5: Household appliances and electrical and electronic goods | JP5: Machinery, equipment, and supplies | JQ5: Other durable goods merchant wholesalers | JR5: Drugs and druggists’ sundries | JS5: Grocery and related product wholesalers | JT5: Petroleum and petroleum products | JU5: Other nondurable goods merchant wholesalers | JV5: Wholesale electronic markets and agents and brokers | JW5: Customs duties | JX5: Motor vehicle and parts dealers | JY5: Food and beverage stores | JZ5: General merchandise stores | KA5: Building material and garden equipment and supplies dealers | KB5: Health and personal care stores | KC5: Gasoline stations | KD5: Clothing and clothing accessories stores | KE5: Nonstore retailers | KF5: All other retail | KG5: Air transportation | KH5: Rail transportation | KI5: Water transportation | KJ5: Truck transportation | KK5: Transit and ground passenger transportation | KL5: Pipeline transportation | KM5: Scenic and sightseeing transportation and support activities for transportation | KN5: Couriers and messengers | KO5: Warehousing and storage | KP5: Newspaper publishers | KQ5: Periodical Publishers | KR5: Book publishers | KS5: Directory, mailing list, and other publishers | KT5: Software publishers | KU5: Motion picture and video industries | KV5: Sound recording industries | KW5: Radio and television broadcasting | KX5: Cable and other subscription programming | KY5: Wired telecommunications carriers | KZ5: Wireless telecommunications carriers (except satellite) | LA5: Satellite, telecommunications resellers, and all other telecommunications | LB5: Data processing, hosting, and related services | LC5: Internet publishing and broadcasting and Web search portals | LD5: News syndicates, libraries, archives and all other information services | LE5: Nondepository credit intermediation and related activities | LF5: Monetary authorities and depository credit intermediation | LG5: Other financial investment activities | LH5: Securities and commodity contracts intermediation and brokerage | LI5: Direct life insurance carriers | LJ5: Insurance carriers, except direct life | LK5: Insurance agencies, brokerages, and related activities | LL5: Funds, trusts, and other financial vehicles | LM5: Owner-occupied housing | LN5: Tenant-occupied housing | LO5: Other real estate | LP5: Automotive equipment rental and leasing | LQ5: Commercial and industrial machinery and equipment rental and leasing | LR5: General and consumer goods rental | LS5: Lessors of nonfinancial intangible assets | LT5: Legal services | LU5: Custom computer programming services | LV5: Computer systems design services | LW5: Other computer related services, including facilities management | LX5: Accounting, tax preparation, bookkeeping, and payroll services | LY5: Architectural, engineering, and related services | LZ5: Management consulting services | MA5: Environmental and other technical consulting services | MB5: Scientific research and development services | MC5: Advertising, public relations, and related services | MD5: Specialized design services | ME5: Photographic services | MF5: Veterinary services | MG5: All other miscellaneous professional, scientific, and technical services | MH5: Management of companies and enterprises | MI5: Employment services | MJ5: Services to buildings and dwellings | MK5: Office administrative services | ML5: Facilities support services | MM5: Business support services | MN5: Travel arrangement and reservation services | MO5: Investigation and security services | MP5: Other support services | MQ5: Waste management and remediation services | MR5: Elementary and secondary schools | MS5: Junior colleges, colleges, universities, and professional schools | MT5: Other educational services | MU5: Offices of physicians | MV5: Offices of dentists | MW5: Offices of other health practitioners | MX5: Outpatient care centers | MY5: Medical and diagnostic laboratories | MZ5: Home health care services | NA5: Other ambulatory health care services | NB5: Hospitals | NC5: Nursing and community care facilities | ND5: Residential mental health, substance abuse, and other residential care facilities | NE5: Individual and family services | NF5: Child day care services | NG5: Community food, housing, and other relief services, including rehabilitation services | NH5: Performing arts companies | NI5: Spectator sports | NJ5: Independent artists, writers, and performers | NK5: Promoters of performing arts and sports and agents for public figures | NL5: Museums, historical sites, zoos, and parks | NM5: Amusement parks and arcades | NN5: Gambling industries (except casino hotels) | NO5: Other amusement and recreation industries | NP5: Accommodation | NQ5: Full-service restaurants | NR5: Limited-service restaurants | NS5: All other food and drinking places | NT5: Automotive repair and maintenance | NU5: Electronic and precision equipment repair and maintenance | NV5: Commercial and industrial machinery and equipment repair and maintenance | NW5: Personal and household goods repair and maintenance | NX5: Personal care services | NY5: Death care services | NZ5: Dry-cleaning and laundry services | OA5: Other personal services | OB5: Religious organizations | OC5: Grantmaking, giving, and social advocacy organizations | OD5: Civic, social, professional, and similar organizations | OE5: Private households | OF5: Federal general government (defense) | OG5: Federal general government (nondefense) | OH5: Postal service | OI5: Federal electric utilities | OJ5: Other federal government enterprises | OK5: State and local government educational services | OL5: State and local government hospitals and health services | OM5: State and local government other services | ON5: State and local government passenger transit | OO5: State and local government electric utilities | OP5: Other state and local government enterprises | OQ5: Total Intermediate | OR5: Personal consumption expenditures | OS5: Nonresidential private fixed investment in equipment | OT5: Nonresidential private fixed investment in intellectual property products | OU5: Residential private fixed investment | OV5: Nonresidential private fixed investment in structures | OW5: Change in private inventories | OX5: Exports of goods and services | OY5: Imports of goods and services | OZ5: Federal Government defense: Consumption expenditures | PA5: Federal national defense: Gross investment in equipment | PB5: Federal national defense: Gross investment in intellectual property products | PC5: Federal national defense: Gross investment in structures | PD5: Federal Government nondefense: Consumption expenditures | PE5: Federal nondefense: Gross investment in equipment | PF5: Federal nondefense: Gross investment in intellectual property products | PG5: Federal nondefense: Gross investment in structures | PH5: State and local government consumption expenditures | PI5: State and local: Gross investment in equipment | PJ5: State and local: Gross investment in intellectual property products | PK5: State and local: Gross investment in structures | PL5: Total Final Uses (GDP) | PM5: Total Commodity Output | PP5: Secondary smelting and alloying of aluminum | PS5: Secondary smelting and alloying of aluminum
A6: Code | B6: Commodity Description | C6: 1111A0 | D6: 1111B0 | E6: 111200 | F6: 111300 | G6: 111400 | H6: 111900 | I6: 112120 | J6: 1121A0 | K6: 112300 | L6: 112A00 | M6: 113000 | N6: 114000 | O6: 115000 | P6: 211000 | Q6: 212100 | R6: 212230 | S6: 2122A0 | T6: 212310 | U6: 2123A0 | V6: 213111 | W6: 21311A | X6: 221100 | Y6: 221200 | Z6: 221300 | AA6: 233210 | AB6: 233262 | AC6: 230301 | AD6: 230302 | AE6: 2332A0 | AF6: 233412 | AG6: 2334A0 | AH6: 233230 | AI6: 2332D0 | AJ6: 233240 | AK6: 233411 | AL6: 2332C0 | AM6: 321100 | AN6: 321200 | AO6: 321910 | AP6: 3219A0 | AQ6: 327100 | AR6: 327200 | AS6: 327310 | AT6: 327320 | AU6: 327330 | AV6: 327390 | AW6: 327400 | AX6: 327910 | AY6: 327991 | AZ6: 327992 | BA6: 327993 | BB6: 327999 | BC6: 331110 | BD6: 331200 | BE6: 331313 | BF6: 33131B | BG6: 331410 | BH6: 331420 | BI6: 331490 | BJ6: 331510 | BK6: 331520 | BL6: 332114 | BM6: 33211A | BN6: 332119 | BO6: 332200 | BP6: 332310 | BQ6: 332320 | BR6: 332410 | BS6: 332420 | BT6: 332430 | BU6: 332500 | BV6: 332600 | BW6: 332710 | BX6: 332720 | BY6: 332800 | BZ6: 332913 | CA6: 33291A | CB6: 332991 | CC6: 332996 | CD6: 33299A | CE6: 332999 | CF6: 333111 | CG6: 333112 | CH6: 333120 | CI6: 333130 | CJ6: 333242 | CK6: 33329A | CL6: 333314 | CM6: 333316 | CN6: 333318 | CO6: 333414 | CP6: 333415 | CQ6: 333413 | CR6: 333511 | CS6: 333514 | CT6: 333517 | CU6: 33351B | CV6: 333611 | CW6: 333612 | CX6: 333613 | CY6: 333618 | CZ6: 333912 | DA6: 33391A | DB6: 333920 | DC6: 333991 | DD6: 333993 | DE6: 333994 | DF6: 33399A | DG6: 33399B | DH6: 334111 | DI6: 334112 | DJ6: 334118 | DK6: 334210 | DL6: 334220 | DM6: 334290 | DN6: 334413 | DO6: 334418 | DP6: 33441A | DQ6: 334510 | DR6: 334511 | DS6: 334512 | DT6: 334513 | DU6: 334514 | DV6: 334515 | DW6: 334516 | DX6: 334517 | DY6: 33451A | DZ6: 334300 | EA6: 334610 | EB6: 335110 | EC6: 335120 | ED6: 335210 | EE6: 335221 | EF6: 335222 | EG6: 335224 | EH6: 335228 | EI6: 335311 | EJ6: 335312 | EK6: 335313 | EL6: 335314 | EM6: 335911 | EN6: 335912 | EO6: 335920 | EP6: 335930 | EQ6: 335991 | ER6: 335999 | ES6: 336111 | ET6: 336112 | EU6: 336120 | EV6: 336211 | EW6: 336212 | EX6: 336213 | EY6: 336214 | EZ6: 336310 | FA6: 336320 | FB6: 336350 | FC6: 336360 | FD6: 336370 | FE6: 336390 | FF6: 3363A0 | FG6: 336411 | FH6: 336412 | FI6: 336413 | FJ6: 336414 | FK6: 33641A | FL6: 336500 | FM6: 336611 | FN6: 336612 | FO6: 336991 | FP6: 336992 | FQ6: 336999 | FR6: 337110 | FS6: 337121 | FT6: 337122 | FU6: 337127 | FV6: 33712N | FW6: 337215 | FX6: 33721A | FY6: 337900 | FZ6: 339112 | GA6: 339113 | GB6: 339114 | GC6: 339115 | GD6: 339116 | GE6: 339910 | GF6: 339920 | GG6: 339930 | GH6: 339940 | GI6: 339950 | GJ6: 339990 | GK6: 311111 | GL6: 311119 | GM6: 311210 | GN6: 311221 | GO6: 311225 | GP6: 311224 | GQ6: 311230 | GR6: 311300 | GS6: 311410 | GT6: 311420 | GU6: 311513 | GV6: 311514 | GW6: 31151A | GX6: 311520 | GY6: 311615 | GZ6: 31161A | HA6: 311700 | HB6: 311810 | HC6: 3118A0 | HD6: 311910 | HE6: 311920 | HF6: 311930 | HG6: 311940 | HH6: 311990 | HI6: 312110 | HJ6: 312120 | HK6: 312130 | HL6: 312140 | HM6: 312200 | HN6: 313100 | HO6: 313200 | HP6: 313300 | HQ6: 314110 | HR6: 314120 | HS6: 314900 | HT6: 315000 | HU6: 316000 | HV6: 322110 | HW6: 322120 | HX6: 322130 | HY6: 322210 | HZ6: 322220 | IA6: 322230 | IB6: 322291 | IC6: 322299 | ID6: 323110 | IE6: 323120 | IF6: 324110 | IG6: 324121 | IH6: 324122 | II6: 324190 | IJ6: 325110 | IK6: 325120 | IL6: 325130 | IM6: 325180 | IN6: 325190 | IO6: 325211 | IP6: 3252A0 | IQ6: 325411 | IR6: 325412 | IS6: 325413 | IT6: 325414 | IU6: 325310 | IV6: 325320 | IW6: 325510 | IX6: 325520 | IY6: 325610 | IZ6: 325620 | JA6: 325910 | JB6: 3259A0 | JC6: 326110 | JD6: 326120 | JE6: 326130 | JF6: 326140 | JG6: 326150 | JH6: 326160 | JI6: 326190 | JJ6: 326210 | JK6: 326220 | JL6: 326290 | JM6: 423100 | JN6: 423400 | JO6: 423600 | JP6: 423800 | JQ6: 423A00 | JR6: 424200 | JS6: 424400 | JT6: 424700 | JU6: 424A00 | JV6: 425000 | JW6: 4200ID | JX6: 441000 | JY6: 445000 | JZ6: 452000 | KA6: 444000 | KB6: 446000 | KC6: 447000 | KD6: 448000 | KE6: 454000 | KF6: 4B0000 | KG6: 481000 | KH6: 482000 | KI6: 483000 | KJ6: 484000 | KK6: 485000 | KL6: 486000 | KM6: 48A000 | KN6: 492000 | KO6: 493000 | KP6: 511110 | KQ6: 511120 | KR6: 511130 | KS6: 5111A0 | KT6: 511200 | KU6: 512100 | KV6: 512200 | KW6: 515100 | KX6: 515200 | KY6: 517110 | KZ6: 517210 | LA6: 517A00 | LB6: 518200 | LC6: 519130 | LD6: 5191A0 | LE6: 522A00 | LF6: 52A000 | LG6: 523900 | LH6: 523A00 | LI6: 524113 | LJ6: 5241XX | LK6: 524200 | LL6: 525000 | LM6: 531HSO | LN6: 531HST | LO6: 531ORE | LP6: 532100 | LQ6: 532400 | LR6: 532A00 | LS6: 533000 | LT6: 541100 | LU6: 541511 | LV6: 541512 | LW6: 54151A | LX6: 541200 | LY6: 541300 | LZ6: 541610 | MA6: 5416A0 | MB6: 541700 | MC6: 541800 | MD6: 541400 | ME6: 541920 | MF6: 541940 | MG6: 5419A0 | MH6: 550000 | MI6: 561300 | MJ6: 561700 | MK6: 561100 | ML6: 561200 | MM6: 561400 | MN6: 561500 | MO6: 561600 | MP6: 561900 | MQ6: 562000 | MR6: 611100 | MS6: 611A00 | MT6: 611B00 | MU6: 621100 | MV6: 621200 | MW6: 621300 | MX6: 621400 | MY6: 621500 | MZ6: 621600 | NA6: 621900 | NB6: 622000 | NC6: 623A00 | ND6: 623B00 | NE6: 624100 | NF6: 624400 | NG6: 624A00 | NH6: 711100 | NI6: 711200 | NJ6: 711500 | NK6: 711A00 | NL6: 712000 | NM6: 713100 | NN6: 713200 | NO6: 713900 | NP6: 721000 | NQ6: 722110 | NR6: 722211 | NS6: 722A00 | NT6: 811100 | NU6: 811200 | NV6: 811300 | NW6: 811400 | NX6: 812100 | NY6: 812200 | NZ6: 812300 | OA6: 812900 | OB6: 813100 | OC6: 813A00 | OD6: 813B00 | OE6: 814000 | OF6: S00500 | OG6: S00600 | OH6: 491000 | OI6: S00101 | OJ6: S00102 | OK6: GSLGE | OL6: GSLGH | OM6: GSLGO | ON6: S00201 | OO6: S00202 | OP6: S00203 | OQ6: T001 | OR6: F01000 | OS6: F02E00 | OT6: F02N00 | OU6: F02R00 | OV6: F02S00 | OW6: F03000 | OX6: F04000 | OY6: F05000 | OZ6: F06C00 | PA6: F06E00 | PB6: F06N00 | PC6: F06S00 | PD6: F07C00 | PE6: F07E00 | PF6: F07N00 | PG6: F07S00 | PH6: F10C00 | PI6: F10E00 | PJ6: F10N00 | PK6: F10S00 | PL6: T004 | PM6: T007 | PP6: 331314 | PS6: 331314
A7: 1111A0 | B7: Oilseed farming | C7: 2222 | D7: 129 | E7: 3 | F7: 0 | G7: 0 | H7: 0 | I7: 0 | J7: 0 | K7: 0 | L7: 0 | M7: 0 | N7: 0 | O7: 0 | P7: 0 | Q7: 0 | R7: 0 | S7: 0 | T7: 0 | U7: 0 | V7: 0 | W7: 0 | X7: 0 | Y7: 0 | Z7: 0 | AA7: 0 | AB7: 0 | AC7: 0 | AD7: 0 | AE7: 0 | AF7: 0 | AG7: 0 | AH7: 0 | AI7: 0 | AJ7: 0 | AK7: 0 | AL7: 0 | AM7: 0 | AN7: 0 | AO7: 0 | AP7: 0 | AQ7: 0 | AR7: 0 | AS7: 0 | AT7: 0 | AU7: 0 | AV7: 0 | AW7: 0 | AX7: 0 | AY7: 0 | AZ7: 0 | BA7: 0 | BB7: 0 | BC7: 0 | BD7: 0 | BE7: 0 | BF7: 0 | BG7: 0 | BH7: 0 | BI7: 0 | BJ7: 0 | BK7: 0 | BL7: 0 | BM7: 0 | BN7: 0 | BO7: 0 | BP7: 0 | BQ7: 0 | BR7: 0 | BS7: 0 | BT7: 0 | BU7: 0 | BV7: 0 | BW7: 0 | BX7: 0 | BY7: 0 | BZ7: 0 | CA7: 0 | CB7: 0 | CC7: 0 | CD7: 0 | CE7: 0 | CF7: 0 | CG7: 0 | CH7: 0 | CI7: 0 | CJ7: 0 | CK7: 0 | CL7: 0 | CM7: 0 | CN7: 0 | CO7: 0 | CP7: 0 | CQ7: 0 | CR7: 0 | CS7: 0 | CT7: 0 | CU7: 0 | CV7: 0 | CW7: 0 | CX7: 0 | CY7: 0 | CZ7: 0 | DA7: 0 | DB7: 0 | DC7: 0 | DD7: 0 | DE7: 0 | DF7: 0 | DG7: 0 | DH7: 0 | DI7: 0 | DJ7: 0 | DK7: 0 | DL7: 0 | DM7: 0 | DN7: 0 | DO7: 0 | DP7: 0 | DQ7: 0 | DR7: 0 | DS7: 0 | DT7: 0 | DU7: 0 | DV7: 0 | DW7: 0 | DX7: 0 | DY7: 0 | DZ7: 0 | EA7: 0 | EB7: 0 | EC7: 0 | ED7: 0 | EE7: 0 | EF7: 0 | EG7: 0 | EH7: 0 | EI7: 0 | EJ7: 0 | EK7: 0 | EL7: 0 | EM7: 0 | EN7: 0 | EO7: 0 | EP7: 0 | EQ7: 0 | ER7: 0 | ES7: 0 | ET7: 0 | EU7: 0 | EV7: 0 | EW7: 0 | EX7: 0 | EY7: 0 | EZ7: 0 | FA7: 0 | FB7: 0 | FC7: 0 | FD7: 0 | FE7: 0 | FF7: 0 | FG7: 0 | FH7: 0 | FI7: 0 | FJ7: 0 | FK7: 0 | FL7: 0 | FM7: 0 | FN7: 0 | FO7: 0 | FP7: 0 | FQ7: 0 | FR7: 0 | FS7: 0 | FT7: 0 | FU7: 0 | FV7: 0 | FW7: 0 | FX7: 0 | FY7: 0 | FZ7: 0 | GA7: 0 | GB7: 0 | GC7: 0 | GD7: 0 | GE7: 0 | GF7: 0 | GG7: 0 | GH7: 0 | GI7: 0 | GJ7: 0 | GK7: 0 | GL7: 0 | GM7: 0 | GN7: 74 | GO7: 501 | GP7: 21071 | GQ7: 0 | GR7: 0 | GS7: 0 | GT7: 0 | GU7: 0 | GV7: 0 | GW7: 0 | GX7: 0 | GY7: 0 | GZ7: 0 | HA7: 0 | HB7: 0 | HC7: 0 | HD7: 207 | HE7: 0 | HF7: 8 | HG7: 23 | HH7: 4 | HI7: 0 | HJ7: 0 | HK7: 0 | HL7: 0 | HM7: 0 | HN7: 0 | HO7: 0 | HP7: 0 | HQ7: 0 | HR7: 0 | HS7: 0 | HT7: 0 | HU7: 0 | HV7: 0 | HW7: 0 | HX7: 0 | HY7: 0 | HZ7: 0 | IA7: 0 | IB7: 0 | IC7: 0 | ID7: 0 | IE7: 0 | IF7: 0 | IG7: 0 | IH7: 0 | II7: 0 | IJ7: 59 | IK7: 1 | IL7: 1 | IM7: 0 | IN7: 430 | IO7: 0 | IP7: 0 | IQ7: 48 | IR7: 29 | IS7: 4 | IT7: 1 | IU7: 0 | IV7: 0 | IW7: 0 | IX7: 0 | IY7: 0 | IZ7: 0 | JA7: 0 | JB7: 0 | JC7: 0 | JD7: 0 | JE7: 0 | JF7: 0 | JG7: 0 | JH7: 0 | JI7: 0 | JJ7: 0 | JK7: 0 | JL7: 0 | JM7: 0 | JN7: 0 | JO7: 0 | JP7: 0 | JQ7: 0 | JR7: 0 | JS7: 0 | JT7: 0 | JU7: 0 | JV7: 0 | JW7: 0 | JX7: 0 | JY7: 0 | JZ7: 0 | KA7: 0 | KB7: 0 | KC7: 0 | KD7: 0 | KE7: 0 | KF7: 0 | KG7: 0 | KH7: 0 | KI7: 0 | KJ7: 0 | KK7: 0 | KL7: 0 | KM7: 0 | KN7: 0 | KO7: 0 | KP7: 0 | KQ7: 0 | KR7: 0 | KS7: 0 | KT7: 0 | KU7: 0 | KV7: 0 | KW7: 0 | KX7: 0 | KY7: 0 | KZ7: 0 | LA7: 0 | LB7: 0 | LC7: 0 | LD7: 0 | LE7: 0 | LF7: 0 | LG7: 0 | LH7: 0 | LI7: 0 | LJ7: 0 | LK7: 0 | LL7: 0 | LM7: 0 | LN7: 0 | LO7: 0 | LP7: 0 | LQ7: 0 | LR7: 0 | LS7: 0 | LT7: 0 | LU7: 0 | LV7: 0 | LW7: 0 | LX7: 0 | LY7: 0 | LZ7: 0 | MA7: 0 | MB7: 0 | MC7: 0 | MD7: 0 | ME7: 0 | MF7: 0 | MG7: 0 | MH7: 0 | MI7: 0 | MJ7: 0 | MK7: 0 | ML7: 0 | MM7: 0 | MN7: 0 | MO7: 0 | MP7: 0 | MQ7: 0 | MR7: 0 | MS7: 0 | MT7: 0 | MU7: 0 | MV7: 0 | MW7: 0 | MX7: 0 | MY7: 0 | MZ7: 0 | NA7: 0 | NB7: 0 | NC7: 0 | ND7: 0 | NE7: 0 | NF7: 0 | NG7: 0 | NH7: 0 | NI7: 0 | NJ7: 0 | NK7: 0 | NL7: 0 | NM7: 0 | NN7: 0 | NO7: 0 | NP7: 0 | NQ7: 0 | NR7: 0 | NS7: 0 | NT7: 0 | NU7: 0 | NV7: 0 | NW7: 0 | NX7: 0 | NY7: 0 | NZ7: 0 | OA7: 0 | OB7: 0 | OC7: 0 | OD7: 0 | OE7: 0 | OF7: 0 | OG7: -323 | OH7: 0 | OI7: 0 | OJ7: 0 | OK7: 0 | OL7: 0 | OM7: 0 | ON7: 0 | OO7: 0 | OP7: 0 | OQ7: 24492 | OW7: -3562 | OX7: 22280 | OY7: -948 | PL7: 17770 | PM7: 42263
A8: 1111B0 | B8: Grain farming | C8: 0 | D8: 6745 | E8: 0 | F8: 0 | G8: 0 | H8: 177 | I8: 1893 | J8: 6261 | K8: 1754 | L8: 308 | M8: 0 | N8: 0 | O8: 0 | P8: 0 | Q8: 0 | R8: 0 | S8: 0 | T8: 0 | U8: 0 | V8: 0 | W8: 0 | X8: 0 | Y8: 0 | Z8: 0 | AA8: 0 | AB8: 0 | AC8: 0 | AD8: 0 | AE8: 0 | AF8: 0 | AG8: 0 | AH8: 0 | AI8: 0 | AJ8: 0 | AK8: 0 | AL8: 0 | AM8: 0 | AN8: 0 | AO8: 0 | AP8: 0 | AQ8: 0 | AR8: 0 | AS8: 0 | AT8: 0 | AU8: 0 | AV8: 0 | AW8: 0 | AX8: 0 | AY8: 0 | AZ8: 0 | BA8: 0 | BB8: 0 | BC8: 0 | BD8: 0 | BE8: 0 | BF8: 0 | BG8: 0 | BH8: 0 | BI8: 0 | BJ8: 0 | BK8: 0 | BL8: 0 | BM8: 0 | BN8: 0 | BO8: 0 | BP8: 0 | BQ8: 0 | BR8: 0 | BS8: 0 | BT8: 0 | BU8: 0 | BV8: 0 | BW8: 0 | BX8: 0 | BY8: 0 | BZ8: 0 | CA8: 0 | CB8: 0 | CC8: 0 | CD8: 0 | CE8: 0 | CF8: 0 | CG8: 0 | CH8: 0 | CI8: 0 | CJ8: 0 | CK8: 0 | CL8: 0 | CM8: 0 | CN8: 0 | CO8: 0 | CP8: 0 | CQ8: 0 | CR8: 0 | CS8: 0 | CT8: 0 | CU8: 0 | CV8: 0 | CW8: 0 | CX8: 0 | CY8: 0 | CZ8: 0 | DA8: 0 | DB8: 0 | DC8: 0 | DD8: 0 | DE8: 0 | DF8: 0 | DG8: 0 | DH8: 0 | DI8: 0 | DJ8: 0 | DK8: 0 | DL8: 0 | DM8: 0 | DN8: 0 | DO8: 0 | DP8: 0 | DQ8: 0 | DR8: 0 | DS8: 0 | DT8: 0 | DU8: 0 | DV8: 0 | DW8: 0 | DX8: 0 | DY8: 0 | DZ8: 0 | EA8: 0 | EB8: 0 | EC8: 0 | ED8: 0 | EE8: 0 | EF8: 0 | EG8: 0 | EH8: 0 | EI8: 0 | EJ8: 0 | EK8: 0 | EL8: 0 | EM8: 0 | EN8: 0 | EO8: 0 | EP8: 0 | EQ8: 0 | ER8: 0 | ES8: 0 | ET8: 0 | EU8: 0 | EV8: 0 | EW8: 0 | EX8: 0 | EY8: 0 | EZ8: 0 | FA8: 0 | FB8: 0 | FC8: 0 | FD8: 0 | FE8: 0 | FF8: 0 | FG8: 0 | FH8: 0 | FI8: 0 | FJ8: 0 | FK8: 0 | FL8: 0 | FM8: 0 | FN8: 0 | FO8: 0 | FP8: 0 | FQ8: 0 | FR8: 0 | FS8: 0 | FT8: 0 | FU8: 0 | FV8: 0 | FW8: 0 | FX8: 0 | FY8: 0 | FZ8: 0 | GA8: 0 | GB8: 0 | GC8: 0 | GD8: 0 | GE8: 0 | GF8: 0 | GG8: 0 | GH8: 0 | GI8: 0 | GJ8: 0 | GK8: 2166 | GL8: 10276 | GM8: 12073 | GN8: 7579 | GO8: 470 | GP8: 125 | GQ8: 578 | GR8: 0 | GS8: 5127 | GT8: 277 | GU8: 0 | GV8: 0 | GW8: 0 | GX8: 0 | GY8: 0 | GZ8: 0 | HA8: 0 | HB8: 3020 | HC8: 732 | HD8: 1078 | HE8: 0 | HF8: 0 | HG8: 0 | HH8: 1282 | HI8: 0 | HJ8: 2766 | HK8: 0 | HL8: 181 | HM8: 0 | HN8: 0 | HO8: 0 | HP8: 0 | HQ8: 0 | HR8: 0 | HS8: 0 | HT8: 0 | HU8: 0 | HV8: 0 | HW8: 0 | HX8: 0 | HY8: 0 | HZ8: 0 | IA8: 0 | IB8: 0 | IC8: 0 | ID8: 0 | IE8: 0 | IF8: 0 | IG8: 0 | IH8: 0 | II8: 0 | IJ8: 0 | IK8: 26 | IL8: 0 | IM8: 0 | IN8: 17674 | IO8: 0 | IP8: 0 | IQ8: 0 | IR8: 0 | IS8: 0 | IT8: 0 | IU8: 0 | IV8: 0 | IW8: 0 | IX8: 0 | IY8: 0 | IZ8: 0 | JA8: 0 | JB8: 0 | JC8: 0 | JD8: 0 | JE8: 0 | JF8: 0 | JG8: 0 | JH8: 0 | JI8: 0 | JJ8: 0 | JK8: 0 | JL8: 0 | JM8: 0 | JN8: 0 | JO8: 0 | JP8: 0 | JQ8: 0 | JR8: 0 | JS8: 0 | JT8: 0 | JU8: 0 | JV8: 0 | JW8: 0 | JX8: 0 | JY8: 0 | JZ8: 0 | KA8: 0 | KB8: 0 | KC8: 0 | KD8: 0 | KE8: 0 | KF8: 0 | KG8: 0 | KH8: 0 | KI8: 0 | KJ8: 0 | KK8: 0 | KL8: 0 | KM8: 0 | KN8: 0 | KO8: 0 | KP8: 0 | KQ8: 0 | KR8: 0 | KS8: 0 | KT8: 0 | KU8: 0 | KV8: 0 | KW8: 0 | KX8: 0 | KY8: 0 | KZ8: 0 | LA8: 0 | LB8: 0 | LC8: 0 | LD8: 0 | LE8: 0 | LF8: 0 | LG8: 0 | LH8: 0 | LI8: 0 | LJ8: 0 | LK8: 0 | LL8: 0 | LM8: 0 | LN8: 0 | LO8: 0 | LP8: 0 | LQ8: 0 | LR8: 0 | LS8: 0 | LT8: 0 | LU8: 0 | LV8: 0 | LW8: 0 | LX8: 0 | LY8: 0 | LZ8: 0 | MA8: 0 | MB8: 146 | MC8: 0 | MD8: 0 | ME8: 0 | MF8: 0 | MG8: 0 | MH8: 6 | MI8: 0 | MJ8: 0 | MK8: 0 | ML8: 0 | MM8: 0 | MN8: 0 | MO8: 0 | MP8: 0 | MQ8: 0 | MR8: 2 | MS8: 17 | MT8: 0 | MU8: 0 | MV8: 0 | MW8: 0 | MX8: 0 | MY8: 0 | MZ8: 0 | NA8: 0 | NB8: 0 | NC8: 0 | ND8: 0 | NE8: 0 | NF8: 0 | NG8: 0 | NH8: 0 | NI8: 0 | NJ8: 0 | NK8: 0 | NL8: 0 | NM8: 0 | NN8: 0 | NO8: 0 | NP8: 9 | NQ8: 0 | NR8: 1 | NS8: 0 | NT8: 0 | NU8: 0 | NV8: 0 | NW8: 0 | NX8: 0 | NY8: 0 | NZ8: 0 | OA8: 0 | OB8: 0 | OC8: 0 | OD8: 0 | OE8: 0 | OF8: 0 | OG8: -44 | OH8: 0 | OI8: 0 | OJ8: 0 | OK8: 99 | OL8: 0 | OM8: 57 | ON8: 0 | OO8: 0 | OP8: 0 | OQ8: 82862 | OR8: 2183 | OW8: -7464 | OX8: 16475 | OY8: -2526 | PL8: 8667 | PM8: 91529
A9: 111200 | B9: Vegetable and melon farming | C9: 0 | D9: 0 | E9: 647 | F9: 5 | G9: 0 | H9: 0 | I9: 0 | J9: 0 | K9: 0 | L9: 0 | M9: 0 | N9: 0 | O9: 0 | P9: 0 | Q9: 0 | R9: 0 | S9: 0 | T9: 0 | U9: 0 | V9: 0 | W9: 0 | X9: 0 | Y9: 0 | Z9: 0 | AA9: 0 | AB9: 0 | AC9: 0 | AD9: 0 | AE9: 0 | AF9: 0 | AG9: 0 | AH9: 0 | AI9: 0 | AJ9: 0 | AK9: 0 | AL9: 0 | AM9: 0 | AN9: 0 | AO9: 0 | AP9: 0 | AQ9: 0 | AR9: 0 | AS9: 0 | AT9: 0 | AU9: 0 | AV9: 0 | AW9: 0 | AX9: 0 | AY9: 0 | AZ9: 0 | BA9: 0 | BB9: 0 | BC9: 0 | BD9: 0 | BE9: 0 | BF9: 0 | BG9: 0 | BH9: 0 | BI9: 0 | BJ9: 0 | BK9: 0 | BL9: 0 | BM9: 0 | BN9: 0 | BO9: 0 | BP9: 0 | BQ9: 0 | BR9: 0 | BS9: 0 | BT9: 0 | BU9: 0 | BV9: 0 | BW9: 0 | BX9: 0 | BY9: 0 | BZ9: 0 | CA9: 0 | CB9: 0 | CC9: 0 | CD9: 0 | CE9: 0 | CF9: 0 | CG9: 0 | CH9: 0 | CI9: 0 | CJ9: 0 | CK9: 0 | CL9: 0 | CM9: 0 | CN9: 0 | CO9: 0 | CP9: 0 | CQ9: 0 | CR9: 0 | CS9: 0 | CT9: 0 | CU9: 0 | CV9: 0 | CW9: 0 | CX9: 0 | CY9: 0 | CZ9: 0 | DA9: 0 | DB9: 0 | DC9: 0 | DD9: 0 | DE9: 0 | DF9: 0 | DG9: 0 | DH9: 0 | DI9: 0 | DJ9: 0 | DK9: 0 | DL9: 0 | DM9: 0 | DN9: 0 | DO9: 0 | DP9: 0 | DQ9: 0 | DR9: 0 | DS9: 0 | DT9: 0 | DU9: 0 | DV9: 0 | DW9: 0 | DX9: 0 | DY9: 0 | DZ9: 0 | EA9: 0 | EB9: 0 | EC9: 0 | ED9: 0 | EE9: 0 | EF9: 0 | EG9: 0 | EH9: 0 | EI9: 0 | EJ9: 0 | EK9: 0 | EL9: 0 | EM9: 0 | EN9: 0 | EO9: 0 | EP9: 0 | EQ9: 0 | ER9: 0 | ES9: 0 | ET9: 0 | EU9: 0 | EV9: 0 | EW9: 0 | EX9: 0 | EY9: 0 | EZ9: 0 | FA9: 0 | FB9: 0 | FC9: 0 | FD9: 0 | FE9: 0 | FF9: 0 | FG9: 0 | FH9: 0 | FI9: 0 | FJ9: 0 | FK9: 0 | FL9: 0 | FM9: 0 | FN9: 0 | FO9: 0 | FP9: 0 | FQ9: 0 | FR9: 0 | FS9: 0 | FT9: 0 | FU9: 0 | FV9: 0 | FW9: 0 | FX9: 0 | FY9: 0 | FZ9: 0 | GA9: 0 | GB9: 0 | GC9: 0 | GD9: 0 | GE9: 0 | GF9: 0 | GG9: 0 | GH9: 0 | GI9: 0 | GJ9: 0 | GK9: 0 | GL9: 0 | GM9: 0 | GN9: 0 | GO9: 0 | GP9: 0 | GQ9: 0 | GR9: 0 | GS9: 834 | GT9: 415 | GU9: 0 | GV9: 0 | GW9: 0 | GX9: 0 | GY9: 0 | GZ9: 0 | HA9: 0 | HB9: 0 | HC9: 5 | HD9: 80 | HE9: 0 | HF9: 15 | HG9: 114 | HH9: 757 | HI9: 0 | HJ9: 0 | HK9: 0 | HL9: 0 | HM9: 0 | HN9: 0 | HO9: 0 | HP9: 0 | HQ9: 0 | HR9: 0 | HS9: 0 | HT9: 0 | HU9: 0 | HV9: 0 | HW9: 0 | HX9: 0 | HY9: 0 | HZ9: 0 | IA9: 0 | IB9: 0 | IC9: 0 | ID9: 0 | IE9: 0 | IF9: 0 | IG9: 0 | IH9: 0 | II9: 0 | IJ9: 0 | IK9: 0 | IL9: 0 | IM9: 0 | IN9: 0 | IO9: 0 | IP9: 0 | IQ9: 0 | IR9: 0 | IS9: 0 | IT9: 0 | IU9: 0 | IV9: 0 | IW9: 0 | IX9: 0 | IY9: 0 | IZ9: 0 | JA9: 0 | JB9: 0 | JC9: 0 | JD9: 0 | JE9: 0 | JF9: 0 | JG9: 0 | JH9: 0 | JI9: 0 | JJ9: 0 | JK9: 0 | JL9: 0 | JM9: 0 | JN9: 0 | JO9: 0 | JP9: 0 | JQ9: 0 | JR9: 0 | JS9: 0 | JT9: 0 | JU9: 0 | JV9: 0 | JW9: 0 | JX9: 0 | JY9: 0 | JZ9: 0 | KA9: 0 | KB9: 0 | KC9: 0 | KD9: 0 | KE9: 0 | KF9: 0 | KG9: 0 | KH9: 0 | KI9: 0 | KJ9: 0 | KK9: 0 | KL9: 0 | KM9: 65 | KN9: 0 | KO9: 0 | KP9: 0 | KQ9: 0 | KR9: 0 | KS9: 0 | KT9: 0 | KU9: 0 | KV9: 0 | KW9: 0 | KX9: 0 | KY9: 0 | KZ9: 0 | LA9: 0 | LB9: 0 | LC9: 0 | LD9: 0 | LE9: 0 | LF9: 0 | LG9: 0 | LH9: 0 | LI9: 0 | LJ9: 0 | LK9: 0 | LL9: 0 | LM9: 0 | LN9: 0 | LO9: 0 | LP9: 0 | LQ9: 0 | LR9: 0 | LS9: 0 | LT9: 0 | LU9: 0 | LV9: 0 | LW9: 0 | LX9: 0 | LY9: 0 | LZ9: 0 | MA9: 0 | MB9: 0 | MC9: 0 | MD9: 0 | ME9: 0 | MF9: 0 | MG9: 0 | MH9: 0 | MI9: 0 | MJ9: 0 | MK9: 0 | ML9: 0 | MM9: 0 | MN9: 0 | MO9: 0 | MP9: 0 | MQ9: 0 | MR9: 16 | MS9: 36 | MT9: 0 | MU9: 0 | MV9: 0 | MW9: 0 | MX9: 0 | MY9: 0 | MZ9: 0 | NA9: 0 | NB9: 0 | NC9: 0 | ND9: 0 | NE9: 0 | NF9: 0 | NG9: 0 | NH9: 0 | NI9: 0 | NJ9: 0 | NK9: 0 | NL9: 0 | NM9: 0 | NN9: 0 | NO9: 1 | NP9: 7 | NQ9: 189 | NR9: 150 | NS9: 17 | NT9: 0 | NU9: 0 | NV9: 0 | NW9: 0 | NX9: 0 | NY9: 0 | NZ9: 0 | OA9: 0 | OB9: 7 | OC9: 0 | OD9: 3 | OE9: 0 | OF9: 0 | OG9: 0 | OH9: 0 | OI9: 0 | OJ9: 0 | OK9: 125 | OL9: 61 | OM9: 44 | ON9: 0 | OO9: 0 | OP9: 0 | OQ9: 3592 | OR9: 17374 | OW9: -2723 | OX9: 2221 | OY9: -6126 | PL9: 10745 | PM9: 14338
A10: 111300 | B10: Fruit and tree nut farming | C10: 0 | D10: 0 | E10: 0 | F10: 148 | G10: 0 | H10: 0 | I10: 0 | J10: 0 | K10: 0 | L10: 0 | M10: 0 | N10: 0 | O10: 0 | P10: 0 | Q10: 0 | R10: 0 | S10: 0 | T10: 0 | U10: 0 | V10: 0 | W10: 0 | X10: 0 | Y10: 0 | Z10: 0 | AA10: 0 | AB10: 0 | AC10: 0 | AD10: 0 | AE10: 0 | AF10: 0 | AG10: 0 | AH10: 0 | AI10: 0 | AJ10: 0 | AK10: 0 | AL10: 0 | AM10: 0 | AN10: 0 | AO10: 0 | AP10: 0 | AQ10: 0 | AR10: 0 | AS10: 0 | AT10: 0 | AU10: 0 | AV10: 0 | AW10: 0 | AX10: 0 | AY10: 0 | AZ10: 0 | BA10: 0 | BB10: 0 | BC10: 0 | BD10: 0 | BE10: 0 | BF10: 0 | BG10: 0 | BH10: 0 | BI10: 0 | BJ10: 0 | BK10: 0 | BL10: 0 | BM10: 0 | BN10: 0 | BO10: 0 | BP10: 0 | BQ10: 0 | BR10: 0 | BS10: 0 | BT10: 0 | BU10: 0 | BV10: 0 | BW10: 0 | BX10: 0 | BY10: 0 | BZ10: 0 | CA10: 0 | CB10: 0 | CC10: 0 | CD10: 0 | CE10: 0 | CF10: 0 | CG10: 0 | CH10: 0 | CI10: 0 | CJ10: 0 | CK10: 0 | CL10: 0 | CM10: 0 | CN10: 0 | CO10: 0 | CP10: 0 | CQ10: 0 | CR10: 0 | CS10: 0 | CT10: 0 | CU10: 0 | CV10: 0 | CW10: 0 | CX10: 0 | CY10: 0 | CZ10: 0 | DA10: 0 | DB10: 0 | DC10: 0 | DD10: 0 | DE10: 0 | DF10: 0 | DG10: 0 | DH10: 0 | DI10: 0 | DJ10: 0 | DK10: 0 | DL10: 0 | DM10: 0 | DN10: 0 | DO10: 0 | DP10: 0 | DQ10: 0 | DR10: 0 | DS10: 0 | DT10: 0 | DU10: 0 | DV10: 0 | DW10: 0 | DX10: 0 | DY10: 0 | DZ10: 0 | EA10: 0 | EB10: 0 | EC10: 0 | ED10: 0 | EE10: 0 | EF10: 0 | EG10: 0 | EH10: 0 | EI10: 0 | EJ10: 0 | EK10: 0 | EL10: 0 | EM10: 0 | EN10: 0 | EO10: 0 | EP10: 0 | EQ10: 0 | ER10: 0 | ES10: 0 | ET10: 0 | EU10: 0 | EV10: 0 | EW10: 0 | EX10: 0 | EY10: 0 | EZ10: 0 | FA10: 0 | FB10: 0 | FC10: 0 | FD10: 0 | FE10: 0 | FF10: 0 | FG10: 0 | FH10: 0 | FI10: 0 | FJ10: 0 | FK10: 0 | FL10: 0 | FM10: 0 | FN10: 0 | FO10: 0 | FP10: 0 | FQ10: 0 | FR10: 0 | FS10: 0 | FT10: 0 | FU10: 0 | FV10: 0 | FW10: 0 | FX10: 0 | FY10: 0 | FZ10: 0 | GA10: 0 | GB10: 0 | GC10: 0 | GD10: 0 | GE10: 0 | GF10: 0 | GG10: 0 | GH10: 0 | GI10: 0 | GJ10: 0 | GK10: 0 | GL10: 0 | GM10: 0 | GN10: 0 | GO10: 0 | GP10: 0 | GQ10: 68 | GR10: 863 | GS10: 869 | GT10: 2382 | GU10: 0 | GV10: 0 | GW10: 0 | GX10: 191 | GY10: 0 | GZ10: 0 | HA10: 0 | HB10: 155 | HC10: 243 | HD10: 1669 | HE10: 4552 | HF10: 177 | HG10: 489 | HH10: 2348 | HI10: 0 | HJ10: 0 | HK10: 2332 | HL10: 3 | HM10: 0 | HN10: 0 | HO10: 0 | HP10: 0 | HQ10: 0 | HR10: 0 | HS10: 0 | HT10: 0 | HU10: 0 | HV10: 0 | HW10: 0 | HX10: 0 | HY10: 0 | HZ10: 0 | IA10: 0 | IB10: 0 | IC10: 0 | ID10: 0 | IE10: 0 | IF10: 0 | IG10: 0 | IH10: 0 | II10: 0 | IJ10: 0 | IK10: 0 | IL10: 0 | IM10: 0 | IN10: 0 | IO10: 0 | IP10: 0 | IQ10: 0 | IR10: 0 | IS10: 0 | IT10: 0 | IU10: 0 | IV10: 0 | IW10: 0 | IX10: 0 | IY10: 0 | IZ10: 0 | JA10: 0 | JB10: 0 | JC10: 0 | JD10: 0 | JE10: 0 | JF10: 0 | JG10: 0 | JH10: 0 | JI10: 0 | JJ10: 0 | JK10: 0 | JL10: 0 | JM10: 0 | JN10: 0 | JO10: 0 | JP10: 0 | JQ10: 0 | JR10: 0 | JS10: 0 | JT10: 0 | JU10: 0 | JV10: 0 | JW10: 0 | JX10: 0 | JY10: 0 | JZ10: 0 | KA10: 0 | KB10: 0 | KC10: 0 | KD10: 0 | KE10: 0 | KF10: 0 | KG10: 0 | KH10: 0 | KI10: 0 | KJ10: 0 | KK10: 0 | KL10: 0 | KM10: 15 | KN10: 0 | KO10: 0 | KP10: 0 | KQ10: 0 | KR10: 0 | KS10: 0 | KT10: 0 | KU10: 0 | KV10: 0 | KW10: 0 | KX10: 0 | KY10: 0 | KZ10: 0 | LA10: 0 | LB10: 0 | LC10: 0 | LD10: 0 | LE10: 0 | LF10: 0 | LG10: 0 | LH10: 0 | LI10: 0 | LJ10: 0 | LK10: 0 | LL10: 0 | LM10: 0 | LN10: 0 | LO10: 0 | LP10: 0 | LQ10: 0 | LR10: 0 | LS10: 0 | LT10: 0 | LU10: 0 | LV10: 0 | LW10: 0 | LX10: 0 | LY10: 0 | LZ10: 0 | MA10: 0 | MB10: 1 | MC10: 0 | MD10: 0 | ME10: 0 | MF10: 0 | MG10: 0 | MH10: 0 | MI10: 0 | MJ10: 0 | MK10: 0 | ML10: 0 | MM10: 0 | MN10: 0 | MO10: 0 | MP10: 0 | MQ10: 0 | MR10: 1 | MS10: 8 | MT10: 0 | MU10: 0 | MV10: 0 | MW10: 0 | MX10: 0 | MY10: 0 | MZ10: 0 | NA10: 0 | NB10: 0 | NC10: 0 | ND10: 0 | NE10: 0 | NF10: 0 | NG10: 0 | NH10: 0 | NI10: 0 | NJ10: 0 | NK10: 0 | NL10: 0 | NM10: 0 | NN10: 0 | NO10: 0 | NP10: 1 | NQ10: 5 | NR10: 6 | NS10: 5 | NT10: 0 | NU10: 0 | NV10: 0 | NW10: 0 | NX10: 0 | NY10: 0 | NZ10: 0 | OA10: 0 | OB10: 2 | OC10: 0 | OD10: 0 | OE10: 0 | OF10: 0 | OG10: 0 | OH10: 0 | OI10: 0 | OJ10: 0 | OK10: 12 | OL10: 12 | OM10: 16 | ON10: 0 | OO10: 0 | OP10: 0 | OQ10: 16574 | OR10: 19496 | OW10: -2076 | OX10: 5726 | OY10: -14260 | PL10: 8886 | PM10: 25461
A11: 111400 | B11: Greenhouse, nursery, and floriculture production | C11: 0 | D11: 0 | E11: 0 | F11: 0 | G11: 3019 | H11: 0 | I11: 0 | J11: 0 | K11: 0 | L11: 0 | M11: 0 | N11: 0 | O11: 277 | P11: 0 | Q11: 0 | R11: 0 | S11: 0 | T11: 0 | U11: 0 | V11: 0 | W11: 0 | X11: 0 | Y11: 0 | Z11: 0 | AA11: 0 | AB11: 0 | AC11: 0 | AD11: 69 | AE11: 0 | AF11: 0 | AG11: 166 | AH11: 0 | AI11: 0 | AJ11: 0 | AK11: 54 | AL11: 0 | AM11: 0 | AN11: 0 | AO11: 0 | AP11: 0 | AQ11: 0 | AR11: 0 | AS11: 0 | AT11: 0 | AU11: 0 | AV11: 0 | AW11: 0 | AX11: 0 | AY11: 0 | AZ11: 0 | BA11: 0 | BB11: 0 | BC11: 0 | BD11: 0 | BE11: 0 | BF11: 0 | BG11: 0 | BH11: 0 | BI11: 0 | BJ11: 0 | BK11: 0 | BL11: 0 | BM11: 0 | BN11: 0 | BO11: 0 | BP11: 0 | BQ11: 0 | BR11: 0 | BS11: 0 | BT11: 0 | BU11: 0 | BV11: 0 | BW11: 0 | BX11: 0 | BY11: 0 | BZ11: 0 | CA11: 0 | CB11: 0 | CC11: 0 | CD11: 0 | CE11: 0 | CF11: 0 | CG11: 0 | CH11: 0 | CI11: 0 | CJ11: 0 | CK11: 0 | CL11: 0 | CM11: 0 | CN11: 0 | CO11: 0 | CP11: 0 | CQ11: 0 | CR11: 0 | CS11: 0 | CT11: 0 | CU11: 0 | CV11: 0 | CW11: 0 | CX11: 0 | CY11: 0 | CZ11: 0 | DA11: 0 | DB11: 0 | DC11: 0 | DD11: 0 | DE11: 0 | DF11: 0 | DG11: 0 | DH11: 0 | DI11: 0 | DJ11: 0 | DK11: 0 | DL11: 0 | DM11: 0 | DN11: 0 | DO11: 0 | DP11: 0 | DQ11: 0 | DR11: 0 | DS11: 0 | DT11: 0 | DU11: 0 | DV11: 0 | DW11: 0 | DX11: 0 | DY11: 0 | DZ11: 0 | EA11: 0 | EB11: 0 | EC11: 0 | ED11: 0 | EE11: 0 | EF11: 0 | EG11: 0 | EH11: 0 | EI11: 0 | EJ11: 0 | EK11: 0 | EL11: 0 | EM11: 0 | EN11: 0 | EO11: 0 | EP11: 0 | EQ11: 0 | ER11: 0 | ES11: 0 | ET11: 0 | EU11: 0 | EV11: 0 | EW11: 0 | EX11: 0 | EY11: 0 | EZ11: 0 | FA11: 0 | FB11: 0 | FC11: 0 | FD11: 0 | FE11: 0 | FF11: 0 | FG11: 0 | FH11: 0 | FI11: 0 | FJ11: 0 | FK11: 0 | FL11: 0 | FM11: 0 | FN11: 0 | FO11: 0 | FP11: 0 | FQ11: 0 | FR11: 0 | FS11: 0 | FT11: 0 | FU11: 0 | FV11: 0 | FW11: 0 | FX11: 0 | FY11: 0 | FZ11: 0 | GA11: 0 | GB11: 0 | GC11: 0 | GD11: 0 | GE11: 0 | GF11: 0 | GG11: 0 | GH11: 0 | GI11: 0 | GJ11: 435 | GK11: 0 | GL11: 0 | GM11: 0 | GN11: 0 | GO11: 0 | GP11: 0 | GQ11: 0 | GR11: 0 | GS11: 0 | GT11: 2 | GU11: 0 | GV11: 0 | GW11: 0 | GX11: 0 | GY11: 0 | GZ11: 0 | HA11: 0 | HB11: 0 | HC11: 0 | HD11: 238 | HE11: 0 | HF11: 0 | HG11: 0 | HH11: 577 | HI11: 0 | HJ11: 0 | HK11: 0 | HL11: 0 | HM11: 0 | HN11: 0 | HO11: 0 | HP11: 0 | HQ11: 0 | HR11: 0 | HS11: 0 | HT11: 0 | HU11: 0 | HV11: 0 | HW11: 0 | HX11: 0 | HY11: 0 | HZ11: 0 | IA11: 0 | IB11: 0 | IC11: 0 | ID11: 0 | IE11: 0 | IF11: 0 | IG11: 0 | IH11: 0 | II11: 0 | IJ11: 0 | IK11: 0 | IL11: 0 | IM11: 0 | IN11: 502 | IO11: 0 | IP11: 0 | IQ11: 0 | IR11: 0 | IS11: 0 | IT11: 0 | IU11: 0 | IV11: 0 | IW11: 0 | IX11: 0 | IY11: 0 | IZ11: 0 | JA11: 0 | JB11: 0 | JC11: 0 | JD11: 0 | JE11: 0 | JF11: 0 | JG11: 0 | JH11: 0 | JI11: 0 | JJ11: 0 | JK11: 0 | JL11: 0 | JM11: 0 | JN11: 1 | JO11: 0 | JP11: 0 | JQ11: 0 | JR11: 0 | JS11: 3 | JT11: 11 | JU11: 32 | JV11: 1 | JW11: 0 | JX11: 520 | JY11: 431 | JZ11: 0 | KA11: 0 | KB11: 0 | KC11: 420 | KD11: 0 | KE11: 0 | KF11: 0 | KG11: 0 | KH11: 0 | KI11: 0 | KJ11: 0 | KK11: 0 | KL11: 0 | KM11: 0 | KN11: 0 | KO11: 0 | KP11: 0 | KQ11: 0 | KR11: 0 | KS11: 0 | KT11: 0 | KU11: 0 | KV11: 0 | KW11: 0 | KX11: 0 | KY11: 0 | KZ11: 0 | LA11: 0 | LB11: 0 | LC11: 0 | LD11: 0 | LE11: 0 | LF11: 1 | LG11: 0 | LH11: 0 | LI11: 0 | LJ11: 0 | LK11: 0 | LL11: 0 | LM11: 0 | LN11: 0 | LO11: 5 | LP11: 0 | LQ11: 0 | LR11: 0 | LS11: 0 | LT11: 3 | LU11: 0 | LV11: 0 | LW11: 1 | LX11: 24 | LY11: 17 | LZ11: 31 | MA11: 0 | MB11: 0 | MC11: 78 | MD11: 0 | ME11: 0 | MF11: 0 | MG11: 0 | MH11: 0 | MI11: 0 | MJ11: 1027 | MK11: 1 | ML11: 0 | MM11: 2 | MN11: 0 | MO11: 0 | MP11: 1 | MQ11: 0 | MR11: 1 | MS11: 1 | MT11: 0 | MU11: 0 | MV11: 0 | MW11: 0 | MX11: 0 | MY11: 0 | MZ11: 0 | NA11: 0 | NB11: 0 | NC11: 0 | ND11: 0 | NE11: 0 | NF11: 0 | NG11: 0 | NH11: 0 | NI11: 0 | NJ11: 0 | NK11: 0 | NL11: 0 | NM11: 10 | NN11: 22 | NO11: 9 | NP11: 0 | NQ11: 0 | NR11: 0 | NS11: 0 | NT11: 0 | NU11: 0 | NV11: 0 | NW11: 0 | NX11: 0 | NY11: 0 | NZ11: 0 | OA11: 0 | OB11: 37 | OC11: 0 | OD11: 7 | OE11: 0 | OF11: 0 | OG11: 0 | OH11: 0 | OI11: 0 | OJ11: 0 | OK11: 0 | OL11: 0 | OM11: 2078 | ON11: 0 | OO11: 0 | OP11: 0 | OQ11: 10113 | OR11: 9953 | OW11: 52 | OX11: 681 | OY11: -2248 | PL11: 8437 | PM11: 18550
